Workbook

Sheet Portada

Sheet Indice
S1: 215
B3: Consejo Monetario Centroamericano
B4: Secretaría Ejecutiva
B5: www.secmca.org
B12: REPORTE EJECUTIVO MENSUAL
B13: DE INDICADORES MACROECONÓMICOS
B14: DE CENTROAMÉRICA, PANAMÁ Y REPÚBLICA DOMINICANA
J17: Al mes de:
B22: CONTENIDO
B25: INDICADORES REGIONALES
D26: Principales indicadores macroeconómicos región CARD y CAPARD
D27: CARD: evolución de los principales indicadores macroeconómicos
D28: CAPARD: evolución de los principales indicadores macroeconómicos
B30: INDICADORES POR PAÍS
D31: Cuadro comparativo por país
D32: Proyecciones 2017-2018
D33: Seguimiento de las proyecciones en 2017
D34: Evolución de indicadores macroeconómicos seleccionados (series mensuales)
D35: Nota técnica
J45: Nº215
B46: Elaborado con información recibida al | G46: 2017-11-30 | J46: REM Nº215
J47: 2017-11-24 | K47: 2017
B51: ADVERTENCIA El Consejo Monetario Centroamericano y su Secretaría Ejecutiva autorizan la reproducción total, gráficos y cifras de esta publicación, siempre que se mencione la fuente. No obstante, no asumen responsabilidad legal alguna o de cualquier otra índole, por la manipulación, interpretación personal y uso de dicha información. Derechos Reservados © 2017

Sheet Regional-cuadro
A1: Consejo Monetario Centroamericano | G1: =CONCATENATE(Indice!$J$46,",") -> REM Nº215, | H1: =Indice!$J$47 -> 2017-11-24
A2: Secretaría Ejecutiva
A3: PRINCIPALES INDICADORES MACROECONÓMICOS REGIONALES
B5: Agregados Regionales | D5: Región CARD 1/ | G5: Región CAPARD 1/
B7: I. SECTOR REAL
B8: 1. Indice de Precios al Consumidor (IPC) | D8: OCTUBRE 2016 2017 | G8: OCTUBRE 2016 2017
B9: 1.1 Variación interanual | D9: 2 % | E9: 3.4 % | G9: 1.9 % | H9: 2.9 %
B11: 2. Índice Mensual de Actividad Económica (IMAE) | D11: AGOSTO 2016 2017 | G11: AGOSTO 2016 2017
B12: 2.1 Variación acumulada de la tendencia-ciclo | D12: 4.7 % | E12: 3.8 % | G12: 4.7 % | H12: 4.1 %
B14: 3. Producto Interno Bruto Trimestral (PIB) | D14: II TRIMESTRE 2016 2017 | G14: II TRIMESTRE 2016 2017
B15: 3.1 PIB nominal (millones de US$) | D15: 63545.48423 | E15: 66728.28626 | G15: 77359.37087 | H15: 81485.44364
B16: 3.2 PIB real, tasa de variación interanual | D16: 5.4 % | E16: 3 % | G16: 5.4 % | H16: 3.3 %
B18: 4. Producto Interno Bruto anual (PIB) | D18: ANUAL 2016 2017 | G18: ANUAL 2016 2017
B19: 4.1 PIB nominal (millones de US$) | D19: 258882.8927 | E19: n.d. | G19: 314070.6466 | H19: n.d.
B20: 4.2 PIB real, tasa de variación interanual | D20: 4.5 % | E20: 3.8 - 4.1 % | G20: 4.5 % | H20: 4.1 - 4.3 %
B22: II. SECTOR EXTERNO
B23: 1. Comercio Exterior 2/ | D23: ACUMULADO A JUNIO 2016 2017 | G23: ACUMULADO A JUNIO 2016 2017
B24: 1.1 Balanza de bienes (millones de US$) | D24: -14496.01217 | E24: -14412.66747 | G24: -19096.9728 | H24: -19387.7864
B25: 1.2 Exportaciones totales FOB (millones de US$) | D25: 33845.83252 | E25: 36213.59428 | G25: 42208.1461 | H25: 44522.9811
B26: 1.2.1 Tasa crecimiento interanual | D26: 0.18 % | E26: 7 % | G26: -1.6 % | H26: 5.5 %
B27: 1.3 Importaciones totales CIF (millones de US$) | D27: 37196.39244 | E27: 39008.51618 | G27: 47144.01679 | H27: 49685.06281
B28: 1.3.1 Tasa crecimiento interanual | D28: -2.2 % | E28: 4.9 % | G28: -3.8 % | H28: 5.4 %
B30: 2. Ingreso de Remesas familiares | C30: sin Costa Rica | D30: ACUMULADO A AGOSTO 2016 2017 | G30: ACUMULADO A JUNIO 2016 2017
B31: 2.1 Ingreso de Remesas familiares (millones de US$) | D31: 14612.06504 | E31: 16501.0511 | G31: 11311.79978 | H31: 12728.94211
B33: 3. Inversión Extranjera Directa (IED) | D33: ACUMULADO AL II TRIMESTRE | G33: ACUMULADO AL II TRIMESTRE
D34: 2016 | E34: 2017 | G34: 2016 | H34: 2017
B35: 3.1. IED en la economía declarante, acumulado (millones de US$) | D35: 4117.035476 | E35: 5167.452634 | G35: 6806.435476 | H35: 8012.052634
B36: 3.2. Tasa de Variación interanual | D36: -6.1 % | E36: 25.5 % | G36: -2.4 % | H36: 17.7 %
B38: 4. Cuenta Corriente | D38: ACUMULADO AL II TRIMESTRE | G38: ACUMULADO AL II TRIMESTRE
D39: 2016 | E39: 2017 | G39: 2016 | H39: 2017
B40: 4.1. Cuenta Corriente (millones de US$) | D40: -333.5083157 | E40: 1258.192006 | G40: -1513.208316 | H40: 324.8920057
B42: 5. Reservas Internacionales Netas del Banco Central (RIN) 3/ | D42: SALDO A OCTUBRE 2016 2017 | G42: SALDO A SEPTIEMBRE 2016 2017
B43: 5.1 RIN del Banco Central (millones de US$) | D43: 31248.11918 | E43: 34550.79994 | G43: 34855.72714 | H43: 38236.80309
D44: ACUMULADO A JUNIO 2016 2017 | G44: ACUMULADO A JUNIO 2016 2017
B45: 5.2 RIN Banco Central/ Importaciones (meses de importación promedio) | D45: 5.015449779 | E45: 5.359560201 | G45: 4.564310643 | H45: 4.739414159
B47: III. SECTOR FISCAL | D47: 2016 | E47: 2017 | G47: 2016 | H47: 2017
B48: 1. Resultado del Gobierno Central | D48: ACUMULADO A AGOSTO 2016 2017 | G48: ACUMULADO A JUNIO 2016 2017
B49: 1.1 Ingresos totales del Gobierno Central, incluye donaciones (millones US$) | D49: 24604.24726 | E49: 26033.71944 | G49: 22098.17631 | H49: 23455.95552
B50: 1.2 Gastos totales del Gobierno Central (millones US$) | D50: 27987.68484 | E50: 29080.477 | G50: 25686.2175 | H50: 26092.54267
B51: 1.3 Donaciones recibidas (millones US$) | D51: 204.520357 | E51: 180.6100846 | G51: 159.9981623 | H51: 134.6223572
B52: 1.4 Resultado del Gobierno Central (millones US$) | D52: -3178.91722 | E52: -2866.147478 | G52: -3428.043028 | H52: -2502.964791
B53: 1.5 Resultado del Gobierno Central / PIB | D53: -0.01227936379 | E53: -0.01063006466 | G53: -0.01091487875 | H53: -0.007633555952
B56: 2. Deuda Pública | D56: AGOSTO 2016 2017 | G56: AGOSTO 2016 2017
B57: 2.1 Deuda Interna (millones de US$) 4/ | D57: 61276.33162 | E57: 65675.3726 | G57: 66319.50162 | H57: 70713.7226
B58: 2.2 Deuda Externa (millones de US$) | D58: 56378.9238 | E58: 60476.87596 | G58: 73003.5538 | H58: 78492.91596
B59: 2.3 Deuda Total (millones de US$) 4/ | D59: 117655.2554 | E59: 126152.2486 | G59: 139323.0554 | H59: 149206.6386
B60: 2.4 Deuda Total / PIB 4/ | D60: 0.4544728861 | E60: 0.4872946498 | G60: 0.4436041919 | H60: 0.4750734911
B62: Agregados Regionales | C62: Región CARD | F62: Región CAPARD
B63: IV. SECTOR MONETARIO | C63: 2017 | D63: 2016 | E63: 2017 | F63: 2017 | G63: 2016 | H63: 2017
B64: 1. Agregados Monetarios | C64: Porcentaje respecto a M3 a SEPTIEMBRE | D64: Variación Interanual a SEPTIEMBRE | F64: Porcentaje respecto a M3 a SEPTIEMBRE | G64: Variación Interanual a SEPTIEMBRE
B65: 1.1 M1 5/ | C65: 0.2839742276 | D65: 0.09698868782 | E65: 0.04769306415 | F65: 0.2642197248 | G65: 0.07659332352 | H65: 0.04558310777
B66: 1.2 M2 6/ | C66: 0.7462150511 | D66: 0.06176761092 | E66: 0.06383445791 | F66: 0.808898972 | G66: 0.06126864291 | H66: 0.06271159436
B67: 1.3 M3 7/ | C67: 1 | D67: 0.05380372873 | E67: 0.0631511573 | F67: 1 | G67: 0.05536481154 | H67: 0.06241226023
B68: 1.4 Base Monetaria Amplia 8/ | C68: 0.3223804709 | D68: 0.03466116575 | E68: 0.1031940738 | F68: 0.2539685147 | G68: 0.03855401365 | H68: 0.1066738901
B70: 2. Crédito Neto de las OSD 9/ con el Sector Público | C70: Saldo en millones de US$ a SEPTIEMBRE | D70: Variación Interanual a SEPTIEMBRE | F70: Saldo en millones de US$ a SEPTIEMBRE | G70: Variación Interanual a SEPTIEMBRE
B71: 2.1 Total Activos | C71: 18205.38976 | D71: 0.116179144 | E71: 0.05817854576 | F71: 20874.67609 | G71: 0.1132223013 | H71: 0.04860280979
B72: 2.2 Total Pasivos | C72: 12159.20927 | D72: 0.0971368082 | E72: 0.2968406503 | F72: 14086.24015 | G72: 0.1571283134 | H72: 0.2522339765
B73: 2.3 Crédito neto | C73: 6046.180493 | D73: 0.1398743324 | E73: -0.2276642322 | F73: 6788.435945 | G73: 0.06092183214 | H73: -0.2159570647
B75: 3. Crédito 10/ de las OSD 9/ con el Sector Privado | C75: Saldo en millones de US$ a SEPTIEMBRE | D75: Variación Interanual a SEPTIEMBRE | F75: Saldo en millones de US$ a SEPTIEMBRE | G75: Variación Interanual a SEPTIEMBRE
B76: 3.1 Otras Sociedades No Financieras 11/ | C76: 51650.61109 | D76: 0.08094153262 | E76: 0.06655838462 | F76: 77176.77022 | G76: 0.07287740656 | H76: 0.06263442284
B77: 3.2 Hogares e ISFLSH 12/ | C77: 56353.75486 | D77: 0.09387035585 | E77: 0.072073807 | F77: 78856.47789 | G77: 0.1054540536 | H77: 0.07756221668
B78: 3.3 Otros 13/ | C78: 1027.219238 | D78: -0.01333987387 | E78: 0.06170091922 | F78: 1586.572408 | G78: 0.01693461515 | H78: 0.07264394653
B79: 3.4 Total | C79: 109031.5852 | D79: 0.08657724759 | E79: 0.06935574912 | F79: 157619.8205 | G79: 0.08820960715 | H79: 0.07015189097
B80: Fuente: Cálculos de la Secretaría Ejecutiva con base en la información proporcionada por los Bancos Centrales de la región.
B81: */ No incluye las remesas de Costa Rica debido a que se compilan trimestralmente. En 2013 Costa Rica recibió 229 millones de US$ de remesas netas (ingresos-egresos).
B82: Notas:
B83: 1/ La región CARD incluye a los países centroamericanos y a República Dominicana. La región CAPARD incluye a los países centroamericanos, Panamá y República Dominicana.
B84: 2/ Incluye comercio intrarregional. No incluye la maquila en el caso de Honduras. En Panamá incluye: exportación de mercancías generales, reexportaciones nacionales y reexportaciones de la Zona Libre de Colón.
B85: 3/ En Panamá, al no tener banco central, las RIN son administradas por el Banco Nacional de Panamá (BNP).
B86: 4/ Incluye la deuda interna consolidada en los casos de Guatemala, Honduras y República Dominicana, tal como lo recomienda la versión del 2001 del Manual de Estadísticas de Finanzas Públicas del FMI. En el resto de países se considera únicamente la deuda interna bruta.
B87: 5/ M1: incluye billetes y monedas en poder del público más los depósitos transferibles en MN.
B88: 6/ M2: incluye M1 más otros depósitos en MN, más valores distintos de acciones emitidos por las sociedades de depósito en moneda nacional.
B89: 7/ M3: incluye M2 más depósitos transferibles en ME, más otros depósitos en ME, más valores distintos de acciones emitidos por las sociedades de depósito en ME.
B90: 8/ Base Monetaria Amplia: incluye billetes y monedas en circulación, más depósitos transferibles por concepto de encaje en MN, más valores por concepto de encaje en MN, más pasivos frente a OSD de encaje legal en ME, más otros pasivos frente a OSD a corto plazo, más depósitos y valores de otros sectores.
B91: 9/ OSD corresponde a otras sociedades de depósito, por ejemplo: Bancos comerciales, cooperativas, y otras sociedades de depósito que reciben dinero de público.
B92: 10/ Incluye valores distintos de acciones y préstamos.
B93: 11/ Otras sociedades no Financieras abarca las sociedades y cuasisociedades que se dedican principalmente a la producción de bienes y servicios no financieros.
B94: 12/ ISFLSH corresponde a Instituciones sin fines de lucro que dan servicios a los hogares, en estas podemos encontrar organizaciones del tipo ONG´s.
B95: 13/ Incluye otros sectores residentes, por ejemplo otras sociedades financieras.

Sheet Región CARD-graficos
B1: Consejo Monetario Centroamericano | P1: =CONCATENATE(Indice!$J$46,",") -> REM Nº215, | Q1: =Indice!$J$47 -> 2017-11-24
B2: Secretaría Ejecutiva
B3: REGIÓN CARD: EVOLUCIÓN DE LOS PRINCIPALES INDICADORES MACROECONÓMICOS
B5: Región CARD: Inflación | K5: Región CARD: Ciclo de crecimiento de la Actividad Económica
B6: serie original y tendencia de largo plazo | K6: (cálculos basados en el IMAE, tasa de variación interanual)
B21: Región CARD: | K21: Región CARD:
B22: Reservas Internacionales Netas del Banco Central | K22: Flujos trimestrales de Inversión Extranjera Directa (IED) en la economía declarante
K36: Los flujos negativos observados en El Salvador y Honduras surgen debido a amortizaciones netas de préstamos con el inversionista directo, mayores a lo registrado por acciones u otras aportaciones de capital, los cuales por metodología deben sumarse al valor de la IED.
B38: =CONCATENATE("Región CARD:") -> Región CARD: | K38: Región CARD:
B39: Flujos mensuales de comercio exterior | K39: Ingreso de Remesas , sin acumular
B55: Región CARD: | K55: Región CARD: Saldo Operacional (con donaciones) del Gobierno Central con respecto al PIB
B56: Deuda Pública Bruta Total, Interna y Externa | K56: =CONCATENATE("Datos a ",'Saldo Operacional'!C4," de cada año") -> Datos a agosto de cada año
B69: Incluye la deuda interna consolidada en los casos de Guatemala, Honduras y República Dominicana, tal como lo recomienda la versión del 2001 del Manual de Estadísticas de Finanzas Públicas del FMI. En el resto de países se considera únicamente la deuda interna bruta. | K69: En 2015 el saldo operacional disminuyó debido a que en enero de ese año República Dominicana registró dentro de las donaciones la suma de RD$ 93,157.2 millones, correspondiente al descuento generado por la transacción de deuda realizada con Petrocaribe.
B71: Región CARD: | K71: Región CARD:
B72: =CONCATENATE("Agregados Monetarios (Millones US$)"," ","y variación interanual") -> Agregados Monetarios (Millones US$) y variación interanual | K72: =CONCATENATE("Crédito Total (Millones US$)"," ","y variación interanual") -> Crédito Total (Millones US$) y variación interanual
B90: OJO, REVISAR AÑO DE INICIO DE TODOS ESTOS GRAFICOS PARA ARMONIZAR !!!
C92: deuda: a partir de diciembre 2011 mensual
C93: remesas: desde 2006
C94: ied:2008
C95: agregados monetarios:2002
C96: crédito osd:2003
C98: ***la serie mas corta es la de remesas 2008, la extensión se puede evaluar a partir de esta fecha para que se armonizado pero se perdería información en otras series
K101: OSD: Corresponde a Otras Sociedades de Depósito, por ejemplo: bancos comerciales y cooperativas.
B103: La región CARD la conforman los países de Centroamérica y República Dominicana

Sheet Región CAPARD-graficos
B1: Consejo Monetario Centroamericano | P1: =CONCATENATE(Indice!$J$46,",") -> REM Nº215, | Q1: =Indice!$J$47 -> 2017-11-24
B2: Secretaría Ejecutiva
B3: REGIÓN CAPARD: EVOLUCIÓN DE LOS PRINCIPALES INDICADORES MACROECONÓMICOS
B5: Región CAPARD: Inflación | K5: Región CAPARD: Ciclo de crecimiento de la Actividad Económica
B6: serie original y tendencia de largo plazo | K6: (cálculos basados en el IMAE, tasa de variación interanual)
B21: Región CAPARD: | K21: Región CAPARD:
B22: Reservas Internacionales Netas del Banco Central | K22: Flujos trimestrales de Inversión Extranjera Directa (IED) en la economía declarante
B35: En Panamá, el Banco Nacional de Panamá (BNP) funciona como receptor y gestor de las RIN que corresponden a los activos externos de reserva menos los pasivos de corto plazo frente a no residentes. Los primeros se componen de: billetes y depósitos en moneda extranjera e inversiones en títulos (incluidos los títulos de deuda y participaciones de capital); los pasivos se componen de los depósitos transferibles de no residentes en moneda extranjera. | K35: Los flujos negativos observados en El Salvador y Honduras surgen debido a amortizaciones netas de préstamos con el inversionista directo, mayores a lo registrado por acciones u otras aportaciones de capital, los cuales por metodología deben sumarse al valor de la IED.
B38: =CONCATENATE("Región CAPARD:") -> Región CAPARD: | K38: Región CAPARD:
B39: Flujos mensuales de comercio exterior | K39: Ingreso de Remesas , sin acumular
B55: Región CAPARD: | K55: Región CAPARD: Saldo Operacional (con donaciones) del Gobierno Central con respecto al PIB
B56: Deuda Pública Bruta Total, Interna y Externa | K56: =CONCATENATE("Datos a ",'Saldo Operacional'!G4," de cada año") -> Datos a junio de cada año
B69: Incluye la deuda interna consolidada en los casos de Guatemala, Honduras y República Dominicana, tal como lo recomienda la versión del 2001 del Manual de Estadísticas de Finanzas Públicas del FMI. En el resto de países se considera únicamente la deuda interna bruta. | K69: En 2015 el saldo operacional disminuyó debido a que en enero de ese año República Dominicana registró dentro de las donaciones la suma de RD$ 93,157.2 millones, correspondiente al descuento generado por la transacción de deuda realizada con Petrocaribe.
B71: Región CAPARD: | K71: Región CAPARD:
B72: =CONCATENATE("Agregados Monetarios (Millones US$)"," ","y variación interanual") -> Agregados Monetarios (Millones US$) y variación interanual | K72: =CONCATENATE("Crédito Total (Millones US$)"," ","y variación interanual") -> Crédito Total (Millones US$) y variación interanual
B90: OJO, REVISAR AÑO DE INICIO DE TODOS ESTOS GRAFICOS PARA ARMONIZAR !!!
C92: deuda: a partir de diciembre 2011 mensual
C93: remesas: desde 2006
C94: ied:2008
C95: agregados monetarios:2002
C96: crédito osd:2003
C98: ***la serie mas corta es la de remesas 2008, la extensión se puede evaluar a partir de esta fecha para que se armonizado pero se perdería información en otras series
K100: OSD: Corresponde a Otras Sociedades de Depósito, por ejemplo: bancos comerciales y cooperativas.
B101: Las disminuciones en créditos y depósitos al cierre de 2013 se deben a que durante los meses de septiembre y octubre de ese año se originó la venta del Banco HSBC Panamá al grupo Bancolombia; algunas operaciones financieras que mantenía el Banco HSBC no fueron adquiridas o cedidas a Bancolombia (Banistmo, S.A.), saliendo del sistema bancario panameño a otros centros financieros. | K101: Las disminuciones en créditos al cierre de 2013 se deben a que durante los meses de septiembre y octubre de ese año se originó la venta del Banco HSBC Panamá al grupo Bancolombia; algunas operaciones financieras que mantenía el Banco HSBC no fueron adquiridas o cedidas a Bancolombia (Banistmo, S.A.), saliendo del sistema bancario panameño a otros centros financieros.
B103: La región CAPARD la conforman los países de Centroamérica, Panamá y República Dominicana.

Sheet Comparativo
A1: Consejo Monetario Centroamericano
A2: Secretaría Ejecutiva
A3: CUADRO COMPARATIVO POR PAIS
E4: =CONCATENATE(Indice!$J$46,",") -> REM Nº215, | F4: =Indice!$J$47 -> 2017-11-24
A6: Indicadores | B6: Costa Rica | D6: El Salvador | F6: Guatemala | H6: Honduras | J6: Nicaragua | L6: Rep. Dominicana | N6: Panamá
B7: 2016 | C7: 2017 | D7: 2016 | E7: 2017 | F7: 2016 | G7: 2017 | H7: 2016 | I7: 2017 | J7: 2016 | K7: 2017 | L7: 2016 | M7: 2017 | N7: 2016 | O7: 2017
A8: I. SECTOR REAL
A9: 1. Precios al Consumidor | B9: OCTUBRE | D9: SEPTIEMBRE | F9: OCTUBRE | H9: OCTUBRE | J9: OCTUBRE | L9: OCTUBRE | N9: OCTUBRE
A10: 1.1 Tasa de variación interanual en el mes indicado | B10: 0.5518009883 | C10: 2.32543161 | D10: -0.8757674251 | E10: 1.430002732 | F10: 4.759930342 | G10: 4.203277131 | H10: 2.824267782 | I10: 3.967446592 | J10: 3.396102578 | K10: 4.373308381 | L10: 0.9120305116 | M10: 3.48 | N10: 1.364522417 | O10: 0.4807692308
A11: 1.2 Tasa de variación acumulada al mes indicado respecto a diciembre | B11: 0.3742696987 | C11: 1.928457208 | D11: -0.741343459 | E11: 1.629021218 | F11: 3.821499014 | G11: 3.79247812 | H11: 2.896022331 | I11: 3.546099291 | J11: 2.031221244 | K11: 3.261630277 | L11: 0.6533245121 | M11: 2.419702366 | N11: 1.463414634 | O11: 0.4807692308
A12: =CONCATENATE(" 1.3 Tasa de variación de los precios en el ",B7," y proyectado para el ",C7) -> 1.3 Tasa de variación de los precios en el 2016 y proyectado para el 2017 | B12: 0.7651911029 | C12: 3.0 ± 1 | D12: -0.9357200976 | E12: n.d. | F12: 4.232412886 | G12: 4.0 ± 1 | H12: 3.314724355 | I12: 4.0 ± 1 | J12: 3.129653201 | K12: 3.5 - 4.5 | L12: 1.695335759 | M12: 4.0 ± 1 | N12: 1.463414634 | O12: 1.5
A13: 1.4 Tasa de variación interanual del índice subyacente de inflación | B13: 0.7025291048 | C13: 1.597824148 | D13: -0.1233045623 | E13: 0.2943969611 | F13: 3.274410774 | G13: 2.85 | H13: 3.357563171 | I13: 4.018754186 | J13: 4.143247437 | K13: 4.146105984 | L13: 1.77882195 | M13: 2.234130256 | N13: n.d. | O13: n.d.
A14: 2. Producción | B14: SEPTIEMBRE | D14: SEPTIEMBRE | F14: SEPTIEMBRE | H14: SEPTIEMBRE | J14: SEPTIEMBRE | L14: AGOSTO | N14: SEPTIEMBRE
A15: 2.1 IMAE (variación acumulada Tendencia-Ciclo en el mes indicado) | B15: 4.373466064 | C15: 3.628154392 | D15: 2.115933996 | E15: 2.782968151 | F15: 2.762462175 | G15: 3.070815221 | H15: 2.935824389 | I15: 5.762716304 | J15: 5.228878281 | K15: 4.641682763 | L15: 6.48728611 | M15: 4.606621738 | N15: 4.277515154 | O15: 5.602494246
A16: 2.2 Tasa de variación del PIB real en el 2016 y estimado para el 2017 | B16: 4.508373164 | C16: 3.8 | D16: 2.366458682 | E16: 1.9 - 2.8 | F16: 3.066719179 | G16: 3.0 - 3.4 | H16: 3.609521877 | I16: 3.7 - 4.1 | J16: 4.702181049 | K16: 4.7-5.2 | L16: 6.64530018 | M16: 5 | N16: 4.870133024 | O16: 5.8
A17: 2.3 Tasa de variación interanual del PIB trimestral, a precios constantes a/ | B17: II TRIMESTRE 2016 2017 | D17: II TRIMESTRE 2016 2017 | F17: II TRIMESTRE 2016 2017 | H17: II TRIMESTRE 2016 2017 | J17: II TRIMESTRE 2016 2017 | L17: II TRIMESTRE 2016 2017 | N17: II TRIMESTRE 2016 2017
B18: 4.327497487 | C18: 3.995521537 | D18: 2.3662108 | E18: 2.254062073 | F18: 3.738363611 | G18: 2.264256588 | H18: 4.023385619 | I18: 4.352819452 | J18: 7.302446421 | K18: 4.270086962 | L18: 8.540319602 | M18: 2.666273083 | N18: 5.331235474 | O18: 5.442976859
A19: 2.4 PIB nominal en millones de US dólares b/ | B19: 2016 | C19: 2017 | D19: 2016 | E19: 2017 | F19: 2016 | G19: 2017 | H19: 2016 | I19: 2017 | J19: 2016 | K19: 2017 | L19: 2016 | M19: 2017 | N19: 2016 | O19: 2017
B20: 57160.87962 | C20: 57789.47368 | D20: 26797.47 | E20: 27407 | F20: 68725.46036 | G20: n.d. | H20: 22338.83186 | I20: 22170.83333 | J20: 13230.12289 | K20: 13971.5 | L20: 70630.128 | M20: 74444.3 | N20: 55187.75391 | O20: 59088
A22: II. SECTOR EXTERNO
A23: 1.Indicadores de Balanza de Pagos
A24: 1.1 Balanza de bienes, acumulado en millones de US$ c/ | B24: OCTUBRE 2016 2017 | D24: OCTUBRE 2016 2017 | F24: SEPTIEMBRE 2016 2017 | H24: SEPTIEMBRE 2016 2017 | J24: SEPTIEMBRE 2016 2017 | L24: JUNIO 2016 2017 | N24: SEPTIEMBRE 2016 2017
A25: 1.1.1 Exportaciones totales de bienes FOB | B25: 8615.229359 | C25: 9278.543158 | D25: 4514.92 | E25: 4774.205643 | F25: 7912.5 | G25: 8389.7 | H25: 2958.301121 | I25: 3600.760387 | J25: 3729.8 | K25: 3938 | L25: 4779.3 | M25: 5063.9 | N25: 8362.313576 | O25: 8309.386817
A26: 1.1.2 Importaciones totales de bienes CIF | B26: 13074.83867 | C26: 13614.87577 | D26: 8174.43 | E26: 8693.79 | F26: 12563.3 | G26: 13379.7 | H26: 6580.378636 | I26: 7143.872445 | J26: 5581.882506 | K26: 5628.2 | L26: 8272.6 | M26: 8579.3 | N26: 15550.39179 | O26: 16127.6639
A27: 1.1.3 Saldo acumulado (exportaciones - importaciones) | B27: -4459.609313 | C27: -4336.332611 | D27: -3659.51 | E27: -3919.584357 | F27: -4650.8 | G27: -4990 | H27: -3622.077514 | I27: -3543.112058 | J27: -1852.082506 | K27: -1690.2 | L27: -3493.3 | M27: -3515.4 | N27: -7188.078217 | O27: -7818.277084
A28: =CONCATENATE(" 1.1.4 Saldo en el ",B7," (preliminar o estimado) y proyectado para el ",C7) -> 1.1.4 Saldo en el 2016 (preliminar o estimado) y proyectado para el 2017 | B28: -5565.361792 | C28: -5581 | D28: -4519.23 | E28: n.d. | F28: -6552.2 | G28: -6828.2975 | H28: -5040.955392 | I28: -3160.6 | J28: -2656.314822 | K28: -2627.2 | L28: -7623.2 | M28: n.d. | N28: -9740.069915 | O28: n.d.
A29: 2.5 Saldo RIN/ Importaciones (meses de importación promedio) | B29: 5.900888215 | C29: 5.015690276 | D29: 3.613866655 | E29: 3.832712775 | F29: 6.457952926 | G29: 7.550108727 | H29: 5.069243755 | I29: 5.690412619 | J29: 3.897394826 | K29: 3.986372197 | L29: 3.844755906 | M29: 4.554767227 | N29: 3.844755906 | O29: 4.554767227
A30: 1.2 Transferencias Corrientes, acumulado en millones de US$ | B30: II TRIMESTRE 2016 2017 | D30: OCTUBRE 2016 2017 | F30: OCTUBRE 2016 2017 | H30: AGOSTO 2016 2017 | J30: OCTUBRE 2016 2017 | L30: SEPTIEMBRE 2016 2017 | N30: II TRIMESTRE 2016 2017
A31: 1.2.1 Ingreso de remesas familiares d/ | B31: 248.6152264 | C31: 259.0862109 | D31: 3728.07 | E31: 4112.27 | F31: 5881.2146 | G31: 6825.61 | H31: 2601.228715 | I31: 2955.3 | J31: 1029.7 | K31: 1138.1 | L31: 3908.570059 | M31: 4432.2 | N31: 205.6 | O31: 108.4
A32: =CONCATENATE(" 1.2.2 Saldo en el ",B7," (preliminar o estimado) y proyectado para el ",C7) -> 1.2.2 Saldo en el 2016 (preliminar o estimado) y proyectado para el 2017 | B32: 514.7957731 | C32: n.d. | D32: 4576.04 | E32: n.d. | F32: 7159.9677 | G32: 8054.96355 | H32: 3949.030509 | I32: 4146 | J32: 1264.1 | K32: 1314 | L32: 5261.463095 | M32: 5800 | N32: 426.1 | O32: n.d.
A33: 1.3 Inversión directa, saldo en millones de US$ | B33: II TRIMESTRE 2016 2017 | D33: II TRIMESTRE 2016 2017 | F33: II TRIMESTRE 2016 2017 | H33: II TRIMESTRE 2016 2017 | J33: II TRIMESTRE 2016 2017 | L33: II TRIMESTRE 2016 2017 | N33: II TRIMESTRE 2016 2017
A34: 1.3.1 Inversión Extranjera Directa en la economía declarante e/ | B34: 1267.195476 | C34: 1571.942634 | D34: 148.24 | E34: 413.01 | F34: 566.4 | G34: 579.3 | H34: 534.1 | I34: 617 | J34: 608.4 | K34: 591.9 | L34: 992.7 | M34: 1394.3 | N34: 2689.4 | O34: 2844.6
A35: 1.4 Balanza en cuenta corriente, saldo en millones de US$ | B35: II TRIMESTRE 2016 2017 | D35: II TRIMESTRE 2016 2017 | F35: II TRIMESTRE 2016 2017 | H35: II TRIMESTRE 2016 2017 | J35: II TRIMESTRE 2016 2017 | L35: II TRIMESTRE 2016 2017 | N35: II TRIMESTRE 2016 2017
A36: 1.4.1 Saldo de Balanza en Cuenta Corriente | B36: -442.8391653 | C36: -605.8079217 | D36: -281.7180473 | E36: -67.23623959 | F36: 848.4 | G36: 1149.4 | H36: 12.14889683 | I36: 496.536167 | J36: -536.6 | K36: -41.6 | L36: 67.1 | M36: 326.9 | N36: -1179.7 | O36: -933.3
A37: 1.4.2 Saldo en el 2016 y proyectado para el 2017 | B37: -1697.740809 | C37: -2196 | D37: -530.643273 | E37: n.d. | F37: 1023.4 | G37: 1032.097513 | H37: -509.8361309 | I37: -1064.2 | J37: -1133.4 | K37: -1124.19254 | L37: -977.6 | M37: -1488.886 | N37: -3160 | O37: n.d.
A39: 1.5 Saldo RIN del Banco Central, en millones de US$ | B39: OCTUBRE 2016 2017 | D39: OCTUBRE 2016 2017 | F39: OCTUBRE 2016 2017 | H39: OCTUBRE 2016 2017 | J39: OCTUBRE 2016 2017 | L39: OCTUBRE 2016 2017 | N39: SEPTIEMBRE 2016 2017
A40: 1.5.1 Saldo RIN a fines de mes | B40: 7715.316143 | C40: 6829 | D40: 2954.13 | E40: 3332.08 | F40: 9063.2 | G40: 11494 | H40: 3732.618614 | I40: 4522 | J40: 2332.6 | K40: 2552 | L40: 5450.254424 | M40: 5822 | N40: 4100.183027 | O40: 3571
A41: =CONCATENATE(" 1.5.2 Saldo en el ",B7," y proyectado para el ",C7) -> 1.5.2 Saldo en el 2016 y proyectado para el 2017 | B41: 7834.088133 | C41: 7974.947368 | D41: 2670.2 | E41: n.d. | F41: 7751.2 | G41: 10660.4 | H41: 3822.265 | I41: n.d. | J41: 2401.2 | K41: 2644.1 | L41: 5195.054101 | M41: 5789.8 | N41: 3896.114107 | O41: n.d.
B42: OCTUBRE 2016 2017 | D42: OCTUBRE 2016 2017 | F42: SEPTIEMBRE 2016 2017 | H42: SEPTIEMBRE 2016 2017 | J42: SEPTIEMBRE 2016 2017 | L42: JUNIO 2016 2017 | N42: SEPTIEMBRE 2016 2017
A43: 1.5.3 Saldo RIN/ Importaciones (importación promedio al mes indicado) | B43: 5.900888215 | C43: 5.015690276 | D43: 3.613866655 | E43: 3.832712775 | F43: 6.457952926 | G43: 7.550108727 | H43: 5.069243755 | I43: 5.690412619 | J43: 3.897394826 | K43: 3.986372197 | L43: 3.844755906 | M43: 4.554767227 | N43: 2.373036496 | O43: 1.992996789
A44: 1.5.3 Saldo RIN/ Importaciones (importación promedio al mes indicado) | B44: II TRIMESTRE | D44: OCTUBRE | F44: OCTUBRE TRIMESTRE | H44: AGOSTO TRIMESTRE | J44: OCTUBRE TRIMESTRE | L44: SEPTIEMBRE TRIMESTRE | N44: SEPTIEMBRE TRIMESTRE
A45: 1.5.3 Saldo RIN/ Importaciones (importación promedio al mes indicado) | B45: 248.6152264 | C45: 259.0862109 | D45: 3728.07 | E45: 4112.27 | F45: 5881.2146 | G45: 6825.61 | H45: 2601.228715 | I45: 2955.3 | J45: 1029.7 | K45: 1138.1 | L45: 3908.570059 | M45: 4432.2 | N45: 3908.570059 | O45: 4432.2
A46: 1.5.3 Saldo RIN/ Importaciones (importación promedio al mes indicado) | B46: 514.7957731 | C46: n.d. | D46: 4576.04 | E46: n.d. | F46: 7159.9677 | G46: 8054.96355 | H46: 3949.030509 | I46: 4146 | J46: 1264.1 | K46: n.d. | L46: 5261.463095 | M46: 5800 | N46: 5261.463095 | O46: 5800
A47: 2. Tipo de Cambio (nueva metodología del tipo de cambio real) | B47: OCTUBRE | D47: OCTUBRE | F47: OCTUBRE | H47: OCTUBRE | J47: OCTUBRE | L47: OCTUBRE | N47: OCTUBRE
A48: 2.1 Unidades Moneda Nacional por US$, promedio compra | B48: 547.1445161 | C48: 568.423871 | D48: 8.75 | E48: 8.75 | F48: 7.4791 | G48: 7.32409 | H48: 23.08148333 | I48: 23.46616471 | J48: 29.12356781 | K48: 30.48993717 | L48: 46.3447 | M48: 47.7346 | N48: 1 | O48: 1
A49: 2.2 ITCER-USA, 2000=100, tasa de variación interanual | B49: 4.672459354 | C49: 3.600517717 | D49: 2.533946423 | E49: 0.6025100592 | F49: -5.311640878 | G49: -4.104504253 | H49: 3.306434915 | I49: -0.2170647644 | J49: 3.270394088 | K49: 2.352335271 | L49: 3.20668309 | M49: 1.566864684 | N49: 0.2678107658 | O49: 1.552893636
A50: 2.3 ITCER-Global f/, 2000=100, tasa de variación interanual | B50: 3.899052195 | C50: 4.337314463 | D50: 1.925560401 | E50: 1.246365685 | F50: -7.027505615 | G50: -3.768152929 | H50: 2.550367418 | I50: 0.6721402002 | J50: -0.9159530053 | K50: 3.127699165 | L50: -2.652478644 | M50: 3.18364458 | N50: -0.9867465762 | O50: 1.989625256
A51: 2.4 ITCER-Región g/, 2000=100, tasa de variación interanual | B51: 4.80656977 | C51: 3.651624261 | D51: 2.746334653 | E51: 1.461109453 | F51: -7.824491519 | G51: -5.299574704 | H51: 3.727040811 | I51: 0.1908276318 | J51: 1.738208885 | K51: 2.099035979 | L51: 1.837591888 | M51: 0.9372859957 | N51: -2.265688218 | O51: 0.2464502097
A52: 2.5 ITCER-Global f/, tasa de variación con el año base (2000) | B52: -19.85469976 | C52: -16.37854606 | D52: 3.152457267 | E52: 4.438114098 | F52: -43.46182643 | G52: -45.59227127 | H52: -14.41174788 | I52: -13.83647483 | J52: 6.584079192 | K52: 9.917708547 | L52: 35.70744974 | M52: 40.02789261 | N52: -11.78576089 | O52: -10.03062811
A54: III. SECTOR FISCAL
A55: 1. Resultado del Gobierno Central, en millones de US$ | B55: OCTUBRE 2016 2017 | D55: SEPTIEMBRE 2016 2017 | F55: OCTUBRE 2016 2017 | H55: SEPTIEMBRE 2016 2017 | J55: AGOSTO 2016 2017 | L55: SEPTIEMBRE 2016 2017 | N55: SEPTIEMBRE 2016 2017
A56: 1.1 Ingresos totales, acumulado | B56: 6574.55065 | C56: 6534.887984 | D56: 3337.859503 | E56: 3589.394333 | F56: 6385.272829 | G56: 6918.61614 | H56: 3148.982445 | I56: 3431.836411 | J56: 1597.800703 | K56: 1676.799725 | L56: 7846.508351 | M56: 8472.514376 | N56: 5109 | O56: 5249
A57: 1.2 Ingresos tributarios, acumulado | B57: 6061.469623 | C57: 6035.88358 | D57: 3202.45 | E57: 3387.462754 | F57: 6033.534988 | G57: 6575.824354 | H57: 3001.166745 | I57: 3187.277826 | J57: 1493.526598 | K57: 1565.572589 | L57: 7312.581848 | M57: 7886.712941 | N57: 4079 | O57: 4236
A58: 1.3 Gastos totales, acumulado | B58: 8845.598211 | C58: 9222.972647 | D58: 3310.84 | E58: 3364.297301 | F58: 6489.04489 | G58: 7046.682852 | H58: 3430.618527 | I58: 3657.778915 | J58: 1649.438911 | K58: 1691.773935 | L58: 9386.713139 | M58: 9663.938729 | N58: 7157 | O58: 7567
A59: 1.4 Donaciones, acumulado | B59: 0 | C59: 0 | D59: 23.45 | E59: 24.13777063 | F59: 5.797494702 | G59: 8.512032624 | H59: 100.4996887 | I59: 86.14835331 | J59: 78.37223906 | K59: 66.11351534 | L59: 11.80993186 | M59: 11.74254167 | N59: 8 | O59: 4
A60: 1.5 Déficit (-) superávit (+) con donaciones | B60: -2271.047561 | C60: -2688.084663 | D60: 50.46950264 | E60: 249.2348029 | F60: -97.97456659 | G60: -119.5546792 | H60: -181.1363932 | I60: -139.7941502 | J60: 26.73403132 | K60: 51.13930567 | L60: -1528.394856 | M60: -1179.681812 | N60: -2040 | O60: -2316
A61: 1.5.1 Financiamiento interno | B61: 2194.058996 | C61: 2654.721609 | D61: -13.63 | E61: -597.8233699 | F61: -367.7884649 | G61: -93.70387768 | H61: 156.4302045 | I61: -708.2830693 | J61: -138.8301231 | K61: -189.4585864 | L61: 379.8823793 | M61: -67.90115231 | N61: n.d. | O61: n.d.
A62: 1.5.2 Financiamiento externo | B62: 76.98868048 | C62: 33.36293182 | D62: -36.86 | E62: 348.588567 | F62: 465.7630314 | G62: 213.2585569 | H62: 24.69726538 | I62: 848.0772195 | J62: 112.0960918 | K62: 138.3182746 | L62: 1148.512477 | M62: 1247.582964 | N62: n.d. | O62: n.d.
A63: 1.6 Déficit (-) superávit (+) en el 2016 y estimado 2017, con donaciones | B63: -3024.158378 | C63: -3525.157895 | D63: -207.2604974 | E63: n.d. | F63: -746.2989508 | G63: -1086.81 | H63: -585.745641 | I63: -775.9791667 | J63: -80.65958428 | K63: -127.5707015 | L63: -2064.272004 | M63: -1729.35 | N63: -2339 | O63: n.d.
A64: 1.7 Ingresos Corrientes, tasa de variación interanual | B64: 8.775289453 | C64: 5.192140357 | D64: 6.124185257 | E64: 7.538051621 | F64: 8.020520315 | G64: 4.549678911 | H64: 14.78674688 | I64: 12.57591641 | J64: 15.48286021 | K64: 10.18352994 | L64: 7.841809958 | M64: 11.23183803 | N64: 7.032399934 | O64: =0.057*100 -> 5.7
A65: 1.8 Relación Gasto Capital / Gasto Total, en porcentajes | B65: 6.156731703 | C65: 7.057668374 | D65: 14.58632855 | E65: 14.20573962 | F65: 15.9339585 | G65: 16.54270868 | H65: 20.72975729 | I65: 21.50250161 | J65: 24.89843866 | K65: 30.49961829 | L65: 18.84101918 | M65: 20.93219188 | N65: 34.70633105 | O65: 30.86257789
A66: 1.9 Ahorro Corriente, en millones de US$ | B66: -1728.753281 | C66: -2047.983902 | D66: 509.53 | E66: 692.0713503 | F66: 930.9889165 | G66: 1038.049094 | H66: 429.5022624 | I66: 560.5797138 | J66: 359.0463277 | K66: 501.0103829 | L66: 228.0642744 | M66: 830.1280487 | N66: 348 | O66: 85
A67: 2. Saldo Deuda Pública, en millones de US$ | B67: OCTUBRE 2016 2017 | D67: SEPTIEMBRE 2016 2017 | F67: OCTUBRE 2016 2017 | H67: SEPTIEMBRE 2016 2017 | J67: SEPTIEMBRE 2016 2017 | L67: AGOSTO 2016 2017 | N67: SEPTIEMBRE 2016 2017
A68: 2.1 Saldo Deuda Pública Total h/ | B68: 35377.56733 | C68: 36701.7058 | D68: 17293.86 | E68: 17863.87594 | F68: 17296.21255 | G68: 19179.19468 | H68: 9092.315437 | I68: 10208.46888 | J68: 5943.464048 | K68: 6291.798356 | L68: 33467.31902 | M68: 36811.91 | N68: 21589.57 | O68: 23380.2
A69: 2.1.1 Saldo Deuda Interna Bruta | B69: 24682.52733 | C69: 25794.5558 | D69: 8196.96 | E69: 8254.852939 | F69: 12491.29701 | G69: 14620.16773 | H69: 5894.229802 | I69: 6969.193288 | J69: 945.4216944 | K69: 974.956194 | L69: 18609.64902 | M69: 20378.62 | N69: n.d. | O69: n.d.
A70: 2.1.1.1 Sector Público No Financiero | B70: 20007.07517 | C70: 21904.11202 | D70: 3949.84 | E70: 3500.912992 | F70: 8584.889946 | G70: 9633.807789 | H70: 4675.210497 | I70: 5553.442012 | J70: 633.7686185 | K70: 654.2057454 | L70: 9281 | M70: 10025.5 | N70: n.d. | O70: n.d.
A71: a) Gobierno Central | B71: 19751.23828 | C71: 21652.27932 | D71: 3647.97 | E71: 3139.597711 | F71: 8584.889946 | G71: 9633.807789 | H71: 3441.78627 | I71: 3847.511134 | J71: 633.7686185 | K71: 654.2057454 | L71: 8837.75 | M71: 9594.6 | N71: 4863.06 | O71: 4985.04
A72: b) Resto del Sector Público No Financiero | B72: 255.8368958 | C72: 251.832701 | D72: 301.87 | E72: 361.3152807 | F72: n.d. | G72: n.d. | H72: 1233.424227 | I72: 1705.930878 | J72: n.d. | K72: n.d. | L72: 443.25 | M72: 430.9 | N72: n.d. | O72: n.d.
A73: 2.1.1.2 Sector Público Financiero | B73: 4675.452154 | C73: 3890.443783 | D73: 4247.12 | E73: 4753.939947 | F73: 3906.407065 | G73: 4986.359942 | H73: 1219.019305 | I73: 1415.751276 | J73: 311.6530759 | K73: 320.7504486 | L73: 9328.64902 | M73: 10353.12 | N73: n.d. | O73: n.d.
A74: a) Banco Central | B74: 4675.452154 | C74: 3890.443783 | D74: 0 | E74: 0 | F74: 3906.407065 | G74: 4986.359942 | H74: 1219.019305 | I74: 1415.751276 | J74: 311.6530759 | K74: 320.7504486 | L74: 9328.64902 | M74: 10353.12 | N74: 0 | O74: 0
A75: b) Resto del Sector Público Financiero | B75: n.d. | C75: n.d. | D75: 4247.12 | E75: 4753.939947 | F75: n.d. | G75: n.d. | H75: n.d. | I75: n.d. | J75: n.d. | K75: n.d. | L75: n.d. | M75: n.d. | N75: n.d. | O75: n.d.
A76: 2.1.2 Deuda Intragubernamental | B76: n.d. | C76: n.d. | D76: n.d. | E76: n.d. | F76: 3157.563761 | G76: 3686.064349 | H76: 2881.814365 | I76: 3902.924407 | J76: n.d. | K76: n.d. | L76: 2881.03 | M76: 2783.85 | N76: n.d. | O76: n.d.
A77: a) Deuda Intragubernamental SPNF | B77: n.d. | C77: n.d. | D77: n.d. | E77: n.d. | F77: 2175.11522 | G77: 2436.603572 | H77: 2233.567515 | I77: 3036.343509 | J77: n.d. | K77: n.d. | L77: 2881.03 | M77: 2783.85 | N77: n.d. | O77: n.d.
A78: b) Deuda Intragubernamental del BC | B78: n.d. | C78: n.d. | D78: n.d. | E78: n.d. | F78: 982.4485412 | G78: 1249.460777 | H78: 648.2468507 | I78: 866.5808978 | J78: n.d. | K78: n.d. | L78: n.d. | M78: n.d. | N78: n.a. | O78: n.a.
A79: 2.1.3 Saldo Deuda Interna Consolidada (2.1.1 - 2.1.2) | B79: n.d. | C79: n.d. | D79: n.d. | E79: n.d. | F79: 9333.733249 | G79: 10934.10338 | H79: 3012.415437 | I79: 3066.268881 | J79: n.d. | K79: n.d. | L79: 15728.61902 | M79: 17594.77 | N79: 4980.99 | O79: 5106.71
A80: 2.1.4 Saldo Deuda Externa | B80: 10695.04 | C80: 10907.15 | D80: 9096.9 | E80: 9609.023 | F80: 7962.4793 | G80: 8245.0913 | H80: 6079.9 | I80: 7142.2 | J80: 4998.042353 | K80: 5316.842162 | L80: 17738.7 | M80: 19217.14 | N80: 16608.58 | O80: 18273.49
A81: 2.1.4.1 Sector Público No Financiero | B81: 8306.14 | C81: 8544.11 | D81: 8618.3 | E81: 9194.423 | F81: 7962.4793 | G81: 8245.0913 | H81: 5952.4 | I81: 7017.7 | J81: 3400.868623 | K81: 3749.334571 | L81: 17124 | M81: 18912.09 | N81: 16608.58 | O81: 18273.49
A82: a) Gobierno Central | B82: 5574.69 | C82: 5836.11 | D82: 8157.6 | E82: 8750.123 | F82: 7893.1336 | G82: 8184.3291 | H82: 5805.3 | I82: 6784.7 | J82: 3341.016587 | K82: 3691.258014 | L82: 17118 | M82: 18906.1 | N82: 16571.35 | O82: 18248.67
A83: b) Resto del Sector Público No Financiero | B83: 2731.45 | C83: 2708 | D83: 460.7 | E83: 444.3 | F83: 69.3457 | G83: 60.7622 | H83: 147.1 | I83: 233 | J83: 59.85203597 | K83: 58.0765576 | L83: 6 | M83: 5.99 | N83: 37.23 | O83: 24.82
A84: 2.1.4.2 Sector Público Financiero | B84: 2388.9 | C84: 2363.04 | D84: 478.6 | E84: 414.6 | F84: n.d. | G84: n.d. | H84: 127.5 | I84: 124.5 | J84: 1597.17373 | K84: 1567.507591 | L84: 614.7 | M84: 305.05 | N84: 0 | O84: 0
A85: a) Banco Central | B85: 16.81 | C85: 14.51 | D85: 213.2 | E85: 242.2 | F85: 0 | G85: 0 | H85: 90.4 | I85: 89.4 | J85: 1597.17373 | K85: 1567.507591 | L85: 614.7 | M85: 305.05 | N85: 0 | O85: 0
A86: b) Resto del Sector Público Financiero | B86: 2372.09 | C86: 2348.53 | D86: 265.4 | E86: 172.4 | F86: n.d. | G86: n.d. | H86: 37.1 | I86: 35.1 | J86: 0 | K86: 0 | L86: n.d. | M86: n.d. | N86: 0 | O86: 0
A87: 2.2 Relación Deuda Pública Total/PIB h/ | B87: 61.89122274 | C87: 63.50932698 | D87: 64.53542069 | E87: 66.66254665 | F87: 25.1671105 | G87: 27.90697157 | H87: 40.70183927 | I87: 42.79604647 | J87: 44.92372516 | K87: 47.55661309 | L87: 47.38391387 | M87: 49.44893027 | N87: 39.12021865 | O87: 42.3648334
A88: 2.2.1.a Deuda Interna/PIB (bruta) | B88: 43.18080388 | C88: 44.635388 | D88: 30.58855929 | E88: 30.80459812 | F88: 18.17564691 | G88: 21.27329181 | H88: 26.38557754 | I88: 29.21632257 | J88: 7.145978174 | K88: 7.369214949 | L88: 26.34803242 | M88: 27.37431879 | N88: n.d. | O88: n.d.
A89: 2.2.1.b Deuda Interna/PIB (consolidada) | B89: n.d. | C89: n.d. | D89: n.d. | E89: n.d. | F89: 13.58118694 | G89: 15.90982923 | H89: 13.48510726 | I89: 12.85444341 | J89: n.d. | K89: n.d. | L89: 22.26899408 | M89: 23.63481153 | N89: 9.025534919 | O89: 9.25333908
A90: 2.2.2 Deuda Externa/PIB | B90: 18.71041886 | C90: 18.87393898 | D90: 33.9468614 | E90: 35.85794853 | F90: 11.58592355 | G90: 11.99714233 | H90: 27.21673201 | I90: 29.94160306 | J90: 37.77774699 | K90: 40.18739814 | L90: 25.1149198 | M90: 25.81411874 | N90: 30.09468373 | O90: 33.11149432
A92: IV. SECTOR MONEDA Y CREDITO i/
A93: 1. Principales variables monetarias, tasas de variación | B93: OCTUBRE 2016 2017 | D93: SEPTIEMBRE 2016 2017 | F93: OCTUBRE 2016 2017 | H93: SEPTIEMBRE 2016 2017 | J93: SEPTIEMBRE 2016 2017 | L93: OCTUBRE 2016 2017 | N93: SEPTIEMBRE 2016 2017
A94: 1.1 Base Monetaria Restringida, tasa interanual ponderada para los componentes | B94: 6.547899284 | C94: 7.809121229 | D94: 2.569511383 | E94: 10.82353084 | F94: 10.89371261 | G94: 13.40578441 | H94: 14.13958735 | I94: 23.26090832 | J94: 11.6943478 | K94: 6.410209278 | L94: 9.333913779 | M94: -3.410378442 | N94: 6.596098234 | O94: 5.552628902
A95: 1.1.1 Billetes y monedas en circulación | B95: 3.002207122 | C95: 2.554090639 | D95: -0.025844125 | E95: -0.01017704271 | F95: 3.915659001 | G95: 9.467337915 | H95: 8.454588055 | I95: 6.2872889 | J95: 4.250781777 | K95: 6.763415911 | L95: 4.487074485 | M95: 3.472795558 | N95: 6.596098234 | O95: 5.552628902
A96: 1.1.2 Depósitos transferibles por concepto de encaje en MN | B96: 3.545692162 | C96: 5.25503059 | D96: 2.595355508 | E96: 10.83370788 | F96: 6.795566088 | G96: 3.815243015 | H96: 5.082659597 | I96: 29.01888862 | J96: 7.443566018 | K96: -0.3532066327 | L96: 4.846839294 | M96: -6.883174 | N96: n.a. | O96: n.a.
A97: 1.1.3 Valores por concepto de encaje en MN j/ | B97: n.a. | C97: n.a. | D97: n.d. | E97: n.d. | F97: 0.1824875203 | G97: 0.1232034757 | H97: 0.6023396935 | I97: -12.04526921 | J97: n.a. | K97: n.a. | L97: n.a. | M97: n.a. | N97: n.a. | O97: n.a.
A98: 1.2. Agregados monetarios, tasa interanual ponderada para los componentes
A99: 1.2.1 Agregado Monetario M1, tasa de variación interanual | B99: 16.36432357 | C99: -2.128948662 | D99: 2.747257992 | E99: 7.184587882 | F99: 6.233321677 | G99: 8.745221012 | H99: 13.89531462 | I99: 16.22904135 | J99: 10.97727368 | K99: 7.51687603 | L99: 16.02814904 | M99: 8.250672893 | N99: -0.1376282785 | O99: 3.672241611
A100: 1.2.1.1 Billetes y monedas en poder del público | B100: 1.119027556 | C100: 0.7321984892 | D100: -0.01990579672 | E100: -0.008454037842 | F100: 2.688309643 | G100: 5.685811059 | H100: 5.896983638 | I100: 6.11079195 | J100: 3.826508641 | K100: 5.877725491 | L100: 2.32422676 | M100: 1.968736913 | N100: n.a. | O100: n.a.
A101: 1.2.1.2 Depósitos transferibles en MN | B101: 15.24529601 | C101: -2.861147151 | D101: 2.767163789 | E101: 7.19304192 | F101: 3.545012034 | G101: 3.059409953 | H101: 7.998330979 | I101: 10.1182494 | J101: 7.150765041 | K101: 1.639150539 | L101: 13.70392228 | M101: 6.281935979 | N101: -0.1376282785 | O101: 3.672241611
A102: 1.2.2 Agregado Monetario M2, tasa de variación interanual | B102: 3.536599842 | C102: 1.327321532 | D102: 4.486824151 | E102: 8.46420889 | F102: 7.427682798 | G102: 9.088598628 | H102: 10.73451577 | I102: 15.52684232 | J102: 10.97727368 | K102: 7.516876026 | L102: 12.45903307 | M102: 7.90786646 | N102: 6.013916749 | O102: 6.016595045
A103: 1.2.2.1 Otros depósitos en MN | B103: -0.07467037342 | C103: 0.2686168889 | D103: 4.402796189 | E103: 4.563718897 | F103: 4.664282379 | G103: 5.225833703 | H103: 7.737785621 | I103: 11.02570438 | J103: n.a. | K103: n.a. | L103: 2.647800253 | M103: 3.055489897 | N103: 6.120941166 | O103: 5.285459697
A104: 1.2.2.2 Valores distintos de acciones emitidos por las sociedades de depósitos en MN | B104: -3.855790935 | C104: 2.150503887 | D104: -0.6811747693 | E104: 1.932659713 | F104: 0.1625916082 | G104: 0.2544516965 | H104: -0.536705896 | I104: 0.2564617467 | J104: n.a. | K104: n.a. | L104: 4.850434683 | M104: 2.217704468 | N104: -0.07654545831 | O104: -0.03492446426
A105: 1.2.2.3 Agregado Monetario M1 | B105: 7.467061151 | C105: -1.091799245 | D105: 0.7652027312 | E105: 1.96783028 | F105: 2.60080881 | G105: 3.608313229 | H105: 3.533436048 | I105: 4.244676193 | J105: 10.97727368 | K105: 7.51687603 | L105: 4.960798138 | M105: 2.634672095 | N105: -0.03047895786 | O105: 0.766059812
A106: 1.2.3 Agregado Monetario M3, tasa de variación interanual k/ | B106: 3.872049427 | C106: 4.196851959 | D106: 4.486824151 | E106: 8.46420889 | F106: 6.894894984 | G106: 6.099824967 | H106: 10.58479554 | I106: 14.86128535 | J106: 11.69612998 | K106: 13.35665538 | L106: 10.57591547 | M106: 8.21264395 | N106: 6.013916749 | O106: 6.016595045
A107: 1.2.3.1 Depósitos transferibles en ME | B107: 0.9798796766 | C107: 3.054155413 | D107: n.a. | E107: n.a. | F107: 1.157927079 | G107: -0.6474149597 | H107: 0.2999601072 | I107: 0.7805120688 | J107: 3.558574788 | K107: 0.7716693939 | L107: n.a. | M107: n.a. | N107: n.a. | O107: n.a.
A108: 1.2.3.2 Otros depósitos en ME | B108: -0.01549049676 | C108: 0.2462870491 | D108: n.a. | E108: n.a. | F108: 0.1119512626 | G108: -0.1245384233 | H108: 2.447280631 | I108: 2.728865192 | J108: 5.975192525 | K108: 11.11380075 | L108: 1.151384948 | M108: 2.128933795 | N108: n.a. | O108: n.a.
A109: 1.2.3.3 Valores distintos de acciones emitidos por las sociedades de depósito en ME | B109: 0.407041093 | C109: -0.03906718777 | D109: n.a. | E109: n.a. | F109: 0.02767670043 | G109: -0.01132836015 | H109: n.a. | I109: n.a. | J109: n.a. | K109: n.a. | L109: n.a. | M109: n.a. | N109: n.a. | O109: n.a.
A110: 1.2.3.4 Agregado Monetario M2 | B110: 2.500619155 | C110: 0.9354766849 | D110: 4.486824151 | E110: 8.46420889 | F110: 5.597339942 | G110: 6.883106711 | H110: 7.837554803 | I110: 11.35190809 | J110: 2.162362669 | K110: 1.47118523 | L110: 9.424530524 | M110: 6.083710155 | N110: 6.013916749 | O110: 6.016595045
A111: 1.3. Titulos emitidos por el Banco Central, tasa de variación interanual | B111: -5.830210847 | C111: -15.91758775 | D111: 169.9377737 | E111: 4.869115312 | F111: 11.1634675 | G111: 22.92838768 | H111: -9.764050926 | I111: 7.553012852 | J111: -9.937921369 | K111: 14.34707084 | L111: 9.141058363 | M111: 8.129513783 | N111: n.a. | O111: n.a.
A112: 1.3.1 Títulos emitidos por el BC en MN | B112: -5.830210847 | C112: -15.91758775 | D112: -30.59829454 | E112: 10.08367058 | F112: 10.8471368 | G112: 17.39575145 | H112: -11.79045017 | I112: -1.422509001 | J112: n.a. | K112: n.a. | L112: 9.0477055 | M112: 11.45996008 | N112: n.a. | O112: n.a.
A113: 1.3.2 Títulos emitidos por el BC en ME | B113: n.d. | C113: n.d. | D113: 200.5360682 | E113: -5.214555265 | F113: 0.3163306995 | G113: 5.532636232 | H113: 2.026399246 | I113: 8.975521853 | J113: -9.937921369 | K113: 14.34707084 | L113: 0.09335286301 | M113: -3.330446294 | N113: n.a. | O113: n.a.
A114: 1.4. Saldo de los créditos de las Otras Sociedades de Depósito, tasa de variación interanual | B114: 12.4225005 | C114: 8.093236396 | D114: 5.201518785 | E114: 3.060932327 | F114: 5.913296558 | G114: 7.507550301 | H114: 7.919269704 | I114: 8.286195031 | J114: 15.31325777 | K114: 17.34508257 | L114: 9.96724674 | M114: 10.17169606 | N114: 5.015574261 | O114: 1.021092395
A115: 1.4.1 Al Sector Público neto | B115: 1.994732858 | C115: 1.063914897 | D115: 0.2591178063 | E115: -3.000932733 | F115: 1.994906362 | G115: 3.479656019 | H115: -0.4414139109 | I115: 1.110165346 | J115: -0.1039176281 | K115: 2.014235256 | L115: 0.9678313677 | M115: 1.571249181 | N115: 0.3046880672 | O115: -0.1315650209
A116: 1.4.2 Al Sector Privado | B116: 9.921463723 | C116: 6.384879754 | D116: 4.740821601 | E116: 4.744139931 | F116: 4.040596274 | G116: 3.625747507 | H116: 8.00189372 | I116: 6.369222035 | J116: 15.55709852 | K116: 14.85325901 | L116: 8.770170884 | M116: 8.378255686 | N116: 5.564569422 | O116: 4.573509147
A117: 1.4.3 A no residentes y otros | B117: 0.5063039211 | C117: 0.6444417452 | D117: 0.2015793772 | E117: 1.317725128 | F117: -0.1222060783 | G117: 0.4021467755 | H117: 0.3587898948 | I117: 0.8068076495 | J117: -0.139923127 | K117: 0.4775883064 | L117: 0.2292444883 | M117: 0.2221911962 | N117: -0.8536832283 | O117: -3.42085173
A118: 2. Relaciones Analíticas | B118: OCTUBRE 2016 2017 | D118: SEPTIEMBRE 2016 2017 | F118: OCTUBRE 2016 2017 | H118: SEPTIEMBRE 2016 2017 | J118: SEPTIEMBRE 2016 2017 | L118: OCTUBRE 2016 2017 | N118: SEPTIEMBRE 2016 2017
A119: 2.1 Multiplicador Monetario (M2/BMAmplia) | B119: 1.766457823 | C119: 1.783613951 | D119: 4.187367 | E119: 4.043512594 | F119: 2.766868031 | G119: 2.67900881 | H119: 1.952429758 | I119: 1.805066804 | J119: 0.4997166094 | K119: 0.5266131414 | L119: 2.724039801 | M119: 2.774700632 | N119: 24.67505459 | O119: 22.02413224
A120: 2.2 Relación RIN / BMAmplia, en porcentajes | B120: 67.85540361 | C120: 61.95439184 | D120: 104.2441066 | E120: 103.4172446 | F120: 102.262494 | G120: 112.4657217 | H120: 88.16855126 | I120: 87.34139999 | J120: 124.7808799 | K120: 132.4362669 | L120: 77.5525798 | M120: 80.55095501 | N120: 270.694716 | O120: 198.5084145
A121: 2.3 Relación Cuasidinero / M2, en porcentajes L/ | B121: 48.7165067 | C121: 50.46578425 | D121: 72.61039446 | E121: 72.933527 | F121: 58.73959933 | G121: 58.86947448 | H121: 73.84518222 | I121: 73.68620715 | J121: 0 | K121: -3.31687052e-09 | L121: 68.0671852 | M121: 67.96573963 | N121: 79.13917729 | O121: 79.60047433
A122: 2.4 Relación Depósitos en ME / Depósitos Totales, en porcentajes m/ | B122: 39.13343979 | C122: 43.37252658 | D122: n.a. | E122: n.a. | F122: 27.42976111 | G122: 25.30521728 | H122: 29.22458004 | I122: 28.80995315 | J122: 88.14347728 | K122: 89.23230724 | L122: 36.1952931 | M122: 36.12209677 | N122: n.a. | O122: n.a.
A123: 2.5 Relación Créditos en ME / Créditos Totales, en porcentajes m/ n/ | B123: 39.30595721 | C123: 38.61694473 | D123: n.a. | E123: n.a. | F123: 33.30802025 | G123: 32.30976878 | H123: 23.67124793 | I123: 24.00419964 | J123: 100 | K123: 99.99999999 | L123: 20.05854082 | M123: 20.95760213 | N123: n.a. | O123: n.a.
A124: 2.6 Relación Crédito-sector privado / PIB, en porcentajes | B124: 63.17322746 | C124: 64.14626803 | D124: 42.56499708 | E124: 44.89426325 | F124: 35.23334218 | G124: 37.11910229 | H124: 55.4271658 | I124: 59.82832288 | J124: 38.12671149 | K124: 44.89965668 | L124: 29.03603071 | M124: 32.20911035 | N124: 83.63979641 | O124: 89.58387305
A125: 2.7 Relación Saldo de OMA's / M3, en porcentajes | B125: 15.73561948 | C125: 12.6979733 | D125: 4.893286175 | E125: 4.731096067 | F125: 12.506384 | G125: 14.49002976 | H125: 16.26679965 | I125: 15.23179291 | J125: 10.81904897 | K125: 10.91357675 | L125: 39.68759727 | M125: 39.65710881 | N125: 0 | O125: 0
A126: 3. Tasas de Interés y de encaje ñ/ | B126: OCTUBRE 2016 2017 | D126: SEPTIEMBRE 2016 2017 | F126: OCTUBRE 2016 2017 | H126: SEPTIEMBRE 2016 2017 | J126: SEPTIEMBRE 2016 2017 | L126: OCTUBRE 2016 2017 | N126: SEPTIEMBRE 2016 2017
A127: 3.1 Tasa interés activa nominal promedio corto plazo en MN | B127: 14.39603254 | C127: 14.82288791 | D127: 6.27 | E127: 6.41 | F127: 13.1 | G127: 13.08 | H127: 19 | I127: 20.61 | J127: 11.4 | K127: 7.94 | L127: 15.33 | M127: 10.28 | N127: 5.99 | O127: 6.36
A128: 3.2 Tasa interés activa real promedio corto plazo en MN | B128: 13.76825816 | C128: 12.21344108 | D128: 5.202544973 | E128: 4.773953426 | F128: 7.961125623 | G128: 8.518659982 | H128: 15.65072906 | I128: 16.34899902 | J128: 13.25983176 | K128: 8.720843401 | L128: 14.28766165 | M128: 6.571318129 | N128: 4.765861405 | O128: 5.547316141
A129: 3.3 Tasa interés activa promedio corto plazo en ME | B129: 9.971538191 | C129: 9.560670951 | D129: 6.27 | E129: 6.41 | F129: 6.01 | G129: 6.04 | H129: 8.36 | I129: 5.92 | J129: 8.49 | K129: 7.42 | L129: 6.29 | M129: 5.55 | N129: 5.99 | O129: 6.36
A130: 3.4 Tasa interés pasiva nominal promedio 180 días en MN | B130: 4.65 | C130: 5.9 | D130: 4.51 | E130: 4.43 | F130: 5.49 | G130: 5.33 | H130: 8.51 | I130: 8.15 | J130: 4.3 | K130: 4.74 | L130: 7.33 | M130: 5.74 | N130: 2.17 | O130: 2.31
A131: 3.5 Tasa interés pasiva real promedio 180 días en MN | B131: 4.075709208 | C131: 3.493333313 | D131: 3.460223724 | E131: 2.824395792 | F131: 0.6968978073 | G131: 1.081273929 | H131: 5.455971516 | I131: 4.329195289 | J131: 6.041296705 | K131: 5.49769444 | L131: 6.35996467 | M131: 2.183996908 | N131: 0.9899807507 | O131: 1.5282617
A132: 3.6 Tasa interés pasiva promedio 180 días en ME | B132: 1.326065629 | C132: 1.334985586 | D132: 4.51 | E132: 4.43 | F132: 2.85 | G132: 2.95 | H132: 3.74 | I132: 3.38 | J132: 3.04 | K132: 3.24 | L132: 2.06 | M132: 1.74 | N132: 2.17 | O132: 2.31
A133: 3.7 Tasa de interés de Política Monetaria de fin de mes o/ | B133: 1.75 | C133: 4.5 | D133: n.a. | E133: n.a. | F133: 3 | G133: 3 | H133: 5.5 | I133: 5.5 | J133: n.a. | K133: n.a. | L133: 5 | M133: 5.25 | N133: n.a. | O133: n.a.
A134: 3.8 Tasa de encaje efectivo promedio (Obligaciones MN) | B134: 15.45295179 | C134: 15.37245588 | D134: 20.86436312 | E134: 22.08863582 | F134: 14.68406409 | G134: 14.65093987 | H134: 17.40981835 | I134: 17.2 | J134: 23.28033186 | K134: 21.22 | L134: 14.5 | M134: 12.37145232 | N134: n.a. | O134: n.a.
A135: 3.9 Tasa de encaje efectivo promedio (Obligaciones ME) | B135: 16.06048295 | C135: 15.93863703 | D135: 20.86436312 | E135: 22.08863582 | F135: 17.01313951 | G135: 15.62694756 | H135: 37.3 | I135: 30.5 | J135: 19.4849071 | K135: 17.27 | L135: 23.12 | M135: 24.32174985 | N135: n.a. | O135: n.a.
A137: V. SECTOR BURSÁTIL | B137: OCTUBRE | D137: OCTUBRE | F137: OCTUBRE | H137: OCTUBRE | J137: OCTUBRE | L137: SEPTIEMBRE | N137: OCTUBRE
A138: 1. Volúmen Total Negociado, en millones de US$
A139: 1.1 Volúmen Total Negociado por tipo de emisor, acumulado | B139: 23655.07019 | C139: 23893.44528 | D139: 3647.432308 | E139: 2125.735784 | F139: 82774.06088 | G139: 118279.7447 | H139: 22820.93103 | I139: 49051.99207 | J139: 451.8539663 | K139: 842.1576809 | L139: 2547.145745 | M139: 2633.253748 | N139: 6713.466143 | O139: 4335.540197
A140: 1.1.1 Público | B140: 21585.64288 | C140: 21393.00458 | D140: 3194.96812 | E140: 1507.157909 | F140: 82477.60853 | G140: 117984.0126 | H140: 22678.70047 | I140: 48805.59946 | J140: 417.3995545 | K140: 791.2360961 | L140: 2185.852035 | M140: 2184.691073 | N140: 2453.86321 | O140: 1463.028417
A141: 1.1.2 Privado | B141: 2069.42731 | C141: 2500.440701 | D141: 452.4641887 | E141: 618.5778754 | F141: 296.4523551 | G141: 295.7320619 | H141: 142.2305631 | I141: 246.392613 | J141: 34.45441179 | K141: 50.92158476 | L141: 361.2937094 | M141: 448.5626746 | N141: 4259.602933 | O141: 2872.51178
A142: 2. Relaciones Analíticas
A143: 2.1 Reportos / volúmen total negociado, en porcentajes | B143: 64.94994257 | C143: 62.55644793 | D143: 78.77646339 | E143: 72.36320495 | F143: 27.93644792 | G143: 27.94096216 | H143: 0 | I143: 0 | J143: 150.4132767 | K143: 71.92762697 | L143: n.d. | M143: n.d. | N143: 16.31271294 | O143: 12.52887385
A144: 2.2 Mercado Secundario / Mercado Primario, (número de veces) | B144: 6.094669726 | C144: 3.122304784 | D144: 11.3341299 | E144: 4.851724129 | F144: 0.3987241056 | G144: 0.3932348789 | H144: 0.006084895405 | I144: 0.003743840885 | J144: 0.0969459116 | K144: 0.1272199646 | L144: 1.611049774 | M144: 1.099557966 | N144: 0.5641152107 | O144: 0.6478655179
A145: 2.3 Volúmen negociado en MN / Volúmen Total, en porcentajes | B145: 63.11750636 | C145: 51.49346393 | D145: 100 | E145: 100 | F145: 90.31052133 | G145: 91.64649285 | H145: 99.51745651 | I145: 99.6827733 | J145: 93.11058822 | K145: 94.25009692 | L145: 94.820347 | M145: 87.03364291 | N145: 100 | O145: 100
A146: 2.4 Rendimiento Promedio: Operaciones de Reporto de 1 semana | B146: n.d. | C146: n.d. | D146: 1.924344701 | E146: 1.925176872 | F146: n.a. | G146: n.a. | H146: n.a. | I146: n.a. | J146: n.a. | K146: n.a. | L146: n.a. | M146: n.a. | N146: n.d. | O146: n.d.
A148: Notas:
A149: Notación: n.a.=no aplica , n.d.=no disponible, n.o.=No hubo transacción ese mes.
A151: a/ En El Salvador los datos del PIB trimestral corresponden a la tendencia-ciclo pues no se divulga la serie en niveles originales; b/ Datos preliminares de 2016 y estimado por los bancos centrales para el 2017; c/ Los datos de Honduras no incluyen la maquila; d/ Las remesas provienen de la Balanza Cambiaria en Guatemala y Honduras y de la Balanza de Pagos para el resto de países; e/ Los flujos negativos de IED que se pudieran observar en El Salvador surgen debido a que en algunos periodos hay amortizaciones netas de préstamos con el inversionista directo, mayores a lo registrado por acciones u otras aportaciones de capital, los cuales por razones metodológicas deben sumarse al valor de la IED; f/ Incluye dentro de los socios comerciales al resto de países centroamericanos, República Dominicana, Panamá, Brasil, Canadá, China, Colombia, Corea del Sur, Haití, Japón, México, Estados Unidos y Zona Euro. Valores sobre (bajo) 100 significan una depreciación (apreciación) real de la moneda. Ver nota metodológica en http://www.secmca.org/NOTAS_ECONOMICAS/articulo87AGO2016.pdf; g/ Incluye dentro de los socios comerciales al resto de países Centroamericanos, República Dominicana y Panamá. Valores sobre (bajo) 100 significan una depreciación (apreciación) real de la moneda; h/ En Guatemala, Honduras y República Dominicana se refiere a la Deuda Púbilca Consolidada tal como lo recomienda la versión del 2001 del Manual de Estadísticas de Finanzas Públicas del FMI. En el resto de países se compila únicamente la deuda bruta. La Deuda Intragubernamental es la obligación contraída por una institución del gobierno con otra, por ejemplo los bonos emitidos por el Gobierno Central y que son comprados por una institución pública. Se resta de la deuda bruta para obtener la deuda consolidada; i/ Las estadísticas monetarias responden a los conceptos definidos en los cuadros armonizados que fueron aprobados por el CMCA en diciembre de 2007. Las tasas de variación de los componentes de cada concepto están ponderadas, de modo que la suma de las tasas coincide con la tasa de variación interanual de dicho concepto; j/ Costa Rica, Nicaragua y República Dominicana no tienen encaje remunerado; k/ En El Salvador el agregado monetario M3 es igual a M2 debido a que no existen pasivos de las Sociedades de Depósito en otra moneda que no sea el US dólar; L/ Esta relación es cero para Nicaragua debido a que todo el cuasidinero en MN se registra como cuasidinero en ME, dado que los depósitos y valores distintos de acciones en MN poseen cláusulas de mantenimiento de valor; m/ Esta relación no aplica a El Salvador debido a que no existen depósitos en una moneda distinta al US dólar, dada la vigencia de la Ley de Integración Monetaria; n/ Esta relación es 100 en Nicaragua debido a que los créditos en MN están indexados al tipo de cambio (mantenimiento de valor). Para efectos prácticos, están dolarizados; ñ/ En El Salvador desde el 2001 las tasas en MN y ME son las mismas, debido a la Ley de Integración Monetaria que circula el US dólar como la moneda local; o/ Para Costa Rica la Tasa de Política Monetaria (TPM) corresponde a la tasa de interés que utiliza el BCCR como referencia para conducir el costo de las operaciones a un día plazo en el Mercado Integrado de Liquidez dentro de un corredor formado por las tasas de interés de sus facilidades permanentes de crédito y de depósito en este mercado; en República Dominicana corresponde a la tasa de referencia para las operaciones de expansión y contracción al plazo de un día hábil; en Honduras la Tasa de Política Monetaria corresponde a la tasa máxima permitida para las posturas de compra y la tasa mínima para las posturas de venta, en las subastas de Letras del Banco Central de Honduras dirigidas a las instituciones del sistema financiero nacional; en Guatemala corresponde a la tasa de interés de los depósitos a plazo a un día (overnight); en El Salvador no aplica por no tener política monetaria y Nicaragua no define tasa de política monetaria.

Sheet Proyecciones
A2: Consejo Monetario Centroamericano | K2: =CONCATENATE(Indice!$J$46,",") -> REM Nº215, | L2: =Indice!$J$47 -> 2017-11-24
A3: Secretaría Ejecutiva
A4: PROYECCIONES 2017-2018 DE LOS PRINCIPALES INDICADORES MACROECONÓMICOS
A6: Cuadro 1 | I6: Cuadro 2
A7: Inflación (IPC) porcentajes | B7: 2014 | C7: =B7+1 -> 2015 | D7: =C7+1 -> 2016 | E7: =CONCATENATE("Proyección ",C7+2," Inicial Revisada") -> Proyección 2017 Inicial Revisada | G7: =CONCATENATE("Proyección ",C7+3) -> Proyección 2018 | I7: PIB real variación anual | J7: =B7 -> 2014 | K7: =C7 -> 2015 | L7: =CONCATENATE("Preliminar ", D7 ) -> Preliminar 2016 | M7: =$E$7 -> Proyección 2017 Inicial Revisada | O7: =$G$7 -> Proyección 2018
A9: Costa Rica | B9: 5.127189583 | C9: -0.807581339 | D9: 0.7651911029 | E9: 3.0 ± 1 | F9: 3.0 ± 1 | G9: 3.0 ± 1 | I9: Costa Rica | J9: 0 | K9: 3.567960324 | L9: 4.508373164 | M9: 4.1 | N9: 3.8 | O9: 4.1
A10: El Salvador | B10: 0.477151771 | C10: 1.01369863 | D10: -0.9357200976 | E10: n.d. | F10: n.d. | G10: n.d. | H10: os | I10: El Salvador | J10: 0 | K10: 2.29877052 | L10: 2.366458682 | M10: 2.4 | N10: 1.9 - 2.8 | O10: 1.9 - 3.0
A11: Guatemala | B11: 2.947331706 | C11: 3.066237506 | D11: 4.232412886 | E11: 4.0 ± 1 | F11: 4.0 ± 1 | G11: 4.0 ± 1 | I11: Guatemala | J11: 0 | K11: 4.140044358 | L11: 3.066719179 | M11: 3.2 - 4.0 | N11: 3.0 - 3.4 | O11: 3.0 - 4.0
A12: Honduras | B12: 5.82010582 | C12: 2.357142857 | D12: 3.314724355 | E12: 4.5 ± 1 | F12: 4.0 ± 1 | G12: 4.0 ± 1 | I12: Honduras | J12: 0 | K12: 3.64081011 | L12: 3.609521877 | M12: 3.4 - 3.7 | N12: 3.7 - 4.1 | O12: 3.7 - 4.1
A13: Nicaragua | B13: 6.479692339 | C13: 3.052200492 | D13: 3.129653201 | E13: 5.5 - 6.5 | F13: 3.5 - 4.5 | G13: 6.5 | I13: Nicaragua | J13: 3.514709785 | K13: 4.852964351 | L13: 4.702181049 | M13: 4.5 - 5.0 | N13: 4.7-5.2 | O13: 4.9
A14: Rep Dominicana | B14: 1.581979194 | C14: 2.344477359 | D14: 1.695335759 | E14: 4.0 ± 1 | F14: 4.0 ± 1 | G14: 4.0 ± 1 | I14: Rep Dominicana | J14: 1.425370367 | K14: 7.04093619 | L14: 6.64530018 | M14: 5 | N14: 5 | O14: n.d.
A15: Promedio Región CARD | B15: 3.738489444 | C15: 1.946453511 | D15: 2.173657538 | E15: n.d. | F15: n.d. | G15: n.d. | I15: Promedio Región CARD | J15: 3.058024267 | K15: 4.761068702 | L15: 4.490681342 | M15: 3.9 - 4.2 | N15: 3.8 - 4.1 | O15: n.d.
A17: Cuadro 3 | I17: Cuadro 4
A18: Cuenta Corriente/PIB porcentajes | B18: =B7 -> 2014 | C18: =C7 -> 2015 | D18: =CONCATENATE(D7, " Preliminar") -> 2016 Preliminar | E18: =$E$7 -> Proyección 2017 Inicial Revisada | G18: =$G$7 -> Proyección 2018 | I18: RIN del Banco Central en millones de US$ | J18: =B7 -> 2014 | K18: =C7 -> 2015 | L18: =D7 -> 2016 | M18: =$E$7 -> Proyección 2017 Inicial Revisada | O18: =$G$7 -> Proyección 2018
A20: Costa Rica | B20: 558.5053844 | C20: -3.547535669 | D20: -2.970109663 | E20: -4.4 | F20: -3.8 | G20: -4 | I20: Costa Rica | J20: -3.676007211 | K20: 7834.088133 | L20: 7573.8 | M20: 8954 | N20: 7974.947368 | O20: 7830.375
A21: El Salvador | B21: 4133.03 | C21: -3.553400427 | D21: -4.062939804 | E21: n.d. | F21: n.d. | G21: n.d. | I21: El Salvador | J21: 0.8728399487 | K21: 2670.2 | L21: 2922.99 | M21: n.d. | N21: n.d. | O21: n.d.
A22: Guatemala | B22: 5544.0976 | C22: -0.151174306 | D22: 1.489113343 | E22: 0.63 | F22: 1.377845809 | G22: 1.182905023 | I22: Guatemala | J22: 1.462996177 | K22: 7751.2 | L22: 9160.4 | M22: 9660.4 | N22: 10660.4 | O22: 10660.4 | P22: =+M22 -> 9660.4
A23: Honduras | B23: 3437.096852 | C23: -4.321793502 | D23: -2.282286443 | E23: -4.8 | F23: -4 | G23: -4.3 | I23: Honduras | J23: 0.6915927048 | K23: 3822.265 | L23: 3887.605015 | M23: n.d. | N23: n.d. | O23: n.d. | P23: =+N23 -> n.d.
A24: Nicaragua | B24: 1135.8 | C24: -8.973535023 | D24: -8.566813847 | E24: -10.3 | F24: -5.5 | G24: -7.805529856 | I24: Nicaragua | J24: 0 | K24: 2401.2 | L24: 2387.5 | M24: 2293.3 | N24: 2644.1 | O24: 2807.437112
A25: Rep Dominicana | B25: 4571.321147 | C25: -1.877534055 | D25: -1.384111891 | E25: -2.1 | F25: -2 | G25: n.d. | I25: Rep Dominicana | J25: 0 | K25: 5195.054101 | L25: 6046.699977 | M25: 5789.8 | N25: n.d. | O25: n.d. | P25: =+M25 -> 5789.8
A26: Promedio Región CARD | B26: 14808.52984 | C26: -2.786689418 | D26: -1.730759859 | E26: n.d | F26: n.d | G26: n.d. | I26: Total Región CARD | J26: -5240.19 | K26: 29674.00723 | L26: 31978.99499 | M26: n.d. | N26: n.d. | O26: n.d. | P26: =+SUM(P20:P25) -> 15450.2
A28: Cuadro 5 | I28: Cuadro 6
A29: Exportaciones variación anual | B29: 2014 | C29: =B29+1 -> 2015 | D29: =C29+1 -> 2016 | E29: =$E$7 -> Proyección 2017 Inicial Revisada | G29: =CONCATENATE("Proyección ",C7+3) -> Proyección 2018 | I29: Importaciones variación anual | J29: =B29 -> 2014 | K29: =C29 -> 2015 | L29: =K29+1 -> 2016 | M29: =$E$7 -> Proyección 2017 Inicial Revisada | O29: =$G$7 -> Proyección 2018
A31: Costa Rica | B31: 10803.5 | C31: -14.97999275 | D31: 8.031894107 | E31: 7.071703324 | F31: 5.311823726 | G31: 6.211470204 | H31: =+E31 -> 7.071703324 | I31: Costa Rica | J31: 0 | K31: -9.942071044 | L31: 3.002390115 | M31: 9.25 | N31: 4.962299414 | O31: 4.629459078
A32: El Salvador | B32: 4072.573916 | C32: 4.026051367 | D32: -2.726921352 | E32: n.d. | F32: n.d. | G32: n.d. | H32: =+E32 -> n.d. | I32: El Salvador | J32: 0 | K32: -0.9269608146 | L32: -5.384334735 | M32: n.d. | N32: n.d. | O32: n.d.
A33: Guatemala | B33: 5195.7 | C33: -1.191280604 | D33: -2.105894256 | E33: 6.0 - 9.0 | F33: 3.0 - 6.0 | G33: 4.5 - 7.5 | H33: 11.9 | I33: Guatemala | J33: 17188.53681 | K33: -3.505672308 | L33: -3.620563577 | M33: 4.5 - 7.5 | N33: 3.5 - 6.5 | O33: 4.5 - 7.5
A34: Honduras | B34: 9898.9 | C34: -3.714324062 | D34: -1.632432776 | E34: 3.6 | F34: 6.7 | G34: 3.4 | H34: 13.6 | I34: Honduras | J34: 10512.85 | K34: 1.218413901 | L34: -5.581741082 | M34: 6.9 | N34: 6.8 | O34: 4.7
A35: Nicaragua | B35: 13985.71046 | C35: -5.388268487 | D35: -1.557073954 | E35: 5.709736898 | F35: n.d. | G35: n.d. | H35: 8.2 | I35: Nicaragua | J35: 18281.8 | K35: 2.418140122 | L35: -0.6887734782 | M35: 6.220540209 | N35: n.d. | O35: n.d.
A36: Rep Dominicana | B36: 36644.57745 | C36: -4.617684793 | D36: 4.432417548 | E36: n.d. | F36: n.d. | G36: n.d. | H36: 47 | I36: Rep Dominicana | J36: 9310.842759 | K36: -2.122375254 | L36: 3.412888534 | M36: n.d. | N36: n.d. | O36: n.d.
A37: Promedio Región CARD | B37: 60529.18791 | C37: -4.342071782 | D37: 1.53672196 | E37: 3.1-3.9 | F37: n.d. | G37: n.d. | I37: Promedio Región CARD | J37: 17273.1 | K37: -3.002338948 | L37: -0.5435368378 | M37: 3-3.8 | N37: n.d. | O37: n.d.
A39: Cuadro 7 | I39: Cuadro 8
A40: Remesas (Ingreso) en millones de US$ | B40: =B7 -> 2014 | C40: =C7 -> 2015 | D40: =C40+1 -> 2016 | E40: =+E29 -> Proyección 2017 Inicial Revisada | G40: =$G$7 -> Proyección 2018 | I40: Saldo Operacional del Gobierno Central/PIB | J40: =B7 -> 2014 | K40: =C7 -> 2015 | L40: =K40+1 -> 2016 | M40: =+E40 -> Proyección 2017 Inicial Revisada | O40: =$G$7 -> Proyección 2018
A42: Costa Rica | B42: -2173.6 | C42: 517.5045076 | D42: 514.7957731 | E42: n.d. | F42: n.d. | G42: n.d. | H42: =+E42 -> n.d. | I42: Costa Rica | J42: -15741.10331 | K42: -5.760489196 | L42: -5.290608539 | M42: -7 | N42: -6.1 | O42: -6.6 | P42: =+N42 -> -6.1
A43: El Salvador | B43: -7374.2 | C43: 4270.01 | D43: 4576.04 | E43: n.d. | F43: n.d. | G43: n.d. | H43: =+E43 -> n.d. | I43: El Salvador | J43: 0 | K43: -1.103069087 | L43: -0.7734330792 | M43: n.d. | N43: n.d. | O43: n.d. | P43: =+M43 -> n.d.
A44: Guatemala | B44: -10789.07755 | C44: 6284.977842 | D44: 7159.9677 | E44: 7296.57075 | F44: 8054.96355 | G44: 8618.810999 | H44: =+E44 -> 7296.57075 | I44: Guatemala | J44: 0 | K44: -1.4416943 | L44: -1.085913353 | M44: -2.159586745 | N44: -1.46 | O44: -2.63 | P44: =+M44 -> -2.159586745
A45: Honduras | B45: -26018.75212 | C45: 3726.676676 | D45: 3949.030509 | E45: 3923.9 | F45: 4146 | G45: 4263 | H45: =+F45 -> 4146 | I45: Honduras | J45: -4.850176589 | K45: -2.976507492 | L45: -2.622096109 | M45: -3.5 | N45: -3.2 | O45: -3 | P45: -3.7
A46: Nicaragua | B46: -33392.95212 | C46: 1193.4 | D46: 1264.1 | E46: 1314 | F46: n.d. | G46: n.d. | I46: Nicaragua | J46: -4.835530778 | K46: -0.6248915883 | L46: -0.6096661757 | M46: -0.9 | N46: -0.9 | O46: -0.7 | P46: =+M46 -> -0.9
A47: Rep Dominicana | B47: -44182.02967 | C47: 4960.754228 | D47: 5261.463095 | E47: n.d. | F47: 5800 | G47: n.d. | I47: Rep Dominicana | J47: -2.094171596 | K47: 0.06403042179 | L47: -2.922650804 | M47: -2.3 | N47: n.d. | O47: n.d. | P47: =+M47 -> -2.3
A48: Total Región CARD | B48: 0 | C48: 20953.32325 | D48: 22725.39708 | E48: n.d. | F48: n.d. | G48: n.d. | I48: Promedio Región CARD | J48: -7.104037644 | K48: -1.683514165 | L48: -2.381707284 | M48: n.d | N48: n.d | O48: n.d.
I49: Incluye las donaciones
A50: Fuente: Bancos Centrales Centroamericanos y de República Dominicana.
A51: NOTAS:
A52: La región CARD incluye a los países de Centroamérica y República Dominicana
A53: Los promedios regionales están ponderados conforme al tamaño de cada economía.

Sheet Seguimiento proyecciones
A2: CONSEJO MONETARIO CENTROAMERICANO | M2: =CONCATENATE(Indice!$J$46,",") -> REM Nº215, | N2: =Indice!$J$47 -> 2017-11-24
A3: SECRETARIA EJECUTIVA
A4: SEGUIMIENTO DE LAS PROYECCIONES EN 2017
A6: Inflación Acumulada en 2017 | I6: Resultado operacional del Gobierno Central 2017
I7: (incluye las donaciones)
A25: Cuando se especifica un rango en las metas de inflación, se toma el límite superior. | I25: El saldo positivo de República Dominicana se debe a que en enero del 2015 se incluye dentro de las donaciones la suma de RD$ 93,157.2 millones, correspondiente al descuento generado por la transacción de deuda realizada con Petrocaribe.
A28: Saldo en la Cuenta Corriente 2017 | I28: Reservas Internacionales Netas
I29: del Banco Central 2017
A50: Exportaciones Totales con Maquila 2017 | I50: Importaciones Totales con Maquila 2017
A72: Ingresos por Remesas Familiares 2017
A93: Las remesas al mes de agosto no están disponibles para Costa Rica. A junio de 2017 registraron un monto de US$259 millones.

Sheet Gráficos-pais
S2: Seleccione el país
A3: CONSEJO MONETARIO CENTROAMERICANO | O3: =CONCATENATE(Indice!$J$46,",") -> REM Nº215, | P3: =Indice!$J$47 -> 2017-11-24
A4: SECRETARIA EJECUTIVA
A5: EVOLUCIÓN POR PAÍS DE INDICADORES MACROECONÓMICOS SELECCIONADOS
A10: Tasa de Inflación Interanual | J10: IMAE | S10: Nota: Se le recuerda habilitar las macros para hacer uso de las herramientas dinámicas presentes en este informe.
J11: Variación Interanual de la Tendencia-Ciclo
A34: ITCER bilateral USA año base 2000 | J34: Tipo de Cambio Nominal Tasa de variación interanual
A35: 2000=100 | J35: Tasa de Variación Interanual
A58: RIN Banco Central | J58: RIN Banco Central/ Base Monetaria Amplia
A81: En Panamá, el Banco Nacional de Panamá (BNP) funciona como receptor y gestor de las RIN que corresponden a los activos externos de reserva menos los pasivos de corto plazo frente a no residentes. Los primeros se componen de: billetes y depósitos en moneda extranjera e inversiones en títulos (incluidos los títulos de deuda y participaciones de capital); los pasivos se componen de los depósitos transferibles de no residentes en moneda extranjera. | J81: República Dominicana registró un aumento de US$1,577 millones de US dólares en abril de 2014, explicado en gran medida por la colocación de los bonos globales de US$1,250.0 millones por parte del Gobierno Dominicano en los mercados internacionales.
J83: En El Salvador al cierre de febrero de 2017 las Reservas Internacionales Netas (RIN) alcanzaron un nivel de US$3,510.9 millones, un incremento de US$607 millones respecto al mes de enero de 2017, explicado por la colocación de bonos del Gobierno de El Salvador ($601 millones).
J84: La relación RIN a Base Monetaria es alta en Panamá (escala derecha) debido a que la base monetaria es pequeña; esto es consecuencia de que no existe encaje legal debido a la ausencia de Banco Central.
A86: Exportaciones totales FOB, del mes | J86: Importaciones totales CIF, del mes
A87: Promedio móvil de los últimos 12 meses | J87: Promedio móvil de los últimos 12 meses
A108: Las cifras de Honduras no incluyen la maquila. | J108: Las cifras de Honduras no incluyen la maquila.
A110: Tasa de interés pasiva real en MN a 180 días | J110: Tasa de interés activa real en MN de corto plazo
A133: La tasa real se obtiene deflatando con la tasa de variación interanual del IPC al mes indicado. | J133: La tasa real se obtiene deflatando con la tasa de variación interanual del IPC al mes indicado.
A135: Tasa de interés pasiva en ME a 180 días | J135: Tasa de interés activa en ME de corto plazo
J159: En Honduras, a partir de enero 2017, la CNBS implementó las Normas Internacionales de Información Financiera (NIIF) en los balances contables de los Bancos Comerciales, Sociedades Financieras y Banhprovi, permitiendo cambios en el cálculo de las tasas de interés activas y pasivas.
A161: Tasa de interés lider de Política Monetaria | J161: Créditos de las OSD al sector Privado, Variación Interanual
A162: evolución mensual
J183: En Guatemala se dió una alta variación en el crédito de las OSD con el sector privado en agosto 2012 debido a una corrección realizada por la Superindencia de Bancos de Guatemala, rectificando la sectorización de los activos crediticios de uno de los bancos más grandes de Guatemala. Esto también produce una caída en agosto 2013 debido a que está pendiente el ajuste en la serie histórica.
J185: En Panamá, la disminución del crédito al cierre de 2013 se debe a que durante los meses de septiembre y octubre de ese año se originó la venta del Banco HSBC Panamá al grupo Bancolombia.

Sheet Nota Técnica
K1: Consejo Monetario Centroamericano
K2: Secretaría Ejecutiva
D5: REPORTE EJECUTIVO MENSUAL
D7: DE INDICADORES MACROECONÓMICOS
D8: DE CENTROAMÉRICA, REPÚBLICA DOMINICANA y
D9: PANAMÁ
B12: Glosario de Términos
B13: PIB | D13: Producto Interno Bruto
B14: IMAE | D14: Índice Mensual de Actividad Económica
B15: IPC | D15: Índice de Precios al Consumidor
B16: ISI | D16: Índice Subyacente de Inflación. En algunos países se utiliza el Indice del Nucleo Inflacionario (INI)
B17: Región CARD | D17: La región incluye los siguientes países: Costa Rica, El Salvador, Guatemala, Honduras, Nicaragua y República Dominicana
B18: Región CAPARD | D18: La región incluye los siguientes países: Costa Rica, El Salvador, Guatemala, Honduras, Nicaragua, Panamá y República Dominicana
B20: Nota Técnica
B22: Variación Interanual | E22: Variación porcentual del nivel del mes respecto al mismo mes del año anterior.
B23: Variación acumulada | E23: Variación porcentual del nivel del mes vigente respecto al mes de diciembre del año anterior.
B24: Aceleración | E24: Diferencia en valor absoluto entre la variación (interanual) de un mes respecto al mes anterior. Su interpretación se realiza en puntos porcentuales.
B25: Metas de Inflación | E25: Esquema donde el Banco Central hace explícita su meta de inflación puntual o rango, y los instrumentos de política monetaria se direccionan en la obtención de dicha meta.
B26: Inflación Subyacente | E26: El Índice subyacente de Inflación (ISI) se define como el componente del cambio total de precios común a todos los bienes y servicios, cuya persistencia se mantendría en el mediano y largo plazo. El ISI constituye una medida alternativa del IPC, al que se le han eliminado algunos de los bienes y servicios cuyos precios son, por lo general, los más volátiles. El algunos países se denomina índice del nucleo inflacionario.
B27: Tendencia-Ciclo | E27: Serie de tiempo que excluye los componentes de estacionalidad e irregularidad.
B28: RIN/meses de importación promedio | E28: Tanto en el cuadro regional como en el compartivo por país se calcula la relación de RIN a importaciones promedio. En ambos casos el denominador corresponde al promedio de importaciones observadas de enero al mes indicado. En el cálculo regional se suman las importaciones totales y las RIN de todos los países de la región.
B31: Periodos base de los principales indicadores del sector real
D32: Año Base del Indicador Mensual de Actividad Económica IMAE | H32: Año Base del Producto Interno Bruto en términos constantes | L32: Periodo base de los Índices de los Precios al Consumidor
B33: País
B34: Costa Rica | E34: 2012 | I34: 2012 | M34: Junio 2015
B35: El Salvador | E35: 1990 | I35: 1990 | M35: Diciembre 2009
B36: Guatemala | E36: 2001 | I36: 2001 | M36: Diciembre 2010
B37: Honduras | E37: 2000 | I37: 2000 | M37: Diciembre 1999
B38: Nicaragua | E38: 2006 | I38: 2006 | M38: 2006
B39: República Dominicana | E39: 2007 | I39: 2007 | M39: Diciembre 2010
B40: Panamá | E40: 1996 | I40: 2007 | M40: 2013
B44: Nota Técnica Ponderadores
B46: Para los cálculos regionales se utiliza como ponderador el peso de cada economía con respecto a la región. Para esto se utiliza el Ingreso Nacional Bruto (INB) por Paridad del Poder Adquisitivo (PPA), publicado anualmente por el Banco Mundial en el cuadro 1.1 “Size of the economy” del “World development indicators” (http://datos.bancomundial.org/indicador/NY.GNP.MKTP.PP.CD). Los pesos son actualizados anualmente basados en los últimos resultados disponibles. Para 2015 y 2016 los ponderadores que se utilizan corresponden a las cifras del año 2015 y que vienen dados en la siguiente tabla:
D51: País | F51: INB PPA (en miles de millones de US$ ) | H51: Ponderador CA | J51: Ponderador Región CARD | L51: Ponderador Región CAPARD
D52: Costa Rica | F52: 71.52650839 | H52: 0.2280650243 | J52: 0.156697991 | L52: 0.1329932008
D53: El Salvador | F53: 50.38304783 | H53: 0.1606482867 | J53: 0.1103775727 | L53: 0.0936799929
D54: Guatemala | F54: 122.7553956 | H54: 0.3914103024 | J54: 0.2689286016 | L54: 0.2282459098
D55: Honduras | F55: 38.24325791 | H55: 0.1219400994 | J55: 0.08378210848 | L55: 0.07110780876
D56: Nicaragua | F56: 30.71510276 | H56: 0.09793628707 | J56: 0.06728966653 | L56: 0.05711029271
D57: Rep. Dominicana | F57: 142.8376027 | J57: 0.3129240597 | L57: 0.2655858703
D58: Panamá | F58: 81.35987523 | L58: 0.1512769247

Sheet Datos Regional (T) (hidden)
A1: Variables Trimestrales | C1: Ingresos por IED no acumulados | L1: Ingresos por IED acumulados | U1: Ingresos Remesas Acumuladas | W1: Ingresos de Remesas, flujos trimestrales
C2: CR | D2: SV | E2: GT | F2: HO | G2: NI | H2: RD | I2: PA | J2: CARD | K2: CAPARD | L2: CR | M2: SV | N2: GT | O2: HO | P2: NI | Q2: RD | R2: PA | S2: CARD | T2: CAPARD | U2: CARD | V2: CAPARD | W2: CR | X2: SV | Y2: GT | Z2: HN | AA2: NI | AB2: DO | AC2: PA | AD2: CARD | AE2: CAPARD
A3: 1990 | B3: I | C3: n.d. | D3: n.d. | E3: n.d. | F3: n.d. | G3: n.d. | H3: n.d. | I3: n.d. | J3: n.d. | K3: n.d. | L3: n.d. | M3: n.d. | N3: n.d. | O3: n.d. | P3: n.d. | Q3: n.d. | R3: n.d. | S3: n.d. | T3: n.d. | U3: n.d. | V3: n.d. | W3: n.d. | X3: n.d. | Y3: n.d. | Z3: n.d. | AA3: n.d. | AB3: n.d. | AC3: n.d. | AD3: n.d. | AE3: n.d.
B4: II | C4: n.d. | D4: n.d. | E4: n.d. | F4: n.d. | G4: n.d. | H4: n.d. | I4: n.d. | J4: n.d. | K4: n.d. | L4: n.d. | M4: n.d. | N4: n.d. | O4: n.d. | P4: n.d. | Q4: n.d. | R4: n.d. | S4: n.d. | T4: n.d. | U4: n.d. | V4: n.d. | W4: n.d. | X4: n.d. | Y4: n.d. | Z4: n.d. | AA4: n.d. | AB4: n.d. | AC4: n.d. | AD4: n.d. | AE4: n.d.
B5: III | C5: n.d. | D5: n.d. | E5: n.d. | F5: n.d. | G5: n.d. | H5: n.d. | I5: n.d. | J5: n.d. | K5: n.d. | L5: n.d. | M5: n.d. | N5: n.d. | O5: n.d. | P5: n.d. | Q5: n.d. | R5: n.d. | S5: n.d. | T5: n.d. | U5: n.d. | V5: n.d. | W5: n.d. | X5: n.d. | Y5: n.d. | Z5: n.d. | AA5: n.d. | AB5: n.d. | AC5: n.d. | AD5: n.d. | AE5: n.d.
B6: IV | C6: n.d. | D6: n.d. | E6: n.d. | F6: n.d. | G6: n.d. | H6: n.d. | I6: n.d. | J6: n.d. | K6: n.d. | L6: n.d. | M6: n.d. | N6: n.d. | O6: n.d. | P6: n.d. | Q6: n.d. | R6: n.d. | S6: n.d. | T6: n.d. | U6: n.d. | V6: n.d. | W6: n.d. | X6: n.d. | Y6: n.d. | Z6: n.d. | AA6: n.d. | AB6: n.d. | AC6: n.d. | AD6: n.d. | AE6: n.d.
A7: 1991 | B7: I | C7: n.d. | D7: n.d. | E7: n.d. | F7: n.d. | G7: n.d. | H7: n.d. | I7: n.d. | J7: n.d. | K7: n.d. | L7: n.d. | M7: n.d. | N7: n.d. | O7: n.d. | P7: n.d. | Q7: n.d. | R7: n.d. | S7: n.d. | T7: n.d. | U7: n.d. | V7: n.d. | W7: n.d. | X7: 189.1 | Y7: n.d. | Z7: n.d. | AA7: n.d. | AB7: n.d. | AC7: n.d. | AD7: n.d. | AE7: n.d.
B8: II | C8: n.d. | D8: n.d. | E8: n.d. | F8: n.d. | G8: n.d. | H8: n.d. | I8: n.d. | J8: n.d. | K8: n.d. | L8: n.d. | M8: n.d. | N8: n.d. | O8: n.d. | P8: n.d. | Q8: n.d. | R8: n.d. | S8: n.d. | T8: n.d. | U8: n.d. | V8: n.d. | W8: n.d. | X8: 223 | Y8: n.d. | Z8: n.d. | AA8: n.d. | AB8: n.d. | AC8: n.d. | AD8: n.d. | AE8: n.d.
B9: III | C9: n.d. | D9: n.d. | E9: n.d. | F9: n.d. | G9: n.d. | H9: n.d. | I9: n.d. | J9: n.d. | K9: n.d. | L9: n.d. | M9: n.d. | N9: n.d. | O9: n.d. | P9: n.d. | Q9: n.d. | R9: n.d. | S9: n.d. | T9: n.d. | U9: n.d. | V9: n.d. | W9: n.d. | X9: 176.6 | Y9: n.d. | Z9: n.d. | AA9: n.d. | AB9: n.d. | AC9: n.d. | AD9: n.d. | AE9: n.d.
B10: IV | C10: n.d. | D10: n.d. | E10: n.d. | F10: n.d. | G10: n.d. | H10: n.d. | I10: n.d. | J10: n.d. | K10: n.d. | L10: n.d. | M10: n.d. | N10: n.d. | O10: n.d. | P10: n.d. | Q10: n.d. | R10: n.d. | S10: n.d. | T10: n.d. | U10: n.d. | V10: n.d. | W10: n.d. | X10: 201.4 | Y10: n.d. | Z10: n.d. | AA10: n.d. | AB10: n.d. | AC10: n.d. | AD10: n.d. | AE10: n.d.
A11: 1992 | B11: I | C11: n.d. | D11: n.d. | E11: n.d. | F11: n.d. | G11: n.d. | H11: n.d. | I11: n.d. | J11: n.d. | K11: n.d. | L11: n.d. | M11: n.d. | N11: n.d. | O11: n.d. | P11: n.d. | Q11: n.d. | R11: n.d. | S11: n.d. | T11: n.d. | U11: n.d. | V11: n.d. | W11: n.d. | X11: 206.6 | Y11: n.d. | Z11: n.d. | AA11: n.d. | AB11: n.d. | AC11: n.d. | AD11: n.d. | AE11: n.d.
B12: II | C12: n.d. | D12: n.d. | E12: n.d. | F12: n.d. | G12: n.d. | H12: n.d. | I12: n.d. | J12: n.d. | K12: n.d. | L12: n.d. | M12: n.d. | N12: n.d. | O12: n.d. | P12: n.d. | Q12: n.d. | R12: n.d. | S12: n.d. | T12: n.d. | U12: n.d. | V12: n.d. | W12: n.d. | X12: 226.4 | Y12: n.d. | Z12: n.d. | AA12: n.d. | AB12: n.d. | AC12: n.d. | AD12: n.d. | AE12: n.d.
B13: III | C13: n.d. | D13: n.d. | E13: n.d. | F13: n.d. | G13: n.d. | H13: n.d. | I13: n.d. | J13: n.d. | K13: n.d. | L13: n.d. | M13: n.d. | N13: n.d. | O13: n.d. | P13: n.d. | Q13: n.d. | R13: n.d. | S13: n.d. | T13: n.d. | U13: n.d. | V13: n.d. | W13: n.d. | X13: 200 | Y13: n.d. | Z13: n.d. | AA13: n.d. | AB13: n.d. | AC13: n.d. | AD13: n.d. | AE13: n.d.
B14: IV | C14: n.d. | D14: n.d. | E14: n.d. | F14: n.d. | G14: n.d. | H14: n.d. | I14: n.d. | J14: n.d. | K14: n.d. | L14: n.d. | M14: n.d. | N14: n.d. | O14: n.d. | P14: n.d. | Q14: n.d. | R14: n.d. | S14: n.d. | T14: n.d. | U14: n.d. | V14: n.d. | W14: n.d. | X14: 225.3 | Y14: n.d. | Z14: n.d. | AA14: n.d. | AB14: n.d. | AC14: n.d. | AD14: n.d. | AE14: n.d.
A15: 1993 | B15: I | C15: n.d. | D15: n.d. | E15: n.d. | F15: n.d. | G15: n.d. | H15: n.d. | I15: n.d. | J15: n.d. | K15: n.d. | L15: n.d. | M15: n.d. | N15: n.d. | O15: n.d. | P15: n.d. | Q15: n.d. | R15: n.d. | S15: n.d. | T15: n.d. | U15: n.d. | V15: n.d. | W15: n.d. | X15: 204 | Y15: n.d. | Z15: n.d. | AA15: n.d. | AB15: n.d. | AC15: n.d. | AD15: n.d. | AE15: n.d.
B16: II | C16: n.d. | D16: n.d. | E16: n.d. | F16: n.d. | G16: n.d. | H16: n.d. | I16: n.d. | J16: n.d. | K16: n.d. | L16: n.d. | M16: n.d. | N16: n.d. | O16: n.d. | P16: n.d. | Q16: n.d. | R16: n.d. | S16: n.d. | T16: n.d. | U16: n.d. | V16: n.d. | W16: n.d. | X16: 223.6 | Y16: n.d. | Z16: n.d. | AA16: n.d. | AB16: n.d. | AC16: n.d. | AD16: n.d. | AE16: n.d.
B17: III | C17: n.d. | D17: n.d. | E17: n.d. | F17: n.d. | G17: n.d. | H17: n.d. | I17: n.d. | J17: n.d. | K17: n.d. | L17: n.d. | M17: n.d. | N17: n.d. | O17: n.d. | P17: n.d. | Q17: n.d. | R17: n.d. | S17: n.d. | T17: n.d. | U17: n.d. | V17: n.d. | W17: n.d. | X17: 207.6 | Y17: n.d. | Z17: n.d. | AA17: n.d. | AB17: n.d. | AC17: n.d. | AD17: n.d. | AE17: n.d.
B18: IV | C18: n.d. | D18: n.d. | E18: n.d. | F18: n.d. | G18: n.d. | H18: n.d. | I18: n.d. | J18: n.d. | K18: n.d. | L18: n.d. | M18: n.d. | N18: n.d. | O18: n.d. | P18: n.d. | Q18: n.d. | R18: n.d. | S18: n.d. | T18: n.d. | U18: n.d. | V18: n.d. | W18: n.d. | X18: 228.9 | Y18: n.d. | Z18: n.d. | AA18: n.d. | AB18: n.d. | AC18: n.d. | AD18: n.d. | AE18: n.d.
A19: 1994 | B19: I | C19: n.d. | D19: n.d. | E19: n.d. | F19: n.d. | G19: n.d. | H19: n.d. | I19: n.d. | J19: n.d. | K19: n.d. | L19: n.d. | M19: n.d. | N19: n.d. | O19: n.d. | P19: n.d. | Q19: n.d. | R19: n.d. | S19: n.d. | T19: n.d. | U19: n.d. | V19: n.d. | W19: n.d. | X19: 223.4 | Y19: 58.0293 | Z19: n.d. | AA19: n.d. | AB19: n.d. | AC19: n.d. | AD19: n.d. | AE19: n.d.
B20: II | C20: n.d. | D20: n.d. | E20: n.d. | F20: n.d. | G20: n.d. | H20: n.d. | I20: n.d. | J20: n.d. | K20: n.d. | L20: n.d. | M20: n.d. | N20: n.d. | O20: n.d. | P20: n.d. | Q20: n.d. | R20: n.d. | S20: n.d. | T20: n.d. | U20: n.d. | V20: n.d. | W20: n.d. | X20: 244.3 | Y20: 84.6464 | Z20: n.d. | AA20: n.d. | AB20: n.d. | AC20: n.d. | AD20: n.d. | AE20: n.d.
B21: III | C21: n.d. | D21: n.d. | E21: n.d. | F21: n.d. | G21: n.d. | H21: n.d. | I21: n.d. | J21: n.d. | K21: n.d. | L21: n.d. | M21: n.d. | N21: n.d. | O21: n.d. | P21: n.d. | Q21: n.d. | R21: n.d. | S21: n.d. | T21: n.d. | U21: n.d. | V21: n.d. | W21: n.d. | X21: 241.9 | Y21: 82.0856 | Z21: n.d. | AA21: n.d. | AB21: n.d. | AC21: n.d. | AD21: n.d. | AE21: n.d.
B22: IV | C22: n.d. | D22: n.d. | E22: n.d. | F22: n.d. | G22: n.d. | H22: n.d. | I22: n.d. | J22: n.d. | K22: n.d. | L22: n.d. | M22: n.d. | N22: n.d. | O22: n.d. | P22: n.d. | Q22: n.d. | R22: n.d. | S22: n.d. | T22: n.d. | U22: n.d. | V22: n.d. | W22: n.d. | X22: 252.9 | Y22: 77.2861 | Z22: n.d. | AA22: n.d. | AB22: n.d. | AC22: n.d. | AD22: n.d. | AE22: n.d.
A23: 1995 | B23: I | C23: n.d. | D23: n.d. | E23: n.d. | F23: n.d. | G23: n.d. | H23: n.d. | I23: n.d. | J23: n.d. | K23: n.d. | L23: n.d. | M23: n.d. | N23: n.d. | O23: n.d. | P23: n.d. | Q23: n.d. | R23: n.d. | S23: n.d. | T23: n.d. | U23: n.d. | V23: n.d. | W23: n.d. | X23: 242.7 | Y23: 90.7275 | Z23: n.d. | AA23: n.d. | AB23: n.d. | AC23: n.d. | AD23: n.d. | AE23: n.d.
B24: II | C24: n.d. | D24: n.d. | E24: n.d. | F24: n.d. | G24: n.d. | H24: n.d. | I24: n.d. | J24: n.d. | K24: n.d. | L24: n.d. | M24: n.d. | N24: n.d. | O24: n.d. | P24: n.d. | Q24: n.d. | R24: n.d. | S24: n.d. | T24: n.d. | U24: n.d. | V24: n.d. | W24: n.d. | X24: 265.9 | Y24: 114.8786 | Z24: n.d. | AA24: n.d. | AB24: n.d. | AC24: n.d. | AD24: n.d. | AE24: n.d.
B25: III | C25: n.d. | D25: n.d. | E25: n.d. | F25: n.d. | G25: n.d. | H25: n.d. | I25: n.d. | J25: n.d. | K25: n.d. | L25: n.d. | M25: n.d. | N25: n.d. | O25: n.d. | P25: n.d. | Q25: n.d. | R25: n.d. | S25: n.d. | T25: n.d. | U25: n.d. | V25: n.d. | W25: n.d. | X25: 268.7 | Y25: 108.2411 | Z25: n.d. | AA25: n.d. | AB25: n.d. | AC25: n.d. | AD25: n.d. | AE25: n.d.
B26: IV | C26: n.d. | D26: n.d. | E26: n.d. | F26: n.d. | G26: n.d. | H26: n.d. | I26: n.d. | J26: n.d. | K26: n.d. | L26: n.d. | M26: n.d. | N26: n.d. | O26: n.d. | P26: n.d. | Q26: n.d. | R26: n.d. | S26: n.d. | T26: n.d. | U26: n.d. | V26: n.d. | W26: n.d. | X26: 284.1 | Y26: 102.6083 | Z26: n.d. | AA26: n.d. | AB26: n.d. | AC26: n.d. | AD26: n.d. | AE26: n.d.
A27: 1996 | B27: I | C27: n.d. | D27: n.d. | E27: n.d. | F27: n.d. | G27: n.d. | H27: n.d. | I27: n.d. | J27: n.d. | K27: n.d. | L27: n.d. | M27: n.d. | N27: n.d. | O27: n.d. | P27: n.d. | Q27: n.d. | R27: n.d. | S27: n.d. | T27: n.d. | U27: n.d. | V27: n.d. | W27: n.d. | X27: 254.2 | Y27: 90.7629 | Z27: n.d. | AA27: n.d. | AB27: n.d. | AC27: n.d. | AD27: n.d. | AE27: n.d.
B28: II | C28: n.d. | D28: n.d. | E28: n.d. | F28: n.d. | G28: n.d. | H28: n.d. | I28: n.d. | J28: n.d. | K28: n.d. | L28: n.d. | M28: n.d. | N28: n.d. | O28: n.d. | P28: n.d. | Q28: n.d. | R28: n.d. | S28: n.d. | T28: n.d. | U28: n.d. | V28: n.d. | W28: n.d. | X28: 271.6 | Y28: 80.1803 | Z28: n.d. | AA28: n.d. | AB28: n.d. | AC28: n.d. | AD28: n.d. | AE28: n.d.
B29: III | C29: n.d. | D29: n.d. | E29: n.d. | F29: n.d. | G29: n.d. | H29: n.d. | I29: n.d. | J29: n.d. | K29: n.d. | L29: n.d. | M29: n.d. | N29: n.d. | O29: n.d. | P29: n.d. | Q29: n.d. | R29: n.d. | S29: n.d. | T29: n.d. | U29: n.d. | V29: n.d. | W29: n.d. | X29: 289.8 | Y29: 97.7253 | Z29: n.d. | AA29: n.d. | AB29: n.d. | AC29: n.d. | AD29: n.d. | AE29: n.d.
B30: IV | C30: n.d. | D30: n.d. | E30: n.d. | F30: n.d. | G30: n.d. | H30: n.d. | I30: n.d. | J30: n.d. | K30: n.d. | L30: n.d. | M30: n.d. | N30: n.d. | O30: n.d. | P30: n.d. | Q30: n.d. | R30: n.d. | S30: n.d. | T30: n.d. | U30: n.d. | V30: n.d. | W30: n.d. | X30: 270.9 | Y30: 106.7493 | Z30: n.d. | AA30: n.d. | AB30: n.d. | AC30: n.d. | AD30: n.d. | AE30: n.d.
A31: 1997 | B31: I | C31: n.d. | D31: n.d. | E31: n.d. | F31: n.d. | G31: n.d. | H31: n.d. | I31: n.d. | J31: n.d. | K31: n.d. | L31: n.d. | M31: n.d. | N31: n.d. | O31: n.d. | P31: n.d. | Q31: n.d. | R31: n.d. | S31: n.d. | T31: n.d. | U31: n.d. | V31: n.d. | W31: n.d. | X31: 251.2 | Y31: 85.0955 | Z31: n.d. | AA31: n.d. | AB31: n.d. | AC31: n.d. | AD31: n.d. | AE31: n.d.
B32: II | C32: n.d. | D32: n.d. | E32: n.d. | F32: n.d. | G32: n.d. | H32: n.d. | I32: n.d. | J32: n.d. | K32: n.d. | L32: n.d. | M32: n.d. | N32: n.d. | O32: n.d. | P32: n.d. | Q32: n.d. | R32: n.d. | S32: n.d. | T32: n.d. | U32: n.d. | V32: n.d. | W32: n.d. | X32: 311 | Y32: 100.3942 | Z32: n.d. | AA32: n.d. | AB32: n.d. | AC32: n.d. | AD32: n.d. | AE32: n.d.
B33: III | C33: n.d. | D33: n.d. | E33: n.d. | F33: n.d. | G33: n.d. | H33: n.d. | I33: n.d. | J33: n.d. | K33: n.d. | L33: n.d. | M33: n.d. | N33: n.d. | O33: n.d. | P33: n.d. | Q33: n.d. | R33: n.d. | S33: n.d. | T33: n.d. | U33: n.d. | V33: n.d. | W33: n.d. | X33: 321.1 | Y33: 105.5949 | Z33: n.d. | AA33: n.d. | AB33: n.d. | AC33: n.d. | AD33: n.d. | AE33: n.d.
B34: IV | C34: n.d. | D34: n.d. | E34: n.d. | F34: n.d. | G34: n.d. | H34: n.d. | I34: n.d. | J34: n.d. | K34: n.d. | L34: n.d. | M34: n.d. | N34: n.d. | O34: n.d. | P34: n.d. | Q34: n.d. | R34: n.d. | S34: n.d. | T34: n.d. | U34: n.d. | V34: n.d. | W34: n.d. | X34: 316.2 | Y34: 116.9121 | Z34: n.d. | AA34: n.d. | AB34: n.d. | AC34: n.d. | AD34: n.d. | AE34: n.d.
A35: 1998 | B35: I | C35: n.d. | D35: n.d. | E35: n.d. | F35: n.d. | G35: n.d. | H35: n.d. | I35: 116.2 | J35: n.d. | K35: n.d. | L35: n.d. | M35: n.d. | N35: n.d. | O35: n.d. | P35: n.d. | Q35: n.d. | R35: 116.2 | S35: n.d. | T35: n.d. | U35: n.d. | V35: n.d. | W35: n.d. | X35: 295.7 | Y35: 108.2561 | Z35: 41.66537281 | AA35: n.d. | AB35: 269.4 | AC35: n.d. | AD35: n.d. | AE35: n.d.
B36: II | C36: n.d. | D36: n.d. | E36: n.d. | F36: n.d. | G36: n.d. | H36: n.d. | I36: 110.4 | J36: n.d. | K36: n.d. | L36: n.d. | M36: n.d. | N36: n.d. | O36: n.d. | P36: n.d. | Q36: n.d. | R36: 226.6 | S36: n.d. | T36: n.d. | U36: n.d. | V36: n.d. | W36: n.d. | X36: 336.9 | Y36: 116.6607 | Z36: 49.88822711 | AA36: n.d. | AB36: 273.4 | AC36: n.d. | AD36: n.d. | AE36: n.d.
B37: III | C37: n.d. | D37: n.d. | E37: n.d. | F37: n.d. | G37: n.d. | H37: n.d. | I37: 226.4 | J37: n.d. | K37: n.d. | L37: n.d. | M37: n.d. | N37: n.d. | O37: n.d. | P37: n.d. | Q37: n.d. | R37: 453 | S37: n.d. | T37: n.d. | U37: n.d. | V37: n.d. | W37: n.d. | X37: 345.1 | Y37: 113.8824 | Z37: 55.10825414 | AA37: n.d. | AB37: 306.3 | AC37: n.d. | AD37: n.d. | AE37: n.d.
B38: IV | C38: n.d. | D38: n.d. | E38: n.d. | F38: n.d. | G38: n.d. | H38: n.d. | I38: 750.1 | J38: n.d. | K38: n.d. | L38: n.d. | M38: n.d. | N38: n.d. | O38: n.d. | P38: n.d. | Q38: n.d. | R38: 1203.1 | S38: n.d. | T38: n.d. | U38: n.d. | V38: n.d. | W38: n.d. | X38: 360.6 | Y38: 117.6447 | Z38: 73.33814593 | AA38: n.d. | AB38: 476.9 | AC38: n.d. | AD38: n.d. | AE38: n.d.
A39: 1999 | B39: I | C39: n.d. | D39: 17.9 | E39: n.d. | F39: n.d. | G39: n.d. | H39: n.d. | I39: 177.1 | J39: n.d. | K39: n.d. | L39: n.d. | M39: 17.9 | N39: n.d. | O39: n.d. | P39: n.d. | Q39: n.d. | R39: 177.1 | S39: n.d. | T39: n.d. | U39: n.d. | V39: n.d. | W39: 27.95348152 | X39: 319.4 | Y39: 118.553 | Z39: 68.9282448 | AA39: n.d. | AB39: 344.9 | AC39: n.d. | AD39: n.d. | AE39: n.d.
B40: II | C40: n.d. | D40: 12.8 | E40: n.d. | F40: n.d. | G40: n.d. | H40: n.d. | I40: 255.2 | J40: n.d. | K40: n.d. | L40: n.d. | M40: 30.7 | N40: n.d. | O40: n.d. | P40: n.d. | Q40: n.d. | R40: 432.3 | S40: n.d. | T40: n.d. | U40: n.d. | V40: n.d. | W40: 27.95348152 | X40: 345.9 | Y40: 92.9991 | Z40: 78.53842216 | AA40: n.d. | AB40: 325 | AC40: n.d. | AD40: n.d. | AE40: n.d.
B41: III | C41: n.d. | D41: 150.6 | E41: n.d. | F41: n.d. | G41: n.d. | H41: n.d. | I41: 198.3 | J41: n.d. | K41: n.d. | L41: n.d. | M41: 181.3 | N41: n.d. | O41: n.d. | P41: n.d. | Q41: n.d. | R41: 630.6 | S41: n.d. | T41: n.d. | U41: n.d. | V41: n.d. | W41: 27.95348152 | X41: 332 | Y41: 99.712 | Z41: 83.30048991 | AA41: n.d. | AB41: 344.6 | AC41: n.d. | AD41: n.d. | AE41: n.d.
B42: IV | C42: n.d. | D42: 34.5 | E42: n.d. | F42: n.d. | G42: n.d. | H42: n.d. | I42: 125 | J42: n.d. | K42: n.d. | L42: n.d. | M42: 215.8 | N42: n.d. | O42: n.d. | P42: n.d. | Q42: n.d. | R42: 755.6 | S42: n.d. | T42: n.d. | U42: n.d. | V42: n.d. | W42: 27.95327367 | X42: 376.5 | Y42: 154.2562 | Z42: 89.23284313 | AA42: n.d. | AB42: 504.2 | AC42: n.d. | AD42: n.d. | AE42: n.d.
A43: 2000 | B43: I | C43: 213.5497156 | D43: 4.1 | E43: n.d. | F43: n.d. | G43: n.d. | H43: n.d. | I43: 115.9 | J43: n.d. | K43: n.d. | L43: 213.5497156 | M43: 4.1 | N43: n.d. | O43: n.d. | P43: n.d. | Q43: n.d. | R43: 115.9 | S43: n.d. | T43: n.d. | U43: 1108.116242 | V43: n.d. | W43: 30.09594244 | X43: 398.7 | Y43: 134.7281 | Z43: 77.0922 | AA43: 64 | AB43: 403.5 | AC43: n.d. | AD43: =IF(OR(W43="",X43="",Y43="",Z43="",AA43="",AB43=""),"",W43+X43+Y43+Z43+AA43+AB43) -> 1108.116242 | AE43: n.d.
B44: II | C44: 182.284762 | D44: 34.3 | E44: n.d. | F44: n.d. | G44: n.d. | H44: n.d. | I44: 124.7 | J44: n.d. | K44: n.d. | L44: 395.8344776 | M44: 38.4 | N44: n.d. | O44: n.d. | P44: n.d. | Q44: n.d. | R44: 240.6 | S44: n.d. | T44: n.d. | U44: 2208.936885 | V44: n.d. | W44: 30.09594244 | X44: 418.7 | Y44: 125.6077 | Z44: 86.917 | AA44: 73.6 | AB44: 365.9 | AC44: n.d. | AD44: 1100.820642 | AE44: n.d.
B45: III | C45: 120.0547998 | D45: 87.3 | E45: n.d. | F45: n.d. | G45: n.d. | H45: n.d. | I45: 164.7 | J45: n.d. | K45: n.d. | L45: 515.8892774 | M45: 125.7 | N45: n.d. | O45: n.d. | P45: n.d. | Q45: n.d. | R45: 405.3 | S45: n.d. | T45: n.d. | U45: 3353.550427 | V45: n.d. | W45: 30.09594244 | X45: 450.9 | Y45: 128.5985 | Z45: 90.8191 | AA45: 83.2 | AB45: 361 | AC45: n.d. | AD45: 1144.613542 | AE45: n.d.
B46: IV | C46: 151.0545043 | D46: 47.7 | E46: n.d. | F46: n.d. | G46: n.d. | H46: n.d. | I46: 218.6 | J46: n.d. | K46: n.d. | L46: 666.9437817 | M46: 173.4 | N46: n.d. | O46: n.d. | P46: n.d. | Q46: n.d. | R46: 623.9 | S46: n.d. | T46: n.d. | U46: 4799.47897 | V46: n.d. | W46: 30.09594244 | X46: 482.4 | Y46: 174.5044 | Z46: 101.1282 | AA46: 99.2 | AB46: 558.6 | AC46: n.d. | AD46: 1445.928542 | AE46: n.d.
A47: 2001 | B47: I | C47: 257.5706609 | D47: 109 | E47: n.d. | F47: n.d. | G47: n.d. | H47: n.d. | I47: 29.6 | J47: n.d. | K47: n.d. | L47: 257.5706609 | M47: 109 | N47: n.d. | O47: n.d. | P47: n.d. | Q47: n.d. | R47: 29.6 | S47: n.d. | T47: n.d. | U47: 1287.161688 | V47: n.d. | W47: 45.99348828 | X47: 444.4 | Y47: 183.8564 | Z47: 104.1118 | AA47: 77.1 | AB47: 431.7 | AC47: n.d. | AD47: 1287.161688 | AE47: n.d.
B48: II | C48: 136.960633 | D48: 90.1 | E48: n.d. | F48: n.d. | G48: n.d. | H48: n.d. | I48: 63.3 | J48: n.d. | K48: n.d. | L48: 394.5312939 | M48: 199.1 | N48: n.d. | O48: n.d. | P48: n.d. | Q48: n.d. | R48: 92.9 | S48: n.d. | T48: n.d. | U48: 2539.869677 | V48: n.d. | W48: 45.99348828 | X48: 476.6 | Y48: 144.1049 | Z48: 115.4496 | AA48: 79 | AB48: 391.56 | AC48: n.d. | AD48: 1252.707988 | AE48: n.d.
B49: III | C49: 89.34457337 | D49: 33.4 | E49: n.d. | F49: n.d. | G49: n.d. | H49: n.d. | I49: 85.3 | J49: n.d. | K49: n.d. | L49: 483.8758673 | M49: 232.5 | N49: n.d. | O49: n.d. | P49: n.d. | Q49: n.d. | R49: 178.2 | S49: n.d. | T49: n.d. | U49: 3807.534865 | V49: n.d. | W49: 45.99348828 | X49: 476.4 | Y49: 131.4993 | Z49: 124.7224 | AA49: 87.3 | AB49: 401.75 | AC49: n.d. | AD49: 1267.665188 | AE49: n.d.
B50: IV | C50: 124.7726196 | D50: 46.4 | E50: n.d. | F50: n.d. | G50: n.d. | H50: n.d. | I50: 288.9 | J50: n.d. | K50: n.d. | L50: 608.6484868 | M50: 278.9 | N50: n.d. | O50: n.d. | P50: n.d. | Q50: n.d. | R50: 467.1 | S50: n.d. | T50: n.d. | U50: 5312.614753 | V50: n.d. | W50: 45.99348828 | X50: 513.1 | Y50: 132.8785 | Z50: 138.0079 | AA50: 92.3 | AB50: 582.8 | AC50: n.d. | AD50: 1505.079888 | AE50: n.d.
A51: 2002 | B51: I | C51: 219.845306 | D51: 343.8 | E51: n.d. | F51: n.d. | G51: n.d. | H51: n.d. | I51: 97.1 | J51: n.d. | K51: n.d. | L51: 219.845306 | M51: 343.8 | N51: n.d. | O51: n.d. | P51: n.d. | Q51: n.d. | R51: 97.1 | S51: n.d. | T51: n.d. | U51: 1492.832407 | V51: n.d. | W51: 50.29890696 | X51: 447.4 | Y51: 288.8488 | Z51: 138.7847 | AA51: 91.4 | AB51: 476.1 | AC51: n.d. | AD51: 1492.832407 | AE51: n.d.
B52: II | C52: 120.9806365 | D52: 54.1 | E52: n.d. | F52: n.d. | G52: n.d. | H52: n.d. | I52: -306.7 | J52: n.d. | K52: n.d. | L52: 340.8259426 | M52: 397.9 | N52: n.d. | O52: n.d. | P52: n.d. | Q52: n.d. | R52: -209.6 | S52: n.d. | T52: n.d. | U52: 3110.624705 | V52: n.d. | W52: 50.77779846 | X52: 522.4 | Y52: 356.9401 | Z52: 169.7744 | AA52: 94.8 | AB52: 423.1 | AC52: n.d. | AD52: 1617.792298 | AE52: n.d.
B53: III | C53: 120.4835987 | D53: -51.1 | E53: n.d. | F53: n.d. | G53: n.d. | H53: n.d. | I53: 141.6 | J53: n.d. | K53: n.d. | L53: 461.3095413 | M53: 346.8 | N53: n.d. | O53: n.d. | P53: n.d. | Q53: n.d. | R53: -68 | S53: n.d. | T53: n.d. | U53: 4787.58196 | V53: n.d. | W53: 59.12685483 | X53: 472.8 | Y53: 456.1721 | Z53: 167.6583 | AA53: 91.9 | AB53: 429.3 | AC53: n.d. | AD53: 1676.957255 | AE53: n.d.
B54: IV | C54: 363.3166272 | D54: 123.2 | E54: n.d. | F54: n.d. | G54: n.d. | H54: n.d. | I54: 166.6 | J54: n.d. | K54: n.d. | L54: 824.6261685 | M54: 470 | N54: n.d. | O54: n.d. | P54: n.d. | Q54: n.d. | R54: 98.6 | S54: n.d. | T54: n.d. | U54: 6731.833568 | V54: n.d. | W54: 74.05170813 | X54: 492.6 | Y54: 477.4309 | Z54: 170.669 | AA54: 98.4 | AB54: 631.1 | AC54: n.d. | AD54: 1944.251608 | AE54: n.d.
A55: 2003 | B55: I | C55: 187.5502592 | D55: 4.2 | E55: n.d. | F55: n.d. | G55: n.d. | H55: n.d. | I55: 222.8 | J55: n.d. | K55: n.d. | L55: 187.5502592 | M55: 4.2 | N55: n.d. | O55: n.d. | P55: n.d. | Q55: n.d. | R55: 222.8 | S55: n.d. | T55: n.d. | U55: 1757.664443 | V55: n.d. | W55: 64.1347434 | X55: 465.2 | Y55: 470.2782 | Z55: 165.9515 | AA55: 100.9 | AB55: 491.2 | AC55: n.d. | AD55: 1757.664443 | AE55: n.d.
B56: II | C56: 238.2409437 | D56: 69.4 | E56: n.d. | F56: n.d. | G56: n.d. | H56: n.d. | I56: 287 | J56: n.d. | K56: n.d. | L56: 425.7912029 | M56: 73.6 | N56: n.d. | O56: n.d. | P56: n.d. | Q56: n.d. | R56: 509.8 | S56: n.d. | T56: n.d. | U56: 3663.23751 | V56: n.d. | W56: 73.3039668 | X56: 541.6 | Y56: 529.9582 | Z56: 191.6109 | AA56: 102.4 | AB56: 466.7 | AC56: n.d. | AD56: 1905.573067 | AE56: n.d.
B57: III | C57: 82.5939672 | D57: 27.2 | E57: n.d. | F57: n.d. | G57: n.d. | H57: n.d. | I57: 1.6 | J57: n.d. | K57: n.d. | L57: 508.3851701 | M57: 100.8 | N57: n.d. | O57: n.d. | P57: n.d. | Q57: n.d. | R57: 511.4 | S57: n.d. | T57: n.d. | U57: 5682.923128 | V57: n.d. | W57: 77.79211774 | X57: 529 | Y57: 547.4185 | Z57: 217.275 | AA57: 114.1 | AB57: 534.1 | AC57: n.d. | AD57: 2019.685618 | AE57: n.d.
B58: IV | C58: 183.725838 | D58: 40.4 | E58: n.d. | F58: n.d. | G58: n.d. | H58: n.d. | I58: 306.1 | J58: n.d. | K58: n.d. | L58: 692.1110081 | M58: 141.2 | N58: n.d. | O58: n.d. | P58: n.d. | Q58: n.d. | R58: 817.5 | S58: n.d. | T58: n.d. | U58: 7819.417832 | V58: n.d. | W58: 90.74020407 | X58: 569.5 | Y58: 558.8499 | Z58: 227.5046 | AA58: 121.4 | AB58: 568.5 | AC58: n.d. | AD58: 2136.494704 | AE58: n.d.
A59: 2004 | B59: I | C59: 266.3313993 | D59: -69.9 | E59: n.d. | F59: n.d. | G59: n.d. | H59: n.d. | I59: 186.4 | J59: n.d. | K59: n.d. | L59: 266.3313993 | M59: -69.9 | N59: n.d. | O59: n.d. | P59: n.d. | Q59: n.d. | R59: 186.4 | S59: n.d. | T59: n.d. | U59: 2116.144198 | V59: n.d. | W59: 68.55759849 | X59: 560 | Y59: 606.3784 | Z59: 215.9082 | AA59: 117.5 | AB59: 547.8 | AC59: n.d. | AD59: 2116.144198 | AE59: n.d.
B60: II | C60: 277.0049312 | D60: 104.8 | E60: n.d. | F60: n.d. | G60: n.d. | H60: n.d. | I60: 139.2 | J60: n.d. | K60: n.d. | L60: 543.3363305 | M60: 34.9 | N60: n.d. | O60: n.d. | P60: n.d. | Q60: n.d. | R60: 325.6 | S60: n.d. | T60: n.d. | U60: 4354.514071 | V60: n.d. | W60: 68.39577226 | X60: 646.9 | Y60: 626.9234 | Z60: 259.4507 | AA60: 124.9 | AB60: 511.8 | AC60: n.d. | AD60: 2238.369872 | AE60: n.d.
B61: III | C61: 211.5113828 | D61: 22.69 | E61: n.d. | F61: n.d. | G61: n.d. | H61: n.d. | I61: 221.8 | J61: n.d. | K61: n.d. | L61: 754.8477133 | M61: 57.59 | N61: n.d. | O61: n.d. | P61: n.d. | Q61: n.d. | R61: 547.4 | S61: n.d. | T61: n.d. | U61: 6697.203886 | V61: n.d. | W61: 80.39861496 | X61: 648 | Y61: 631.1718 | Z61: 289.2194 | AA61: 135.1 | AB61: 558.8 | AC61: n.d. | AD61: 2342.689815 | AE61: n.d.
B62: IV | C62: 221.0599395 | D62: 305.68 | E62: n.d. | F62: n.d. | G62: n.d. | H62: n.d. | I62: 471.7 | J62: n.d. | K62: n.d. | L62: 975.9076527 | M62: 363.27 | N62: n.d. | O62: n.d. | P62: n.d. | Q62: n.d. | R62: 1019.1 | S62: n.d. | T62: n.d. | U62: 9223.245952 | V62: n.d. | W62: 84.87036641 | X62: 692.7 | Y62: 686.1495 | Z62: 309.2222 | AA62: 141.3 | AB62: 611.8 | AC62: n.d. | AD62: 2526.042066 | AE62: n.d.
A63: 2005 | B63: I | C63: 393.9897691 | D63: -8.1 | E63: n.d. | F63: n.d. | G63: n.d. | H63: n.d. | I63: 186.6 | J63: n.d. | K63: n.d. | L63: 393.9897691 | M63: -8.1 | N63: n.d. | O63: n.d. | P63: n.d. | Q63: n.d. | R63: 186.6 | S63: n.d. | T63: n.d. | U63: 2469.80999 | V63: n.d. | W63: 91.50979 | X63: 639.45 | Y63: 659.7035 | Z63: 357.5467 | AA63: 153.6 | AB63: 568 | AC63: n.d. | AD63: 2469.80999 | AE63: n.d.
B64: II | C64: 359.8000457 | D64: 100.84 | E64: n.d. | F64: n.d. | G64: n.d. | H64: n.d. | I64: 111.7 | J64: n.d. | K64: n.d. | L64: 753.7898148 | M64: 92.74 | N64: n.d. | O64: n.d. | P64: n.d. | Q64: n.d. | R64: 298.3 | S64: n.d. | T64: n.d. | U64: 5235.72787 | V64: n.d. | W64: 105.83968 | X64: 768.45 | Y64: 788.4725 | Z64: 401.0557 | AA64: 148.9 | AB64: 553.2 | AC64: n.d. | AD64: 2765.91788 | AE64: n.d.
B65: III | C65: 258.2493882 | D65: 53.3 | E65: n.d. | F65: n.d. | G65: n.d. | H65: n.d. | I65: 173.2 | J65: n.d. | K65: n.d. | L65: 1012.039203 | M65: 146.04 | N65: n.d. | O65: n.d. | P65: n.d. | Q65: n.d. | R65: 471.5 | S65: n.d. | T65: n.d. | U65: 8031.44029 | V65: n.d. | W65: 102.14672 | X65: 758.31 | Y65: 729.3146 | Z65: 456.9411 | AA65: 150.5 | AB65: 598.5 | AC65: n.d. | AD65: 2795.71242 | AE65: n.d.
B66: IV | C66: 352.0947112 | D66: 365.1 | E66: n.d. | F66: n.d. | G66: n.d. | H66: n.d. | I66: 446.1 | J66: n.d. | K66: n.d. | L66: 1364.133914 | M66: 511.14 | N66: n.d. | O66: n.d. | P66: n.d. | Q66: n.d. | R66: 917.6 | S66: n.d. | T66: n.d. | U66: 11174.27241 | V66: n.d. | W66: 100.25722 | X66: 850.97 | Y66: 815.3319 | Z66: 503.373 | AA66: 162.7 | AB66: 710.2 | AC66: n.d. | AD66: 3142.83212 | AE66: n.d.
A67: 2006 | B67: I | C67: 374.5880346 | D67: 175.7 | E67: n.d. | F67: n.d. | G67: 64.5 | H67: n.d. | I67: 76.6 | J67: n.d. | K67: n.d. | L67: 374.5880346 | M67: 175.7 | N67: n.d. | O67: n.d. | P67: 64.5 | Q67: n.d. | R67: 76.6 | S67: n.d. | T67: n.d. | U67: 3007.773793 | V67: n.d. | W67: 108.9113926 | X67: 796.77 | Y67: 792.6646 | Z67: 507.4278 | AA67: 173.6 | AB67: 628.4 | AC67: n.d. | AD67: =IF(OR(W67="",X67="",Y67="",Z67="",AA67="",AB67=""),"",W67+X67+Y67+Z67+AA67+AB67) -> 3007.773793 | AE67: n.d.
B68: II | C68: 354.4003447 | D68: 2.9 | E68: n.d. | F68: n.d. | G68: 67.2 | H68: n.d. | I68: 297.2 | J68: n.d. | K68: n.d. | L68: 728.9883793 | M68: 178.6 | N68: n.d. | O68: n.d. | P68: 131.7 | Q68: n.d. | R68: 373.8 | S68: n.d. | T68: n.d. | U68: 6375.497049 | V68: n.d. | W68: 124.9390567 | X68: 894.65 | Y68: 955.9279 | Z68: 567.7063 | AA68: 168.5 | AB68: 656 | AC68: n.d. | AD68: =IF(OR(W68="",X68="",Y68="",Z68="",AA68="",AB68=""),"",W68+X68+Y68+Z68+AA68+AB68) -> 3367.723257 | AE68: n.d.
B69: III | C69: 651.0858941 | D69: -22.6 | E69: n.d. | F69: n.d. | G69: 73.2 | H69: n.d. | I69: 488.4 | J69: n.d. | K69: n.d. | L69: 1380.074273 | M69: 156 | N69: n.d. | O69: n.d. | P69: 204.9 | Q69: n.d. | R69: 862.2 | S69: n.d. | T69: n.d. | U69: 9750.123049 | V69: n.d. | W69: 131.914 | X69: 850.04 | Y69: 928.832 | Z69: 581.64 | AA69: 178.6 | AB69: 703.6 | AC69: n.d. | AD69: 3374.626 | AE69: n.d.
B70: IV | C70: 322.4224631 | D70: 85.13 | E70: n.d. | F70: n.d. | G70: 81.9 | H70: n.d. | I70: 1685.1 | J70: n.d. | K70: n.d. | L70: 1702.496736 | M70: 241.13 | N70: n.d. | O70: n.d. | P70: 286.8 | Q70: n.d. | R70: 2547.3 | S70: n.d. | T70: n.d. | U70: 13257.58469 | V70: n.d. | W70: 124.0648416 | X70: 929.43 | Y70: 932.3886 | Z70: 594.9782 | AA70: 176.8 | AB70: 749.8 | AC70: n.d. | AD70: 3507.461642 | AE70: n.d.
A71: 2007 | B71: I | C71: 682.9802872 | D71: 448.3 | E71: n.d. | F71: n.d. | G71: 58.8 | H71: n.d. | I71: 424.2 | J71: 1190.080287 | K71: 1614.280287 | L71: 682.9802872 | M71: 448.3 | N71: n.d. | O71: n.d. | P71: 58.8 | Q71: n.d. | R71: 424.2 | S71: 1190.080287 | T71: 1614.280287 | U71: 3348.018387 | V71: n.d. | W71: 123.4692873 | X71: 860.12 | Y71: 886.6842 | Z71: 568.6449 | AA71: 165.1 | AB71: 744 | AC71: n.d. | AD71: =IF(OR(W71="",X71="",Y71="",Z71="",AA71="",AB71=""),"",W71+X71+Y71+Z71+AA71+AB71) -> 3348.018387 | AE71: n.d.
B72: II | C72: 538.2308973 | D72: 714.8 | E72: n.d. | F72: n.d. | G72: 107.6 | H72: n.d. | I72: 341.4 | J72: 1360.630897 | K72: 1702.030897 | L72: 1221.211184 | M72: 1163.1 | N72: n.d. | O72: n.d. | P72: 166.4 | Q72: n.d. | R72: 765.6 | S72: 2550.711184 | T72: 3316.311184 | U72: 7058.948921 | V72: n.d. | W72: 136.2107338 | X72: 958.28 | Y72: 1083.0346 | Z72: 623.5052 | AA72: 181.1 | AB72: 728.8 | AC72: n.d. | AD72: 3710.930534 | AE72: n.d.
B73: III | C73: 431.9268736 | D73: 190.15 | E73: n.d. | F73: n.d. | G73: 120.1 | H73: n.d. | I73: 594.9 | J73: 742.1768736 | K73: 1337.076874 | L73: 1653.138058 | M73: 1353.25 | N73: n.d. | O73: n.d. | P73: 286.5 | Q73: n.d. | R73: 1360.5 | S73: 3292.888058 | T73: 4653.388058 | U73: 10849.54896 | V73: n.d. | W73: 172.9687359 | X73: 918.46 | Y73: 1089.3137 | Z73: 664.9576 | AA73: 189.7 | AB73: 755.2 | AC73: n.d. | AD73: 3790.600036 | AE73: n.d.
B74: IV | C74: 435.3313691 | D74: 197.26 | E74: n.d. | F74: n.d. | G74: 95.2 | H74: n.d. | I74: 538.1 | J74: 727.7913691 | K74: 1265.891369 | L74: 2088.469427 | M74: 1550.51 | N74: n.d. | O74: n.d. | P74: 381.7 | Q74: n.d. | R74: 1898.6 | S74: 4020.679427 | T74: 5919.279427 | U74: 14714.64769 | V74: n.d. | W74: 162.9833305 | X74: 958.4 | Y74: 1069.3751 | Z74: 653.0403 | AA74: 203.7 | AB74: 817.6 | AC74: n.d. | AD74: 3865.098731 | AE74: n.d.
A75: 2008 | B75: I | C75: 616.4482815 | D75: 486.55 | E75: 183.6 | F75: n.d. | G75: 125 | H75: n.d. | I75: 470.5 | J75: 1411.598282 | K75: 1882.098282 | L75: 616.4482815 | M75: 486.55 | N75: 183.6 | O75: n.d. | P75: 125 | Q75: n.d. | R75: 470.5 | S75: 1411.598282 | T75: 1882.098282 | U75: 3636.563994 | V75: n.d. | W75: 132.6662365 | X75: 904.74 | Y75: 973.3732 | Z75: 621.2845577 | AA75: 195.7 | AB75: 808.8 | AC75: n.d. | AD75: =IF(OR(W75="",X75="",Y75="",Z75="",AA75="",AB75=""),"",W75+X75+Y75+Z75+AA75+AB75) -> 3636.563994 | AE75: n.d.
B76: II | C76: 834.9438211 | D76: 53.85 | E76: 190.9 | F76: n.d. | G76: 129.5 | H76: n.d. | I76: 653.8 | J76: 1209.193821 | K76: 1862.993821 | L76: 1451.392103 | M76: 540.4 | N76: 374.5 | O76: n.d. | P76: 254.5 | Q76: n.d. | R76: 1124.3 | S76: 2620.792103 | T76: 3745.092103 | U76: 7667.139096 | V76: n.d. | W76: 145.3089044 | X76: 1010.88 | Y76: 1167.5671 | Z76: 704.5190973 | AA76: 208.1 | AB76: 794.2 | AC76: n.d. | AD76: 4030.575102 | AE76: n.d.
B77: III | C77: 390.6946771 | D77: 31.8 | E77: 185.6 | F77: n.d. | G77: 202.3 | H77: n.d. | I77: 413.4 | J77: 810.3946771 | K77: 1223.794677 | L77: 1842.08678 | M77: 572.2 | N77: 560.1 | O77: n.d. | P77: 456.8 | Q77: n.d. | R77: 1537.7 | S77: 3431.18678 | T77: 4968.88678 | U77: 11645.35082 | V77: n.d. | W77: 152.1384662 | X77: 931.44 | Y77: 1155.0393 | Z77: 706.3939602 | AA77: 207.2 | AB77: 826 | AC77: n.d. | AD77: 3978.211726 | AE77: n.d.
B78: IV | C78: 477.8543971 | D78: 330.85 | E78: 193.8 | F78: n.d. | G78: 170.5 | H78: n.d. | I78: 609 | J78: 1173.004397 | K78: 1782.004397 | L78: 2319.941177 | M78: 903.05 | N78: 753.9 | O78: n.d. | P78: 627.3 | Q78: n.d. | R78: 2146.7 | S78: 4604.191177 | T78: 6750.891177 | U78: 15387.37144 | V78: n.d. | W78: 153.7661979 | X78: 895.02 | Y78: 1018.751 | Z78: 674.8834169 | AA78: 207.1 | AB78: 792.5 | AC78: n.d. | AD78: 3742.020615 | AE78: n.d.
A79: 2009 | B79: I | C79: 561.6165943 | D79: -192.7 | E79: 157.9 | F79: 131.7 | G79: 127.1 | H79: n.d. | I79: 483.8 | J79: 785.6165943 | K79: 1269.416594 | L79: 561.6165943 | M79: -192.7 | N79: 157.9 | O79: 131.7 | P79: 127.1 | Q79: n.d. | R79: 483.8 | S79: 785.6165943 | T79: 1269.416594 | U79: 3416.362159 | V79: 3491.762159 | W79: 123.3475945 | X79: 828.87 | Y79: 916.3373 | Z79: 609.607265 | AA79: 195.9 | AB79: 742.3 | AC79: 75.4 | AD79: =IF(OR(W79="",X79="",Y79="",Z79="",AA79="",AB79=""),"",W79+X79+Y79+Z79+AA79+AB79) -> 3416.362159 | AE79: =IF(OR(X79="",Y79="",Z79="",AA79="",AB79="",AC79="",W79=""),"",X79+W79+Y79+Z79+AA79+AB79+AC79) -> 3491.762159
B80: II | C80: 243.7894297 | D80: 65.1 | E80: 137.4 | F80: 134.2 | G80: 105.8 | H80: n.d. | I80: 415 | J80: 686.2894297 | K80: 1101.28943 | L80: 805.4060239 | M80: -127.6 | N80: 295.3 | O80: 265.9 | P80: 232.9 | Q80: n.d. | R80: 898.8 | S80: 1471.906024 | T80: 2370.706024 | U80: 6985.770371 | V80: 7139.768371 | W80: 130.6772774 | X80: 865.03 | Y80: 1020.8684 | Z80: 607.5325341 | AA80: 190.8 | AB80: 754.5 | AC80: 78.598 | AD80: 3569.408212 | AE80: 3648.006212
B81: III | C81: 244.2543556 | D81: 143.9 | E81: 150.7 | F81: 128 | G81: 58.9 | H81: n.d. | I81: 135.4 | J81: 725.7543556 | K81: 861.1543556 | L81: 1049.66038 | M81: 16.3 | N81: 446 | O81: 393.9 | P81: 291.8 | Q81: n.d. | R81: 1034.2 | S81: 2197.66038 | T81: 3231.86038 | U81: 10543.4508 | V81: 10779.3448 | W81: 121.5750632 | X81: 829.98 | Y81: 1035.1042 | Z81: 595.8211653 | AA81: 184.2 | AB81: 791 | AC81: 81.896 | AD81: 3557.680429 | AE81: 3639.576429
B82: IV | C82: 393.909322 | D82: 349.5 | E82: 154 | F82: 115 | G82: 142.1 | H82: n.d. | I82: 225.1 | J82: 1154.509322 | K82: 1379.609322 | L82: 1443.569702 | M82: 365.8 | N82: 600 | O82: 508.9 | P82: 433.9 | Q82: n.d. | R82: 1259.3 | S82: 3352.169702 | T82: 4611.469702 | U82: 14000.72888 | V82: 14328.12488 | W82: 112.9579382 | X82: 863.27 | Y82: 939.9769 | Z82: 589.8732401 | AA82: 197.5 | AB82: 753.7 | AC82: 91.502 | AD82: 3457.278078 | AE82: 3548.780078
A83: 2010 | B83: I | C83: 492.7052434 | D83: -275.5 | E83: 209.4 | F83: 476.2 | G83: 105.8 | H83: 683.4069418 | I83: 925.9 | J83: 1692.012185 | K83: 2617.912185 | L83: 492.7052434 | M83: -275.5 | N83: 209.4 | O83: 476.2 | P83: 105.8 | Q83: 683.4069418 | R83: 925.9 | S83: 1692.012185 | T83: 2617.912185 | U83: 3538.732075 | V83: 3634.732075 | W83: 116.6630777 | X83: 833.14 | Y83: 890.5953 | Z83: 572.3415634 | AA83: 201.8 | AB83: 924.1921334 | AC83: 96 | AD83: =IF(OR(W83="",X83="",Y83="",Z83="",AA83="",AB83=""),"",W83+X83+Y83+Z83+AA83+AB83) -> 3538.732075 | AE83: 3634.732075
B84: II | C84: 443.0053643 | D84: 13.3 | E84: 183.5 | F84: 59.9 | G84: 101.1 | H84: 212.2770505 | I84: 771.1 | J84: 1013.082415 | K84: 1784.182415 | L84: 935.7106077 | M84: -262.2 | N84: 392.9 | O84: 536.1 | P84: 206.9 | Q84: 895.6839923 | R84: 1697 | S84: 2705.0946 | T84: 4402.0946 | U84: 7420.513258 | V84: 7612.513258 | W84: 131.4027149 | X84: 915.62 | Y84: 1095.7158 | Z84: 666.4950502 | AA84: 197.5 | AB84: 875.0476184 | AC84: 96 | AD84: 3881.781184 | AE84: 3977.781184
B85: III | C85: 317.357038 | D85: -149.9 | E85: 216.2 | F85: 167.4 | G85: 116 | H85: 639.1112522 | I85: 403.6 | J85: 1306.16829 | K85: 1709.76829 | L85: 1253.067646 | M85: -412.1 | N85: 609.1 | O85: 703.5 | P85: 322.9 | Q85: 1534.795244 | R85: 2100.6 | S85: 4011.26289 | T85: 6111.86289 | U85: 11303.22855 | V85: 11587.22855 | W85: 129.270194 | X85: 841.08 | Y85: 1121.2812 | Z85: 644.9060777 | AA85: 200.9 | AB85: 945.2778222 | AC85: 92 | AD85: 3882.715294 | AE85: 3974.715294
B86: IV | C86: 430.4775988 | D86: 181.8 | E86: 196.7 | F86: 265.7 | G86: 167 | H86: 488.9005564 | I86: 622.7 | J86: 1730.578155 | K86: 2353.278155 | L86: 1683.545245 | M86: -230.3 | N86: 805.8 | O86: 969.2 | P86: 489.9 | Q86: 2023.695801 | R86: 2723.3 | S86: 5741.841045 | T86: 8465.141045 | U86: 15119.00613 | V86: 15519.00613 | W86: 128.1297995 | X86: 865.45 | Y86: 1019.1918 | Z86: 641.9910659 | AA86: 222.6 | AB86: 938.4149091 | AC86: 116 | AD86: 3815.777575 | AE86: 3931.777575
A87: 2011 | B87: I | C87: 676.8129471 | D87: 180.1 | E87: 309.3 | F87: 276 | G87: 163.8 | H87: 546 | I87: 727.6 | J87: 2152.012947 | K87: 2879.612947 | L87: 676.8129471 | M87: 180.1 | N87: 309.3 | O87: 276 | P87: 163.8 | Q87: 546 | R87: 727.6 | S87: 2152.012947 | T87: 2879.612947 | U87: 3809.128197 | V87: 3858.480197 | W87: 131.5018001 | X87: 860.02 | Y87: 972.0897 | Z87: 643.2738972 | AA87: 214.2 | AB87: 988.0428002 | AC87: 49.352 | AD87: =IF(OR(W87="",X87="",Y87="",Z87="",AA87="",AB87=""),"",W87+X87+Y87+Z87+AA87+AB87) -> 3809.128197 | AE87: 3858.480197
B88: II | C88: 624.3783353 | D88: -30.7 | E88: 240.7 | F88: 209.7 | G88: 349.4 | H88: 545.8 | I88: 1144.4 | J88: 1939.278335 | K88: 3083.678335 | L88: 1301.191282 | M88: 149.4 | N88: 550 | O88: 485.7 | P88: 513.2 | Q88: 1091.8 | R88: 1872 | S88: 4091.291282 | T88: 5963.291282 | U88: 8076.586812 | V88: 8223.877812 | W88: 125.6693782 | X88: 942.71 | Y88: 1202.9997 | Z88: 736.5873096 | AA88: 221.2 | AB88: 1038.292227 | AC88: 97.939 | AD88: 4267.458615 | AE88: 4365.397615
B89: III | C89: 525.2533982 | D89: 77.9 | E89: 194.9 | F89: 233.1 | G89: 217.3 | H89: 807.9 | I89: 797.7 | J89: 2056.353398 | K89: 2854.053398 | L89: 1826.444681 | M89: 227.3 | N89: 744.9 | O89: 718.8 | P89: 730.5 | Q89: 1899.7 | R89: 2669.7 | S89: 6147.644681 | T89: 8817.344681 | U89: 12162.89233 | V89: 12420.20733 | W89: 109.9332814 | X89: 889.18 | Y89: 1124.1706 | Z89: 704.8699075 | AA89: 226.6 | AB89: 1031.551725 | AC89: 110.024 | AD89: 4086.305514 | AE89: 4196.329514
B90: IV | C90: 635.0385198 | D90: -8.9 | E90: 281.2 | F90: 295.6 | G90: 205.8 | H90: 377 | I90: 483 | J90: 1785.73852 | K90: 2268.73852 | L90: 2461.4832 | M90: 218.4 | N90: 1026.1 | O90: 1014.4 | P90: 936.3 | Q90: 2276.7 | R90: 3152.7 | S90: 7933.3832 | T90: 11086.0832 | U90: 16161.97203 | V90: 16530.60803 | W90: 119.9442136 | X90: 935.57 | Y90: 1078.7719 | Z90: 664.689828 | AA90: 249.6 | AB90: 950.5037642 | AC90: 111.321 | AD90: 3999.079706 | AE90: 4110.400706
A91: 2012 | B91: I | C91: 617.2519771 | D91: 134.1 | E91: 388.9 | F91: 340.1 | G91: 237.4 | H91: 676.3 | I91: 941.9 | J91: 2394.051977 | K91: 3335.951977 | L91: 617.2519771 | M91: 134.1 | N91: 388.9 | O91: 340.1 | P91: 237.4 | Q91: 676.3 | R91: 941.9 | S91: 2394.051977 | T91: 3335.951977 | U91: 4124.584376 | V91: 4225.784376 | W91: 122.2594626 | X91: 945.92 | Y91: 1057.6105 | Z91: 672.5644002 | AA91: 250.1 | AB91: 1076.130013 | AC91: 101.2 | AD91: =IF(OR(W91="",X91="",Y91="",Z91="",AA91="",AB91=""),"",W91+X91+Y91+Z91+AA91+AB91) -> 4124.584376 | AE91: 4225.784376
B92: II | C92: 556.1025324 | D92: 129.1 | E92: 332.6 | F92: 127.9 | G92: 162.5 | H92: 1612 | I92: 787.6 | J92: 2920.202532 | K92: 3707.802532 | L92: 1173.354509 | M92: 263.2 | N92: 721.5 | O92: 468 | P92: 399.9 | Q92: 2288.3 | R92: 1729.5 | S92: 5314.254509 | T92: 7043.754509 | U92: 8538.792789 | V92: 8724.892789 | W92: 123.6096144 | X92: 999.92 | Y92: 1303.2028 | Z92: 728.936652 | AA92: 244.2 | AB92: 1014.339347 | AC92: 84.9 | AD92: 4414.208413 | AE92: 4499.108413
B93: III | C93: 584.5134146 | D93: 216.3 | E93: 237.5 | F93: 247.1 | G93: 192.6 | H93: 730.6 | I93: 1032.2 | J93: 2208.613415 | K93: 3240.813415 | L93: 1757.867924 | M93: 479.5 | N93: 959 | O93: 715.1 | P93: 592.5 | Q93: 3018.9 | R93: 2761.7 | S93: 7522.867924 | T93: 10284.56792 | U93: 12873.41072 | V93: 13158.71072 | W93: 140.5972611 | X93: 947.72 | Y93: 1229.2888 | Z93: 717.4655091 | AA93: 246.2 | AB93: 1053.346365 | AC93: 99.2 | AD93: 4334.617935 | AE93: 4433.817935
B94: IV | C94: 500.2221084 | D94: 2.4 | E94: 285.5 | F94: 343.5 | G94: 175.2 | H94: 123.5 | I94: 448.8 | J94: 1430.322108 | K94: 1879.122108 | L94: 2258.090032 | M94: 481.9 | N94: 1244.5 | O94: 1058.6 | P94: 767.7 | Q94: 3142.4 | R94: 3210.5 | S94: 8953.190032 | T94: 12163.69003 | U94: 17090.63836 | V94: 17471.73836 | W94: 140.321407 | X94: 986.14 | Y94: 1192.59 | Z94: 722.9203718 | AA94: 273.7 | AB94: 901.5558595 | AC94: 95.8 | AD94: 4217.227638 | AE94: 4313.027638
A95: 2013 | B95: I | C95: 958.6947864 | D95: -22.5 | E95: 349.3 | F95: 300.6 | G95: 361.4 | H95: 543 | I95: 1335.7 | J95: 2490.494786 | K95: 3826.194786 | L95: 958.6947864 | M95: -22.5 | N95: 349.3 | O95: 300.6 | P95: 361.4 | Q95: 543 | R95: 1335.7 | S95: 2490.494786 | T95: 3826.194786 | U95: 4245.581898 | V95: 4359.981898 | W95: 134.2766169 | X95: 914.79 | Y95: 1133.09 | Z95: 689.438986 | AA95: 257.3 | AB95: 1116.686295 | AC95: 114.4 | AD95: =IF(OR(W95="",X95="",Y95="",Z95="",AA95="",AB95=""),"",W95+X95+Y95+Z95+AA95+AB95) -> 4245.581898 | AE95: 4359.981898
B96: II | C96: 411.2058874 | D96: 132 | E96: 341.5 | F96: 236.4 | G96: 92.6 | H96: 438.8 | I96: 687.7 | J96: 1652.505887 | K96: 2340.205887 | L96: 1369.900674 | M96: 109.5 | N96: 690.8 | O96: 537 | P96: 454 | Q96: 981.8 | R96: 2023.4 | S96: 4143.000674 | T96: 6166.400674 | U96: 8780.094364 | V96: 8989.794364 | W96: 137.3873169 | X96: 1030.86 | Y96: 1345.43 | Z96: 822.1849539 | AA96: 264.3 | AB96: 934.3501956 | AC96: 95.3 | AD96: 4534.512466 | AE96: 4629.812466
B97: III | C97: 458.3588426 | D97: 151.5 | E97: 300.1 | F97: 199.5 | G97: 196.8 | H97: 527 | I97: 877.4 | J97: 1833.258843 | K97: 2710.658843 | L97: 1828.259516 | M97: 261 | N97: 990.9 | O97: 736.5 | P97: 650.8 | Q97: 1508.8 | R97: 2900.8 | S97: 5976.259516 | T97: 8877.059516 | U97: 13354.64273 | V97: 13674.54273 | W97: 139.7896737 | X97: 968.33 | Y97: 1322.8 | Z97: 802.9386291 | AA97: 265.7 | AB97: 1074.990067 | AC97: 110.2 | AD97: 4574.54837 | AE97: 4684.74837
B98: IV | C98: 912.8322607 | D98: -81.9 | E98: 304.5 | F98: 323.2 | G98: 164.7 | H98: 481.7 | I98: 666.4 | J98: 2105.032261 | K98: 2771.432261 | L98: 2741.091777 | M98: 179.1 | N98: 1295.4 | O98: 1059.7 | P98: 815.5 | Q98: 1990.5 | R98: 3567.2 | S98: 8081.291777 | T98: 11648.49178 | U98: 18036.96395 | V98: 18460.96395 | W98: 149.6132862 | X98: 1023.44 | Y98: 1303.8864 | Z98: 778.7149902 | AA98: 290.4 | AB98: 1136.266535 | AC98: 104.1 | AD98: 4682.321211 | AE98: 4786.421211
A99: 2014 | B99: I | C99: 883.3613537 | D99: 24.75 | E99: 369.9 | F99: 922.2 | G99: 356.4 | H99: 504.5 | I99: 1170.8 | J99: 3061.111354 | K99: 4231.911354 | L99: 883.3613537 | M99: 24.75 | N99: 369.9 | O99: 922.2 | P99: 356.4 | Q99: 504.5 | R99: 1170.8 | S99: 3061.111354 | T99: 4231.911354 | U99: 4531.220025 | V99: 4645.020025 | W99: 142.3071721 | X99: 966.29 | Y99: 1237.3619 | Z99: 736.0515569 | AA99: 277.2 | AB99: 1172.009396 | AC99: 113.8 | AD99: =IF(OR(W99="",X99="",Y99="",Z99="",AA99="",AB99=""),"",W99+X99+Y99+Z99+AA99+AB99) -> 4531.220025 | AE99: 4645.020025
B100: II | C100: 540.2536533 | D100: -10.82 | E100: 359.3 | F100: 314.2 | G100: 93.1 | H100: 677.7 | I100: 991.7 | J100: 1973.733653 | K100: 2965.433653 | L100: 1423.615007 | M100: 13.93 | N100: 729.2 | O100: 1236.4 | P100: 449.5 | Q100: 1182.2 | R100: 2162.5 | S100: 5034.845007 | T100: 7197.345007 | U100: 9593.132032 | V100: 9855.132032 | W100: 137.6793798 | X100: 1089.37 | Y100: 1466.599 | Z100: 911.5189629 | AA100: 278 | AB100: 1178.744664 | AC100: 148.2 | AD100: 5061.912007 | AE100: 5210.112007
B101: III | C101: 687.6915199 | D101: 131.42 | E101: 350.7 | F101: -194.7 | G101: 226.6 | H101: 457.1 | I101: 1074.7 | J101: 1658.81152 | K101: 2733.51152 | L101: 2111.306527 | M101: 145.35 | N101: 1079.9 | O101: 1041.7 | P101: 676.1 | Q101: 1639.3 | R101: 3237.2 | S101: 6693.656527 | T101: 9930.856527 | U101: 14481.71743 | V101: 14933.61743 | W101: 138.5220765 | X101: 1019.39 | Y101: 1445.2992 | Z101: 868.1956371 | AA101: 279.5 | AB101: 1137.678488 | AC101: 189.9 | AD101: 4888.585401 | AE101: 5078.485401
B102: IV | C102: 815.3392427 | D102: 165.78 | E102: 308.8 | F102: 375.7 | G102: 208 | H102: 569.2 | I102: 1221.5 | J102: 2442.819243 | K102: 3664.319243 | L102: 2926.64577 | M102: 311.13 | N102: 1388.7 | O102: 1417.4 | P102: 884.1 | Q102: 2208.5 | R102: 4458.7 | S102: 9136.47577 | T102: 13595.17577 | U102: 19379.85098 | V102: 20031.75098 | W102: 139.996756 | X102: 1057.98 | Y102: 1394.8375 | Z102: 921.3306946 | AA102: 301.1 | AB102: 1082.888599 | AC102: 200 | AD102: 4898.133549 | AE102: 5098.133549
A103: 2015 | B103: I | C103: 731.436391 | D103: 17.92 | E103: 324.1 | F103: 317.1 | G103: 410.9 | H103: 442.9 | I103: 1124.5 | J103: 2244.356391 | K103: 3368.856391 | L103: 731.436391 | M103: 17.92 | N103: 324.1 | O103: 317.1 | P103: 410.9 | Q103: 442.9 | R103: 1124.5 | S103: 2244.356391 | T103: 3368.856391 | U103: 4844.428687 | V103: 4952.228687 | W103: 120.3870794 | X103: 983.35 | Y103: 1395.890342 | Z103: 855.5204449 | AA103: 289.2 | AB103: 1200.08082 | AC103: 107.8 | AD103: =IF(OR(W103="",X103="",Y103="",Z103="",AA103="",AB103=""),"",W103+X103+Y103+Z103+AA103+AB103) -> 4844.428687 | AE103: 4952.228687
B104: II | C104: 639.1630871 | D104: 113.23 | E104: 273.3 | F104: 229.7 | G104: 190.6 | H104: 695.5 | I104: 1464.8 | J104: 2141.493087 | K104: 3606.293087 | L104: 1370.599478 | M104: 131.15 | N104: 597.4 | O104: 546.8 | P104: 601.5 | Q104: 1138.4 | R104: 2589.3 | S104: 4385.849478 | T104: 6975.149478 | U104: 10157.43321 | V104: 10380.63321 | W104: 129.1680989 | X104: 1104.31 | Y104: 1559.1044 | Z104: 955.7437694 | AA104: 292.4 | AB104: 1272.278258 | AC104: 115.4 | AD104: 5313.004526 | AE104: 5428.404526
B105: III | C105: 647.3380883 | D105: 127.76 | E105: 330.3 | F105: 293.6 | G105: 118.8 | H105: 649 | I105: 986.2 | J105: 2166.798088 | K105: 3152.998088 | L105: 2017.937566 | M105: 258.91 | N105: 927.7 | O105: 840.4 | P105: 720.3 | Q105: 1787.4 | R105: 3575.5 | S105: 6552.647566 | T105: 10128.14757 | U105: 15503.9258 | V105: 15847.9258 | W105: 131.501058 | X105: 1057.75 | Y105: 1639.4077 | Z105: 963.2355029 | AA105: 292.9 | AB105: 1261.698325 | AC105: 120.8 | AD105: 5346.492586 | AE105: 5467.292586
B106: IV | C106: 733.940915 | D106: 139.81 | E106: 293.1 | F106: 363.1 | G106: 229.6 | H106: 417.5 | I106: 918.7 | J106: 2177.050915 | K106: 3095.750915 | L106: 2751.878481 | M106: 398.72 | N106: 1220.8 | O106: 1203.5 | P106: 949.9 | Q106: 2204.9 | R106: 4494.2 | S106: 8729.698481 | T106: 13223.89848 | U106: 20953.32325 | V106: 21426.02325 | W106: 136.4482713 | X106: 1124.6 | Y106: 1690.5754 | Z106: 952.1769593 | AA106: 318.9 | AB106: 1226.696825 | AC106: 128.7 | AD106: 5449.397455 | AE106: =IF(OR(X106="",Y106="",Z106="",AA106="",AB106="",AC106="",W106=""),"",X106+W106+Y106+Z106+AA106+AB106+AC106) -> 5578.097455
A107: 2016 | B107: I | C107: 646.0288874 | D107: 127.8 | E107: 316.3 | F107: 338.1 | G107: 387.4 | H107: 125.7 | I107: 1188.7 | J107: 1941.328887 | K107: 3130.028887 | L107: 646.0288874 | M107: 127.8 | N107: 316.3 | O107: 338.1 | P107: 387.4 | Q107: 125.7 | R107: 1188.7 | S107: 1941.328887 | T107: 3130.028887 | U107: 5331.941384 | V107: 5433.341384 | W107: 118.8344891 | X107: 1045.18 | Y107: 1662.9848 | Z107: 913.3091205 | AA107: 302.3 | AB107: 1289.332974 | AC107: 101.4 | AD107: =IF(OR(W107="",X107="",Y107="",Z107="",AA107="",AB107=""),"",W107+X107+Y107+Z107+AA107+AB107) -> 5331.941384 | AE107: =IF(OR(X107="",Y107="",Z107="",AA107="",AB107="",AC107="",W107=""),"",X107+W107+Y107+Z107+AA107+AB107+AC107) -> 5433.341384
B108: II | C108: 621.1665882 | D108: 20.44 | E108: 250.1 | F108: 196 | G108: 221 | H108: 867 | I108: 1500.7 | J108: 2175.706588 | K108: 3676.406588 | L108: 1267.195476 | M108: 148.24 | N108: 566.4 | O108: 534.1 | P108: 608.4 | Q108: 992.7 | R108: 2689.4 | S108: 4117.035476 | T108: 6806.435476 | U108: 11106.19978 | V108: 11311.79978 | W108: 129.7807373 | X108: 1176.01 | Y108: 1849.2741 | Z108: 1011.585295 | AA108: 306.4 | AB108: 1301.208266 | AC108: 104.2 | AD108: =IF(OR(W108="",X108="",Y108="",Z108="",AA108="",AB108=""),"",W108+X108+Y108+Z108+AA108+AB108) -> 5774.258398 | AE108: 5878.458398
B109: III | C109: 537.662575 | D109: 267.89 | E109: 306.5 | F109: 205.1 | G109: 36.8 | H109: 785.7 | I109: 1527.3 | J109: 2139.652575 | K109: 3666.952575 | L109: 1804.858051 | M109: 416.13 | N109: 872.9 | O109: 739.2 | P109: 645.2 | Q109: 1778.4 | R109: 4216.7 | S109: 6256.688051 | T109: 10473.38805 | U109: 16751.49893 | V109: 17063.09893 | W109: 133.1953188 | X109: 1116.01 | Y109: 1763.0153 | Z109: 1002.149707 | AA109: 312.9 | AB109: 1318.02882 | AC109: 106 | AD109: 5645.299146 | AE109: 5751.299146
B110: IV | C110: 713.76846 | D110: -42.68 | E110: 311.7 | F110: 333.1 | G110: 242.6 | H110: 628.3 | I110: 1008.8 | J110: 2186.78846 | K110: 3195.58846 | L110: 2518.626511 | M110: 373.45 | N110: 1184.6 | O110: 1072.3 | P110: 887.8 | Q110: 2406.7 | R110: 5225.5 | S110: 8443.476511 | T110: 13668.97651 | U110: 22725.39708 | V110: 23151.49708 | W110: 132.985228 | X110: 1238.84 | Y110: 1884.6935 | Z110: 1021.986386 | AA110: 342.5 | AB110: 1352.893035 | AC110: 114.5 | AD110: 5973.89815 | AE110: =IF(OR(X110="",Y110="",Z110="",AA110="",AB110="",AC110="",W110=""),"",X110+W110+Y110+Z110+AA110+AB110+AC110) -> 6088.39815
A111: 2017 | B111: I | C111: 799.4124786 | D111: 163.63 | E111: 313.5 | F111: 321.4 | G111: 386.3 | H111: 695.8 | I111: 1316.5 | J111: 2680.042479 | K111: 3996.542479 | L111: 799.4124786 | M111: 163.63 | N111: 313.5 | O111: 321.4 | P111: 386.3 | Q111: 695.8 | R111: 1316.5 | S111: 2680.042479 | T111: 3996.542479 | U111: 6057.6701 | V111: 6161.3701 | W111: 126.7601415 | X111: 1175.27 | Y111: 1941.35 | Z111: 1036.081008 | AA111: 323.3 | AB111: 1454.908951 | AC111: 103.7 | AD111: =IF(OR(W111="",X111="",Y111="",Z111="",AA111="",AB111=""),"",W111+X111+Y111+Z111+AA111+AB111) -> 6057.6701 | AE111: =IF(OR(X111="",Y111="",Z111="",AA111="",AB111="",AC111="",W111=""),"",X111+W111+Y111+Z111+AA111+AB111+AC111) -> 6161.3701
B112: II | C112: 772.5301556 | D112: 249.38 | E112: 265.8 | F112: 295.6 | G112: 205.6 | H112: 698.5 | I112: 1528.1 | J112: 2487.410156 | K112: 4015.510156 | L112: 1571.942634 | M112: 413.01 | N112: 579.3 | O112: 617 | P112: 591.9 | Q112: 1394.3 | R112: 2844.6 | S112: 5167.452634 | T112: 8012.052634 | U112: 12516.84211 | V112: 12728.94211 | W112: 132.3260694 | X112: 1278.96 | Y112: 2111.02 | Z112: 1142.551489 | AA112: 340.7 | AB112: 1453.614448 | AC112: 108.4 | AD112: =IF(OR(W112="",X112="",Y112="",Z112="",AA112="",AB112=""),"",W112+X112+Y112+Z112+AA112+AB112) -> 6459.172007 | AE112: 6567.572007
B113: III | X113: 1230.28 | Y113: 2044.97 | AA113: 355.6 | AB113: 1523.676601
B114: IV | AE114: =IF(OR(X114="",Y114="",Z114="",AA114="",AB114="",AC114="",W114=""),"",X114+W114+Y114+Z114+AA114+AB114+AC114) -> 

Sheet Datos_Regional (M) (hidden)
A1: Variables Mensuales Regional | D1: IPC CARD | E1: IPC CARD_TC | F1: IPC CAPARD | G1: IPC CAPARD_TC | H1: IMAER_TC | I1: IMAER_T | J1: IMAER CARD_TC | K1: IMAER CAPARD_T | L1: RIN_CARD | M1: RIN Diciembres | N1: RIN_CAPARD | O1: RIN Diciembres | P1: CARD | V1: CAPARD | AB1: Crédito de las OSD con SPNF | AF1: Créditos de las OSD con el sector privado, saldo en millones de USD | AL1: Tasa de variación Interanual | AS1: Crédito de las OSD con SPNF | AW1: Créditos de las OSD con el sector privado, saldo en millones de USD | BC1: Tasa de variación Interanual | BJ1: Tasa de Política Monetaria | BQ1: CARD Saldo operacional GC | BR1: CAPARD Saldo operacional GC | BS1: CARD | BV1: CAPARD | BY1: Crédito de las OSD con el Sector Privado MN | CM1: Mill-US$ | CN1: Mill-US$ | CO1: % | CP1: Mill-US$ | CQ1: Mill-US$ | CR1: % | CS1: CARD | DA1: CAPARD
P2: M1 | Q2: M2 | R2: M3 | S2: M1_% | T2: M2_% | U2: M3_% | V2: M1 | W2: M2 | X2: M3 | Y2: M1_% | Z2: M2_% | AA2: M3_% | AB2: Activos | AC2: Pasivos | AD2: Crédito Neto | AE2: %Interanual | AF2: Otras sociedades no financieras | AG2: Otros sectores 1/ | AH2: Otras sociedades no financieras | AI2: Hogares e ISFLSH | AK2: TOTAL | AL2: Otras sociedades no financieras | AN2: Otros sectores 1/ | AO2: Otras sociedades no financieras | AP2: Hogares e ISFLSH | AQ2: TOTAL | AR2: Aceleración | AS2: Activos | AT2: Pasivos | AU2: Crédito Neto | AV2: %Interanual | AW2: Otras sociedades no financieras | AX2: Otros sectores 1/ | AY2: Otras sociedades no financieras | AZ2: Hogares e ISFLSH | BB2: TOTAL | BC2: Otras sociedades no financieras | BE2: Otros sectores 1/ | BF2: Otras sociedades no financieras | BG2: Hogares e ISFLSH | BH2: TOTAL | BI2: Aceleración | BJ2: CR | BK2: SV | BL2: GT | BM2: HO | BN2: NI | BO2: RD | BP2: PA | BS2: Deuda Pública total | BT2: Deuda Interna | BU2: Deuda Externa | BV2: Deuda Pública total | BW2: Deuda Interna | BX2: Deuda Externa | BY2: CR | BZ2: SV | CA2: GT | CB2: HO | CC2: NI | CD2: RD | CE2: PA | CF2: CR % | CG2: SV % | CH2: GT % | CI2: HO % | CJ2: NI % | CK2: RD % | CL2: PA % | CM2: Saldo Operacional con donaciones | CN2: PIB a precios corrientes | CO2: Saldo operacional/PIB | CP2: Saldo Operacional con donaciones | CQ2: PIB a precios corrientes | CR2: Saldo operacional/PIB | CS2: Credito TOTAL | CT2: Créditos de las OSD a sector Público | CU2: Créditos de las OSD a sector Privado | CV2: Créditos de las OSD a no residentes y otros | CW2: Credito TOTAL % | CX2: Créditos de las OSD a sector Público % | CY2: Créditos de las OSD a sector Privado % | CZ2: Créditos de las OSD a no residentes y otros % | DA2: Credito TOTAL | DB2: Créditos de las OSD a sector Público | DC2: Créditos de las OSD a sector Privado | DD2: Créditos de las OSD a no residentes y otros | DE2: Credito TOTAL % | DF2: Créditos de las OSD a sector Público % | DG2: Créditos de las OSD a sector Privado % | DH2: Créditos de las OSD a no residentes y otros %
A3: 1990 | B3: enero | C3: =A3&"-"&B3 -> 1990-enero | D3: n.d. | E3: n.d. | F3: n.d. | G3: n.d. | H3: n.d. | I3: n.d. | J3: n.d. | K3: n.d. | L3: n.d. | M3: =IF(B3<>"diciembre","",L3) ->  | N3: n.d. | O3: =IF(B3<>"diciembre","",N3) ->  | P3: n.d. | Q3: n.d. | R3: n.d. | S3: n.d. | T3: n.d. | U3: n.d. | V3: n.d. | W3: n.d. | X3: n.d. | Y3: n.d. | Z3: n.d. | AA3: n.d. | AC3: n.d. | AD3: n.d. | AE3: n.d. | AF3: n.d. | AG3: n.d. | AH3: n.d. | AI3: n.d. | AK3: n.d. | AL3: n.d. | AN3: n.d. | AO3: n.d. | AP3: n.d. | AQ3: n.d. | AR3: n.d. | AS3: n.d. | AT3: n.d. | AU3: n.d. | AV3: n.d. | AW3: n.d. | AX3: n.d. | AY3: n.d. | AZ3: n.d. | BA3: n.d. | BB3: n.d. | BC3: n.d. | BD3: n.d. | BE3: n.d. | BF3: n.d. | BG3: n.d. | BH3: n.d. | BI3: n.d. | BJ3: n.d. | BK3: n.a. | BL3: n.d. | BM3: n.d. | BN3: n.a. | BO3: n.d. | BP3: n.a. | BQ3: n.d. | BR3: n.d. | BS3: n.d. | BT3: n.d. | BU3: n.d. | BV3: n.d. | BW3: n.d. | BX3: n.d. | BY3: n.d. | BZ3: n.d. | CA3: n.d. | CB3: n.d. | CC3: n.d. | CD3: n.d. | CE3: n.d. | CF3: n.d. | CG3: n.d. | CH3: n.d. | CI3: n.d. | CJ3: n.d. | CK3: n.d. | CL3: n.d. | CM3: n.d. | CN3: n.d. | CO3: =IF(OR(CM3="n.d.",CM3="",CN3="",CN3="n.d."),"n.d.",(CM3/CN3)*100) -> n.d. | CP3: n.d. | CQ3: n.d. | CR3: =IF(OR(CP3="n.d.",CP3="",CQ3="",CQ3="n.d."),"n.d.",(CP3/CQ3)*100) -> n.d. | CS3: n.d. | CT3: n.d. | CU3: n.d. | CV3: n.d. | CW3: n.d. | CX3: n.d. | CY3: n.d. | CZ3: n.d. | DA3: n.d. | DB3: n.d. | DC3: n.d. | DD3: n.d. | DE3: n.d. | DF3: n.d. | DG3: n.d. | DH3: n.d.
A4: 1990 | B4: febrero | C4: =A4&"-"&B4 -> 1990-febrero | D4: n.d. | E4: n.d. | F4: n.d. | G4: n.d. | H4: n.d. | I4: n.d. | J4: n.d. | K4: n.d. | L4: n.d. | M4: =IF(B4<>"diciembre","",L4) ->  | N4: n.d. | O4: =IF(B4<>"diciembre","",N4) ->  | P4: n.d. | Q4: n.d. | R4: n.d. | S4: n.d. | T4: n.d. | U4: n.d. | V4: n.d. | W4: n.d. | X4: n.d. | Y4: n.d. | Z4: n.d. | AA4: n.d. | AC4: n.d. | AD4: n.d. | AE4: n.d. | AF4: n.d. | AG4: n.d. | AH4: n.d. | AI4: n.d. | AJ4: =IFERROR(+AF4+AH4,"") ->  | AK4: n.d. | AL4: n.d. | AN4: n.d. | AO4: n.d. | AP4: n.d. | AQ4: n.d. | AR4: n.d. | AS4: n.d. | AT4: n.d. | AU4: n.d. | AV4: n.d. | AW4: n.d. | AX4: n.d. | AY4: n.d. | AZ4: n.d. | BA4: n.d. | BB4: n.d. | BC4: n.d. | BD4: n.d. | BE4: n.d. | BF4: n.d. | BG4: n.d. | BH4: n.d. | BI4: n.d. | BJ4: n.d. | BK4: n.a. | BL4: n.d. | BM4: n.d. | BN4: n.a. | BO4: n.d. | BP4: n.a. | BQ4: n.d. | BR4: n.d. | BS4: n.d. | BT4: n.d. | BU4: n.d. | BV4: n.d. | BW4: n.d. | BX4: n.d. | BY4: n.d. | BZ4: n.d. | CA4: n.d. | CB4: n.d. | CC4: n.d. | CD4: n.d. | CE4: n.d. | CF4: n.d. | CG4: n.d. | CH4: n.d. | CI4: n.d. | CJ4: n.d. | CK4: n.d. | CL4: n.d. | CM4: n.d. | CN4: n.d. | CO4: n.d. | CP4: n.d. | CQ4: n.d. | CR4: =IF(OR(CP4="n.d.",CP4="",CQ4="",CQ4="n.d."),"n.d.",(CP4/CQ4)*100) -> n.d. | CS4: n.d. | CT4: n.d. | CU4: n.d. | CV4: n.d. | CW4: n.d. | CX4: n.d. | CY4: n.d. | CZ4: n.d. | DA4: n.d. | DB4: n.d. | DC4: n.d. | DD4: n.d. | DE4: n.d. | DF4: n.d. | DG4: n.d. | DH4: n.d.
A5: 1990 | B5: marzo | C5: 1990-marzo | D5: n.d. | E5: n.d. | F5: n.d. | G5: n.d. | H5: n.d. | I5: n.d. | J5: n.d. | K5: n.d. | L5: n.d. | N5: n.d. | P5: n.d. | Q5: n.d. | R5: n.d. | S5: n.d. | T5: n.d. | U5: n.d. | V5: n.d. | W5: n.d. | X5: n.d. | Y5: n.d. | Z5: n.d. | AA5: n.d. | AC5: n.d. | AD5: n.d. | AE5: n.d. | AF5: n.d. | AG5: n.d. | AH5: n.d. | AI5: n.d. | AK5: n.d. | AL5: n.d. | AN5: n.d. | AO5: n.d. | AP5: n.d. | AQ5: n.d. | AR5: n.d. | AS5: n.d. | AT5: n.d. | AU5: n.d. | AV5: n.d. | AW5: n.d. | AX5: n.d. | AY5: n.d. | AZ5: n.d. | BA5: n.d. | BB5: n.d. | BC5: n.d. | BD5: n.d. | BE5: n.d. | BF5: n.d. | BG5: n.d. | BH5: n.d. | BI5: n.d. | BJ5: n.d. | BK5: n.a. | BL5: n.d. | BM5: n.d. | BN5: n.a. | BO5: n.d. | BP5: n.a. | BQ5: n.d. | BR5: n.d. | BS5: n.d. | BT5: n.d. | BU5: n.d. | BV5: n.d. | BW5: n.d. | BX5: n.d. | BY5: n.d. | BZ5: n.d. | CA5: n.d. | CB5: n.d. | CC5: n.d. | CD5: n.d. | CE5: n.d. | CF5: n.d. | CG5: n.d. | CH5: n.d. | CI5: n.d. | CJ5: n.d. | CK5: n.d. | CL5: n.d. | CM5: n.d. | CN5: n.d. | CO5: n.d. | CP5: n.d. | CQ5: n.d. | CR5: n.d. | CS5: n.d. | CT5: n.d. | CU5: n.d. | CV5: n.d. | CW5: n.d. | CX5: n.d. | CY5: n.d. | CZ5: n.d. | DA5: n.d. | DB5: n.d. | DC5: n.d. | DD5: n.d. | DE5: n.d. | DF5: n.d. | DG5: n.d. | DH5: n.d.
A6: 1990 | B6: abril | C6: 1990-abril | D6: n.d. | E6: n.d. | F6: n.d. | G6: n.d. | H6: n.d. | I6: n.d. | J6: n.d. | K6: n.d. | L6: n.d. | N6: n.d. | P6: n.d. | Q6: n.d. | R6: n.d. | S6: n.d. | T6: n.d. | U6: n.d. | V6: n.d. | W6: n.d. | X6: n.d. | Y6: n.d. | Z6: n.d. | AA6: n.d. | AC6: n.d. | AD6: n.d. | AE6: n.d. | AF6: n.d. | AG6: n.d. | AH6: n.d. | AI6: n.d. | AJ6: =IFERROR(+AF6+AH6,"n.d.") -> n.d. | AK6: n.d. | AL6: n.d. | AN6: n.d. | AO6: n.d. | AP6: n.d. | AQ6: n.d. | AR6: n.d. | AS6: n.d. | AT6: n.d. | AU6: n.d. | AV6: n.d. | AW6: n.d. | AX6: n.d. | AY6: n.d. | AZ6: n.d. | BA6: n.d. | BB6: n.d. | BC6: n.d. | BD6: n.d. | BE6: n.d. | BF6: n.d. | BG6: n.d. | BH6: n.d. | BI6: n.d. | BJ6: n.d. | BK6: n.a. | BL6: n.d. | BM6: n.d. | BN6: n.a. | BO6: n.d. | BP6: n.a. | BQ6: n.d. | BR6: n.d. | BS6: n.d. | BT6: n.d. | BU6: n.d. | BV6: n.d. | BW6: n.d. | BX6: n.d. | BY6: n.d. | BZ6: n.d. | CA6: n.d. | CB6: n.d. | CC6: n.d. | CD6: n.d. | CE6: n.d. | CF6: n.d. | CG6: n.d. | CH6: n.d. | CI6: n.d. | CJ6: n.d. | CK6: n.d. | CL6: n.d. | CM6: n.d. | CN6: n.d. | CO6: n.d. | CP6: n.d. | CQ6: n.d. | CR6: n.d. | CS6: n.d. | CT6: n.d. | CU6: n.d. | CV6: n.d. | CW6: n.d. | CX6: n.d. | CY6: n.d. | CZ6: n.d. | DA6: n.d. | DB6: n.d. | DC6: n.d. | DD6: n.d. | DE6: n.d. | DF6: n.d. | DG6: n.d. | DH6: n.d.
A7: 1990 | B7: mayo | C7: 1990-mayo | D7: n.d. | E7: n.d. | F7: n.d. | G7: n.d. | H7: n.d. | I7: n.d. | J7: n.d. | K7: n.d. | L7: n.d. | N7: n.d. | P7: n.d. | Q7: n.d. | R7: n.d. | S7: n.d. | T7: n.d. | U7: n.d. | V7: n.d. | W7: n.d. | X7: n.d. | Y7: n.d. | Z7: n.d. | AA7: n.d. | AC7: n.d. | AD7: n.d. | AE7: n.d. | AF7: n.d. | AG7: n.d. | AH7: n.d. | AI7: n.d. | AJ7: =IFERROR(+AF7+AH7,"n.d.") -> n.d. | AK7: n.d. | AL7: n.d. | AN7: n.d. | AO7: n.d. | AP7: n.d. | AQ7: n.d. | AR7: n.d. | AS7: n.d. | AT7: n.d. | AU7: n.d. | AV7: n.d. | AW7: n.d. | AX7: n.d. | AY7: n.d. | AZ7: n.d. | BA7: n.d. | BB7: n.d. | BC7: n.d. | BD7: n.d. | BE7: n.d. | BF7: n.d. | BG7: n.d. | BH7: n.d. | BI7: n.d. | BJ7: n.d. | BK7: n.a. | BL7: n.d. | BM7: n.d. | BN7: n.a. | BO7: n.d. | BP7: n.a. | BQ7: n.d. | BR7: n.d. | BS7: n.d. | BT7: n.d. | BU7: n.d. | BV7: n.d. | BW7: n.d. | BX7: n.d. | BY7: n.d. | BZ7: n.d. | CA7: n.d. | CB7: n.d. | CC7: n.d. | CD7: n.d. | CE7: n.d. | CF7: n.d. | CG7: n.d. | CH7: n.d. | CI7: n.d. | CJ7: n.d. | CK7: n.d. | CL7: n.d. | CM7: n.d. | CN7: n.d. | CO7: n.d. | CP7: n.d. | CQ7: n.d. | CR7: n.d. | CS7: n.d. | CT7: n.d. | CU7: n.d. | CV7: n.d. | CW7: n.d. | CX7: n.d. | CY7: n.d. | CZ7: n.d. | DA7: n.d. | DB7: n.d. | DC7: n.d. | DD7: n.d. | DE7: n.d. | DF7: n.d. | DG7: n.d. | DH7: n.d.
A8: 1990 | B8: junio | C8: 1990-junio | D8: n.d. | E8: n.d. | F8: n.d. | G8: n.d. | H8: n.d. | I8: n.d. | J8: n.d. | K8: n.d. | L8: n.d. | N8: n.d. | P8: n.d. | Q8: n.d. | R8: n.d. | S8: n.d. | T8: n.d. | U8: n.d. | V8: n.d. | W8: n.d. | X8: n.d. | Y8: n.d. | Z8: n.d. | AA8: n.d. | AC8: n.d. | AD8: n.d. | AE8: n.d. | AF8: n.d. | AG8: n.d. | AH8: n.d. | AI8: n.d. | AJ8: n.d. | AK8: n.d. | AL8: n.d. | AN8: n.d. | AO8: n.d. | AP8: n.d. | AQ8: n.d. | AR8: n.d. | AS8: n.d. | AT8: n.d. | AU8: n.d. | AV8: n.d. | AW8: n.d. | AX8: n.d. | AY8: n.d. | AZ8: n.d. | BA8: n.d. | BB8: n.d. | BC8: n.d. | BD8: n.d. | BE8: n.d. | BF8: n.d. | BG8: n.d. | BH8: n.d. | BI8: n.d. | BJ8: n.d. | BK8: n.a. | BL8: n.d. | BM8: n.d. | BN8: n.a. | BO8: n.d. | BP8: n.a. | BQ8: n.d. | BR8: n.d. | BS8: n.d. | BT8: n.d. | BU8: n.d. | BV8: n.d. | BW8: n.d. | BX8: n.d. | BY8: n.d. | BZ8: n.d. | CA8: n.d. | CB8: n.d. | CC8: n.d. | CD8: n.d. | CE8: n.d. | CF8: n.d. | CG8: n.d. | CH8: n.d. | CI8: n.d. | CJ8: n.d. | CK8: n.d. | CL8: n.d. | CM8: n.d. | CN8: n.d. | CO8: n.d. | CP8: n.d. | CQ8: n.d. | CR8: n.d. | CS8: n.d. | CT8: n.d. | CU8: n.d. | CV8: n.d. | CW8: n.d. | CX8: n.d. | CY8: n.d. | CZ8: n.d. | DA8: n.d. | DB8: n.d. | DC8: n.d. | DD8: n.d. | DE8: n.d. | DF8: n.d. | DG8: n.d. | DH8: n.d.
A9: 1990 | B9: julio | C9: 1990-julio | D9: n.d. | E9: n.d. | F9: n.d. | G9: n.d. | H9: n.d. | I9: n.d. | J9: n.d. | K9: n.d. | L9: n.d. | N9: n.d. | P9: n.d. | Q9: n.d. | R9: n.d. | S9: n.d. | T9: n.d. | U9: n.d. | V9: n.d. | W9: n.d. | X9: n.d. | Y9: n.d. | Z9: n.d. | AA9: n.d. | AC9: n.d. | AD9: n.d. | AE9: n.d. | AF9: n.d. | AG9: n.d. | AH9: n.d. | AI9: n.d. | AJ9: n.d. | AK9: n.d. | AL9: n.d. | AN9: n.d. | AO9: n.d. | AP9: n.d. | AQ9: n.d. | AR9: n.d. | AS9: n.d. | AT9: n.d. | AU9: n.d. | AV9: n.d. | AW9: n.d. | AX9: n.d. | AY9: n.d. | AZ9: n.d. | BA9: n.d. | BB9: n.d. | BC9: n.d. | BD9: n.d. | BE9: n.d. | BF9: n.d. | BG9: n.d. | BH9: n.d. | BI9: n.d. | BJ9: n.d. | BK9: n.a. | BL9: n.d. | BM9: n.d. | BN9: n.a. | BO9: n.d. | BP9: n.a. | BQ9: n.d. | BR9: n.d. | BS9: n.d. | BT9: n.d. | BU9: n.d. | BV9: n.d. | BW9: n.d. | BX9: n.d. | BY9: n.d. | BZ9: n.d. | CA9: n.d. | CB9: n.d. | CC9: n.d. | CD9: n.d. | CE9: n.d. | CF9: n.d. | CG9: n.d. | CH9: n.d. | CI9: n.d. | CJ9: n.d. | CK9: n.d. | CL9: n.d. | CM9: n.d. | CN9: n.d. | CO9: n.d. | CP9: n.d. | CQ9: n.d. | CR9: n.d. | CS9: n.d. | CT9: n.d. | CU9: n.d. | CV9: n.d. | CW9: n.d. | CX9: n.d. | CY9: n.d. | CZ9: n.d. | DA9: n.d. | DB9: n.d. | DC9: n.d. | DD9: n.d. | DE9: n.d. | DF9: n.d. | DG9: n.d. | DH9: n.d.
A10: 1990 | B10: agosto | C10: 1990-agosto | D10: n.d. | E10: n.d. | F10: n.d. | G10: n.d. | H10: n.d. | I10: n.d. | J10: n.d. | K10: n.d. | L10: n.d. | N10: n.d. | P10: n.d. | Q10: n.d. | R10: n.d. | S10: n.d. | T10: n.d. | U10: n.d. | V10: n.d. | W10: n.d. | X10: n.d. | Y10: n.d. | Z10: n.d. | AA10: n.d. | AC10: n.d. | AD10: n.d. | AE10: n.d. | AF10: n.d. | AG10: n.d. | AH10: n.d. | AI10: n.d. | AJ10: n.d. | AK10: n.d. | AL10: n.d. | AN10: n.d. | AO10: n.d. | AP10: n.d. | AQ10: n.d. | AR10: n.d. | AS10: n.d. | AT10: n.d. | AU10: n.d. | AV10: n.d. | AW10: n.d. | AX10: n.d. | AY10: n.d. | AZ10: n.d. | BA10: n.d. | BB10: n.d. | BC10: n.d. | BD10: n.d. | BE10: n.d. | BF10: n.d. | BG10: n.d. | BH10: n.d. | BI10: n.d. | BJ10: n.d. | BK10: n.a. | BL10: n.d. | BM10: n.d. | BN10: n.a. | BO10: n.d. | BP10: n.a. | BQ10: n.d. | BR10: n.d. | BS10: n.d. | BT10: n.d. | BU10: n.d. | BV10: n.d. | BW10: n.d. | BX10: n.d. | BY10: n.d. | BZ10: n.d. | CA10: n.d. | CB10: n.d. | CC10: n.d. | CD10: n.d. | CE10: n.d. | CF10: n.d. | CG10: n.d. | CH10: n.d. | CI10: n.d. | CJ10: n.d. | CK10: n.d. | CL10: n.d. | CM10: n.d. | CN10: n.d. | CO10: n.d. | CP10: n.d. | CQ10: n.d. | CR10: n.d. | CS10: n.d. | CT10: n.d. | CU10: n.d. | CV10: n.d. | CW10: n.d. | CX10: n.d. | CY10: n.d. | CZ10: n.d. | DA10: n.d. | DB10: n.d. | DC10: n.d. | DD10: n.d. | DE10: n.d. | DF10: n.d. | DG10: n.d. | DH10: n.d.
A11: 1990 | B11: septiembre | C11: 1990-septiembre | D11: n.d. | E11: n.d. | F11: n.d. | G11: n.d. | H11: n.d. | I11: n.d. | J11: n.d. | K11: n.d. | L11: n.d. | N11: n.d. | P11: n.d. | Q11: n.d. | R11: n.d. | S11: n.d. | T11: n.d. | U11: n.d. | V11: n.d. | W11: n.d. | X11: n.d. | Y11: n.d. | Z11: n.d. | AA11: n.d. | AC11: n.d. | AD11: n.d. | AE11: n.d. | AF11: n.d. | AG11: n.d. | AH11: n.d. | AI11: n.d. | AJ11: n.d. | AK11: n.d. | AL11: n.d. | AN11: n.d. | AO11: n.d. | AP11: n.d. | AQ11: n.d. | AR11: n.d. | AS11: n.d. | AT11: n.d. | AU11: n.d. | AV11: n.d. | AW11: n.d. | AX11: n.d. | AY11: n.d. | AZ11: n.d. | BA11: n.d. | BB11: n.d. | BC11: n.d. | BD11: n.d. | BE11: n.d. | BF11: n.d. | BG11: n.d. | BH11: n.d. | BI11: n.d. | BJ11: n.d. | BK11: n.a. | BL11: n.d. | BM11: n.d. | BN11: n.a. | BO11: n.d. | BP11: n.a. | BQ11: n.d. | BR11: n.d. | BS11: n.d. | BT11: n.d. | BU11: n.d. | BV11: n.d. | BW11: n.d. | BX11: n.d. | BY11: n.d. | BZ11: n.d. | CA11: n.d. | CB11: n.d. | CC11: n.d. | CD11: n.d. | CE11: n.d. | CF11: n.d. | CG11: n.d. | CH11: n.d. | CI11: n.d. | CJ11: n.d. | CK11: n.d. | CL11: n.d. | CM11: n.d. | CN11: n.d. | CO11: n.d. | CP11: n.d. | CQ11: n.d. | CR11: n.d. | CS11: n.d. | CT11: n.d. | CU11: n.d. | CV11: n.d. | CW11: n.d. | CX11: n.d. | CY11: n.d. | CZ11: n.d. | DA11: n.d. | DB11: n.d. | DC11: n.d. | DD11: n.d. | DE11: n.d. | DF11: n.d. | DG11: n.d. | DH11: n.d.
A12: 1990 | B12: octubre | C12: 1990-octubre | D12: n.d. | E12: n.d. | F12: n.d. | G12: n.d. | H12: n.d. | I12: n.d. | J12: n.d. | K12: n.d. | L12: n.d. | N12: n.d. | P12: n.d. | Q12: n.d. | R12: n.d. | S12: n.d. | T12: n.d. | U12: n.d. | V12: n.d. | W12: n.d. | X12: n.d. | Y12: n.d. | Z12: n.d. | AA12: n.d. | AC12: n.d. | AD12: n.d. | AE12: n.d. | AF12: n.d. | AG12: n.d. | AH12: n.d. | AI12: n.d. | AJ12: n.d. | AK12: n.d. | AL12: n.d. | AN12: n.d. | AO12: n.d. | AP12: n.d. | AQ12: n.d. | AR12: n.d. | AS12: n.d. | AT12: n.d. | AU12: n.d. | AV12: n.d. | AW12: n.d. | AX12: n.d. | AY12: n.d. | AZ12: n.d. | BA12: n.d. | BB12: n.d. | BC12: n.d. | BD12: n.d. | BE12: n.d. | BF12: n.d. | BG12: n.d. | BH12: n.d. | BI12: n.d. | BJ12: n.d. | BK12: n.a. | BL12: n.d. | BM12: n.d. | BN12: n.a. | BO12: n.d. | BP12: n.a. | BQ12: n.d. | BR12: n.d. | BS12: n.d. | BT12: n.d. | BU12: n.d. | BV12: n.d. | BW12: n.d. | BX12: n.d. | BY12: n.d. | BZ12: n.d. | CA12: n.d. | CB12: n.d. | CC12: n.d. | CD12: n.d. | CE12: n.d. | CF12: n.d. | CG12: n.d. | CH12: n.d. | CI12: n.d. | CJ12: n.d. | CK12: n.d. | CL12: n.d. | CM12: n.d. | CN12: n.d. | CO12: n.d. | CP12: n.d. | CQ12: n.d. | CR12: n.d. | CS12: n.d. | CT12: n.d. | CU12: n.d. | CV12: n.d. | CW12: n.d. | CX12: n.d. | CY12: n.d. | CZ12: n.d. | DA12: n.d. | DB12: n.d. | DC12: n.d. | DD12: n.d. | DE12: n.d. | DF12: n.d. | DG12: n.d. | DH12: n.d.
A13: 1990 | B13: noviembre | C13: 1990-noviembre | D13: n.d. | E13: n.d. | F13: n.d. | G13: n.d. | H13: n.d. | I13: n.d. | J13: n.d. | K13: n.d. | L13: n.d. | N13: n.d. | P13: n.d. | Q13: n.d. | R13: n.d. | S13: n.d. | T13: n.d. | U13: n.d. | V13: n.d. | W13: n.d. | X13: n.d. | Y13: n.d. | Z13: n.d. | AA13: n.d. | AC13: n.d. | AD13: n.d. | AE13: n.d. | AF13: n.d. | AG13: n.d. | AH13: n.d. | AI13: n.d. | AJ13: n.d. | AK13: n.d. | AL13: n.d. | AN13: n.d. | AO13: n.d. | AP13: n.d. | AQ13: n.d. | AR13: n.d. | AS13: n.d. | AT13: n.d. | AU13: n.d. | AV13: n.d. | AW13: n.d. | AX13: n.d. | AY13: n.d. | AZ13: n.d. | BA13: n.d. | BB13: n.d. | BC13: n.d. | BD13: n.d. | BE13: n.d. | BF13: n.d. | BG13: n.d. | BH13: n.d. | BI13: n.d. | BJ13: n.d. | BK13: n.a. | BL13: n.d. | BM13: n.d. | BN13: n.a. | BO13: n.d. | BP13: n.a. | BQ13: n.d. | BR13: n.d. | BS13: n.d. | BT13: n.d. | BU13: n.d. | BV13: n.d. | BW13: n.d. | BX13: n.d. | BY13: n.d. | BZ13: n.d. | CA13: n.d. | CB13: n.d. | CC13: n.d. | CD13: n.d. | CE13: n.d. | CF13: n.d. | CG13: n.d. | CH13: n.d. | CI13: n.d. | CJ13: n.d. | CK13: n.d. | CL13: n.d. | CM13: n.d. | CN13: n.d. | CO13: n.d. | CP13: n.d. | CQ13: n.d. | CR13: n.d. | CS13: n.d. | CT13: n.d. | CU13: n.d. | CV13: n.d. | CW13: n.d. | CX13: n.d. | CY13: n.d. | CZ13: n.d. | DA13: n.d. | DB13: n.d. | DC13: n.d. | DD13: n.d. | DE13: n.d. | DF13: n.d. | DG13: n.d. | DH13: n.d.
A14: 1990 | B14: diciembre | C14: 1990-diciembre | D14: n.d. | E14: n.d. | F14: n.d. | G14: n.d. | H14: n.d. | I14: n.d. | J14: n.d. | K14: n.d. | L14: n.d. | M14: n.d. | N14: n.d. | O14: n.d. | P14: n.d. | Q14: n.d. | R14: n.d. | S14: n.d. | T14: n.d. | U14: n.d. | V14: n.d. | W14: n.d. | X14: n.d. | Y14: n.d. | Z14: n.d. | AA14: n.d. | AC14: n.d. | AD14: n.d. | AE14: n.d. | AF14: n.d. | AG14: n.d. | AH14: n.d. | AI14: n.d. | AJ14: n.d. | AK14: n.d. | AL14: n.d. | AN14: n.d. | AO14: n.d. | AP14: n.d. | AQ14: n.d. | AR14: n.d. | AS14: n.d. | AT14: n.d. | AU14: n.d. | AV14: n.d. | AW14: n.d. | AX14: n.d. | AY14: n.d. | AZ14: n.d. | BA14: n.d. | BB14: n.d. | BC14: n.d. | BD14: n.d. | BE14: n.d. | BF14: n.d. | BG14: n.d. | BH14: n.d. | BI14: n.d. | BJ14: n.d. | BK14: n.a. | BL14: n.d. | BM14: n.d. | BN14: n.a. | BO14: n.d. | BP14: n.a. | BQ14: n.d. | BR14: n.d. | BS14: n.d. | BT14: n.d. | BU14: n.d. | BV14: n.d. | BW14: n.d. | BX14: n.d. | BY14: n.d. | BZ14: n.d. | CA14: n.d. | CB14: n.d. | CC14: n.d. | CD14: n.d. | CE14: n.d. | CF14: n.d. | CG14: n.d. | CH14: n.d. | CI14: n.d. | CJ14: n.d. | CK14: n.d. | CL14: n.d. | CM14: n.d. | CN14: n.d. | CO14: n.d. | CP14: n.d. | CQ14: n.d. | CR14: n.d. | CS14: n.d. | CT14: n.d. | CU14: n.d. | CV14: n.d. | CW14: n.d. | CX14: n.d. | CY14: n.d. | CZ14: n.d. | DA14: n.d. | DB14: n.d. | DC14: n.d. | DD14: n.d. | DE14: n.d. | DF14: n.d. | DG14: n.d. | DH14: n.d.
A15: 1991 | B15: enero | C15: 1991-enero | D15: n.d. | E15: n.d. | F15: n.d. | G15: n.d. | H15: n.d. | I15: n.d. | J15: n.d. | K15: n.d. | L15: n.d. | N15: n.d. | P15: n.d. | Q15: n.d. | R15: n.d. | S15: n.d. | T15: n.d. | U15: n.d. | V15: n.d. | W15: n.d. | X15: n.d. | Y15: n.d. | Z15: n.d. | AA15: n.d. | AC15: n.d. | AD15: n.d. | AE15: n.d. | AF15: n.d. | AG15: n.d. | AH15: n.d. | AI15: n.d. | AJ15: n.d. | AK15: n.d. | AL15: n.d. | AN15: n.d. | AO15: n.d. | AP15: n.d. | AQ15: n.d. | AR15: n.d. | AS15: n.d. | AT15: n.d. | AU15: n.d. | AV15: n.d. | AW15: n.d. | AX15: n.d. | AY15: n.d. | AZ15: n.d. | BA15: n.d. | BB15: n.d. | BC15: n.d. | BD15: n.d. | BE15: n.d. | BF15: n.d. | BG15: n.d. | BH15: n.d. | BI15: n.d. | BJ15: n.d. | BK15: n.a. | BL15: n.d. | BM15: n.d. | BN15: n.a. | BO15: n.d. | BP15: n.a. | BQ15: n.d. | BR15: n.d. | BS15: n.d. | BT15: n.d. | BU15: n.d. | BV15: n.d. | BW15: n.d. | BX15: n.d. | BY15: n.d. | BZ15: n.d. | CA15: n.d. | CB15: n.d. | CC15: n.d. | CD15: n.d. | CE15: n.d. | CF15: n.d. | CG15: n.d. | CH15: n.d. | CI15: n.d. | CJ15: n.d. | CK15: n.d. | CL15: n.d. | CM15: n.d. | CN15: n.d. | CO15: n.d. | CP15: n.d. | CQ15: n.d. | CR15: n.d. | CS15: n.d. | CT15: n.d. | CU15: n.d. | CV15: n.d. | CW15: n.d. | CX15: n.d. | CY15: n.d. | CZ15: n.d. | DA15: n.d. | DB15: n.d. | DC15: n.d. | DD15: n.d. | DE15: n.d. | DF15: n.d. | DG15: n.d. | DH15: n.d.
A16: 1991 | B16: febrero | C16: 1991-febrero | D16: n.d. | E16: n.d. | F16: n.d. | G16: n.d. | H16: n.d. | I16: n.d. | J16: n.d. | K16: n.d. | L16: n.d. | N16: n.d. | P16: n.d. | Q16: n.d. | R16: n.d. | S16: n.d. | T16: n.d. | U16: n.d. | V16: n.d. | W16: n.d. | X16: n.d. | Y16: n.d. | Z16: n.d. | AA16: n.d. | AC16: n.d. | AD16: n.d. | AE16: n.d. | AF16: n.d. | AG16: n.d. | AH16: n.d. | AI16: n.d. | AJ16: n.d. | AK16: n.d. | AL16: n.d. | AN16: n.d. | AO16: n.d. | AP16: n.d. | AQ16: n.d. | AR16: n.d. | AS16: n.d. | AT16: n.d. | AU16: n.d. | AV16: n.d. | AW16: n.d. | AX16: n.d. | AY16: n.d. | AZ16: n.d. | BA16: n.d. | BB16: n.d. | BC16: n.d. | BD16: n.d. | BE16: n.d. | BF16: n.d. | BG16: n.d. | BH16: n.d. | BI16: n.d. | BJ16: n.d. | BK16: n.a. | BL16: n.d. | BM16: n.d. | BN16: n.a. | BO16: n.d. | BP16: n.a. | BQ16: n.d. | BR16: n.d. | BS16: n.d. | BT16: n.d. | BU16: n.d. | BV16: n.d. | BW16: n.d. | BX16: n.d. | BY16: n.d. | BZ16: n.d. | CA16: n.d. | CB16: n.d. | CC16: n.d. | CD16: n.d. | CE16: n.d. | CF16: n.d. | CG16: n.d. | CH16: n.d. | CI16: n.d. | CJ16: n.d. | CK16: n.d. | CL16: n.d. | CM16: n.d. | CN16: n.d. | CO16: n.d. | CP16: n.d. | CQ16: n.d. | CR16: n.d. | CS16: n.d. | CT16: n.d. | CU16: n.d. | CV16: n.d. | CW16: n.d. | CX16: n.d. | CY16: n.d. | CZ16: n.d. | DA16: n.d. | DB16: n.d. | DC16: n.d. | DD16: n.d. | DE16: n.d. | DF16: n.d. | DG16: n.d. | DH16: n.d.
A17: 1991 | B17: marzo | C17: 1991-marzo | D17: n.d. | E17: n.d. | F17: n.d. | G17: n.d. | H17: n.d. | I17: n.d. | J17: n.d. | K17: n.d. | L17: n.d. | N17: n.d. | P17: n.d. | Q17: n.d. | R17: n.d. | S17: n.d. | T17: n.d. | U17: n.d. | V17: n.d. | W17: n.d. | X17: n.d. | Y17: n.d. | Z17: n.d. | AA17: n.d. | AC17: n.d. | AD17: n.d. | AE17: n.d. | AF17: n.d. | AG17: n.d. | AH17: n.d. | AI17: n.d. | AJ17: n.d. | AK17: n.d. | AL17: n.d. | AN17: n.d. | AO17: n.d. | AP17: n.d. | AQ17: n.d. | AR17: n.d. | AS17: n.d. | AT17: n.d. | AU17: n.d. | AV17: n.d. | AW17: n.d. | AX17: n.d. | AY17: n.d. | AZ17: n.d. | BA17: n.d. | BB17: n.d. | BC17: n.d. | BD17: n.d. | BE17: n.d. | BF17: n.d. | BG17: n.d. | BH17: n.d. | BI17: n.d. | BJ17: n.d. | BK17: n.a. | BL17: n.d. | BM17: n.d. | BN17: n.a. | BO17: n.d. | BP17: n.a. | BQ17: n.d. | BR17: n.d. | BS17: n.d. | BT17: n.d. | BU17: n.d. | BV17: n.d. | BW17: n.d. | BX17: n.d. | BY17: n.d. | BZ17: n.d. | CA17: n.d. | CB17: n.d. | CC17: n.d. | CD17: n.d. | CE17: n.d. | CF17: n.d. | CG17: n.d. | CH17: n.d. | CI17: n.d. | CJ17: n.d. | CK17: n.d. | CL17: n.d. | CM17: n.d. | CN17: n.d. | CO17: n.d. | CP17: n.d. | CQ17: n.d. | CR17: n.d. | CS17: n.d. | CT17: n.d. | CU17: n.d. | CV17: n.d. | CW17: n.d. | CX17: n.d. | CY17: n.d. | CZ17: n.d. | DA17: n.d. | DB17: n.d. | DC17: n.d. | DD17: n.d. | DE17: n.d. | DF17: n.d. | DG17: n.d. | DH17: n.d.
A18: 1991 | B18: abril | C18: 1991-abril | D18: n.d. | E18: n.d. | F18: n.d. | G18: n.d. | H18: n.d. | I18: n.d. | J18: n.d. | K18: n.d. | L18: n.d. | N18: n.d. | P18: n.d. | Q18: n.d. | R18: n.d. | S18: n.d. | T18: n.d. | U18: n.d. | V18: n.d. | W18: n.d. | X18: n.d. | Y18: n.d. | Z18: n.d. | AA18: n.d. | AC18: n.d. | AD18: n.d. | AE18: n.d. | AF18: n.d. | AG18: n.d. | AH18: n.d. | AI18: n.d. | AJ18: n.d. | AK18: n.d. | AL18: n.d. | AN18: n.d. | AO18: n.d. | AP18: n.d. | AQ18: n.d. | AR18: n.d. | AS18: n.d. | AT18: n.d. | AU18: n.d. | AV18: n.d. | AW18: n.d. | AX18: n.d. | AY18: n.d. | AZ18: n.d. | BA18: n.d. | BB18: n.d. | BC18: n.d. | BD18: n.d. | BE18: n.d. | BF18: n.d. | BG18: n.d. | BH18: n.d. | BI18: n.d. | BJ18: n.d. | BK18: n.a. | BL18: n.d. | BM18: n.d. | BN18: n.a. | BO18: n.d. | BP18: n.a. | BQ18: n.d. | BR18: n.d. | BS18: n.d. | BT18: n.d. | BU18: n.d. | BV18: n.d. | BW18: n.d. | BX18: n.d. | BY18: n.d. | BZ18: n.d. | CA18: n.d. | CB18: n.d. | CC18: n.d. | CD18: n.d. | CE18: n.d. | CF18: n.d. | CG18: n.d. | CH18: n.d. | CI18: n.d. | CJ18: n.d. | CK18: n.d. | CL18: n.d. | CM18: n.d. | CN18: n.d. | CO18: n.d. | CP18: n.d. | CQ18: n.d. | CR18: n.d. | CS18: n.d. | CT18: n.d. | CU18: n.d. | CV18: n.d. | CW18: n.d. | CX18: n.d. | CY18: n.d. | CZ18: n.d. | DA18: n.d. | DB18: n.d. | DC18: n.d. | DD18: n.d. | DE18: n.d. | DF18: n.d. | DG18: n.d. | DH18: n.d.
A19: 1991 | B19: mayo | C19: 1991-mayo | D19: n.d. | E19: n.d. | F19: n.d. | G19: n.d. | H19: n.d. | I19: n.d. | J19: n.d. | K19: n.d. | L19: n.d. | N19: n.d. | P19: n.d. | Q19: n.d. | R19: n.d. | S19: n.d. | T19: n.d. | U19: n.d. | V19: n.d. | W19: n.d. | X19: n.d. | Y19: n.d. | Z19: n.d. | AA19: n.d. | AC19: n.d. | AD19: n.d. | AE19: n.d. | AF19: n.d. | AG19: n.d. | AH19: n.d. | AI19: n.d. | AJ19: n.d. | AK19: n.d. | AL19: n.d. | AN19: n.d. | AO19: n.d. | AP19: n.d. | AQ19: n.d. | AR19: n.d. | AS19: n.d. | AT19: n.d. | AU19: n.d. | AV19: n.d. | AW19: n.d. | AX19: n.d. | AY19: n.d. | AZ19: n.d. | BA19: n.d. | BB19: n.d. | BC19: n.d. | BD19: n.d. | BE19: n.d. | BF19: n.d. | BG19: n.d. | BH19: n.d. | BI19: n.d. | BJ19: n.d. | BK19: n.a. | BL19: n.d. | BM19: n.d. | BN19: n.a. | BO19: n.d. | BP19: n.a. | BQ19: n.d. | BR19: n.d. | BS19: n.d. | BT19: n.d. | BU19: n.d. | BV19: n.d. | BW19: n.d. | BX19: n.d. | BY19: n.d. | BZ19: n.d. | CA19: n.d. | CB19: n.d. | CC19: n.d. | CD19: n.d. | CE19: n.d. | CF19: n.d. | CG19: n.d. | CH19: n.d. | CI19: n.d. | CJ19: n.d. | CK19: n.d. | CL19: n.d. | CM19: n.d. | CN19: n.d. | CO19: n.d. | CP19: n.d. | CQ19: n.d. | CR19: n.d. | CS19: n.d. | CT19: n.d. | CU19: n.d. | CV19: n.d. | CW19: n.d. | CX19: n.d. | CY19: n.d. | CZ19: n.d. | DA19: n.d. | DB19: n.d. | DC19: n.d. | DD19: n.d. | DE19: n.d. | DF19: n.d. | DG19: n.d. | DH19: n.d.
A20: 1991 | B20: junio | C20: 1991-junio | D20: n.d. | E20: n.d. | F20: n.d. | G20: n.d. | H20: n.d. | I20: n.d. | J20: n.d. | K20: n.d. | L20: n.d. | N20: n.d. | P20: n.d. | Q20: n.d. | R20: n.d. | S20: n.d. | T20: n.d. | U20: n.d. | V20: n.d. | W20: n.d. | X20: n.d. | Y20: n.d. | Z20: n.d. | AA20: n.d. | AC20: n.d. | AD20: n.d. | AE20: n.d. | AF20: n.d. | AG20: n.d. | AH20: n.d. | AI20: n.d. | AJ20: n.d. | AK20: n.d. | AL20: n.d. | AN20: n.d. | AO20: n.d. | AP20: n.d. | AQ20: n.d. | AR20: n.d. | AS20: n.d. | AT20: n.d. | AU20: n.d. | AV20: n.d. | AW20: n.d. | AX20: n.d. | AY20: n.d. | AZ20: n.d. | BA20: n.d. | BB20: n.d. | BC20: n.d. | BD20: n.d. | BE20: n.d. | BF20: n.d. | BG20: n.d. | BH20: n.d. | BI20: n.d. | BJ20: n.d. | BK20: n.a. | BL20: n.d. | BM20: n.d. | BN20: n.a. | BO20: n.d. | BP20: n.a. | BQ20: n.d. | BR20: n.d. | BS20: n.d. | BT20: n.d. | BU20: n.d. | BV20: n.d. | BW20: n.d. | BX20: n.d. | BY20: n.d. | BZ20: n.d. | CA20: n.d. | CB20: n.d. | CC20: n.d. | CD20: n.d. | CE20: n.d. | CF20: n.d. | CG20: n.d. | CH20: n.d. | CI20: n.d. | CJ20: n.d. | CK20: n.d. | CL20: n.d. | CM20: n.d. | CN20: n.d. | CO20: n.d. | CP20: n.d. | CQ20: n.d. | CR20: n.d. | CS20: n.d. | CT20: n.d. | CU20: n.d. | CV20: n.d. | CW20: n.d. | CX20: n.d. | CY20: n.d. | CZ20: n.d. | DA20: n.d. | DB20: n.d. | DC20: n.d. | DD20: n.d. | DE20: n.d. | DF20: n.d. | DG20: n.d. | DH20: n.d.
A21: 1991 | B21: julio | C21: 1991-julio | D21: n.d. | E21: n.d. | F21: n.d. | G21: n.d. | H21: n.d. | I21: n.d. | J21: n.d. | K21: n.d. | L21: n.d. | N21: n.d. | P21: n.d. | Q21: n.d. | R21: n.d. | S21: n.d. | T21: n.d. | U21: n.d. | V21: n.d. | W21: n.d. | X21: n.d. | Y21: n.d. | Z21: n.d. | AA21: n.d. | AC21: n.d. | AD21: n.d. | AE21: n.d. | AF21: n.d. | AG21: n.d. | AH21: n.d. | AI21: n.d. | AJ21: n.d. | AK21: n.d. | AL21: n.d. | AN21: n.d. | AO21: n.d. | AP21: n.d. | AQ21: n.d. | AR21: n.d. | AS21: n.d. | AT21: n.d. | AU21: n.d. | AV21: n.d. | AW21: n.d. | AX21: n.d. | AY21: n.d. | AZ21: n.d. | BA21: n.d. | BB21: n.d. | BC21: n.d. | BD21: n.d. | BE21: n.d. | BF21: n.d. | BG21: n.d. | BH21: n.d. | BI21: n.d. | BJ21: n.d. | BK21: n.a. | BL21: n.d. | BM21: n.d. | BN21: n.a. | BO21: n.d. | BP21: n.a. | BQ21: n.d. | BR21: n.d. | BS21: n.d. | BT21: n.d. | BU21: n.d. | BV21: n.d. | BW21: n.d. | BX21: n.d. | BY21: n.d. | BZ21: n.d. | CA21: n.d. | CB21: n.d. | CC21: n.d. | CD21: n.d. | CE21: n.d. | CF21: n.d. | CG21: n.d. | CH21: n.d. | CI21: n.d. | CJ21: n.d. | CK21: n.d. | CL21: n.d. | CM21: n.d. | CN21: n.d. | CO21: n.d. | CP21: n.d. | CQ21: n.d. | CR21: n.d. | CS21: n.d. | CT21: n.d. | CU21: n.d. | CV21: n.d. | CW21: n.d. | CX21: n.d. | CY21: n.d. | CZ21: n.d. | DA21: n.d. | DB21: n.d. | DC21: n.d. | DD21: n.d. | DE21: n.d. | DF21: n.d. | DG21: n.d. | DH21: n.d.
A22: 1991 | B22: agosto | C22: 1991-agosto | D22: n.d. | E22: n.d. | F22: n.d. | G22: n.d. | H22: n.d. | I22: n.d. | J22: n.d. | K22: n.d. | L22: n.d. | N22: n.d. | P22: n.d. | Q22: n.d. | R22: n.d. | S22: n.d. | T22: n.d. | U22: n.d. | V22: n.d. | W22: n.d. | X22: n.d. | Y22: n.d. | Z22: n.d. | AA22: n.d. | AC22: n.d. | AD22: n.d. | AE22: n.d. | AF22: n.d. | AG22: n.d. | AH22: n.d. | AI22: n.d. | AJ22: n.d. | AK22: n.d. | AL22: n.d. | AN22: n.d. | AO22: n.d. | AP22: n.d. | AQ22: n.d. | AR22: n.d. | AS22: n.d. | AT22: n.d. | AU22: n.d. | AV22: n.d. | AW22: n.d. | AX22: n.d. | AY22: n.d. | AZ22: n.d. | BA22: n.d. | BB22: n.d. | BC22: n.d. | BD22: n.d. | BE22: n.d. | BF22: n.d. | BG22: n.d. | BH22: n.d. | BI22: n.d. | BJ22: n.d. | BK22: n.a. | BL22: n.d. | BM22: n.d. | BN22: n.a. | BO22: n.d. | BP22: n.a. | BQ22: n.d. | BR22: n.d. | BS22: n.d. | BT22: n.d. | BU22: n.d. | BV22: n.d. | BW22: n.d. | BX22: n.d. | BY22: n.d. | BZ22: n.d. | CA22: n.d. | CB22: n.d. | CC22: n.d. | CD22: n.d. | CE22: n.d. | CF22: n.d. | CG22: n.d. | CH22: n.d. | CI22: n.d. | CJ22: n.d. | CK22: n.d. | CL22: n.d. | CM22: n.d. | CN22: n.d. | CO22: n.d. | CP22: n.d. | CQ22: n.d. | CR22: n.d. | CS22: n.d. | CT22: n.d. | CU22: n.d. | CV22: n.d. | CW22: n.d. | CX22: n.d. | CY22: n.d. | CZ22: n.d. | DA22: n.d. | DB22: n.d. | DC22: n.d. | DD22: n.d. | DE22: n.d. | DF22: n.d. | DG22: n.d. | DH22: n.d.
A23: 1991 | B23: septiembre | C23: 1991-septiembre | D23: n.d. | E23: n.d. | F23: n.d. | G23: n.d. | H23: n.d. | I23: n.d. | J23: n.d. | K23: n.d. | L23: n.d. | N23: n.d. | P23: n.d. | Q23: n.d. | R23: n.d. | S23: n.d. | T23: n.d. | U23: n.d. | V23: n.d. | W23: n.d. | X23: n.d. | Y23: n.d. | Z23: n.d. | AA23: n.d. | AC23: n.d. | AD23: n.d. | AE23: n.d. | AF23: n.d. | AG23: n.d. | AH23: n.d. | AI23: n.d. | AJ23: n.d. | AK23: n.d. | AL23: n.d. | AN23: n.d. | AO23: n.d. | AP23: n.d. | AQ23: n.d. | AR23: n.d. | AS23: n.d. | AT23: n.d. | AU23: n.d. | AV23: n.d. | AW23: n.d. | AX23: n.d. | AY23: n.d. | AZ23: n.d. | BA23: n.d. | BB23: n.d. | BC23: n.d. | BD23: n.d. | BE23: n.d. | BF23: n.d. | BG23: n.d. | BH23: n.d. | BI23: n.d. | BJ23: n.d. | BK23: n.a. | BL23: n.d. | BM23: n.d. | BN23: n.a. | BO23: n.d. | BP23: n.a. | BQ23: n.d. | BR23: n.d. | BS23: n.d. | BT23: n.d. | BU23: n.d. | BV23: n.d. | BW23: n.d. | BX23: n.d. | BY23: n.d. | BZ23: n.d. | CA23: n.d. | CB23: n.d. | CC23: n.d. | CD23: n.d. | CE23: n.d. | CF23: n.d. | CG23: n.d. | CH23: n.d. | CI23: n.d. | CJ23: n.d. | CK23: n.d. | CL23: n.d. | CM23: n.d. | CN23: n.d. | CO23: n.d. | CP23: n.d. | CQ23: n.d. | CR23: n.d. | CS23: n.d. | CT23: n.d. | CU23: n.d. | CV23: n.d. | CW23: n.d. | CX23: n.d. | CY23: n.d. | CZ23: n.d. | DA23: n.d. | DB23: n.d. | DC23: n.d. | DD23: n.d. | DE23: n.d. | DF23: n.d. | DG23: n.d. | DH23: n.d.
A24: 1991 | B24: octubre | C24: 1991-octubre | D24: n.d. | E24: n.d. | F24: n.d. | G24: n.d. | H24: n.d. | I24: n.d. | J24: n.d. | K24: n.d. | L24: n.d. | N24: n.d. | P24: n.d. | Q24: n.d. | R24: n.d. | S24: n.d. | T24: n.d. | U24: n.d. | V24: n.d. | W24: n.d. | X24: n.d. | Y24: n.d. | Z24: n.d. | AA24: n.d. | AC24: n.d. | AD24: n.d. | AE24: n.d. | AF24: n.d. | AG24: n.d. | AH24: n.d. | AI24: n.d. | AJ24: n.d. | AK24: n.d. | AL24: n.d. | AN24: n.d. | AO24: n.d. | AP24: n.d. | AQ24: n.d. | AR24: n.d. | AS24: n.d. | AT24: n.d. | AU24: n.d. | AV24: n.d. | AW24: n.d. | AX24: n.d. | AY24: n.d. | AZ24: n.d. | BA24: n.d. | BB24: n.d. | BC24: n.d. | BD24: n.d. | BE24: n.d. | BF24: n.d. | BG24: n.d. | BH24: n.d. | BI24: n.d. | BJ24: n.d. | BK24: n.a. | BL24: n.d. | BM24: n.d. | BN24: n.a. | BO24: n.d. | BP24: n.a. | BQ24: n.d. | BR24: n.d. | BS24: n.d. | BT24: n.d. | BU24: n.d. | BV24: n.d. | BW24: n.d. | BX24: n.d. | BY24: n.d. | BZ24: n.d. | CA24: n.d. | CB24: n.d. | CC24: n.d. | CD24: n.d. | CE24: n.d. | CF24: n.d. | CG24: n.d. | CH24: n.d. | CI24: n.d. | CJ24: n.d. | CK24: n.d. | CL24: n.d. | CM24: n.d. | CN24: n.d. | CO24: n.d. | CP24: n.d. | CQ24: n.d. | CR24: n.d. | CS24: n.d. | CT24: n.d. | CU24: n.d. | CV24: n.d. | CW24: n.d. | CX24: n.d. | CY24: n.d. | CZ24: n.d. | DA24: n.d. | DB24: n.d. | DC24: n.d. | DD24: n.d. | DE24: n.d. | DF24: n.d. | DG24: n.d. | DH24: n.d.
A25: 1991 | B25: noviembre | C25: 1991-noviembre | D25: n.d. | E25: n.d. | F25: n.d. | G25: n.d. | H25: n.d. | I25: n.d. | J25: n.d. | K25: n.d. | L25: n.d. | N25: n.d. | P25: n.d. | Q25: n.d. | R25: n.d. | S25: n.d. | T25: n.d. | U25: n.d. | V25: n.d. | W25: n.d. | X25: n.d. | Y25: n.d. | Z25: n.d. | AA25: n.d. | AC25: n.d. | AD25: n.d. | AE25: n.d. | AF25: n.d. | AG25: n.d. | AH25: n.d. | AI25: n.d. | AJ25: n.d. | AK25: n.d. | AL25: n.d. | AN25: n.d. | AO25: n.d. | AP25: n.d. | AQ25: n.d. | AR25: n.d. | AS25: n.d. | AT25: n.d. | AU25: n.d. | AV25: n.d. | AW25: n.d. | AX25: n.d. | AY25: n.d. | AZ25: n.d. | BA25: n.d. | BB25: n.d. | BC25: n.d. | BD25: n.d. | BE25: n.d. | BF25: n.d. | BG25: n.d. | BH25: n.d. | BI25: n.d. | BJ25: n.d. | BK25: n.a. | BL25: n.d. | BM25: n.d. | BN25: n.a. | BO25: n.d. | BP25: n.a. | BQ25: n.d. | BR25: n.d. | BS25: n.d. | BT25: n.d. | BU25: n.d. | BV25: n.d. | BW25: n.d. | BX25: n.d. | BY25: n.d. | BZ25: n.d. | CA25: n.d. | CB25: n.d. | CC25: n.d. | CD25: n.d. | CE25: n.d. | CF25: n.d. | CG25: n.d. | CH25: n.d. | CI25: n.d. | CJ25: n.d. | CK25: n.d. | CL25: n.d. | CM25: n.d. | CN25: n.d. | CO25: n.d. | CP25: n.d. | CQ25: n.d. | CR25: n.d. | CS25: n.d. | CT25: n.d. | CU25: n.d. | CV25: n.d. | CW25: n.d. | CX25: n.d. | CY25: n.d. | CZ25: n.d. | DA25: n.d. | DB25: n.d. | DC25: n.d. | DD25: n.d. | DE25: n.d. | DF25: n.d. | DG25: n.d. | DH25: n.d.
A26: 1991 | B26: diciembre | C26: 1991-diciembre | D26: n.d. | E26: n.d. | F26: n.d. | G26: n.d. | H26: n.d. | I26: n.d. | J26: n.d. | K26: n.d. | L26: n.d. | M26: n.d. | N26: n.d. | O26: n.d. | P26: n.d. | Q26: n.d. | R26: n.d. | S26: n.d. | T26: n.d. | U26: n.d. | V26: n.d. | W26: n.d. | X26: n.d. | Y26: n.d. | Z26: n.d. | AA26: n.d. | AC26: n.d. | AD26: n.d. | AE26: n.d. | AF26: n.d. | AG26: n.d. | AH26: n.d. | AI26: n.d. | AJ26: n.d. | AK26: n.d. | AL26: n.d. | AN26: n.d. | AO26: n.d. | AP26: n.d. | AQ26: n.d. | AR26: n.d. | AS26: n.d. | AT26: n.d. | AU26: n.d. | AV26: n.d. | AW26: n.d. | AX26: n.d. | AY26: n.d. | AZ26: n.d. | BA26: n.d. | BB26: n.d. | BC26: n.d. | BD26: n.d. | BE26: n.d. | BF26: n.d. | BG26: n.d. | BH26: n.d. | BI26: n.d. | BJ26: n.d. | BK26: n.a. | BL26: n.d. | BM26: n.d. | BN26: n.a. | BO26: n.d. | BP26: n.a. | BQ26: n.d. | BR26: n.d. | BS26: n.d. | BT26: n.d. | BU26: n.d. | BV26: n.d. | BW26: n.d. | BX26: n.d. | BY26: n.d. | BZ26: n.d. | CA26: n.d. | CB26: n.d. | CC26: n.d. | CD26: n.d. | CE26: n.d. | CF26: n.d. | CG26: n.d. | CH26: n.d. | CI26: n.d. | CJ26: n.d. | CK26: n.d. | CL26: n.d. | CM26: n.d. | CN26: n.d. | CO26: n.d. | CP26: n.d. | CQ26: n.d. | CR26: n.d. | CS26: n.d. | CT26: n.d. | CU26: n.d. | CV26: n.d. | CW26: n.d. | CX26: n.d. | CY26: n.d. | CZ26: n.d. | DA26: n.d. | DB26: n.d. | DC26: n.d. | DD26: n.d. | DE26: n.d. | DF26: n.d. | DG26: n.d. | DH26: n.d.
A27: 1992 | B27: enero | C27: 1992-enero | D27: n.d. | E27: n.d. | F27: n.d. | G27: n.d. | H27: n.d. | I27: n.d. | J27: n.d. | K27: n.d. | L27: n.d. | N27: n.d. | P27: n.d. | Q27: n.d. | R27: n.d. | S27: n.d. | T27: n.d. | U27: n.d. | V27: n.d. | W27: n.d. | X27: n.d. | Y27: n.d. | Z27: n.d. | AA27: n.d. | AC27: n.d. | AD27: n.d. | AE27: n.d. | AF27: n.d. | AG27: n.d. | AH27: n.d. | AI27: n.d. | AJ27: n.d. | AK27: n.d. | AL27: n.d. | AN27: n.d. | AO27: n.d. | AP27: n.d. | AQ27: n.d. | AR27: n.d. | AS27: n.d. | AT27: n.d. | AU27: n.d. | AV27: n.d. | AW27: n.d. | AX27: n.d. | AY27: n.d. | AZ27: n.d. | BA27: n.d. | BB27: n.d. | BC27: n.d. | BD27: n.d. | BE27: n.d. | BF27: n.d. | BG27: n.d. | BH27: n.d. | BI27: n.d. | BJ27: n.d. | BK27: n.a. | BL27: n.d. | BM27: n.d. | BN27: n.a. | BO27: n.d. | BP27: n.a. | BQ27: n.d. | BR27: n.d. | BS27: n.d. | BT27: n.d. | BU27: n.d. | BV27: n.d. | BW27: n.d. | BX27: n.d. | BY27: n.d. | BZ27: n.d. | CA27: n.d. | CB27: n.d. | CC27: n.d. | CD27: n.d. | CE27: n.d. | CF27: n.d. | CG27: n.d. | CH27: n.d. | CI27: n.d. | CJ27: n.d. | CK27: n.d. | CL27: n.d. | CM27: n.d. | CN27: n.d. | CO27: n.d. | CP27: n.d. | CQ27: n.d. | CR27: n.d. | CS27: n.d. | CT27: n.d. | CU27: n.d. | CV27: n.d. | CW27: n.d. | CX27: n.d. | CY27: n.d. | CZ27: n.d. | DA27: n.d. | DB27: n.d. | DC27: n.d. | DD27: n.d. | DE27: n.d. | DF27: n.d. | DG27: n.d. | DH27: n.d.
A28: 1992 | B28: febrero | C28: 1992-febrero | D28: n.d. | E28: n.d. | F28: n.d. | G28: n.d. | H28: n.d. | I28: n.d. | J28: n.d. | K28: n.d. | L28: n.d. | N28: n.d. | P28: n.d. | Q28: n.d. | R28: n.d. | S28: n.d. | T28: n.d. | U28: n.d. | V28: n.d. | W28: n.d. | X28: n.d. | Y28: n.d. | Z28: n.d. | AA28: n.d. | AC28: n.d. | AD28: n.d. | AE28: n.d. | AF28: n.d. | AG28: n.d. | AH28: n.d. | AI28: n.d. | AJ28: n.d. | AK28: n.d. | AL28: n.d. | AN28: n.d. | AO28: n.d. | AP28: n.d. | AQ28: n.d. | AR28: n.d. | AS28: n.d. | AT28: n.d. | AU28: n.d. | AV28: n.d. | AW28: n.d. | AX28: n.d. | AY28: n.d. | AZ28: n.d. | BA28: n.d. | BB28: n.d. | BC28: n.d. | BD28: n.d. | BE28: n.d. | BF28: n.d. | BG28: n.d. | BH28: n.d. | BI28: n.d. | BJ28: n.d. | BK28: n.a. | BL28: n.d. | BM28: n.d. | BN28: n.a. | BO28: n.d. | BP28: n.a. | BQ28: n.d. | BR28: n.d. | BS28: n.d. | BT28: n.d. | BU28: n.d. | BV28: n.d. | BW28: n.d. | BX28: n.d. | BY28: n.d. | BZ28: n.d. | CA28: n.d. | CB28: n.d. | CC28: n.d. | CD28: n.d. | CE28: n.d. | CF28: n.d. | CG28: n.d. | CH28: n.d. | CI28: n.d. | CJ28: n.d. | CK28: n.d. | CL28: n.d. | CM28: n.d. | CN28: n.d. | CO28: n.d. | CP28: n.d. | CQ28: n.d. | CR28: n.d. | CS28: n.d. | CT28: n.d. | CU28: n.d. | CV28: n.d. | CW28: n.d. | CX28: n.d. | CY28: n.d. | CZ28: n.d. | DA28: n.d. | DB28: n.d. | DC28: n.d. | DD28: n.d. | DE28: n.d. | DF28: n.d. | DG28: n.d. | DH28: n.d.
A29: 1992 | B29: marzo | C29: 1992-marzo | D29: n.d. | E29: n.d. | F29: n.d. | G29: n.d. | H29: n.d. | I29: n.d. | J29: n.d. | K29: n.d. | L29: n.d. | N29: n.d. | P29: n.d. | Q29: n.d. | R29: n.d. | S29: n.d. | T29: n.d. | U29: n.d. | V29: n.d. | W29: n.d. | X29: n.d. | Y29: n.d. | Z29: n.d. | AA29: n.d. | AC29: n.d. | AD29: n.d. | AE29: n.d. | AF29: n.d. | AG29: n.d. | AH29: n.d. | AI29: n.d. | AJ29: n.d. | AK29: n.d. | AL29: n.d. | AN29: n.d. | AO29: n.d. | AP29: n.d. | AQ29: n.d. | AR29: n.d. | AS29: n.d. | AT29: n.d. | AU29: n.d. | AV29: n.d. | AW29: n.d. | AX29: n.d. | AY29: n.d. | AZ29: n.d. | BA29: n.d. | BB29: n.d. | BC29: n.d. | BD29: n.d. | BE29: n.d. | BF29: n.d. | BG29: n.d. | BH29: n.d. | BI29: n.d. | BJ29: n.d. | BK29: n.a. | BL29: n.d. | BM29: n.d. | BN29: n.a. | BO29: n.d. | BP29: n.a. | BQ29: n.d. | BR29: n.d. | BS29: n.d. | BT29: n.d. | BU29: n.d. | BV29: n.d. | BW29: n.d. | BX29: n.d. | BY29: n.d. | BZ29: n.d. | CA29: n.d. | CB29: n.d. | CC29: n.d. | CD29: n.d. | CE29: n.d. | CF29: n.d. | CG29: n.d. | CH29: n.d. | CI29: n.d. | CJ29: n.d. | CK29: n.d. | CL29: n.d. | CM29: n.d. | CN29: n.d. | CO29: n.d. | CP29: n.d. | CQ29: n.d. | CR29: n.d. | CS29: n.d. | CT29: n.d. | CU29: n.d. | CV29: n.d. | CW29: n.d. | CX29: n.d. | CY29: n.d. | CZ29: n.d. | DA29: n.d. | DB29: n.d. | DC29: n.d. | DD29: n.d. | DE29: n.d. | DF29: n.d. | DG29: n.d. | DH29: n.d.
A30: 1992 | B30: abril | C30: 1992-abril | D30: n.d. | E30: n.d. | F30: n.d. | G30: n.d. | H30: n.d. | I30: n.d. | J30: n.d. | K30: n.d. | L30: n.d. | N30: n.d. | P30: n.d. | Q30: n.d. | R30: n.d. | S30: n.d. | T30: n.d. | U30: n.d. | V30: n.d. | W30: n.d. | X30: n.d. | Y30: n.d. | Z30: n.d. | AA30: n.d. | AC30: n.d. | AD30: n.d. | AE30: n.d. | AF30: n.d. | AG30: n.d. | AH30: n.d. | AI30: n.d. | AJ30: n.d. | AK30: n.d. | AL30: n.d. | AN30: n.d. | AO30: n.d. | AP30: n.d. | AQ30: n.d. | AR30: n.d. | AS30: n.d. | AT30: n.d. | AU30: n.d. | AV30: n.d. | AW30: n.d. | AX30: n.d. | AY30: n.d. | AZ30: n.d. | BA30: n.d. | BB30: n.d. | BC30: n.d. | BD30: n.d. | BE30: n.d. | BF30: n.d. | BG30: n.d. | BH30: n.d. | BI30: n.d. | BJ30: n.d. | BK30: n.a. | BL30: n.d. | BM30: n.d. | BN30: n.a. | BO30: n.d. | BP30: n.a. | BQ30: n.d. | BR30: n.d. | BS30: n.d. | BT30: n.d. | BU30: n.d. | BV30: n.d. | BW30: n.d. | BX30: n.d. | BY30: n.d. | BZ30: n.d. | CA30: n.d. | CB30: n.d. | CC30: n.d. | CD30: n.d. | CE30: n.d. | CF30: n.d. | CG30: n.d. | CH30: n.d. | CI30: n.d. | CJ30: n.d. | CK30: n.d. | CL30: n.d. | CM30: n.d. | CN30: n.d. | CO30: n.d. | CP30: n.d. | CQ30: n.d. | CR30: n.d. | CS30: n.d. | CT30: n.d. | CU30: n.d. | CV30: n.d. | CW30: n.d. | CX30: n.d. | CY30: n.d. | CZ30: n.d. | DA30: n.d. | DB30: n.d. | DC30: n.d. | DD30: n.d. | DE30: n.d. | DF30: n.d. | DG30: n.d. | DH30: n.d.
A31: 1992 | B31: mayo | C31: 1992-mayo | D31: n.d. | E31: n.d. | F31: n.d. | G31: n.d. | H31: n.d. | I31: n.d. | J31: n.d. | K31: n.d. | L31: n.d. | N31: n.d. | P31: n.d. | Q31: n.d. | R31: n.d. | S31: n.d. | T31: n.d. | U31: n.d. | V31: n.d. | W31: n.d. | X31: n.d. | Y31: n.d. | Z31: n.d. | AA31: n.d. | AC31: n.d. | AD31: n.d. | AE31: n.d. | AF31: n.d. | AG31: n.d. | AH31: n.d. | AI31: n.d. | AJ31: n.d. | AK31: n.d. | AL31: n.d. | AN31: n.d. | AO31: n.d. | AP31: n.d. | AQ31: n.d. | AR31: n.d. | AS31: n.d. | AT31: n.d. | AU31: n.d. | AV31: n.d. | AW31: n.d. | AX31: n.d. | AY31: n.d. | AZ31: n.d. | BA31: n.d. | BB31: n.d. | BC31: n.d. | BD31: n.d. | BE31: n.d. | BF31: n.d. | BG31: n.d. | BH31: n.d. | BI31: n.d. | BJ31: n.d. | BK31: n.a. | BL31: n.d. | BM31: n.d. | BN31: n.a. | BO31: n.d. | BP31: n.a. | BQ31: n.d. | BR31: n.d. | BS31: n.d. | BT31: n.d. | BU31: n.d. | BV31: n.d. | BW31: n.d. | BX31: n.d. | BY31: n.d. | BZ31: n.d. | CA31: n.d. | CB31: n.d. | CC31: n.d. | CD31: n.d. | CE31: n.d. | CF31: n.d. | CG31: n.d. | CH31: n.d. | CI31: n.d. | CJ31: n.d. | CK31: n.d. | CL31: n.d. | CM31: n.d. | CN31: n.d. | CO31: n.d. | CP31: n.d. | CQ31: n.d. | CR31: n.d. | CS31: n.d. | CT31: n.d. | CU31: n.d. | CV31: n.d. | CW31: n.d. | CX31: n.d. | CY31: n.d. | CZ31: n.d. | DA31: n.d. | DB31: n.d. | DC31: n.d. | DD31: n.d. | DE31: n.d. | DF31: n.d. | DG31: n.d. | DH31: n.d.
A32: 1992 | B32: junio | C32: 1992-junio | D32: n.d. | E32: n.d. | F32: n.d. | G32: n.d. | H32: n.d. | I32: n.d. | J32: n.d. | K32: n.d. | L32: n.d. | N32: n.d. | P32: n.d. | Q32: n.d. | R32: n.d. | S32: n.d. | T32: n.d. | U32: n.d. | V32: n.d. | W32: n.d. | X32: n.d. | Y32: n.d. | Z32: n.d. | AA32: n.d. | AC32: n.d. | AD32: n.d. | AE32: n.d. | AF32: n.d. | AG32: n.d. | AH32: n.d. | AI32: n.d. | AJ32: n.d. | AK32: n.d. | AL32: n.d. | AN32: n.d. | AO32: n.d. | AP32: n.d. | AQ32: n.d. | AR32: n.d. | AS32: n.d. | AT32: n.d. | AU32: n.d. | AV32: n.d. | AW32: n.d. | AX32: n.d. | AY32: n.d. | AZ32: n.d. | BA32: n.d. | BB32: n.d. | BC32: n.d. | BD32: n.d. | BE32: n.d. | BF32: n.d. | BG32: n.d. | BH32: n.d. | BI32: n.d. | BJ32: n.d. | BK32: n.a. | BL32: n.d. | BM32: n.d. | BN32: n.a. | BO32: n.d. | BP32: n.a. | BQ32: n.d. | BR32: n.d. | BS32: n.d. | BT32: n.d. | BU32: n.d. | BV32: n.d. | BW32: n.d. | BX32: n.d. | BY32: n.d. | BZ32: n.d. | CA32: n.d. | CB32: n.d. | CC32: n.d. | CD32: n.d. | CE32: n.d. | CF32: n.d. | CG32: n.d. | CH32: n.d. | CI32: n.d. | CJ32: n.d. | CK32: n.d. | CL32: n.d. | CM32: n.d. | CN32: n.d. | CO32: n.d. | CP32: n.d. | CQ32: n.d. | CR32: n.d. | CS32: n.d. | CT32: n.d. | CU32: n.d. | CV32: n.d. | CW32: n.d. | CX32: n.d. | CY32: n.d. | CZ32: n.d. | DA32: n.d. | DB32: n.d. | DC32: n.d. | DD32: n.d. | DE32: n.d. | DF32: n.d. | DG32: n.d. | DH32: n.d.
A33: 1992 | B33: julio | C33: 1992-julio | D33: n.d. | E33: n.d. | F33: n.d. | G33: n.d. | H33: n.d. | I33: n.d. | J33: n.d. | K33: n.d. | L33: n.d. | N33: n.d. | P33: n.d. | Q33: n.d. | R33: n.d. | S33: n.d. | T33: n.d. | U33: n.d. | V33: n.d. | W33: n.d. | X33: n.d. | Y33: n.d. | Z33: n.d. | AA33: n.d. | AC33: n.d. | AD33: n.d. | AE33: n.d. | AF33: n.d. | AG33: n.d. | AH33: n.d. | AI33: n.d. | AJ33: n.d. | AK33: n.d. | AL33: n.d. | AN33: n.d. | AO33: n.d. | AP33: n.d. | AQ33: n.d. | AR33: n.d. | AS33: n.d. | AT33: n.d. | AU33: n.d. | AV33: n.d. | AW33: n.d. | AX33: n.d. | AY33: n.d. | AZ33: n.d. | BA33: n.d. | BB33: n.d. | BC33: n.d. | BD33: n.d. | BE33: n.d. | BF33: n.d. | BG33: n.d. | BH33: n.d. | BI33: n.d. | BJ33: n.d. | BK33: n.a. | BL33: n.d. | BM33: n.d. | BN33: n.a. | BO33: n.d. | BP33: n.a. | BQ33: n.d. | BR33: n.d. | BS33: n.d. | BT33: n.d. | BU33: n.d. | BV33: n.d. | BW33: n.d. | BX33: n.d. | BY33: n.d. | BZ33: n.d. | CA33: n.d. | CB33: n.d. | CC33: n.d. | CD33: n.d. | CE33: n.d. | CF33: n.d. | CG33: n.d. | CH33: n.d. | CI33: n.d. | CJ33: n.d. | CK33: n.d. | CL33: n.d. | CM33: n.d. | CN33: n.d. | CO33: n.d. | CP33: n.d. | CQ33: n.d. | CR33: n.d. | CS33: n.d. | CT33: n.d. | CU33: n.d. | CV33: n.d. | CW33: n.d. | CX33: n.d. | CY33: n.d. | CZ33: n.d. | DA33: n.d. | DB33: n.d. | DC33: n.d. | DD33: n.d. | DE33: n.d. | DF33: n.d. | DG33: n.d. | DH33: n.d.
A34: 1992 | B34: agosto | C34: 1992-agosto | D34: n.d. | E34: n.d. | F34: n.d. | G34: n.d. | H34: n.d. | I34: n.d. | J34: n.d. | K34: n.d. | L34: n.d. | N34: n.d. | P34: n.d. | Q34: n.d. | R34: n.d. | S34: n.d. | T34: n.d. | U34: n.d. | V34: n.d. | W34: n.d. | X34: n.d. | Y34: n.d. | Z34: n.d. | AA34: n.d. | AC34: n.d. | AD34: n.d. | AE34: n.d. | AF34: n.d. | AG34: n.d. | AH34: n.d. | AI34: n.d. | AJ34: n.d. | AK34: n.d. | AL34: n.d. | AN34: n.d. | AO34: n.d. | AP34: n.d. | AQ34: n.d. | AR34: n.d. | AS34: n.d. | AT34: n.d. | AU34: n.d. | AV34: n.d. | AW34: n.d. | AX34: n.d. | AY34: n.d. | AZ34: n.d. | BA34: n.d. | BB34: n.d. | BC34: n.d. | BD34: n.d. | BE34: n.d. | BF34: n.d. | BG34: n.d. | BH34: n.d. | BI34: n.d. | BJ34: n.d. | BK34: n.a. | BL34: n.d. | BM34: n.d. | BN34: n.a. | BO34: n.d. | BP34: n.a. | BQ34: n.d. | BR34: n.d. | BS34: n.d. | BT34: n.d. | BU34: n.d. | BV34: n.d. | BW34: n.d. | BX34: n.d. | BY34: n.d. | BZ34: n.d. | CA34: n.d. | CB34: n.d. | CC34: n.d. | CD34: n.d. | CE34: n.d. | CF34: n.d. | CG34: n.d. | CH34: n.d. | CI34: n.d. | CJ34: n.d. | CK34: n.d. | CL34: n.d. | CM34: n.d. | CN34: n.d. | CO34: n.d. | CP34: n.d. | CQ34: n.d. | CR34: n.d. | CS34: n.d. | CT34: n.d. | CU34: n.d. | CV34: n.d. | CW34: n.d. | CX34: n.d. | CY34: n.d. | CZ34: n.d. | DA34: n.d. | DB34: n.d. | DC34: n.d. | DD34: n.d. | DE34: n.d. | DF34: n.d. | DG34: n.d. | DH34: n.d.
A35: 1992 | B35: septiembre | C35: 1992-septiembre | D35: n.d. | E35: n.d. | F35: n.d. | G35: n.d. | H35: n.d. | I35: n.d. | J35: n.d. | K35: n.d. | L35: n.d. | N35: n.d. | P35: n.d. | Q35: n.d. | R35: n.d. | S35: n.d. | T35: n.d. | U35: n.d. | V35: n.d. | W35: n.d. | X35: n.d. | Y35: n.d. | Z35: n.d. | AA35: n.d. | AC35: n.d. | AD35: n.d. | AE35: n.d. | AF35: n.d. | AG35: n.d. | AH35: n.d. | AI35: n.d. | AJ35: n.d. | AK35: n.d. | AL35: n.d. | AN35: n.d. | AO35: n.d. | AP35: n.d. | AQ35: n.d. | AR35: n.d. | AS35: n.d. | AT35: n.d. | AU35: n.d. | AV35: n.d. | AW35: n.d. | AX35: n.d. | AY35: n.d. | AZ35: n.d. | BA35: n.d. | BB35: n.d. | BC35: n.d. | BD35: n.d. | BE35: n.d. | BF35: n.d. | BG35: n.d. | BH35: n.d. | BI35: n.d. | BJ35: n.d. | BK35: n.a. | BL35: n.d. | BM35: n.d. | BN35: n.a. | BO35: n.d. | BP35: n.a. | BQ35: n.d. | BR35: n.d. | BS35: n.d. | BT35: n.d. | BU35: n.d. | BV35: n.d. | BW35: n.d. | BX35: n.d. | BY35: n.d. | BZ35: n.d. | CA35: n.d. | CB35: n.d. | CC35: n.d. | CD35: n.d. | CE35: n.d. | CF35: n.d. | CG35: n.d. | CH35: n.d. | CI35: n.d. | CJ35: n.d. | CK35: n.d. | CL35: n.d. | CM35: n.d. | CN35: n.d. | CO35: n.d. | CP35: n.d. | CQ35: n.d. | CR35: n.d. | CS35: n.d. | CT35: n.d. | CU35: n.d. | CV35: n.d. | CW35: n.d. | CX35: n.d. | CY35: n.d. | CZ35: n.d. | DA35: n.d. | DB35: n.d. | DC35: n.d. | DD35: n.d. | DE35: n.d. | DF35: n.d. | DG35: n.d. | DH35: n.d.
A36: 1992 | B36: octubre | C36: 1992-octubre | D36: n.d. | E36: n.d. | F36: n.d. | G36: n.d. | H36: n.d. | I36: n.d. | J36: n.d. | K36: n.d. | L36: n.d. | N36: n.d. | P36: n.d. | Q36: n.d. | R36: n.d. | S36: n.d. | T36: n.d. | U36: n.d. | V36: n.d. | W36: n.d. | X36: n.d. | Y36: n.d. | Z36: n.d. | AA36: n.d. | AC36: n.d. | AD36: n.d. | AE36: n.d. | AF36: n.d. | AG36: n.d. | AH36: n.d. | AI36: n.d. | AJ36: n.d. | AK36: n.d. | AL36: n.d. | AN36: n.d. | AO36: n.d. | AP36: n.d. | AQ36: n.d. | AR36: n.d. | AS36: n.d. | AT36: n.d. | AU36: n.d. | AV36: n.d. | AW36: n.d. | AX36: n.d. | AY36: n.d. | AZ36: n.d. | BA36: n.d. | BB36: n.d. | BC36: n.d. | BD36: n.d. | BE36: n.d. | BF36: n.d. | BG36: n.d. | BH36: n.d. | BI36: n.d. | BJ36: n.d. | BK36: n.a. | BL36: n.d. | BM36: n.d. | BN36: n.a. | BO36: n.d. | BP36: n.a. | BQ36: n.d. | BR36: n.d. | BS36: n.d. | BT36: n.d. | BU36: n.d. | BV36: n.d. | BW36: n.d. | BX36: n.d. | BY36: n.d. | BZ36: n.d. | CA36: n.d. | CB36: n.d. | CC36: n.d. | CD36: n.d. | CE36: n.d. | CF36: n.d. | CG36: n.d. | CH36: n.d. | CI36: n.d. | CJ36: n.d. | CK36: n.d. | CL36: n.d. | CM36: n.d. | CN36: n.d. | CO36: n.d. | CP36: n.d. | CQ36: n.d. | CR36: n.d. | CS36: n.d. | CT36: n.d. | CU36: n.d. | CV36: n.d. | CW36: n.d. | CX36: n.d. | CY36: n.d. | CZ36: n.d. | DA36: n.d. | DB36: n.d. | DC36: n.d. | DD36: n.d. | DE36: n.d. | DF36: n.d. | DG36: n.d. | DH36: n.d.
A37: 1992 | B37: noviembre | C37: 1992-noviembre | D37: n.d. | E37: n.d. | F37: n.d. | G37: n.d. | H37: n.d. | I37: n.d. | J37: n.d. | K37: n.d. | L37: n.d. | N37: n.d. | P37: n.d. | Q37: n.d. | R37: n.d. | S37: n.d. | T37: n.d. | U37: n.d. | V37: n.d. | W37: n.d. | X37: n.d. | Y37: n.d. | Z37: n.d. | AA37: n.d. | AC37: n.d. | AD37: n.d. | AE37: n.d. | AF37: n.d. | AG37: n.d. | AH37: n.d. | AI37: n.d. | AJ37: n.d. | AK37: n.d. | AL37: n.d. | AN37: n.d. | AO37: n.d. | AP37: n.d. | AQ37: n.d. | AR37: n.d. | AS37: n.d. | AT37: n.d. | AU37: n.d. | AV37: n.d. | AW37: n.d. | AX37: n.d. | AY37: n.d. | AZ37: n.d. | BA37: n.d. | BB37: n.d. | BC37: n.d. | BD37: n.d. | BE37: n.d. | BF37: n.d. | BG37: n.d. | BH37: n.d. | BI37: n.d. | BJ37: n.d. | BK37: n.a. | BL37: n.d. | BM37: n.d. | BN37: n.a. | BO37: n.d. | BP37: n.a. | BQ37: n.d. | BR37: n.d. | BS37: n.d. | BT37: n.d. | BU37: n.d. | BV37: n.d. | BW37: n.d. | BX37: n.d. | BY37: n.d. | BZ37: n.d. | CA37: n.d. | CB37: n.d. | CC37: n.d. | CD37: n.d. | CE37: n.d. | CF37: n.d. | CG37: n.d. | CH37: n.d. | CI37: n.d. | CJ37: n.d. | CK37: n.d. | CL37: n.d. | CM37: n.d. | CN37: n.d. | CO37: n.d. | CP37: n.d. | CQ37: n.d. | CR37: n.d. | CS37: n.d. | CT37: n.d. | CU37: n.d. | CV37: n.d. | CW37: n.d. | CX37: n.d. | CY37: n.d. | CZ37: n.d. | DA37: n.d. | DB37: n.d. | DC37: n.d. | DD37: n.d. | DE37: n.d. | DF37: n.d. | DG37: n.d. | DH37: n.d.
A38: 1992 | B38: diciembre | C38: 1992-diciembre | D38: n.d. | E38: n.d. | F38: n.d. | G38: n.d. | H38: n.d. | I38: n.d. | J38: n.d. | K38: n.d. | L38: n.d. | M38: n.d. | N38: n.d. | O38: n.d. | P38: n.d. | Q38: n.d. | R38: n.d. | S38: n.d. | T38: n.d. | U38: n.d. | V38: n.d. | W38: n.d. | X38: n.d. | Y38: n.d. | Z38: n.d. | AA38: n.d. | AC38: n.d. | AD38: n.d. | AE38: n.d. | AF38: n.d. | AG38: n.d. | AH38: n.d. | AI38: n.d. | AJ38: n.d. | AK38: n.d. | AL38: n.d. | AN38: n.d. | AO38: n.d. | AP38: n.d. | AQ38: n.d. | AR38: n.d. | AS38: n.d. | AT38: n.d. | AU38: n.d. | AV38: n.d. | AW38: n.d. | AX38: n.d. | AY38: n.d. | AZ38: n.d. | BA38: n.d. | BB38: n.d. | BC38: n.d. | BD38: n.d. | BE38: n.d. | BF38: n.d. | BG38: n.d. | BH38: n.d. | BI38: n.d. | BJ38: n.d. | BK38: n.a. | BL38: n.d. | BM38: n.d. | BN38: n.a. | BO38: n.d. | BP38: n.a. | BQ38: n.d. | BR38: n.d. | BS38: n.d. | BT38: n.d. | BU38: n.d. | BV38: n.d. | BW38: n.d. | BX38: n.d. | BY38: n.d. | BZ38: n.d. | CA38: n.d. | CB38: n.d. | CC38: n.d. | CD38: n.d. | CE38: n.d. | CF38: n.d. | CG38: n.d. | CH38: n.d. | CI38: n.d. | CJ38: n.d. | CK38: n.d. | CL38: n.d. | CM38: n.d. | CN38: n.d. | CO38: n.d. | CP38: n.d. | CQ38: n.d. | CR38: n.d. | CS38: n.d. | CT38: n.d. | CU38: n.d. | CV38: n.d. | CW38: n.d. | CX38: n.d. | CY38: n.d. | CZ38: n.d. | DA38: n.d. | DB38: n.d. | DC38: n.d. | DD38: n.d. | DE38: n.d. | DF38: n.d. | DG38: n.d. | DH38: n.d.
A39: 1993 | B39: enero | C39: 1993-enero | D39: 13.09565811 | E39: n.d. | F39: 11.67920989 | G39: n.d. | H39: n.d. | I39: n.d. | J39: n.d. | K39: n.d. | L39: n.d. | N39: n.d. | P39: n.d. | Q39: n.d. | R39: n.d. | S39: n.d. | T39: n.d. | U39: n.d. | V39: n.d. | W39: n.d. | X39: n.d. | Y39: n.d. | Z39: n.d. | AA39: n.d. | AC39: n.d. | AD39: n.d. | AE39: n.d. | AF39: n.d. | AG39: n.d. | AH39: n.d. | AI39: n.d. | AJ39: n.d. | AK39: n.d. | AL39: n.d. | AN39: n.d. | AO39: n.d. | AP39: n.d. | AQ39: n.d. | AR39: n.d. | AS39: n.d. | AT39: n.d. | AU39: n.d. | AV39: n.d. | AW39: n.d. | AX39: n.d. | AY39: n.d. | AZ39: n.d. | BA39: n.d. | BB39: n.d. | BC39: n.d. | BD39: n.d. | BE39: n.d. | BF39: n.d. | BG39: n.d. | BH39: n.d. | BI39: n.d. | BJ39: n.d. | BK39: n.a. | BL39: n.d. | BM39: n.d. | BN39: n.a. | BO39: n.d. | BP39: n.a. | BQ39: n.d. | BR39: n.d. | BS39: n.d. | BT39: n.d. | BU39: n.d. | BV39: n.d. | BW39: n.d. | BX39: n.d. | BY39: n.d. | BZ39: n.d. | CA39: n.d. | CB39: n.d. | CC39: n.d. | CD39: n.d. | CE39: n.d. | CF39: n.d. | CG39: n.d. | CH39: n.d. | CI39: n.d. | CJ39: n.d. | CK39: n.d. | CL39: n.d. | CM39: n.d. | CN39: n.d. | CO39: n.d. | CP39: n.d. | CQ39: n.d. | CR39: n.d. | CS39: n.d. | CT39: n.d. | CU39: n.d. | CV39: n.d. | CW39: n.d. | CX39: n.d. | CY39: n.d. | CZ39: n.d. | DA39: n.d. | DB39: n.d. | DC39: n.d. | DD39: n.d. | DE39: n.d. | DF39: n.d. | DG39: n.d. | DH39: n.d.
A40: 1993 | B40: febrero | C40: 1993-febrero | D40: 13.28714363 | E40: n.d. | F40: 11.81522517 | G40: n.d. | H40: n.d. | I40: n.d. | J40: n.d. | K40: n.d. | L40: n.d. | N40: n.d. | P40: n.d. | Q40: n.d. | R40: n.d. | S40: n.d. | T40: n.d. | U40: n.d. | V40: n.d. | W40: n.d. | X40: n.d. | Y40: n.d. | Z40: n.d. | AA40: n.d. | AC40: n.d. | AD40: n.d. | AE40: n.d. | AF40: n.d. | AG40: n.d. | AH40: n.d. | AI40: n.d. | AJ40: n.d. | AK40: n.d. | AL40: n.d. | AN40: n.d. | AO40: n.d. | AP40: n.d. | AQ40: n.d. | AR40: n.d. | AS40: n.d. | AT40: n.d. | AU40: n.d. | AV40: n.d. | AW40: n.d. | AX40: n.d. | AY40: n.d. | AZ40: n.d. | BA40: n.d. | BB40: n.d. | BC40: n.d. | BD40: n.d. | BE40: n.d. | BF40: n.d. | BG40: n.d. | BH40: n.d. | BI40: n.d. | BJ40: n.d. | BK40: n.a. | BL40: n.d. | BM40: n.d. | BN40: n.a. | BO40: n.d. | BP40: n.a. | BQ40: n.d. | BR40: n.d. | BS40: n.d. | BT40: n.d. | BU40: n.d. | BV40: n.d. | BW40: n.d. | BX40: n.d. | BY40: n.d. | BZ40: n.d. | CA40: n.d. | CB40: n.d. | CC40: n.d. | CD40: n.d. | CE40: n.d. | CF40: n.d. | CG40: n.d. | CH40: n.d. | CI40: n.d. | CJ40: n.d. | CK40: n.d. | CL40: n.d. | CM40: n.d. | CN40: n.d. | CO40: n.d. | CP40: n.d. | CQ40: n.d. | CR40: n.d. | CS40: n.d. | CT40: n.d. | CU40: n.d. | CV40: n.d. | CW40: n.d. | CX40: n.d. | CY40: n.d. | CZ40: n.d. | DA40: n.d. | DB40: n.d. | DC40: n.d. | DD40: n.d. | DE40: n.d. | DF40: n.d. | DG40: n.d. | DH40: n.d.
A41: 1993 | B41: marzo | C41: 1993-marzo | D41: 12.80672014 | E41: n.d. | F41: 11.37885037 | G41: n.d. | H41: n.d. | I41: n.d. | J41: n.d. | K41: n.d. | L41: n.d. | N41: n.d. | P41: n.d. | Q41: n.d. | R41: n.d. | S41: n.d. | T41: n.d. | U41: n.d. | V41: n.d. | W41: n.d. | X41: n.d. | Y41: n.d. | Z41: n.d. | AA41: n.d. | AC41: n.d. | AD41: n.d. | AE41: n.d. | AF41: n.d. | AG41: n.d. | AH41: n.d. | AI41: n.d. | AJ41: n.d. | AK41: n.d. | AL41: n.d. | AN41: n.d. | AO41: n.d. | AP41: n.d. | AQ41: n.d. | AR41: n.d. | AS41: n.d. | AT41: n.d. | AU41: n.d. | AV41: n.d. | AW41: n.d. | AX41: n.d. | AY41: n.d. | AZ41: n.d. | BA41: n.d. | BB41: n.d. | BC41: n.d. | BD41: n.d. | BE41: n.d. | BF41: n.d. | BG41: n.d. | BH41: n.d. | BI41: n.d. | BJ41: n.d. | BK41: n.a. | BL41: n.d. | BM41: n.d. | BN41: n.a. | BO41: n.d. | BP41: n.a. | BQ41: n.d. | BR41: n.d. | BS41: n.d. | BT41: n.d. | BU41: n.d. | BV41: n.d. | BW41: n.d. | BX41: n.d. | BY41: n.d. | BZ41: n.d. | CA41: n.d. | CB41: n.d. | CC41: n.d. | CD41: n.d. | CE41: n.d. | CF41: n.d. | CG41: n.d. | CH41: n.d. | CI41: n.d. | CJ41: n.d. | CK41: n.d. | CL41: n.d. | CM41: n.d. | CN41: n.d. | CO41: n.d. | CP41: n.d. | CQ41: n.d. | CR41: n.d. | CS41: n.d. | CT41: n.d. | CU41: n.d. | CV41: n.d. | CW41: n.d. | CX41: n.d. | CY41: n.d. | CZ41: n.d. | DA41: n.d. | DB41: n.d. | DC41: n.d. | DD41: n.d. | DE41: n.d. | DF41: n.d. | DG41: n.d. | DH41: n.d.
A42: 1993 | B42: abril | C42: 1993-abril | D42: 12.54956529 | E42: n.d. | F42: 11.16220707 | G42: n.d. | H42: n.d. | I42: n.d. | J42: n.d. | K42: n.d. | L42: n.d. | N42: n.d. | P42: n.d. | Q42: n.d. | R42: n.d. | S42: n.d. | T42: n.d. | U42: n.d. | V42: n.d. | W42: n.d. | X42: n.d. | Y42: n.d. | Z42: n.d. | AA42: n.d. | AC42: n.d. | AD42: n.d. | AE42: n.d. | AF42: n.d. | AG42: n.d. | AH42: n.d. | AI42: n.d. | AJ42: n.d. | AK42: n.d. | AL42: n.d. | AN42: n.d. | AO42: n.d. | AP42: n.d. | AQ42: n.d. | AR42: n.d. | AS42: n.d. | AT42: n.d. | AU42: n.d. | AV42: n.d. | AW42: n.d. | AX42: n.d. | AY42: n.d. | AZ42: n.d. | BA42: n.d. | BB42: n.d. | BC42: n.d. | BD42: n.d. | BE42: n.d. | BF42: n.d. | BG42: n.d. | BH42: n.d. | BI42: n.d. | BJ42: n.d. | BK42: n.a. | BL42: n.d. | BM42: n.d. | BN42: n.a. | BO42: n.d. | BP42: n.a. | BQ42: n.d. | BR42: n.d. | BS42: n.d. | BT42: n.d. | BU42: n.d. | BV42: n.d. | BW42: n.d. | BX42: n.d. | BY42: n.d. | BZ42: n.d. | CA42: n.d. | CB42: n.d. | CC42: n.d. | CD42: n.d. | CE42: n.d. | CF42: n.d. | CG42: n.d. | CH42: n.d. | CI42: n.d. | CJ42: n.d. | CK42: n.d. | CL42: n.d. | CM42: n.d. | CN42: n.d. | CO42: n.d. | CP42: n.d. | CQ42: n.d. | CR42: n.d. | CS42: n.d. | CT42: n.d. | CU42: n.d. | CV42: n.d. | CW42: n.d. | CX42: n.d. | CY42: n.d. | CZ42: n.d. | DA42: n.d. | DB42: n.d. | DC42: n.d. | DD42: n.d. | DE42: n.d. | DF42: n.d. | DG42: n.d. | DH42: n.d.
A43: 1993 | B43: mayo | C43: 1993-mayo | D43: 12.74093454 | E43: n.d. | F43: 11.27659031 | G43: n.d. | H43: n.d. | I43: n.d. | J43: n.d. | K43: n.d. | L43: n.d. | N43: n.d. | P43: n.d. | Q43: n.d. | R43: n.d. | S43: n.d. | T43: n.d. | U43: n.d. | V43: n.d. | W43: n.d. | X43: n.d. | Y43: n.d. | Z43: n.d. | AA43: n.d. | AC43: n.d. | AD43: n.d. | AE43: n.d. | AF43: n.d. | AG43: n.d. | AH43: n.d. | AI43: n.d. | AJ43: n.d. | AK43: n.d. | AL43: n.d. | AN43: n.d. | AO43: n.d. | AP43: n.d. | AQ43: n.d. | AR43: n.d. | AS43: n.d. | AT43: n.d. | AU43: n.d. | AV43: n.d. | AW43: n.d. | AX43: n.d. | AY43: n.d. | AZ43: n.d. | BA43: n.d. | BB43: n.d. | BC43: n.d. | BD43: n.d. | BE43: n.d. | BF43: n.d. | BG43: n.d. | BH43: n.d. | BI43: n.d. | BJ43: n.d. | BK43: n.a. | BL43: n.d. | BM43: n.d. | BN43: n.a. | BO43: n.d. | BP43: n.a. | BQ43: n.d. | BR43: n.d. | BS43: n.d. | BT43: n.d. | BU43: n.d. | BV43: n.d. | BW43: n.d. | BX43: n.d. | BY43: n.d. | BZ43: n.d. | CA43: n.d. | CB43: n.d. | CC43: n.d. | CD43: n.d. | CE43: n.d. | CF43: n.d. | CG43: n.d. | CH43: n.d. | CI43: n.d. | CJ43: n.d. | CK43: n.d. | CL43: n.d. | CM43: n.d. | CN43: n.d. | CO43: n.d. | CP43: n.d. | CQ43: n.d. | CR43: n.d. | CS43: n.d. | CT43: n.d. | CU43: n.d. | CV43: n.d. | CW43: n.d. | CX43: n.d. | CY43: n.d. | CZ43: n.d. | DA43: n.d. | DB43: n.d. | DC43: n.d. | DD43: n.d. | DE43: n.d. | DF43: n.d. | DG43: n.d. | DH43: n.d.
A44: 1993 | B44: junio | C44: 1993-junio | D44: 13.18343833 | E44: n.d. | F44: 11.64640666 | G44: n.d. | H44: n.d. | I44: n.d. | J44: n.d. | K44: n.d. | L44: n.d. | N44: n.d. | P44: n.d. | Q44: n.d. | R44: n.d. | S44: n.d. | T44: n.d. | U44: n.d. | V44: n.d. | W44: n.d. | X44: n.d. | Y44: n.d. | Z44: n.d. | AA44: n.d. | AC44: n.d. | AD44: n.d. | AE44: n.d. | AF44: n.d. | AG44: n.d. | AH44: n.d. | AI44: n.d. | AJ44: n.d. | AK44: n.d. | AL44: n.d. | AN44: n.d. | AO44: n.d. | AP44: n.d. | AQ44: n.d. | AR44: n.d. | AS44: n.d. | AT44: n.d. | AU44: n.d. | AV44: n.d. | AW44: n.d. | AX44: n.d. | AY44: n.d. | AZ44: n.d. | BA44: n.d. | BB44: n.d. | BC44: n.d. | BD44: n.d. | BE44: n.d. | BF44: n.d. | BG44: n.d. | BH44: n.d. | BI44: n.d. | BJ44: n.d. | BK44: n.a. | BL44: n.d. | BM44: n.d. | BN44: n.a. | BO44: n.d. | BP44: n.a. | BQ44: n.d. | BR44: n.d. | BS44: n.d. | BT44: n.d. | BU44: n.d. | BV44: n.d. | BW44: n.d. | BX44: n.d. | BY44: n.d. | BZ44: n.d. | CA44: n.d. | CB44: n.d. | CC44: n.d. | CD44: n.d. | CE44: n.d. | CF44: n.d. | CG44: n.d. | CH44: n.d. | CI44: n.d. | CJ44: n.d. | CK44: n.d. | CL44: n.d. | CM44: n.d. | CN44: n.d. | CO44: n.d. | CP44: n.d. | CQ44: n.d. | CR44: n.d. | CS44: n.d. | CT44: n.d. | CU44: n.d. | CV44: n.d. | CW44: n.d. | CX44: n.d. | CY44: n.d. | CZ44: n.d. | DA44: n.d. | DB44: n.d. | DC44: n.d. | DD44: n.d. | DE44: n.d. | DF44: n.d. | DG44: n.d. | DH44: n.d.
A45: 1993 | B45: julio | C45: 1993-julio | D45: 14.16953141 | E45: n.d. | F45: 12.53009095 | G45: n.d. | H45: n.d. | I45: n.d. | J45: n.d. | K45: n.d. | L45: n.d. | N45: n.d. | P45: n.d. | Q45: n.d. | R45: n.d. | S45: n.d. | T45: n.d. | U45: n.d. | V45: n.d. | W45: n.d. | X45: n.d. | Y45: n.d. | Z45: n.d. | AA45: n.d. | AC45: n.d. | AD45: n.d. | AE45: n.d. | AF45: n.d. | AG45: n.d. | AH45: n.d. | AI45: n.d. | AJ45: n.d. | AK45: n.d. | AL45: n.d. | AN45: n.d. | AO45: n.d. | AP45: n.d. | AQ45: n.d. | AR45: n.d. | AS45: n.d. | AT45: n.d. | AU45: n.d. | AV45: n.d. | AW45: n.d. | AX45: n.d. | AY45: n.d. | AZ45: n.d. | BA45: n.d. | BB45: n.d. | BC45: n.d. | BD45: n.d. | BE45: n.d. | BF45: n.d. | BG45: n.d. | BH45: n.d. | BI45: n.d. | BJ45: n.d. | BK45: n.a. | BL45: n.d. | BM45: n.d. | BN45: n.a. | BO45: n.d. | BP45: n.a. | BQ45: n.d. | BR45: n.d. | BS45: n.d. | BT45: n.d. | BU45: n.d. | BV45: n.d. | BW45: n.d. | BX45: n.d. | BY45: n.d. | BZ45: n.d. | CA45: n.d. | CB45: n.d. | CC45: n.d. | CD45: n.d. | CE45: n.d. | CF45: n.d. | CG45: n.d. | CH45: n.d. | CI45: n.d. | CJ45: n.d. | CK45: n.d. | CL45: n.d. | CM45: n.d. | CN45: n.d. | CO45: n.d. | CP45: n.d. | CQ45: n.d. | CR45: n.d. | CS45: n.d. | CT45: n.d. | CU45: n.d. | CV45: n.d. | CW45: n.d. | CX45: n.d. | CY45: n.d. | CZ45: n.d. | DA45: n.d. | DB45: n.d. | DC45: n.d. | DD45: n.d. | DE45: n.d. | DF45: n.d. | DG45: n.d. | DH45: n.d.
A46: 1993 | B46: agosto | C46: 1993-agosto | D46: 13.31651629 | E46: n.d. | F46: 11.74244295 | G46: n.d. | H46: n.d. | I46: n.d. | J46: n.d. | K46: n.d. | L46: n.d. | N46: n.d. | P46: n.d. | Q46: n.d. | R46: n.d. | S46: n.d. | T46: n.d. | U46: n.d. | V46: n.d. | W46: n.d. | X46: n.d. | Y46: n.d. | Z46: n.d. | AA46: n.d. | AC46: n.d. | AD46: n.d. | AE46: n.d. | AF46: n.d. | AG46: n.d. | AH46: n.d. | AI46: n.d. | AJ46: n.d. | AK46: n.d. | AL46: n.d. | AN46: n.d. | AO46: n.d. | AP46: n.d. | AQ46: n.d. | AR46: n.d. | AS46: n.d. | AT46: n.d. | AU46: n.d. | AV46: n.d. | AW46: n.d. | AX46: n.d. | AY46: n.d. | AZ46: n.d. | BA46: n.d. | BB46: n.d. | BC46: n.d. | BD46: n.d. | BE46: n.d. | BF46: n.d. | BG46: n.d. | BH46: n.d. | BI46: n.d. | BJ46: n.d. | BK46: n.a. | BL46: n.d. | BM46: n.d. | BN46: n.a. | BO46: n.d. | BP46: n.a. | BQ46: n.d. | BR46: n.d. | BS46: n.d. | BT46: n.d. | BU46: n.d. | BV46: n.d. | BW46: n.d. | BX46: n.d. | BY46: n.d. | BZ46: n.d. | CA46: n.d. | CB46: n.d. | CC46: n.d. | CD46: n.d. | CE46: n.d. | CF46: n.d. | CG46: n.d. | CH46: n.d. | CI46: n.d. | CJ46: n.d. | CK46: n.d. | CL46: n.d. | CM46: n.d. | CN46: n.d. | CO46: n.d. | CP46: n.d. | CQ46: n.d. | CR46: n.d. | CS46: n.d. | CT46: n.d. | CU46: n.d. | CV46: n.d. | CW46: n.d. | CX46: n.d. | CY46: n.d. | CZ46: n.d. | DA46: n.d. | DB46: n.d. | DC46: n.d. | DD46: n.d. | DE46: n.d. | DF46: n.d. | DG46: n.d. | DH46: n.d.
A47: 1993 | B47: septiembre | C47: 1993-septiembre | D47: 11.89265462 | E47: n.d. | F47: 10.54778069 | G47: n.d. | H47: n.d. | I47: n.d. | J47: n.d. | K47: n.d. | L47: n.d. | N47: n.d. | P47: n.d. | Q47: n.d. | R47: n.d. | S47: n.d. | T47: n.d. | U47: n.d. | V47: n.d. | W47: n.d. | X47: n.d. | Y47: n.d. | Z47: n.d. | AA47: n.d. | AC47: n.d. | AD47: n.d. | AE47: n.d. | AF47: n.d. | AG47: n.d. | AH47: n.d. | AI47: n.d. | AJ47: n.d. | AK47: n.d. | AL47: n.d. | AN47: n.d. | AO47: n.d. | AP47: n.d. | AQ47: n.d. | AR47: n.d. | AS47: n.d. | AT47: n.d. | AU47: n.d. | AV47: n.d. | AW47: n.d. | AX47: n.d. | AY47: n.d. | AZ47: n.d. | BA47: n.d. | BB47: n.d. | BC47: n.d. | BD47: n.d. | BE47: n.d. | BF47: n.d. | BG47: n.d. | BH47: n.d. | BI47: n.d. | BJ47: n.d. | BK47: n.a. | BL47: n.d. | BM47: n.d. | BN47: n.a. | BO47: n.d. | BP47: n.a. | BQ47: n.d. | BR47: n.d. | BS47: n.d. | BT47: n.d. | BU47: n.d. | BV47: n.d. | BW47: n.d. | BX47: n.d. | BY47: n.d. | BZ47: n.d. | CA47: n.d. | CB47: n.d. | CC47: n.d. | CD47: n.d. | CE47: n.d. | CF47: n.d. | CG47: n.d. | CH47: n.d. | CI47: n.d. | CJ47: n.d. | CK47: n.d. | CL47: n.d. | CM47: n.d. | CN47: n.d. | CO47: n.d. | CP47: n.d. | CQ47: n.d. | CR47: n.d. | CS47: n.d. | CT47: n.d. | CU47: n.d. | CV47: n.d. | CW47: n.d. | CX47: n.d. | CY47: n.d. | CZ47: n.d. | DA47: n.d. | DB47: n.d. | DC47: n.d. | DD47: n.d. | DE47: n.d. | DF47: n.d. | DG47: n.d. | DH47: n.d.
A48: 1993 | B48: octubre | C48: 1993-octubre | D48: 11.69077783 | E48: n.d. | F48: 10.53500049 | G48: n.d. | H48: n.d. | I48: n.d. | J48: n.d. | K48: n.d. | L48: n.d. | N48: n.d. | P48: n.d. | Q48: n.d. | R48: n.d. | S48: n.d. | T48: n.d. | U48: n.d. | V48: n.d. | W48: n.d. | X48: n.d. | Y48: n.d. | Z48: n.d. | AA48: n.d. | AC48: n.d. | AD48: n.d. | AE48: n.d. | AF48: n.d. | AG48: n.d. | AH48: n.d. | AI48: n.d. | AJ48: n.d. | AK48: n.d. | AL48: n.d. | AN48: n.d. | AO48: n.d. | AP48: n.d. | AQ48: n.d. | AR48: n.d. | AS48: n.d. | AT48: n.d. | AU48: n.d. | AV48: n.d. | AW48: n.d. | AX48: n.d. | AY48: n.d. | AZ48: n.d. | BA48: n.d. | BB48: n.d. | BC48: n.d. | BD48: n.d. | BE48: n.d. | BF48: n.d. | BG48: n.d. | BH48: n.d. | BI48: n.d. | BJ48: n.d. | BK48: n.a. | BL48: n.d. | BM48: n.d. | BN48: n.a. | BO48: n.d. | BP48: n.a. | BQ48: n.d. | BR48: n.d. | BS48: n.d. | BT48: n.d. | BU48: n.d. | BV48: n.d. | BW48: n.d. | BX48: n.d. | BY48: n.d. | BZ48: n.d. | CA48: n.d. | CB48: n.d. | CC48: n.d. | CD48: n.d. | CE48: n.d. | CF48: n.d. | CG48: n.d. | CH48: n.d. | CI48: n.d. | CJ48: n.d. | CK48: n.d. | CL48: n.d. | CM48: n.d. | CN48: n.d. | CO48: n.d. | CP48: n.d. | CQ48: n.d. | CR48: n.d. | CS48: n.d. | CT48: n.d. | CU48: n.d. | CV48: n.d. | CW48: n.d. | CX48: n.d. | CY48: n.d. | CZ48: n.d. | DA48: n.d. | DB48: n.d. | DC48: n.d. | DD48: n.d. | DE48: n.d. | DF48: n.d. | DG48: n.d. | DH48: n.d.
A49: 1993 | B49: noviembre | C49: 1993-noviembre | D49: 10.93249682 | E49: n.d. | F49: 9.81911527 | G49: n.d. | H49: n.d. | I49: n.d. | J49: n.d. | K49: n.d. | L49: n.d. | N49: n.d. | P49: n.d. | Q49: n.d. | R49: n.d. | S49: n.d. | T49: n.d. | U49: n.d. | V49: n.d. | W49: n.d. | X49: n.d. | Y49: n.d. | Z49: n.d. | AA49: n.d. | AC49: n.d. | AD49: n.d. | AE49: n.d. | AF49: n.d. | AG49: n.d. | AH49: n.d. | AI49: n.d. | AJ49: n.d. | AK49: n.d. | AL49: n.d. | AN49: n.d. | AO49: n.d. | AP49: n.d. | AQ49: n.d. | AR49: n.d. | AS49: n.d. | AT49: n.d. | AU49: n.d. | AV49: n.d. | AW49: n.d. | AX49: n.d. | AY49: n.d. | AZ49: n.d. | BA49: n.d. | BB49: n.d. | BC49: n.d. | BD49: n.d. | BE49: n.d. | BF49: n.d. | BG49: n.d. | BH49: n.d. | BI49: n.d. | BJ49: n.d. | BK49: n.a. | BL49: n.d. | BM49: n.d. | BN49: n.a. | BO49: n.d. | BP49: n.a. | BQ49: n.d. | BR49: n.d. | BS49: n.d. | BT49: n.d. | BU49: n.d. | BV49: n.d. | BW49: n.d. | BX49: n.d. | BY49: n.d. | BZ49: n.d. | CA49: n.d. | CB49: n.d. | CC49: n.d. | CD49: n.d. | CE49: n.d. | CF49: n.d. | CG49: n.d. | CH49: n.d. | CI49: n.d. | CJ49: n.d. | CK49: n.d. | CL49: n.d. | CM49: n.d. | CN49: n.d. | CO49: n.d. | CP49: n.d. | CQ49: n.d. | CR49: n.d. | CS49: n.d. | CT49: n.d. | CU49: n.d. | CV49: n.d. | CW49: n.d. | CX49: n.d. | CY49: n.d. | CZ49: n.d. | DA49: n.d. | DB49: n.d. | DC49: n.d. | DD49: n.d. | DE49: n.d. | DF49: n.d. | DG49: n.d. | DH49: n.d.
A50: 1993 | B50: diciembre | C50: 1993-diciembre | D50: 10.32495022 | E50: n.d. | F50: 9.247948675 | G50: n.d. | H50: n.d. | I50: n.d. | J50: n.d. | K50: n.d. | L50: n.d. | M50: n.d. | N50: n.d. | O50: n.d. | P50: n.d. | Q50: n.d. | R50: n.d. | S50: n.d. | T50: n.d. | U50: n.d. | V50: n.d. | W50: n.d. | X50: n.d. | Y50: n.d. | Z50: n.d. | AA50: n.d. | AC50: n.d. | AD50: n.d. | AE50: n.d. | AF50: n.d. | AG50: n.d. | AH50: n.d. | AI50: n.d. | AJ50: n.d. | AK50: n.d. | AL50: n.d. | AN50: n.d. | AO50: n.d. | AP50: n.d. | AQ50: n.d. | AR50: n.d. | AS50: n.d. | AT50: n.d. | AU50: n.d. | AV50: n.d. | AW50: n.d. | AX50: n.d. | AY50: n.d. | AZ50: n.d. | BA50: n.d. | BB50: n.d. | BC50: n.d. | BD50: n.d. | BE50: n.d. | BF50: n.d. | BG50: n.d. | BH50: n.d. | BI50: n.d. | BJ50: n.d. | BK50: n.a. | BL50: n.d. | BM50: n.d. | BN50: n.a. | BO50: n.d. | BP50: n.a. | BQ50: n.d. | BR50: n.d. | BS50: n.d. | BT50: n.d. | BU50: n.d. | BV50: n.d. | BW50: n.d. | BX50: n.d. | BY50: n.d. | BZ50: n.d. | CA50: n.d. | CB50: n.d. | CC50: n.d. | CD50: n.d. | CE50: n.d. | CF50: n.d. | CG50: n.d. | CH50: n.d. | CI50: n.d. | CJ50: n.d. | CK50: n.d. | CL50: n.d. | CM50: n.d. | CN50: n.d. | CO50: n.d. | CP50: n.d. | CQ50: n.d. | CR50: n.d. | CS50: n.d. | CT50: n.d. | CU50: n.d. | CV50: n.d. | CW50: n.d. | CX50: n.d. | CY50: n.d. | CZ50: n.d. | DA50: n.d. | DB50: n.d. | DC50: n.d. | DD50: n.d. | DE50: n.d. | DF50: n.d. | DG50: n.d. | DH50: n.d.
A51: 1994 | B51: enero | C51: 1994-enero | D51: 9.916263121 | E51: n.d. | F51: 8.926186236 | G51: n.d. | H51: n.d. | I51: n.d. | J51: n.d. | K51: n.d. | L51: n.d. | N51: n.d. | P51: n.d. | Q51: n.d. | R51: n.d. | S51: n.d. | T51: n.d. | U51: n.d. | V51: n.d. | W51: n.d. | X51: n.d. | Y51: n.d. | Z51: n.d. | AA51: n.d. | AC51: n.d. | AD51: n.d. | AE51: n.d. | AF51: n.d. | AG51: n.d. | AH51: n.d. | AI51: n.d. | AJ51: n.d. | AK51: n.d. | AL51: n.d. | AN51: n.d. | AO51: n.d. | AP51: n.d. | AQ51: n.d. | AR51: n.d. | AS51: n.d. | AT51: n.d. | AU51: n.d. | AV51: n.d. | AW51: n.d. | AX51: n.d. | AY51: n.d. | AZ51: n.d. | BA51: n.d. | BB51: n.d. | BC51: n.d. | BD51: n.d. | BE51: n.d. | BF51: n.d. | BG51: n.d. | BH51: n.d. | BI51: n.d. | BJ51: n.d. | BK51: n.a. | BL51: n.d. | BM51: n.d. | BN51: n.a. | BO51: n.d. | BP51: n.a. | BQ51: n.d. | BR51: n.d. | BS51: n.d. | BT51: n.d. | BU51: n.d. | BV51: n.d. | BW51: n.d. | BX51: n.d. | BY51: n.d. | BZ51: n.d. | CA51: n.d. | CB51: n.d. | CC51: n.d. | CD51: n.d. | CE51: n.d. | CF51: n.d. | CG51: n.d. | CH51: n.d. | CI51: n.d. | CJ51: n.d. | CK51: n.d. | CL51: n.d. | CM51: n.d. | CN51: n.d. | CO51: n.d. | CP51: n.d. | CQ51: n.d. | CR51: n.d. | CS51: n.d. | CT51: n.d. | CU51: n.d. | CV51: n.d. | CW51: n.d. | CX51: n.d. | CY51: n.d. | CZ51: n.d. | DA51: n.d. | DB51: n.d. | DC51: n.d. | DD51: n.d. | DE51: n.d. | DF51: n.d. | DG51: n.d. | DH51: n.d.
A52: 1994 | B52: febrero | C52: 1994-febrero | D52: 9.793913411 | E52: n.d. | F52: 8.79583985 | G52: n.d. | H52: n.d. | I52: n.d. | J52: n.d. | K52: n.d. | L52: n.d. | N52: n.d. | P52: n.d. | Q52: n.d. | R52: n.d. | S52: n.d. | T52: n.d. | U52: n.d. | V52: n.d. | W52: n.d. | X52: n.d. | Y52: n.d. | Z52: n.d. | AA52: n.d. | AC52: n.d. | AD52: n.d. | AE52: n.d. | AF52: n.d. | AG52: n.d. | AH52: n.d. | AI52: n.d. | AJ52: n.d. | AK52: n.d. | AL52: n.d. | AN52: n.d. | AO52: n.d. | AP52: n.d. | AQ52: n.d. | AR52: n.d. | AS52: n.d. | AT52: n.d. | AU52: n.d. | AV52: n.d. | AW52: n.d. | AX52: n.d. | AY52: n.d. | AZ52: n.d. | BA52: n.d. | BB52: n.d. | BC52: n.d. | BD52: n.d. | BE52: n.d. | BF52: n.d. | BG52: n.d. | BH52: n.d. | BI52: n.d. | BJ52: n.d. | BK52: n.a. | BL52: n.d. | BM52: n.d. | BN52: n.a. | BO52: n.d. | BP52: n.a. | BQ52: n.d. | BR52: n.d. | BS52: n.d. | BT52: n.d. | BU52: n.d. | BV52: n.d. | BW52: n.d. | BX52: n.d. | BY52: n.d. | BZ52: n.d. | CA52: n.d. | CB52: n.d. | CC52: n.d. | CD52: n.d. | CE52: n.d. | CF52: n.d. | CG52: n.d. | CH52: n.d. | CI52: n.d. | CJ52: n.d. | CK52: n.d. | CL52: n.d. | CM52: n.d. | CN52: n.d. | CO52: n.d. | CP52: n.d. | CQ52: n.d. | CR52: n.d. | CS52: n.d. | CT52: n.d. | CU52: n.d. | CV52: n.d. | CW52: n.d. | CX52: n.d. | CY52: n.d. | CZ52: n.d. | DA52: n.d. | DB52: n.d. | DC52: n.d. | DD52: n.d. | DE52: n.d. | DF52: n.d. | DG52: n.d. | DH52: n.d.
A53: 1994 | B53: marzo | C53: 1994-marzo | D53: 10.43506164 | E53: n.d. | F53: 9.352667802 | G53: n.d. | H53: n.d. | I53: n.d. | J53: n.d. | K53: n.d. | L53: n.d. | N53: n.d. | P53: n.d. | Q53: n.d. | R53: n.d. | S53: n.d. | T53: n.d. | U53: n.d. | V53: n.d. | W53: n.d. | X53: n.d. | Y53: n.d. | Z53: n.d. | AA53: n.d. | AC53: n.d. | AD53: n.d. | AE53: n.d. | AF53: n.d. | AG53: n.d. | AH53: n.d. | AI53: n.d. | AJ53: n.d. | AK53: n.d. | AL53: n.d. | AN53: n.d. | AO53: n.d. | AP53: n.d. | AQ53: n.d. | AR53: n.d. | AS53: n.d. | AT53: n.d. | AU53: n.d. | AV53: n.d. | AW53: n.d. | AX53: n.d. | AY53: n.d. | AZ53: n.d. | BA53: n.d. | BB53: n.d. | BC53: n.d. | BD53: n.d. | BE53: n.d. | BF53: n.d. | BG53: n.d. | BH53: n.d. | BI53: n.d. | BJ53: n.d. | BK53: n.a. | BL53: n.d. | BM53: n.d. | BN53: n.a. | BO53: n.d. | BP53: n.a. | BQ53: n.d. | BR53: n.d. | BS53: n.d. | BT53: n.d. | BU53: n.d. | BV53: n.d. | BW53: n.d. | BX53: n.d. | BY53: n.d. | BZ53: n.d. | CA53: n.d. | CB53: n.d. | CC53: n.d. | CD53: n.d. | CE53: n.d. | CF53: n.d. | CG53: n.d. | CH53: n.d. | CI53: n.d. | CJ53: n.d. | CK53: n.d. | CL53: n.d. | CM53: n.d. | CN53: n.d. | CO53: n.d. | CP53: n.d. | CQ53: n.d. | CR53: n.d. | CS53: n.d. | CT53: n.d. | CU53: n.d. | CV53: n.d. | CW53: n.d. | CX53: n.d. | CY53: n.d. | CZ53: n.d. | DA53: n.d. | DB53: n.d. | DC53: n.d. | DD53: n.d. | DE53: n.d. | DF53: n.d. | DG53: n.d. | DH53: n.d.
A54: 1994 | B54: abril | C54: 1994-abril | D54: 10.94922807 | E54: n.d. | F54: 9.82967226 | G54: n.d. | H54: n.d. | I54: n.d. | J54: n.d. | K54: n.d. | L54: n.d. | N54: n.d. | P54: n.d. | Q54: n.d. | R54: n.d. | S54: n.d. | T54: n.d. | U54: n.d. | V54: n.d. | W54: n.d. | X54: n.d. | Y54: n.d. | Z54: n.d. | AA54: n.d. | AC54: n.d. | AD54: n.d. | AE54: n.d. | AF54: n.d. | AG54: n.d. | AH54: n.d. | AI54: n.d. | AJ54: n.d. | AK54: n.d. | AL54: n.d. | AN54: n.d. | AO54: n.d. | AP54: n.d. | AQ54: n.d. | AR54: n.d. | AS54: n.d. | AT54: n.d. | AU54: n.d. | AV54: n.d. | AW54: n.d. | AX54: n.d. | AY54: n.d. | AZ54: n.d. | BA54: n.d. | BB54: n.d. | BC54: n.d. | BD54: n.d. | BE54: n.d. | BF54: n.d. | BG54: n.d. | BH54: n.d. | BI54: n.d. | BJ54: n.d. | BK54: n.a. | BL54: n.d. | BM54: n.d. | BN54: n.a. | BO54: n.d. | BP54: n.a. | BQ54: n.d. | BR54: n.d. | BS54: n.d. | BT54: n.d. | BU54: n.d. | BV54: n.d. | BW54: n.d. | BX54: n.d. | BY54: n.d. | BZ54: n.d. | CA54: n.d. | CB54: n.d. | CC54: n.d. | CD54: n.d. | CE54: n.d. | CF54: n.d. | CG54: n.d. | CH54: n.d. | CI54: n.d. | CJ54: n.d. | CK54: n.d. | CL54: n.d. | CM54: n.d. | CN54: n.d. | CO54: n.d. | CP54: n.d. | CQ54: n.d. | CR54: n.d. | CS54: n.d. | CT54: n.d. | CU54: n.d. | CV54: n.d. | CW54: n.d. | CX54: n.d. | CY54: n.d. | CZ54: n.d. | DA54: n.d. | DB54: n.d. | DC54: n.d. | DD54: n.d. | DE54: n.d. | DF54: n.d. | DG54: n.d. | DH54: n.d.
A55: 1994 | B55: mayo | C55: 1994-mayo | D55: 11.34436929 | E55: n.d. | F55: 10.20144765 | G55: n.d. | H55: n.d. | I55: n.d. | J55: n.d. | K55: n.d. | L55: n.d. | N55: n.d. | P55: n.d. | Q55: n.d. | R55: n.d. | S55: n.d. | T55: n.d. | U55: n.d. | V55: n.d. | W55: n.d. | X55: n.d. | Y55: n.d. | Z55: n.d. | AA55: n.d. | AC55: n.d. | AD55: n.d. | AE55: n.d. | AF55: n.d. | AG55: n.d. | AH55: n.d. | AI55: n.d. | AJ55: n.d. | AK55: n.d. | AL55: n.d. | AN55: n.d. | AO55: n.d. | AP55: n.d. | AQ55: n.d. | AR55: n.d. | AS55: n.d. | AT55: n.d. | AU55: n.d. | AV55: n.d. | AW55: n.d. | AX55: n.d. | AY55: n.d. | AZ55: n.d. | BA55: n.d. | BB55: n.d. | BC55: n.d. | BD55: n.d. | BE55: n.d. | BF55: n.d. | BG55: n.d. | BH55: n.d. | BI55: n.d. | BJ55: n.d. | BK55: n.a. | BL55: n.d. | BM55: n.d. | BN55: n.a. | BO55: n.d. | BP55: n.a. | BQ55: n.d. | BR55: n.d. | BS55: n.d. | BT55: n.d. | BU55: n.d. | BV55: n.d. | BW55: n.d. | BX55: n.d. | BY55: n.d. | BZ55: n.d. | CA55: n.d. | CB55: n.d. | CC55: n.d. | CD55: n.d. | CE55: n.d. | CF55: n.d. | CG55: n.d. | CH55: n.d. | CI55: n.d. | CJ55: n.d. | CK55: n.d. | CL55: n.d. | CM55: n.d. | CN55: n.d. | CO55: n.d. | CP55: n.d. | CQ55: n.d. | CR55: n.d. | CS55: n.d. | CT55: n.d. | CU55: n.d. | CV55: n.d. | CW55: n.d. | CX55: n.d. | CY55: n.d. | CZ55: n.d. | DA55: n.d. | DB55: n.d. | DC55: n.d. | DD55: n.d. | DE55: n.d. | DF55: n.d. | DG55: n.d. | DH55: n.d.
A56: 1994 | B56: junio | C56: 1994-junio | D56: 10.75249544 | E56: n.d. | F56: 9.666138315 | G56: n.d. | H56: n.d. | I56: n.d. | J56: n.d. | K56: n.d. | L56: n.d. | N56: n.d. | P56: n.d. | Q56: n.d. | R56: n.d. | S56: n.d. | T56: n.d. | U56: n.d. | V56: n.d. | W56: n.d. | X56: n.d. | Y56: n.d. | Z56: n.d. | AA56: n.d. | AC56: n.d. | AD56: n.d. | AE56: n.d. | AF56: n.d. | AG56: n.d. | AH56: n.d. | AI56: n.d. | AJ56: n.d. | AK56: n.d. | AL56: n.d. | AN56: n.d. | AO56: n.d. | AP56: n.d. | AQ56: n.d. | AR56: n.d. | AS56: n.d. | AT56: n.d. | AU56: n.d. | AV56: n.d. | AW56: n.d. | AX56: n.d. | AY56: n.d. | AZ56: n.d. | BA56: n.d. | BB56: n.d. | BC56: n.d. | BD56: n.d. | BE56: n.d. | BF56: n.d. | BG56: n.d. | BH56: n.d. | BI56: n.d. | BJ56: n.d. | BK56: n.a. | BL56: n.d. | BM56: n.d. | BN56: n.a. | BO56: n.d. | BP56: n.a. | BQ56: n.d. | BR56: n.d. | BS56: n.d. | BT56: n.d. | BU56: n.d. | BV56: n.d. | BW56: n.d. | BX56: n.d. | BY56: n.d. | BZ56: n.d. | CA56: n.d. | CB56: n.d. | CC56: n.d. | CD56: n.d. | CE56: n.d. | CF56: n.d. | CG56: n.d. | CH56: n.d. | CI56: n.d. | CJ56: n.d. | CK56: n.d. | CL56: n.d. | CM56: n.d. | CN56: n.d. | CO56: n.d. | CP56: n.d. | CQ56: n.d. | CR56: n.d. | CS56: n.d. | CT56: n.d. | CU56: n.d. | CV56: n.d. | CW56: n.d. | CX56: n.d. | CY56: n.d. | CZ56: n.d. | DA56: n.d. | DB56: n.d. | DC56: n.d. | DD56: n.d. | DE56: n.d. | DF56: n.d. | DG56: n.d. | DH56: n.d.
A57: 1994 | B57: julio | C57: 1994-julio | D57: 9.653695562 | E57: n.d. | F57: 8.681674008 | G57: n.d. | H57: n.d. | I57: n.d. | J57: n.d. | K57: n.d. | L57: n.d. | N57: n.d. | P57: n.d. | Q57: n.d. | R57: n.d. | S57: n.d. | T57: n.d. | U57: n.d. | V57: n.d. | W57: n.d. | X57: n.d. | Y57: n.d. | Z57: n.d. | AA57: n.d. | AC57: n.d. | AD57: n.d. | AE57: n.d. | AF57: n.d. | AG57: n.d. | AH57: n.d. | AI57: n.d. | AJ57: n.d. | AK57: n.d. | AL57: n.d. | AN57: n.d. | AO57: n.d. | AP57: n.d. | AQ57: n.d. | AR57: n.d. | AS57: n.d. | AT57: n.d. | AU57: n.d. | AV57: n.d. | AW57: n.d. | AX57: n.d. | AY57: n.d. | AZ57: n.d. | BA57: n.d. | BB57: n.d. | BC57: n.d. | BD57: n.d. | BE57: n.d. | BF57: n.d. | BG57: n.d. | BH57: n.d. | BI57: n.d. | BJ57: n.d. | BK57: n.a. | BL57: n.d. | BM57: n.d. | BN57: n.a. | BO57: n.d. | BP57: n.a. | BQ57: n.d. | BR57: n.d. | BS57: n.d. | BT57: n.d. | BU57: n.d. | BV57: n.d. | BW57: n.d. | BX57: n.d. | BY57: n.d. | BZ57: n.d. | CA57: n.d. | CB57: n.d. | CC57: n.d. | CD57: n.d. | CE57: n.d. | CF57: n.d. | CG57: n.d. | CH57: n.d. | CI57: n.d. | CJ57: n.d. | CK57: n.d. | CL57: n.d. | CM57: n.d. | CN57: n.d. | CO57: n.d. | CP57: n.d. | CQ57: n.d. | CR57: n.d. | CS57: n.d. | CT57: n.d. | CU57: n.d. | CV57: n.d. | CW57: n.d. | CX57: n.d. | CY57: n.d. | CZ57: n.d. | DA57: n.d. | DB57: n.d. | DC57: n.d. | DD57: n.d. | DE57: n.d. | DF57: n.d. | DG57: n.d. | DH57: n.d.
A58: 1994 | B58: agosto | C58: 1994-agosto | D58: 10.92204983 | E58: n.d. | F58: 9.848923199 | G58: n.d. | H58: n.d. | I58: n.d. | J58: n.d. | K58: n.d. | L58: n.d. | N58: n.d. | P58: n.d. | Q58: n.d. | R58: n.d. | S58: n.d. | T58: n.d. | U58: n.d. | V58: n.d. | W58: n.d. | X58: n.d. | Y58: n.d. | Z58: n.d. | AA58: n.d. | AC58: n.d. | AD58: n.d. | AE58: n.d. | AF58: n.d. | AG58: n.d. | AH58: n.d. | AI58: n.d. | AJ58: n.d. | AK58: n.d. | AL58: n.d. | AN58: n.d. | AO58: n.d. | AP58: n.d. | AQ58: n.d. | AR58: n.d. | AS58: n.d. | AT58: n.d. | AU58: n.d. | AV58: n.d. | AW58: n.d. | AX58: n.d. | AY58: n.d. | AZ58: n.d. | BA58: n.d. | BB58: n.d. | BC58: n.d. | BD58: n.d. | BE58: n.d. | BF58: n.d. | BG58: n.d. | BH58: n.d. | BI58: n.d. | BJ58: n.d. | BK58: n.a. | BL58: n.d. | BM58: n.d. | BN58: n.a. | BO58: n.d. | BP58: n.a. | BQ58: n.d. | BR58: n.d. | BS58: n.d. | BT58: n.d. | BU58: n.d. | BV58: n.d. | BW58: n.d. | BX58: n.d. | BY58: n.d. | BZ58: n.d. | CA58: n.d. | CB58: n.d. | CC58: n.d. | CD58: n.d. | CE58: n.d. | CF58: n.d. | CG58: n.d. | CH58: n.d. | CI58: n.d. | CJ58: n.d. | CK58: n.d. | CL58: n.d. | CM58: n.d. | CN58: n.d. | CO58: n.d. | CP58: n.d. | CQ58: n.d. | CR58: n.d. | CS58: n.d. | CT58: n.d. | CU58: n.d. | CV58: n.d. | CW58: n.d. | CX58: n.d. | CY58: n.d. | CZ58: n.d. | DA58: n.d. | DB58: n.d. | DC58: n.d. | DD58: n.d. | DE58: n.d. | DF58: n.d. | DG58: n.d. | DH58: n.d.
A59: 1994 | B59: septiembre | C59: 1994-septiembre | D59: 12.09279958 | E59: n.d. | F59: 10.91919162 | G59: n.d. | H59: n.d. | I59: n.d. | J59: n.d. | K59: n.d. | L59: n.d. | N59: n.d. | P59: n.d. | Q59: n.d. | R59: n.d. | S59: n.d. | T59: n.d. | U59: n.d. | V59: n.d. | W59: n.d. | X59: n.d. | Y59: n.d. | Z59: n.d. | AA59: n.d. | AC59: n.d. | AD59: n.d. | AE59: n.d. | AF59: n.d. | AG59: n.d. | AH59: n.d. | AI59: n.d. | AJ59: n.d. | AK59: n.d. | AL59: n.d. | AN59: n.d. | AO59: n.d. | AP59: n.d. | AQ59: n.d. | AR59: n.d. | AS59: n.d. | AT59: n.d. | AU59: n.d. | AV59: n.d. | AW59: n.d. | AX59: n.d. | AY59: n.d. | AZ59: n.d. | BA59: n.d. | BB59: n.d. | BC59: n.d. | BD59: n.d. | BE59: n.d. | BF59: n.d. | BG59: n.d. | BH59: n.d. | BI59: n.d. | BJ59: n.d. | BK59: n.a. | BL59: n.d. | BM59: n.d. | BN59: n.a. | BO59: n.d. | BP59: n.a. | BQ59: n.d. | BR59: n.d. | BS59: n.d. | BT59: n.d. | BU59: n.d. | BV59: n.d. | BW59: n.d. | BX59: n.d. | BY59: n.d. | BZ59: n.d. | CA59: n.d. | CB59: n.d. | CC59: n.d. | CD59: n.d. | CE59: n.d. | CF59: n.d. | CG59: n.d. | CH59: n.d. | CI59: n.d. | CJ59: n.d. | CK59: n.d. | CL59: n.d. | CM59: n.d. | CN59: n.d. | CO59: n.d. | CP59: n.d. | CQ59: n.d. | CR59: n.d. | CS59: n.d. | CT59: n.d. | CU59: n.d. | CV59: n.d. | CW59: n.d. | CX59: n.d. | CY59: n.d. | CZ59: n.d. | DA59: n.d. | DB59: n.d. | DC59: n.d. | DD59: n.d. | DE59: n.d. | DF59: n.d. | DG59: n.d. | DH59: n.d.
A60: 1994 | B60: octubre | C60: 1994-octubre | D60: 12.71052573 | E60: n.d. | F60: 11.37822427 | G60: n.d. | H60: n.d. | I60: n.d. | J60: n.d. | K60: n.d. | L60: n.d. | N60: n.d. | P60: n.d. | Q60: n.d. | R60: n.d. | S60: n.d. | T60: n.d. | U60: n.d. | V60: n.d. | W60: n.d. | X60: n.d. | Y60: n.d. | Z60: n.d. | AA60: n.d. | AC60: n.d. | AD60: n.d. | AE60: n.d. | AF60: n.d. | AG60: n.d. | AH60: n.d. | AI60: n.d. | AJ60: n.d. | AK60: n.d. | AL60: n.d. | AN60: n.d. | AO60: n.d. | AP60: n.d. | AQ60: n.d. | AR60: n.d. | AS60: n.d. | AT60: n.d. | AU60: n.d. | AV60: n.d. | AW60: n.d. | AX60: n.d. | AY60: n.d. | AZ60: n.d. | BA60: n.d. | BB60: n.d. | BC60: n.d. | BD60: n.d. | BE60: n.d. | BF60: n.d. | BG60: n.d. | BH60: n.d. | BI60: n.d. | BJ60: n.d. | BK60: n.a. | BL60: n.d. | BM60: n.d. | BN60: n.a. | BO60: n.d. | BP60: n.a. | BQ60: n.d. | BR60: n.d. | BS60: n.d. | BT60: n.d. | BU60: n.d. | BV60: n.d. | BW60: n.d. | BX60: n.d. | BY60: n.d. | BZ60: n.d. | CA60: n.d. | CB60: n.d. | CC60: n.d. | CD60: n.d. | CE60: n.d. | CF60: n.d. | CG60: n.d. | CH60: n.d. | CI60: n.d. | CJ60: n.d. | CK60: n.d. | CL60: n.d. | CM60: n.d. | CN60: n.d. | CO60: n.d. | CP60: n.d. | CQ60: n.d. | CR60: n.d. | CS60: n.d. | CT60: n.d. | CU60: n.d. | CV60: n.d. | CW60: n.d. | CX60: n.d. | CY60: n.d. | CZ60: n.d. | DA60: n.d. | DB60: n.d. | DC60: n.d. | DD60: n.d. | DE60: n.d. | DF60: n.d. | DG60: n.d. | DH60: n.d.
A61: 1994 | B61: noviembre | C61: 1994-noviembre | D61: 13.27392963 | E61: n.d. | F61: 11.92051035 | G61: n.d. | H61: n.d. | I61: n.d. | J61: n.d. | K61: n.d. | L61: n.d. | N61: n.d. | P61: n.d. | Q61: n.d. | R61: n.d. | S61: n.d. | T61: n.d. | U61: n.d. | V61: n.d. | W61: n.d. | X61: n.d. | Y61: n.d. | Z61: n.d. | AA61: n.d. | AC61: n.d. | AD61: n.d. | AE61: n.d. | AF61: n.d. | AG61: n.d. | AH61: n.d. | AI61: n.d. | AJ61: n.d. | AK61: n.d. | AL61: n.d. | AN61: n.d. | AO61: n.d. | AP61: n.d. | AQ61: n.d. | AR61: n.d. | AS61: n.d. | AT61: n.d. | AU61: n.d. | AV61: n.d. | AW61: n.d. | AX61: n.d. | AY61: n.d. | AZ61: n.d. | BA61: n.d. | BB61: n.d. | BC61: n.d. | BD61: n.d. | BE61: n.d. | BF61: n.d. | BG61: n.d. | BH61: n.d. | BI61: n.d. | BJ61: n.d. | BK61: n.a. | BL61: n.d. | BM61: n.d. | BN61: n.a. | BO61: n.d. | BP61: n.a. | BQ61: n.d. | BR61: n.d. | BS61: n.d. | BT61: n.d. | BU61: n.d. | BV61: n.d. | BW61: n.d. | BX61: n.d. | BY61: n.d. | BZ61: n.d. | CA61: n.d. | CB61: n.d. | CC61: n.d. | CD61: n.d. | CE61: n.d. | CF61: n.d. | CG61: n.d. | CH61: n.d. | CI61: n.d. | CJ61: n.d. | CK61: n.d. | CL61: n.d. | CM61: n.d. | CN61: n.d. | CO61: n.d. | CP61: n.d. | CQ61: n.d. | CR61: n.d. | CS61: n.d. | CT61: n.d. | CU61: n.d. | CV61: n.d. | CW61: n.d. | CX61: n.d. | CY61: n.d. | CZ61: n.d. | DA61: n.d. | DB61: n.d. | DC61: n.d. | DD61: n.d. | DE61: n.d. | DF61: n.d. | DG61: n.d. | DH61: n.d.
A62: 1994 | B62: diciembre | C62: 1994-diciembre | D62: 14.10869791 | E62: n.d. | F62: 12.64903245 | G62: n.d. | H62: n.d. | I62: n.d. | J62: n.d. | K62: n.d. | L62: n.d. | M62: n.d. | N62: n.d. | O62: n.d. | P62: n.d. | Q62: n.d. | R62: n.d. | S62: n.d. | T62: n.d. | U62: n.d. | V62: n.d. | W62: n.d. | X62: n.d. | Y62: n.d. | Z62: n.d. | AA62: n.d. | AC62: n.d. | AD62: n.d. | AE62: n.d. | AF62: n.d. | AG62: n.d. | AH62: n.d. | AI62: n.d. | AJ62: n.d. | AK62: n.d. | AL62: n.d. | AN62: n.d. | AO62: n.d. | AP62: n.d. | AQ62: n.d. | AR62: n.d. | AS62: n.d. | AT62: n.d. | AU62: n.d. | AV62: n.d. | AW62: n.d. | AX62: n.d. | AY62: n.d. | AZ62: n.d. | BA62: n.d. | BB62: n.d. | BC62: n.d. | BD62: n.d. | BE62: n.d. | BF62: n.d. | BG62: n.d. | BH62: n.d. | BI62: n.d. | BJ62: n.d. | BK62: n.a. | BL62: n.d. | BM62: n.d. | BN62: n.a. | BO62: n.d. | BP62: n.a. | BQ62: n.d. | BR62: n.d. | BS62: n.d. | BT62: n.d. | BU62: n.d. | BV62: n.d. | BW62: n.d. | BX62: n.d. | BY62: n.d. | BZ62: n.d. | CA62: n.d. | CB62: n.d. | CC62: n.d. | CD62: n.d. | CE62: n.d. | CF62: n.d. | CG62: n.d. | CH62: n.d. | CI62: n.d. | CJ62: n.d. | CK62: n.d. | CL62: n.d. | CM62: n.d. | CN62: n.d. | CO62: n.d. | CP62: n.d. | CQ62: n.d. | CR62: n.d. | CS62: n.d. | CT62: n.d. | CU62: n.d. | CV62: n.d. | CW62: n.d. | CX62: n.d. | CY62: n.d. | CZ62: n.d. | DA62: n.d. | DB62: n.d. | DC62: n.d. | DD62: n.d. | DE62: n.d. | DF62: n.d. | DG62: n.d. | DH62: n.d.
A63: 1995 | B63: enero | C63: 1995-enero | D63: 14.09587657 | E63: 13.01974984 | F63: 12.64972463 | G63: 13.22081285 | H63: n.d. | I63: n.d. | J63: n.d. | K63: n.d. | L63: n.d. | N63: n.d. | P63: n.d. | Q63: n.d. | R63: n.d. | S63: n.d. | T63: n.d. | U63: n.d. | V63: n.d. | W63: n.d. | X63: n.d. | Y63: n.d. | Z63: n.d. | AA63: n.d. | AC63: n.d. | AD63: n.d. | AE63: n.d. | AF63: n.d. | AG63: n.d. | AH63: n.d. | AI63: n.d. | AJ63: n.d. | AK63: n.d. | AL63: n.d. | AN63: n.d. | AO63: n.d. | AP63: n.d. | AQ63: n.d. | AR63: n.d. | AS63: n.d. | AT63: n.d. | AU63: n.d. | AV63: n.d. | AW63: n.d. | AX63: n.d. | AY63: n.d. | AZ63: n.d. | BA63: n.d. | BB63: n.d. | BC63: n.d. | BD63: n.d. | BE63: n.d. | BF63: n.d. | BG63: n.d. | BH63: n.d. | BI63: n.d. | BJ63: n.d. | BK63: n.a. | BL63: n.d. | BM63: n.d. | BN63: n.a. | BO63: n.d. | BP63: n.a. | BQ63: n.d. | BR63: n.d. | BS63: n.d. | BT63: n.d. | BU63: n.d. | BV63: n.d. | BW63: n.d. | BX63: n.d. | BY63: n.d. | BZ63: n.d. | CA63: n.d. | CB63: n.d. | CC63: n.d. | CD63: n.d. | CE63: n.d. | CF63: n.d. | CG63: n.d. | CH63: n.d. | CI63: n.d. | CJ63: n.d. | CK63: n.d. | CL63: n.d. | CM63: n.d. | CN63: n.d. | CO63: n.d. | CP63: n.d. | CQ63: n.d. | CR63: n.d. | CS63: n.d. | CT63: n.d. | CU63: n.d. | CV63: n.d. | CW63: n.d. | CX63: n.d. | CY63: n.d. | CZ63: n.d. | DA63: n.d. | DB63: n.d. | DC63: n.d. | DD63: n.d. | DE63: n.d. | DF63: n.d. | DG63: n.d. | DH63: n.d.
A64: 1995 | B64: febrero | C64: 1995-febrero | D64: 14.53732565 | E64: 12.96795891 | F64: 13.05339236 | G64: 13.07507744 | H64: n.d. | I64: n.d. | J64: n.d. | K64: n.d. | L64: n.d. | N64: n.d. | P64: n.d. | Q64: n.d. | R64: n.d. | S64: n.d. | T64: n.d. | U64: n.d. | V64: n.d. | W64: n.d. | X64: n.d. | Y64: n.d. | Z64: n.d. | AA64: n.d. | AC64: n.d. | AD64: n.d. | AE64: n.d. | AF64: n.d. | AG64: n.d. | AH64: n.d. | AI64: n.d. | AJ64: n.d. | AK64: n.d. | AL64: n.d. | AN64: n.d. | AO64: n.d. | AP64: n.d. | AQ64: n.d. | AR64: n.d. | AS64: n.d. | AT64: n.d. | AU64: n.d. | AV64: n.d. | AW64: n.d. | AX64: n.d. | AY64: n.d. | AZ64: n.d. | BA64: n.d. | BB64: n.d. | BC64: n.d. | BD64: n.d. | BE64: n.d. | BF64: n.d. | BG64: n.d. | BH64: n.d. | BI64: n.d. | BJ64: n.d. | BK64: n.a. | BL64: n.d. | BM64: n.d. | BN64: n.a. | BO64: n.d. | BP64: n.a. | BQ64: n.d. | BR64: n.d. | BS64: n.d. | BT64: n.d. | BU64: n.d. | BV64: n.d. | BW64: n.d. | BX64: n.d. | BY64: n.d. | BZ64: n.d. | CA64: n.d. | CB64: n.d. | CC64: n.d. | CD64: n.d. | CE64: n.d. | CF64: n.d. | CG64: n.d. | CH64: n.d. | CI64: n.d. | CJ64: n.d. | CK64: n.d. | CL64: n.d. | CM64: n.d. | CN64: n.d. | CO64: n.d. | CP64: n.d. | CQ64: n.d. | CR64: n.d. | CS64: n.d. | CT64: n.d. | CU64: n.d. | CV64: n.d. | CW64: n.d. | CX64: n.d. | CY64: n.d. | CZ64: n.d. | DA64: n.d. | DB64: n.d. | DC64: n.d. | DD64: n.d. | DE64: n.d. | DF64: n.d. | DG64: n.d. | DH64: n.d.
A65: 1995 | B65: marzo | C65: 1995-marzo | D65: 14.43054446 | E65: 12.91457503 | F65: 12.97881173 | G65: 12.93131966 | H65: n.d. | I65: n.d. | J65: n.d. | K65: n.d. | L65: n.d. | N65: n.d. | P65: n.d. | Q65: n.d. | R65: n.d. | S65: n.d. | T65: n.d. | U65: n.d. | V65: n.d. | W65: n.d. | X65: n.d. | Y65: n.d. | Z65: n.d. | AA65: n.d. | AC65: n.d. | AD65: n.d. | AE65: n.d. | AF65: n.d. | AG65: n.d. | AH65: n.d. | AI65: n.d. | AJ65: n.d. | AK65: n.d. | AL65: n.d. | AN65: n.d. | AO65: n.d. | AP65: n.d. | AQ65: n.d. | AR65: n.d. | AS65: n.d. | AT65: n.d. | AU65: n.d. | AV65: n.d. | AW65: n.d. | AX65: n.d. | AY65: n.d. | AZ65: n.d. | BA65: n.d. | BB65: n.d. | BC65: n.d. | BD65: n.d. | BE65: n.d. | BF65: n.d. | BG65: n.d. | BH65: n.d. | BI65: n.d. | BJ65: n.d. | BK65: n.a. | BL65: n.d. | BM65: n.d. | BN65: n.a. | BO65: n.d. | BP65: n.a. | BQ65: n.d. | BR65: n.d. | BS65: n.d. | BT65: n.d. | BU65: n.d. | BV65: n.d. | BW65: n.d. | BX65: n.d. | BY65: n.d. | BZ65: n.d. | CA65: n.d. | CB65: n.d. | CC65: n.d. | CD65: n.d. | CE65: n.d. | CF65: n.d. | CG65: n.d. | CH65: n.d. | CI65: n.d. | CJ65: n.d. | CK65: n.d. | CL65: n.d. | CM65: n.d. | CN65: n.d. | CO65: n.d. | CP65: n.d. | CQ65: n.d. | CR65: n.d. | CS65: n.d. | CT65: n.d. | CU65: n.d. | CV65: n.d. | CW65: n.d. | CX65: n.d. | CY65: n.d. | CZ65: n.d. | DA65: n.d. | DB65: n.d. | DC65: n.d. | DD65: n.d. | DE65: n.d. | DF65: n.d. | DG65: n.d. | DH65: n.d.
A66: 1995 | B66: abril | C66: 1995-abril | D66: 13.78207251 | E66: 12.8587636 | F66: 12.38011368 | G66: 12.78921351 | H66: n.d. | I66: n.d. | J66: n.d. | K66: n.d. | L66: n.d. | N66: n.d. | P66: n.d. | Q66: n.d. | R66: n.d. | S66: n.d. | T66: n.d. | U66: n.d. | V66: n.d. | W66: n.d. | X66: n.d. | Y66: n.d. | Z66: n.d. | AA66: n.d. | AC66: n.d. | AD66: n.d. | AE66: n.d. | AF66: n.d. | AG66: n.d. | AH66: n.d. | AI66: n.d. | AJ66: n.d. | AK66: n.d. | AL66: n.d. | AN66: n.d. | AO66: n.d. | AP66: n.d. | AQ66: n.d. | AR66: n.d. | AS66: n.d. | AT66: n.d. | AU66: n.d. | AV66: n.d. | AW66: n.d. | AX66: n.d. | AY66: n.d. | AZ66: n.d. | BA66: n.d. | BB66: n.d. | BC66: n.d. | BD66: n.d. | BE66: n.d. | BF66: n.d. | BG66: n.d. | BH66: n.d. | BI66: n.d. | BJ66: n.d. | BK66: n.a. | BL66: n.d. | BM66: n.d. | BN66: n.a. | BO66: n.d. | BP66: n.a. | BQ66: n.d. | BR66: n.d. | BS66: n.d. | BT66: n.d. | BU66: n.d. | BV66: n.d. | BW66: n.d. | BX66: n.d. | BY66: n.d. | BZ66: n.d. | CA66: n.d. | CB66: n.d. | CC66: n.d. | CD66: n.d. | CE66: n.d. | CF66: n.d. | CG66: n.d. | CH66: n.d. | CI66: n.d. | CJ66: n.d. | CK66: n.d. | CL66: n.d. | CM66: n.d. | CN66: n.d. | CO66: n.d. | CP66: n.d. | CQ66: n.d. | CR66: n.d. | CS66: n.d. | CT66: n.d. | CU66: n.d. | CV66: n.d. | CW66: n.d. | CX66: n.d. | CY66: n.d. | CZ66: n.d. | DA66: n.d. | DB66: n.d. | DC66: n.d. | DD66: n.d. | DE66: n.d. | DF66: n.d. | DG66: n.d. | DH66: n.d.
A67: 1995 | B67: mayo | C67: 1995-mayo | D67: 13.63563667 | E67: 12.79981518 | F67: 12.25973445 | G67: 12.64845129 | H67: n.d. | I67: n.d. | J67: n.d. | K67: n.d. | L67: n.d. | N67: n.d. | P67: n.d. | Q67: n.d. | R67: n.d. | S67: n.d. | T67: n.d. | U67: n.d. | V67: n.d. | W67: n.d. | X67: n.d. | Y67: n.d. | Z67: n.d. | AA67: n.d. | AC67: n.d. | AD67: n.d. | AE67: n.d. | AF67: n.d. | AG67: n.d. | AH67: n.d. | AI67: n.d. | AJ67: n.d. | AK67: n.d. | AL67: n.d. | AN67: n.d. | AO67: n.d. | AP67: n.d. | AQ67: n.d. | AR67: n.d. | AS67: n.d. | AT67: n.d. | AU67: n.d. | AV67: n.d. | AW67: n.d. | AX67: n.d. | AY67: n.d. | AZ67: n.d. | BA67: n.d. | BB67: n.d. | BC67: n.d. | BD67: n.d. | BE67: n.d. | BF67: n.d. | BG67: n.d. | BH67: n.d. | BI67: n.d. | BJ67: n.d. | BK67: n.a. | BL67: n.d. | BM67: n.d. | BN67: n.a. | BO67: n.d. | BP67: n.a. | BQ67: n.d. | BR67: n.d. | BS67: n.d. | BT67: n.d. | BU67: n.d. | BV67: n.d. | BW67: n.d. | BX67: n.d. | BY67: n.d. | BZ67: n.d. | CA67: n.d. | CB67: n.d. | CC67: n.d. | CD67: n.d. | CE67: n.d. | CF67: n.d. | CG67: n.d. | CH67: n.d. | CI67: n.d. | CJ67: n.d. | CK67: n.d. | CL67: n.d. | CM67: n.d. | CN67: n.d. | CO67: =IF(OR(CM67="n.d.",CM67="",CN67="",CN67="n.d."),"n.d.",(CM67/CN67)*100) -> n.d. | CP67: n.d. | CQ67: n.d. | CR67: n.d. | CS67: n.d. | CT67: n.d. | CU67: n.d. | CV67: n.d. | CW67: n.d. | CX67: n.d. | CY67: n.d. | CZ67: n.d. | DA67: n.d. | DB67: n.d. | DC67: n.d. | DD67: n.d. | DE67: n.d. | DF67: n.d. | DG67: n.d. | DH67: n.d.
A68: 1995 | B68: junio | C68: =A68&"-"&B68 -> 1995-junio | D68: 13.69061074 | E68: 12.7371142 | F68: 12.3292294 | G68: 12.5087263 | H68: n.d. | I68: n.d. | J68: n.d. | K68: n.d. | L68: n.d. | M68: =IF(B68<>"diciembre","",L68) ->  | N68: n.d. | O68: =IF(B68<>"diciembre","",N68) ->  | P68: n.d. | Q68: n.d. | R68: n.d. | S68: n.d. | T68: n.d. | U68: n.d. | V68: n.d. | W68: n.d. | X68: n.d. | Y68: n.d. | Z68: n.d. | AA68: n.d. | AC68: n.d. | AD68: n.d. | AE68: n.d. | AF68: n.d. | AG68: n.d. | AH68: n.d. | AI68: n.d. | AJ68: n.d. | AK68: n.d. | AL68: n.d. | AN68: n.d. | AO68: n.d. | AP68: n.d. | AQ68: n.d. | AR68: n.d. | AS68: n.d. | AT68: n.d. | AU68: n.d. | AV68: n.d. | AW68: n.d. | AX68: n.d. | AY68: n.d. | AZ68: n.d. | BA68: n.d. | BB68: n.d. | BC68: n.d. | BD68: n.d. | BE68: n.d. | BF68: n.d. | BG68: n.d. | BH68: n.d. | BI68: n.d. | BJ68: n.d. | BK68: n.a. | BL68: n.d. | BM68: n.d. | BN68: n.a. | BO68: n.d. | BP68: n.a. | BQ68: n.d. | BR68: n.d. | BS68: n.d. | BT68: n.d. | BU68: n.d. | BV68: n.d. | BW68: n.d. | BX68: n.d. | BY68: n.d. | BZ68: n.d. | CA68: n.d. | CB68: n.d. | CC68: n.d. | CD68: n.d. | CE68: n.d. | CF68: n.d. | CG68: n.d. | CH68: n.d. | CI68: n.d. | CJ68: n.d. | CK68: n.d. | CL68: n.d. | CM68: n.d. | CN68: n.d. | CO68: n.d. | CP68: n.d. | CQ68: n.d. | CR68: =IF(OR(CP68="n.d.",CP68="",CQ68="",CQ68="n.d."),"n.d.",(CP68/CQ68)*100) -> n.d. | CS68: n.d. | CT68: n.d. | CU68: n.d. | CV68: n.d. | CW68: n.d. | CX68: n.d. | CY68: n.d. | CZ68: n.d. | DA68: n.d. | DB68: n.d. | DC68: n.d. | DD68: n.d. | DE68: n.d. | DF68: n.d. | DG68: n.d. | DH68: n.d.
A69: 1995 | B69: julio | C69: 1995-julio | D69: 14.12576254 | E69: 12.67012495 | F69: 12.71674478 | G69: 12.36973006 | H69: n.d. | I69: n.d. | J69: n.d. | K69: n.d. | L69: n.d. | N69: n.d. | P69: n.d. | Q69: n.d. | R69: n.d. | S69: n.d. | T69: n.d. | U69: n.d. | V69: n.d. | W69: n.d. | X69: n.d. | Y69: n.d. | Z69: n.d. | AA69: n.d. | AC69: n.d. | AD69: n.d. | AE69: n.d. | AF69: n.d. | AG69: n.d. | AH69: n.d. | AI69: n.d. | AJ69: n.d. | AK69: n.d. | AL69: n.d. | AN69: n.d. | AO69: n.d. | AP69: n.d. | AQ69: n.d. | AR69: n.d. | AS69: n.d. | AT69: n.d. | AU69: n.d. | AV69: n.d. | AW69: n.d. | AX69: n.d. | AY69: n.d. | AZ69: n.d. | BA69: n.d. | BB69: n.d. | BC69: n.d. | BD69: n.d. | BE69: n.d. | BF69: n.d. | BG69: n.d. | BH69: n.d. | BI69: n.d. | BJ69: n.d. | BK69: n.a. | BL69: n.d. | BM69: n.d. | BN69: n.a. | BO69: n.d. | BP69: n.a. | BQ69: n.d. | BR69: n.d. | BS69: n.d. | BT69: n.d. | BU69: n.d. | BV69: n.d. | BW69: n.d. | BX69: n.d. | BY69: n.d. | BZ69: n.d. | CA69: n.d. | CB69: n.d. | CC69: n.d. | CD69: n.d. | CE69: n.d. | CF69: n.d. | CG69: n.d. | CH69: n.d. | CI69: n.d. | CJ69: n.d. | CK69: n.d. | CL69: n.d. | CM69: n.d. | CN69: n.d. | CO69: n.d. | CP69: n.d. | CQ69: n.d. | CR69: n.d. | CS69: n.d. | CT69: n.d. | CU69: n.d. | CV69: n.d. | CW69: n.d. | CX69: n.d. | CY69: n.d. | CZ69: n.d. | DA69: n.d. | DB69: n.d. | DC69: n.d. | DD69: n.d. | DE69: n.d. | DF69: n.d. | DG69: n.d. | DH69: n.d.
A70: 1995 | B70: agosto | C70: 1995-agosto | D70: 13.35340508 | E70: 12.59840576 | F70: 12.02846579 | G70: 12.23117343 | H70: n.d. | I70: n.d. | J70: n.d. | K70: n.d. | L70: n.d. | N70: n.d. | P70: n.d. | Q70: n.d. | R70: n.d. | S70: n.d. | T70: n.d. | U70: n.d. | V70: n.d. | W70: n.d. | X70: n.d. | Y70: n.d. | Z70: n.d. | AA70: n.d. | AC70: n.d. | AD70: n.d. | AE70: n.d. | AF70: n.d. | AG70: n.d. | AH70: n.d. | AI70: n.d. | AJ70: n.d. | AK70: n.d. | AL70: n.d. | AN70: n.d. | AO70: n.d. | AP70: n.d. | AQ70: n.d. | AR70: n.d. | AS70: n.d. | AT70: n.d. | AU70: n.d. | AV70: n.d. | AW70: n.d. | AX70: n.d. | AY70: n.d. | AZ70: n.d. | BA70: n.d. | BB70: n.d. | BC70: n.d. | BD70: n.d. | BE70: n.d. | BF70: n.d. | BG70: n.d. | BH70: n.d. | BI70: n.d. | BJ70: n.d. | BK70: n.a. | BL70: n.d. | BM70: n.d. | BN70: n.a. | BO70: n.d. | BP70: n.a. | BQ70: n.d. | BR70: n.d. | BS70: n.d. | BT70: n.d. | BU70: n.d. | BV70: n.d. | BW70: n.d. | BX70: n.d. | BY70: n.d. | BZ70: n.d. | CA70: n.d. | CB70: n.d. | CC70: n.d. | CD70: n.d. | CE70: n.d. | CF70: n.d. | CG70: n.d. | CH70: n.d. | CI70: n.d. | CJ70: n.d. | CK70: n.d. | CL70: n.d. | CM70: n.d. | CN70: n.d. | CO70: n.d. | CP70: n.d. | CQ70: n.d. | CR70: n.d. | CS70: n.d. | CT70: n.d. | CU70: n.d. | CV70: n.d. | CW70: n.d. | CX70: n.d. | CY70: n.d. | CZ70: n.d. | DA70: n.d. | DB70: n.d. | DC70: n.d. | DD70: n.d. | DE70: n.d. | DF70: n.d. | DG70: n.d. | DH70: n.d.
A71: 1995 | B71: septiembre | C71: 1995-septiembre | D71: 13.71270729 | E71: 12.52161648 | F71: 12.33830562 | G71: 12.09279922 | H71: n.d. | I71: n.d. | J71: n.d. | K71: n.d. | L71: n.d. | N71: n.d. | P71: n.d. | Q71: n.d. | R71: n.d. | S71: n.d. | T71: n.d. | U71: n.d. | V71: n.d. | W71: n.d. | X71: n.d. | Y71: n.d. | Z71: n.d. | AA71: n.d. | AC71: n.d. | AD71: n.d. | AE71: n.d. | AF71: n.d. | AG71: n.d. | AH71: n.d. | AI71: n.d. | AJ71: =IFERROR(+AF71+AH71,"n.d.") -> n.d. | AK71: n.d. | AL71: n.d. | AN71: n.d. | AO71: n.d. | AP71: n.d. | AQ71: n.d. | AR71: n.d. | AS71: n.d. | AT71: n.d. | AU71: n.d. | AV71: n.d. | AW71: n.d. | AX71: n.d. | AY71: n.d. | AZ71: n.d. | BA71: n.d. | BB71: n.d. | BC71: n.d. | BD71: n.d. | BE71: n.d. | BF71: n.d. | BG71: n.d. | BH71: n.d. | BI71: n.d. | BJ71: n.d. | BK71: n.a. | BL71: n.d. | BM71: n.d. | BN71: n.a. | BO71: n.d. | BP71: n.a. | BQ71: n.d. | BR71: n.d. | BS71: n.d. | BT71: n.d. | BU71: n.d. | BV71: n.d. | BW71: n.d. | BX71: n.d. | BY71: n.d. | BZ71: n.d. | CA71: n.d. | CB71: n.d. | CC71: n.d. | CD71: n.d. | CE71: n.d. | CF71: n.d. | CG71: n.d. | CH71: n.d. | CI71: n.d. | CJ71: n.d. | CK71: n.d. | CL71: n.d. | CM71: n.d. | CN71: n.d. | CO71: n.d. | CP71: n.d. | CQ71: n.d. | CR71: n.d. | CS71: n.d. | CT71: n.d. | CU71: n.d. | CV71: n.d. | CW71: n.d. | CX71: n.d. | CY71: n.d. | CZ71: n.d. | DA71: n.d. | DB71: n.d. | DC71: n.d. | DD71: n.d. | DE71: n.d. | DF71: n.d. | DG71: n.d. | DH71: n.d.
A72: 1995 | B72: octubre | C72: 1995-octubre | D72: 14.06438379 | E72: 12.43949616 | F72: 12.62080068 | G72: 11.95437406 | H72: n.d. | I72: n.d. | J72: n.d. | K72: n.d. | L72: n.d. | N72: n.d. | P72: n.d. | Q72: n.d. | R72: n.d. | S72: n.d. | T72: n.d. | U72: n.d. | V72: n.d. | W72: n.d. | X72: n.d. | Y72: n.d. | Z72: n.d. | AA72: n.d. | AC72: n.d. | AD72: n.d. | AE72: n.d. | AF72: n.d. | AG72: n.d. | AH72: n.d. | AI72: n.d. | AJ72: n.d. | AK72: n.d. | AL72: n.d. | AN72: n.d. | AO72: n.d. | AP72: n.d. | AQ72: n.d. | AR72: n.d. | AS72: n.d. | AT72: n.d. | AU72: n.d. | AV72: n.d. | AW72: n.d. | AX72: n.d. | AY72: n.d. | AZ72: n.d. | BA72: n.d. | BB72: n.d. | BC72: n.d. | BD72: n.d. | BE72: n.d. | BF72: n.d. | BG72: n.d. | BH72: n.d. | BI72: n.d. | BJ72: n.d. | BK72: n.a. | BL72: n.d. | BM72: n.d. | BN72: n.a. | BO72: n.d. | BP72: n.a. | BQ72: n.d. | BR72: n.d. | BS72: n.d. | BT72: n.d. | BU72: n.d. | BV72: n.d. | BW72: n.d. | BX72: n.d. | BY72: n.d. | BZ72: n.d. | CA72: n.d. | CB72: n.d. | CC72: n.d. | CD72: n.d. | CE72: n.d. | CF72: n.d. | CG72: n.d. | CH72: n.d. | CI72: n.d. | CJ72: n.d. | CK72: n.d. | CL72: n.d. | CM72: n.d. | CN72: n.d. | CO72: n.d. | CP72: n.d. | CQ72: n.d. | CR72: n.d. | CS72: n.d. | CT72: n.d. | CU72: n.d. | CV72: n.d. | CW72: n.d. | CX72: n.d. | CY72: n.d. | CZ72: n.d. | DA72: n.d. | DB72: n.d. | DC72: n.d. | DD72: n.d. | DE72: n.d. | DF72: n.d. | DG72: n.d. | DH72: n.d.
A73: 1995 | B73: noviembre | C73: 1995-noviembre | D73: 14.19244403 | E73: 12.35187071 | F73: 12.69379569 | G73: 11.81570139 | H73: n.d. | I73: n.d. | J73: n.d. | K73: n.d. | L73: n.d. | N73: n.d. | P73: n.d. | Q73: n.d. | R73: n.d. | S73: n.d. | T73: n.d. | U73: n.d. | V73: n.d. | W73: n.d. | X73: n.d. | Y73: n.d. | Z73: n.d. | AA73: n.d. | AC73: n.d. | AD73: n.d. | AE73: n.d. | AF73: n.d. | AG73: n.d. | AH73: n.d. | AI73: n.d. | AJ73: n.d. | AK73: n.d. | AL73: n.d. | AN73: n.d. | AO73: n.d. | AP73: n.d. | AQ73: n.d. | AR73: n.d. | AS73: n.d. | AT73: n.d. | AU73: n.d. | AV73: n.d. | AW73: n.d. | AX73: n.d. | AY73: n.d. | AZ73: n.d. | BA73: n.d. | BB73: n.d. | BC73: n.d. | BD73: n.d. | BE73: n.d. | BF73: n.d. | BG73: n.d. | BH73: n.d. | BI73: n.d. | BJ73: n.d. | BK73: n.a. | BL73: n.d. | BM73: n.d. | BN73: n.a. | BO73: n.d. | BP73: n.a. | BQ73: n.d. | BR73: n.d. | BS73: n.d. | BT73: n.d. | BU73: n.d. | BV73: n.d. | BW73: n.d. | BX73: n.d. | BY73: n.d. | BZ73: n.d. | CA73: n.d. | CB73: n.d. | CC73: n.d. | CD73: n.d. | CE73: n.d. | CF73: n.d. | CG73: n.d. | CH73: n.d. | CI73: n.d. | CJ73: n.d. | CK73: n.d. | CL73: n.d. | CM73: n.d. | CN73: n.d. | CO73: n.d. | CP73: n.d. | CQ73: n.d. | CR73: n.d. | CS73: n.d. | CT73: n.d. | CU73: n.d. | CV73: n.d. | CW73: n.d. | CX73: n.d. | CY73: n.d. | CZ73: n.d. | DA73: n.d. | DB73: n.d. | DC73: n.d. | DD73: n.d. | DE73: n.d. | DF73: n.d. | DG73: n.d. | DH73: n.d.
A74: 1995 | B74: diciembre | C74: 1995-diciembre | D74: 13.05939502 | E74: 12.25868489 | F74: 11.72519626 | G74: 11.67665219 | H74: n.d. | I74: n.d. | J74: n.d. | K74: n.d. | L74: n.d. | M74: n.d. | N74: n.d. | O74: n.d. | P74: n.d. | Q74: n.d. | R74: n.d. | S74: n.d. | T74: n.d. | U74: n.d. | V74: n.d. | W74: n.d. | X74: n.d. | Y74: n.d. | Z74: n.d. | AA74: n.d. | AC74: n.d. | AD74: n.d. | AE74: n.d. | AF74: n.d. | AG74: n.d. | AH74: n.d. | AI74: n.d. | AJ74: n.d. | AK74: n.d. | AL74: n.d. | AN74: n.d. | AO74: n.d. | AP74: n.d. | AQ74: n.d. | AR74: n.d. | AS74: n.d. | AT74: n.d. | AU74: n.d. | AV74: n.d. | AW74: n.d. | AX74: n.d. | AY74: n.d. | AZ74: n.d. | BA74: n.d. | BB74: n.d. | BC74: n.d. | BD74: n.d. | BE74: n.d. | BF74: n.d. | BG74: n.d. | BH74: n.d. | BI74: n.d. | BJ74: n.d. | BK74: n.a. | BL74: n.d. | BM74: n.d. | BN74: n.a. | BO74: n.d. | BP74: n.a. | BQ74: n.d. | BR74: n.d. | BS74: n.d. | BT74: n.d. | BU74: n.d. | BV74: n.d. | BW74: n.d. | BX74: n.d. | BY74: n.d. | BZ74: n.d. | CA74: n.d. | CB74: n.d. | CC74: n.d. | CD74: n.d. | CE74: n.d. | CF74: n.d. | CG74: n.d. | CH74: n.d. | CI74: n.d. | CJ74: n.d. | CK74: n.d. | CL74: n.d. | CM74: n.d. | CN74: n.d. | CO74: n.d. | CP74: n.d. | CQ74: n.d. | CR74: n.d. | CS74: n.d. | CT74: n.d. | CU74: n.d. | CV74: n.d. | CW74: n.d. | CX74: n.d. | CY74: n.d. | CZ74: n.d. | DA74: n.d. | DB74: n.d. | DC74: n.d. | DD74: n.d. | DE74: n.d. | DF74: n.d. | DG74: n.d. | DH74: n.d.
A75: 1996 | B75: enero | C75: 1996-enero | D75: 12.28741517 | E75: 12.15999868 | F75: 11.08756113 | G75: 11.53716583 | H75: n.d. | I75: n.d. | J75: n.d. | K75: n.d. | L75: n.d. | N75: n.d. | P75: n.d. | Q75: n.d. | R75: n.d. | S75: n.d. | T75: n.d. | U75: n.d. | V75: n.d. | W75: n.d. | X75: n.d. | Y75: n.d. | Z75: n.d. | AA75: n.d. | AC75: n.d. | AD75: n.d. | AE75: n.d. | AF75: n.d. | AG75: n.d. | AH75: n.d. | AI75: n.d. | AJ75: n.d. | AK75: n.d. | AL75: n.d. | AN75: n.d. | AO75: n.d. | AP75: n.d. | AQ75: n.d. | AR75: n.d. | AS75: n.d. | AT75: n.d. | AU75: n.d. | AV75: n.d. | AW75: n.d. | AX75: n.d. | AY75: n.d. | AZ75: n.d. | BA75: n.d. | BB75: n.d. | BC75: n.d. | BD75: n.d. | BE75: n.d. | BF75: n.d. | BG75: n.d. | BH75: n.d. | BI75: n.d. | BJ75: n.d. | BK75: n.a. | BL75: n.d. | BM75: n.d. | BN75: n.a. | BO75: n.d. | BP75: n.a. | BQ75: n.d. | BR75: n.d. | BS75: n.d. | BT75: n.d. | BU75: n.d. | BV75: n.d. | BW75: n.d. | BX75: n.d. | BY75: n.d. | BZ75: n.d. | CA75: n.d. | CB75: n.d. | CC75: n.d. | CD75: n.d. | CE75: n.d. | CF75: n.d. | CG75: n.d. | CH75: n.d. | CI75: n.d. | CJ75: n.d. | CK75: n.d. | CL75: n.d. | CM75: n.d. | CN75: n.d. | CO75: n.d. | CP75: n.d. | CQ75: n.d. | CR75: n.d. | CS75: n.d. | CT75: n.d. | CU75: n.d. | CV75: n.d. | CW75: n.d. | CX75: n.d. | CY75: n.d. | CZ75: n.d. | DA75: n.d. | DB75: n.d. | DC75: n.d. | DD75: n.d. | DE75: n.d. | DF75: n.d. | DG75: n.d. | DH75: n.d.
A76: 1996 | B76: febrero | C76: 1996-febrero | D76: 12.09124205 | E76: 12.05593465 | F76: 10.91283422 | G76: 11.39721236 | H76: n.d. | I76: n.d. | J76: n.d. | K76: n.d. | L76: n.d. | N76: n.d. | P76: n.d. | Q76: n.d. | R76: n.d. | S76: n.d. | T76: n.d. | U76: n.d. | V76: n.d. | W76: n.d. | X76: n.d. | Y76: n.d. | Z76: n.d. | AA76: n.d. | AC76: n.d. | AD76: n.d. | AE76: n.d. | AF76: n.d. | AG76: n.d. | AH76: n.d. | AI76: n.d. | AJ76: n.d. | AK76: n.d. | AL76: n.d. | AN76: n.d. | AO76: n.d. | AP76: n.d. | AQ76: n.d. | AR76: n.d. | AS76: n.d. | AT76: n.d. | AU76: n.d. | AV76: n.d. | AW76: n.d. | AX76: n.d. | AY76: n.d. | AZ76: n.d. | BA76: n.d. | BB76: n.d. | BC76: n.d. | BD76: n.d. | BE76: n.d. | BF76: n.d. | BG76: n.d. | BH76: n.d. | BI76: n.d. | BJ76: n.d. | BK76: n.a. | BL76: n.d. | BM76: n.d. | BN76: n.a. | BO76: n.d. | BP76: n.a. | BQ76: n.d. | BR76: n.d. | BS76: n.d. | BT76: n.d. | BU76: n.d. | BV76: n.d. | BW76: n.d. | BX76: n.d. | BY76: n.d. | BZ76: n.d. | CA76: n.d. | CB76: n.d. | CC76: n.d. | CD76: n.d. | CE76: n.d. | CF76: n.d. | CG76: n.d. | CH76: n.d. | CI76: n.d. | CJ76: n.d. | CK76: n.d. | CL76: n.d. | CM76: n.d. | CN76: n.d. | CO76: n.d. | CP76: n.d. | CQ76: n.d. | CR76: n.d. | CS76: n.d. | CT76: n.d. | CU76: n.d. | CV76: n.d. | CW76: n.d. | CX76: n.d. | CY76: n.d. | CZ76: n.d. | DA76: n.d. | DB76: n.d. | DC76: n.d. | DD76: n.d. | DE76: n.d. | DF76: n.d. | DG76: n.d. | DH76: n.d.
A77: 1996 | B77: marzo | C77: 1996-marzo | D77: 11.97561355 | E77: 11.94663594 | F77: 10.80944438 | G77: 11.25675993 | H77: n.d. | I77: n.d. | J77: n.d. | K77: n.d. | L77: n.d. | N77: n.d. | P77: n.d. | Q77: n.d. | R77: n.d. | S77: n.d. | T77: n.d. | U77: n.d. | V77: n.d. | W77: n.d. | X77: n.d. | Y77: n.d. | Z77: n.d. | AA77: n.d. | AC77: n.d. | AD77: n.d. | AE77: n.d. | AF77: n.d. | AG77: n.d. | AH77: n.d. | AI77: n.d. | AJ77: n.d. | AK77: n.d. | AL77: n.d. | AN77: n.d. | AO77: n.d. | AP77: n.d. | AQ77: n.d. | AR77: n.d. | AS77: n.d. | AT77: n.d. | AU77: n.d. | AV77: n.d. | AW77: n.d. | AX77: n.d. | AY77: n.d. | AZ77: n.d. | BA77: n.d. | BB77: n.d. | BC77: n.d. | BD77: n.d. | BE77: n.d. | BF77: n.d. | BG77: n.d. | BH77: n.d. | BI77: n.d. | BJ77: n.d. | BK77: n.a. | BL77: n.d. | BM77: n.d. | BN77: n.a. | BO77: n.d. | BP77: n.a. | BQ77: n.d. | BR77: n.d. | BS77: n.d. | BT77: n.d. | BU77: n.d. | BV77: n.d. | BW77: n.d. | BX77: n.d. | BY77: n.d. | BZ77: n.d. | CA77: n.d. | CB77: n.d. | CC77: n.d. | CD77: n.d. | CE77: n.d. | CF77: n.d. | CG77: n.d. | CH77: n.d. | CI77: n.d. | CJ77: n.d. | CK77: n.d. | CL77: n.d. | CM77: n.d. | CN77: n.d. | CO77: n.d. | CP77: n.d. | CQ77: n.d. | CR77: n.d. | CS77: n.d. | CT77: n.d. | CU77: n.d. | CV77: n.d. | CW77: n.d. | CX77: n.d. | CY77: n.d. | CZ77: n.d. | DA77: n.d. | DB77: n.d. | DC77: n.d. | DD77: n.d. | DE77: n.d. | DF77: n.d. | DG77: n.d. | DH77: n.d.
A78: 1996 | B78: abril | C78: 1996-abril | D78: 12.1823668 | E78: 11.83225782 | F78: 10.99332791 | G78: 11.11576917 | H78: n.d. | I78: n.d. | J78: n.d. | K78: n.d. | L78: n.d. | N78: n.d. | P78: n.d. | Q78: n.d. | R78: n.d. | S78: n.d. | T78: n.d. | U78: n.d. | V78: n.d. | W78: n.d. | X78: n.d. | Y78: n.d. | Z78: n.d. | AA78: n.d. | AC78: n.d. | AD78: n.d. | AE78: n.d. | AF78: n.d. | AG78: n.d. | AH78: n.d. | AI78: n.d. | AJ78: n.d. | AK78: n.d. | AL78: n.d. | AN78: n.d. | AO78: n.d. | AP78: n.d. | AQ78: n.d. | AR78: n.d. | AS78: n.d. | AT78: n.d. | AU78: n.d. | AV78: n.d. | AW78: n.d. | AX78: n.d. | AY78: n.d. | AZ78: n.d. | BA78: n.d. | BB78: n.d. | BC78: n.d. | BD78: n.d. | BE78: n.d. | BF78: n.d. | BG78: n.d. | BH78: n.d. | BI78: n.d. | BJ78: n.d. | BK78: n.a. | BL78: n.d. | BM78: n.d. | BN78: n.a. | BO78: n.d. | BP78: n.a. | BQ78: n.d. | BR78: n.d. | BS78: n.d. | BT78: n.d. | BU78: n.d. | BV78: n.d. | BW78: n.d. | BX78: n.d. | BY78: n.d. | BZ78: n.d. | CA78: n.d. | CB78: n.d. | CC78: n.d. | CD78: n.d. | CE78: n.d. | CF78: n.d. | CG78: n.d. | CH78: n.d. | CI78: n.d. | CJ78: n.d. | CK78: n.d. | CL78: n.d. | CM78: n.d. | CN78: n.d. | CO78: n.d. | CP78: n.d. | CQ78: n.d. | CR78: n.d. | CS78: n.d. | CT78: n.d. | CU78: n.d. | CV78: n.d. | CW78: n.d. | CX78: n.d. | CY78: n.d. | CZ78: n.d. | DA78: n.d. | DB78: n.d. | DC78: n.d. | DD78: n.d. | DE78: n.d. | DF78: n.d. | DG78: n.d. | DH78: n.d.
A79: 1996 | B79: mayo | C79: 1996-mayo | D79: 12.10614754 | E79: 11.71297059 | F79: 10.87419488 | G79: 10.97420125 | H79: n.d. | I79: n.d. | J79: n.d. | K79: n.d. | L79: n.d. | N79: n.d. | P79: n.d. | Q79: n.d. | R79: n.d. | S79: n.d. | T79: n.d. | U79: n.d. | V79: n.d. | W79: n.d. | X79: n.d. | Y79: n.d. | Z79: n.d. | AA79: n.d. | AC79: n.d. | AD79: n.d. | AE79: n.d. | AF79: n.d. | AG79: n.d. | AH79: n.d. | AI79: n.d. | AJ79: n.d. | AK79: n.d. | AL79: n.d. | AN79: n.d. | AO79: n.d. | AP79: n.d. | AQ79: n.d. | AR79: n.d. | AS79: n.d. | AT79: n.d. | AU79: n.d. | AV79: n.d. | AW79: n.d. | AX79: n.d. | AY79: n.d. | AZ79: n.d. | BA79: n.d. | BB79: n.d. | BC79: n.d. | BD79: n.d. | BE79: n.d. | BF79: n.d. | BG79: n.d. | BH79: n.d. | BI79: n.d. | BJ79: n.d. | BK79: n.a. | BL79: n.d. | BM79: n.d. | BN79: n.a. | BO79: n.d. | BP79: n.a. | BQ79: n.d. | BR79: n.d. | BS79: n.d. | BT79: n.d. | BU79: n.d. | BV79: n.d. | BW79: n.d. | BX79: n.d. | BY79: n.d. | BZ79: n.d. | CA79: n.d. | CB79: n.d. | CC79: n.d. | CD79: n.d. | CE79: n.d. | CF79: n.d. | CG79: n.d. | CH79: n.d. | CI79: n.d. | CJ79: n.d. | CK79: n.d. | CL79: n.d. | CM79: n.d. | CN79: n.d. | CO79: n.d. | CP79: n.d. | CQ79: n.d. | CR79: n.d. | CS79: n.d. | CT79: n.d. | CU79: n.d. | CV79: n.d. | CW79: n.d. | CX79: n.d. | CY79: n.d. | CZ79: n.d. | DA79: n.d. | DB79: n.d. | DC79: n.d. | DD79: n.d. | DE79: n.d. | DF79: n.d. | DG79: n.d. | DH79: n.d.
A80: 1996 | B80: junio | C80: 1996-junio | D80: 12.00524693 | E80: 11.58897197 | F80: 10.753703 | G80: 10.83203157 | H80: n.d. | I80: n.d. | J80: n.d. | K80: n.d. | L80: n.d. | N80: n.d. | P80: n.d. | Q80: n.d. | R80: n.d. | S80: n.d. | T80: n.d. | U80: n.d. | V80: n.d. | W80: n.d. | X80: n.d. | Y80: n.d. | Z80: n.d. | AA80: n.d. | AC80: n.d. | AD80: n.d. | AE80: n.d. | AF80: n.d. | AG80: n.d. | AH80: n.d. | AI80: n.d. | AJ80: n.d. | AK80: n.d. | AL80: n.d. | AN80: n.d. | AO80: n.d. | AP80: n.d. | AQ80: n.d. | AR80: n.d. | AS80: n.d. | AT80: n.d. | AU80: n.d. | AV80: n.d. | AW80: n.d. | AX80: n.d. | AY80: n.d. | AZ80: n.d. | BA80: n.d. | BB80: n.d. | BC80: n.d. | BD80: n.d. | BE80: n.d. | BF80: n.d. | BG80: n.d. | BH80: n.d. | BI80: n.d. | BJ80: n.d. | BK80: n.a. | BL80: n.d. | BM80: n.d. | BN80: n.a. | BO80: n.d. | BP80: n.a. | BQ80: n.d. | BR80: n.d. | BS80: n.d. | BT80: n.d. | BU80: n.d. | BV80: n.d. | BW80: n.d. | BX80: n.d. | BY80: n.d. | BZ80: n.d. | CA80: n.d. | CB80: n.d. | CC80: n.d. | CD80: n.d. | CE80: n.d. | CF80: n.d. | CG80: n.d. | CH80: n.d. | CI80: n.d. | CJ80: n.d. | CK80: n.d. | CL80: n.d. | CM80: n.d. | CN80: n.d. | CO80: n.d. | CP80: n.d. | CQ80: n.d. | CR80: n.d. | CS80: n.d. | CT80: n.d. | CU80: n.d. | CV80: n.d. | CW80: n.d. | CX80: n.d. | CY80: n.d. | CZ80: n.d. | DA80: n.d. | DB80: n.d. | DC80: n.d. | DD80: n.d. | DE80: n.d. | DF80: n.d. | DG80: n.d. | DH80: n.d.
A81: 1996 | B81: julio | C81: 1996-julio | D81: 11.76320073 | E81: 11.46049588 | F81: 10.55834402 | G81: 10.68925749 | H81: n.d. | I81: n.d. | J81: n.d. | K81: n.d. | L81: n.d. | N81: n.d. | P81: n.d. | Q81: n.d. | R81: n.d. | S81: n.d. | T81: n.d. | U81: n.d. | V81: n.d. | W81: n.d. | X81: n.d. | Y81: n.d. | Z81: n.d. | AA81: n.d. | AC81: n.d. | AD81: n.d. | AE81: n.d. | AF81: n.d. | AG81: n.d. | AH81: n.d. | AI81: n.d. | AJ81: n.d. | AK81: n.d. | AL81: n.d. | AN81: n.d. | AO81: n.d. | AP81: n.d. | AQ81: n.d. | AR81: n.d. | AS81: n.d. | AT81: n.d. | AU81: n.d. | AV81: n.d. | AW81: n.d. | AX81: n.d. | AY81: n.d. | AZ81: n.d. | BA81: n.d. | BB81: n.d. | BC81: n.d. | BD81: n.d. | BE81: n.d. | BF81: n.d. | BG81: n.d. | BH81: n.d. | BI81: n.d. | BJ81: n.d. | BK81: n.a. | BL81: n.d. | BM81: n.d. | BN81: n.a. | BO81: n.d. | BP81: n.a. | BQ81: n.d. | BR81: n.d. | BS81: n.d. | BT81: n.d. | BU81: n.d. | BV81: n.d. | BW81: n.d. | BX81: n.d. | BY81: n.d. | BZ81: n.d. | CA81: n.d. | CB81: n.d. | CC81: n.d. | CD81: n.d. | CE81: n.d. | CF81: n.d. | CG81: n.d. | CH81: n.d. | CI81: n.d. | CJ81: n.d. | CK81: n.d. | CL81: n.d. | CM81: n.d. | CN81: n.d. | CO81: n.d. | CP81: n.d. | CQ81: n.d. | CR81: n.d. | CS81: n.d. | CT81: n.d. | CU81: n.d. | CV81: n.d. | CW81: n.d. | CX81: n.d. | CY81: n.d. | CZ81: n.d. | DA81: n.d. | DB81: n.d. | DC81: n.d. | DD81: n.d. | DE81: n.d. | DF81: n.d. | DG81: n.d. | DH81: n.d.
A82: 1996 | B82: agosto | C82: 1996-agosto | D82: 12.23434072 | E82: 11.32780799 | F82: 10.9778274 | G82: 10.54589769 | H82: n.d. | I82: n.d. | J82: n.d. | K82: n.d. | L82: n.d. | N82: n.d. | P82: n.d. | Q82: n.d. | R82: n.d. | S82: n.d. | T82: n.d. | U82: n.d. | V82: n.d. | W82: n.d. | X82: n.d. | Y82: n.d. | Z82: n.d. | AA82: n.d. | AC82: n.d. | AD82: n.d. | AE82: n.d. | AF82: n.d. | AG82: n.d. | AH82: n.d. | AI82: n.d. | AJ82: n.d. | AK82: n.d. | AL82: n.d. | AN82: n.d. | AO82: n.d. | AP82: n.d. | AQ82: n.d. | AR82: n.d. | AS82: n.d. | AT82: n.d. | AU82: n.d. | AV82: n.d. | AW82: n.d. | AX82: n.d. | AY82: n.d. | AZ82: n.d. | BA82: n.d. | BB82: n.d. | BC82: n.d. | BD82: n.d. | BE82: n.d. | BF82: n.d. | BG82: n.d. | BH82: n.d. | BI82: n.d. | BJ82: n.d. | BK82: n.a. | BL82: n.d. | BM82: n.d. | BN82: n.a. | BO82: n.d. | BP82: n.a. | BQ82: n.d. | BR82: n.d. | BS82: n.d. | BT82: n.d. | BU82: n.d. | BV82: n.d. | BW82: n.d. | BX82: n.d. | BY82: n.d. | BZ82: n.d. | CA82: n.d. | CB82: n.d. | CC82: n.d. | CD82: n.d. | CE82: n.d. | CF82: n.d. | CG82: n.d. | CH82: n.d. | CI82: n.d. | CJ82: n.d. | CK82: n.d. | CL82: n.d. | CM82: n.d. | CN82: n.d. | CO82: n.d. | CP82: n.d. | CQ82: n.d. | CR82: n.d. | CS82: n.d. | CT82: n.d. | CU82: n.d. | CV82: n.d. | CW82: n.d. | CX82: n.d. | CY82: n.d. | CZ82: n.d. | DA82: n.d. | DB82: n.d. | DC82: n.d. | DD82: n.d. | DE82: n.d. | DF82: n.d. | DG82: n.d. | DH82: n.d.
A83: 1996 | B83: septiembre | C83: 1996-septiembre | D83: 11.3592991 | E83: 11.19121208 | F83: 10.23905036 | G83: 10.40200233 | H83: n.d. | I83: n.d. | J83: n.d. | K83: n.d. | L83: n.d. | N83: n.d. | P83: n.d. | Q83: n.d. | R83: n.d. | S83: n.d. | T83: n.d. | U83: n.d. | V83: n.d. | W83: n.d. | X83: n.d. | Y83: n.d. | Z83: n.d. | AA83: n.d. | AC83: n.d. | AD83: n.d. | AE83: n.d. | AF83: n.d. | AG83: n.d. | AH83: n.d. | AI83: n.d. | AJ83: n.d. | AK83: n.d. | AL83: n.d. | AN83: n.d. | AO83: n.d. | AP83: n.d. | AQ83: n.d. | AR83: n.d. | AS83: n.d. | AT83: n.d. | AU83: n.d. | AV83: n.d. | AW83: n.d. | AX83: n.d. | AY83: n.d. | AZ83: n.d. | BA83: n.d. | BB83: n.d. | BC83: n.d. | BD83: n.d. | BE83: n.d. | BF83: n.d. | BG83: n.d. | BH83: n.d. | BI83: n.d. | BJ83: n.d. | BK83: n.a. | BL83: n.d. | BM83: n.d. | BN83: n.a. | BO83: n.d. | BP83: n.a. | BQ83: n.d. | BR83: n.d. | BS83: n.d. | BT83: n.d. | BU83: n.d. | BV83: n.d. | BW83: n.d. | BX83: n.d. | BY83: n.d. | BZ83: n.d. | CA83: n.d. | CB83: n.d. | CC83: n.d. | CD83: n.d. | CE83: n.d. | CF83: n.d. | CG83: n.d. | CH83: n.d. | CI83: n.d. | CJ83: n.d. | CK83: n.d. | CL83: n.d. | CM83: n.d. | CN83: n.d. | CO83: n.d. | CP83: n.d. | CQ83: n.d. | CR83: n.d. | CS83: n.d. | CT83: n.d. | CU83: n.d. | CV83: n.d. | CW83: n.d. | CX83: n.d. | CY83: n.d. | CZ83: n.d. | DA83: n.d. | DB83: n.d. | DC83: n.d. | DD83: n.d. | DE83: n.d. | DF83: n.d. | DG83: n.d. | DH83: n.d.
A84: 1996 | B84: octubre | C84: 1996-octubre | D84: 10.42077997 | E84: 11.05106634 | F84: 9.474413405 | G84: 10.25766614 | H84: n.d. | I84: n.d. | J84: n.d. | K84: n.d. | L84: n.d. | N84: n.d. | P84: n.d. | Q84: n.d. | R84: n.d. | S84: n.d. | T84: n.d. | U84: n.d. | V84: n.d. | W84: n.d. | X84: n.d. | Y84: n.d. | Z84: n.d. | AA84: n.d. | AC84: n.d. | AD84: n.d. | AE84: n.d. | AF84: n.d. | AG84: n.d. | AH84: n.d. | AI84: n.d. | AJ84: n.d. | AK84: n.d. | AL84: n.d. | AN84: n.d. | AO84: n.d. | AP84: n.d. | AQ84: n.d. | AR84: n.d. | AS84: n.d. | AT84: n.d. | AU84: n.d. | AV84: n.d. | AW84: n.d. | AX84: n.d. | AY84: n.d. | AZ84: n.d. | BA84: n.d. | BB84: n.d. | BC84: n.d. | BD84: n.d. | BE84: n.d. | BF84: n.d. | BG84: n.d. | BH84: n.d. | BI84: n.d. | BJ84: n.d. | BK84: n.a. | BL84: n.d. | BM84: n.d. | BN84: n.a. | BO84: n.d. | BP84: n.a. | BQ84: n.d. | BR84: n.d. | BS84: n.d. | BT84: n.d. | BU84: n.d. | BV84: n.d. | BW84: n.d. | BX84: n.d. | BY84: n.d. | BZ84: n.d. | CA84: n.d. | CB84: n.d. | CC84: n.d. | CD84: n.d. | CE84: n.d. | CF84: n.d. | CG84: n.d. | CH84: n.d. | CI84: n.d. | CJ84: n.d. | CK84: n.d. | CL84: n.d. | CM84: n.d. | CN84: n.d. | CO84: n.d. | CP84: n.d. | CQ84: n.d. | CR84: n.d. | CS84: n.d. | CT84: n.d. | CU84: n.d. | CV84: n.d. | CW84: n.d. | CX84: n.d. | CY84: n.d. | CZ84: n.d. | DA84: n.d. | DB84: n.d. | DC84: n.d. | DD84: n.d. | DE84: n.d. | DF84: n.d. | DG84: n.d. | DH84: n.d.
A85: 1996 | B85: noviembre | C85: 1996-noviembre | D85: 9.866240294 | E85: 10.90775257 | F85: 8.990648282 | G85: 10.11300609 | H85: n.d. | I85: n.d. | J85: n.d. | K85: n.d. | L85: n.d. | N85: n.d. | P85: n.d. | Q85: n.d. | R85: n.d. | S85: n.d. | T85: n.d. | U85: n.d. | V85: n.d. | W85: n.d. | X85: n.d. | Y85: n.d. | Z85: n.d. | AA85: n.d. | AC85: n.d. | AD85: n.d. | AE85: n.d. | AF85: n.d. | AG85: n.d. | AH85: n.d. | AI85: n.d. | AJ85: n.d. | AK85: n.d. | AL85: n.d. | AN85: n.d. | AO85: n.d. | AP85: n.d. | AQ85: n.d. | AR85: n.d. | AS85: n.d. | AT85: n.d. | AU85: n.d. | AV85: n.d. | AW85: n.d. | AX85: n.d. | AY85: n.d. | AZ85: n.d. | BA85: n.d. | BB85: n.d. | BC85: n.d. | BD85: n.d. | BE85: n.d. | BF85: n.d. | BG85: n.d. | BH85: n.d. | BI85: n.d. | BJ85: n.d. | BK85: n.a. | BL85: n.d. | BM85: n.d. | BN85: n.a. | BO85: n.d. | BP85: n.a. | BQ85: n.d. | BR85: n.d. | BS85: n.d. | BT85: n.d. | BU85: n.d. | BV85: n.d. | BW85: n.d. | BX85: n.d. | BY85: n.d. | BZ85: n.d. | CA85: n.d. | CB85: n.d. | CC85: n.d. | CD85: n.d. | CE85: n.d. | CF85: n.d. | CG85: n.d. | CH85: n.d. | CI85: n.d. | CJ85: n.d. | CK85: n.d. | CL85: n.d. | CM85: n.d. | CN85: n.d. | CO85: n.d. | CP85: n.d. | CQ85: n.d. | CR85: n.d. | CS85: n.d. | CT85: n.d. | CU85: n.d. | CV85: n.d. | CW85: n.d. | CX85: n.d. | CY85: n.d. | CZ85: n.d. | DA85: n.d. | DB85: n.d. | DC85: n.d. | DD85: n.d. | DE85: n.d. | DF85: n.d. | DG85: n.d. | DH85: n.d.
A86: 1996 | B86: diciembre | C86: 1996-diciembre | D86: 10.3958977 | E86: 10.76162456 | F86: 9.512216436 | G86: 9.968120366 | H86: n.d. | I86: n.d. | J86: n.d. | K86: n.d. | L86: n.d. | M86: n.d. | N86: n.d. | O86: n.d. | P86: n.d. | Q86: n.d. | R86: n.d. | S86: n.d. | T86: n.d. | U86: n.d. | V86: n.d. | W86: n.d. | X86: n.d. | Y86: n.d. | Z86: n.d. | AA86: n.d. | AC86: n.d. | AD86: n.d. | AE86: n.d. | AF86: n.d. | AG86: n.d. | AH86: n.d. | AI86: n.d. | AJ86: n.d. | AK86: n.d. | AL86: n.d. | AN86: n.d. | AO86: n.d. | AP86: n.d. | AQ86: n.d. | AR86: n.d. | AS86: n.d. | AT86: n.d. | AU86: n.d. | AV86: n.d. | AW86: n.d. | AX86: n.d. | AY86: n.d. | AZ86: n.d. | BA86: n.d. | BB86: n.d. | BC86: n.d. | BD86: n.d. | BE86: n.d. | BF86: n.d. | BG86: n.d. | BH86: n.d. | BI86: n.d. | BJ86: n.d. | BK86: n.a. | BL86: n.d. | BM86: n.d. | BN86: n.a. | BO86: n.d. | BP86: n.a. | BQ86: n.d. | BR86: n.d. | BS86: n.d. | BT86: n.d. | BU86: n.d. | BV86: n.d. | BW86: n.d. | BX86: n.d. | BY86: n.d. | BZ86: n.d. | CA86: n.d. | CB86: n.d. | CC86: n.d. | CD86: n.d. | CE86: n.d. | CF86: n.d. | CG86: n.d. | CH86: n.d. | CI86: n.d. | CJ86: n.d. | CK86: n.d. | CL86: n.d. | CM86: n.d. | CN86: n.d. | CO86: n.d. | CP86: n.d. | CQ86: n.d. | CR86: n.d. | CS86: n.d. | CT86: n.d. | CU86: n.d. | CV86: n.d. | CW86: n.d. | CX86: n.d. | CY86: n.d. | CZ86: n.d. | DA86: n.d. | DB86: n.d. | DC86: n.d. | DD86: n.d. | DE86: n.d. | DF86: n.d. | DG86: n.d. | DH86: n.d.
A87: 1997 | B87: enero | C87: 1997-enero | D87: 11.25942378 | E87: 10.61299241 | F87: 10.26474355 | G87: 9.823076243 | H87: n.d. | I87: n.d. | J87: n.d. | K87: n.d. | L87: n.d. | N87: n.d. | P87: n.d. | Q87: n.d. | R87: n.d. | S87: n.d. | T87: n.d. | U87: n.d. | V87: n.d. | W87: n.d. | X87: n.d. | Y87: n.d. | Z87: n.d. | AA87: n.d. | AC87: n.d. | AD87: n.d. | AE87: n.d. | AF87: n.d. | AG87: n.d. | AH87: n.d. | AI87: n.d. | AJ87: n.d. | AK87: n.d. | AL87: n.d. | AN87: n.d. | AO87: n.d. | AP87: n.d. | AQ87: n.d. | AR87: n.d. | AS87: n.d. | AT87: n.d. | AU87: n.d. | AV87: n.d. | AW87: n.d. | AX87: n.d. | AY87: n.d. | AZ87: n.d. | BA87: n.d. | BB87: n.d. | BC87: n.d. | BD87: n.d. | BE87: n.d. | BF87: n.d. | BG87: n.d. | BH87: n.d. | BI87: n.d. | BJ87: n.d. | BK87: n.a. | BL87: n.d. | BM87: n.d. | BN87: n.a. | BO87: n.d. | BP87: n.a. | BQ87: n.d. | BR87: n.d. | BS87: n.d. | BT87: n.d. | BU87: n.d. | BV87: n.d. | BW87: n.d. | BX87: n.d. | BY87: n.d. | BZ87: n.d. | CA87: n.d. | CB87: n.d. | CC87: n.d. | CD87: n.d. | CE87: n.d. | CF87: n.d. | CG87: n.d. | CH87: n.d. | CI87: n.d. | CJ87: n.d. | CK87: n.d. | CL87: n.d. | CM87: n.d. | CN87: n.d. | CO87: n.d. | CP87: n.d. | CQ87: n.d. | CR87: n.d. | CS87: n.d. | CT87: n.d. | CU87: n.d. | CV87: n.d. | CW87: n.d. | CX87: n.d. | CY87: n.d. | CZ87: n.d. | DA87: n.d. | DB87: n.d. | DC87: n.d. | DD87: n.d. | DE87: n.d. | DF87: n.d. | DG87: n.d. | DH87: n.d.
A88: 1997 | B88: febrero | C88: 1997-febrero | D88: 11.72741188 | E88: 10.46216017 | F88: 10.68226711 | G88: 9.677947338 | H88: n.d. | I88: n.d. | J88: n.d. | K88: n.d. | L88: n.d. | N88: n.d. | P88: n.d. | Q88: n.d. | R88: n.d. | S88: n.d. | T88: n.d. | U88: n.d. | V88: n.d. | W88: n.d. | X88: n.d. | Y88: n.d. | Z88: n.d. | AA88: n.d. | AC88: n.d. | AD88: n.d. | AE88: n.d. | AF88: n.d. | AG88: n.d. | AH88: n.d. | AI88: n.d. | AJ88: n.d. | AK88: n.d. | AL88: n.d. | AN88: n.d. | AO88: n.d. | AP88: n.d. | AQ88: n.d. | AR88: n.d. | AS88: n.d. | AT88: n.d. | AU88: n.d. | AV88: n.d. | AW88: n.d. | AX88: n.d. | AY88: n.d. | AZ88: n.d. | BA88: n.d. | BB88: n.d. | BC88: n.d. | BD88: n.d. | BE88: n.d. | BF88: n.d. | BG88: n.d. | BH88: n.d. | BI88: n.d. | BJ88: n.d. | BK88: n.a. | BL88: n.d. | BM88: n.d. | BN88: n.a. | BO88: n.d. | BP88: n.a. | BQ88: n.d. | BR88: n.d. | BS88: n.d. | BT88: n.d. | BU88: n.d. | BV88: n.d. | BW88: n.d. | BX88: n.d. | BY88: n.d. | BZ88: n.d. | CA88: n.d. | CB88: n.d. | CC88: n.d. | CD88: n.d. | CE88: n.d. | CF88: n.d. | CG88: n.d. | CH88: n.d. | CI88: n.d. | CJ88: n.d. | CK88: n.d. | CL88: n.d. | CM88: n.d. | CN88: n.d. | CO88: n.d. | CP88: n.d. | CQ88: n.d. | CR88: n.d. | CS88: n.d. | CT88: n.d. | CU88: n.d. | CV88: n.d. | CW88: n.d. | CX88: n.d. | CY88: n.d. | CZ88: n.d. | DA88: n.d. | DB88: n.d. | DC88: n.d. | DD88: n.d. | DE88: n.d. | DF88: n.d. | DG88: n.d. | DH88: n.d.
A89: 1997 | B89: marzo | C89: 1997-marzo | D89: 11.27904039 | E89: 10.30949235 | F89: 10.24184674 | G89: 9.532873965 | H89: n.d. | I89: n.d. | J89: n.d. | K89: n.d. | L89: n.d. | N89: n.d. | P89: n.d. | Q89: n.d. | R89: n.d. | S89: n.d. | T89: n.d. | U89: n.d. | V89: n.d. | W89: n.d. | X89: n.d. | Y89: n.d. | Z89: n.d. | AA89: n.d. | AC89: n.d. | AD89: n.d. | AE89: n.d. | AF89: n.d. | AG89: n.d. | AH89: n.d. | AI89: n.d. | AJ89: n.d. | AK89: n.d. | AL89: n.d. | AN89: n.d. | AO89: n.d. | AP89: n.d. | AQ89: n.d. | AR89: n.d. | AS89: n.d. | AT89: n.d. | AU89: n.d. | AV89: n.d. | AW89: n.d. | AX89: n.d. | AY89: n.d. | AZ89: n.d. | BA89: n.d. | BB89: n.d. | BC89: n.d. | BD89: n.d. | BE89: n.d. | BF89: n.d. | BG89: n.d. | BH89: n.d. | BI89: n.d. | BJ89: n.d. | BK89: n.a. | BL89: n.d. | BM89: n.d. | BN89: n.a. | BO89: n.d. | BP89: n.a. | BQ89: n.d. | BR89: n.d. | BS89: n.d. | BT89: n.d. | BU89: n.d. | BV89: n.d. | BW89: n.d. | BX89: n.d. | BY89: n.d. | BZ89: n.d. | CA89: n.d. | CB89: n.d. | CC89: n.d. | CD89: n.d. | CE89: n.d. | CF89: n.d. | CG89: n.d. | CH89: n.d. | CI89: n.d. | CJ89: n.d. | CK89: n.d. | CL89: n.d. | CM89: n.d. | CN89: n.d. | CO89: n.d. | CP89: n.d. | CQ89: n.d. | CR89: n.d. | CS89: n.d. | CT89: n.d. | CU89: n.d. | CV89: n.d. | CW89: n.d. | CX89: n.d. | CY89: n.d. | CZ89: n.d. | DA89: n.d. | DB89: n.d. | DC89: n.d. | DD89: n.d. | DE89: n.d. | DF89: n.d. | DG89: n.d. | DH89: n.d.
A90: 1997 | B90: abril | C90: 1997-abril | D90: 10.92810395 | E90: 10.15544422 | F90: 9.878776207 | G90: 9.388092431 | H90: n.d. | I90: n.d. | J90: n.d. | K90: n.d. | L90: n.d. | N90: n.d. | P90: n.d. | Q90: n.d. | R90: n.d. | S90: n.d. | T90: n.d. | U90: n.d. | V90: n.d. | W90: n.d. | X90: n.d. | Y90: n.d. | Z90: n.d. | AA90: n.d. | AC90: n.d. | AD90: n.d. | AE90: n.d. | AF90: n.d. | AG90: n.d. | AH90: n.d. | AI90: n.d. | AJ90: n.d. | AK90: n.d. | AL90: n.d. | AN90: n.d. | AO90: n.d. | AP90: n.d. | AQ90: n.d. | AR90: n.d. | AS90: n.d. | AT90: n.d. | AU90: n.d. | AV90: n.d. | AW90: n.d. | AX90: n.d. | AY90: n.d. | AZ90: n.d. | BA90: n.d. | BB90: n.d. | BC90: n.d. | BD90: n.d. | BE90: n.d. | BF90: n.d. | BG90: n.d. | BH90: n.d. | BI90: n.d. | BJ90: n.d. | BK90: n.a. | BL90: n.d. | BM90: n.d. | BN90: n.a. | BO90: n.d. | BP90: n.a. | BQ90: n.d. | BR90: n.d. | BS90: n.d. | BT90: n.d. | BU90: n.d. | BV90: n.d. | BW90: n.d. | BX90: n.d. | BY90: n.d. | BZ90: n.d. | CA90: n.d. | CB90: n.d. | CC90: n.d. | CD90: n.d. | CE90: n.d. | CF90: n.d. | CG90: n.d. | CH90: n.d. | CI90: n.d. | CJ90: n.d. | CK90: n.d. | CL90: n.d. | CM90: n.d. | CN90: n.d. | CO90: n.d. | CP90: n.d. | CQ90: n.d. | CR90: n.d. | CS90: n.d. | CT90: n.d. | CU90: n.d. | CV90: n.d. | CW90: n.d. | CX90: n.d. | CY90: n.d. | CZ90: n.d. | DA90: n.d. | DB90: n.d. | DC90: n.d. | DD90: n.d. | DE90: n.d. | DF90: n.d. | DG90: n.d. | DH90: n.d.
A91: 1997 | B91: mayo | C91: 1997-mayo | D91: 10.25761036 | E91: 10.00055012 | F91: 9.330560507 | G91: 9.243925239 | H91: n.d. | I91: n.d. | J91: n.d. | K91: n.d. | L91: n.d. | N91: n.d. | P91: n.d. | Q91: n.d. | R91: n.d. | S91: n.d. | T91: n.d. | U91: n.d. | V91: n.d. | W91: n.d. | X91: n.d. | Y91: n.d. | Z91: n.d. | AA91: n.d. | AC91: n.d. | AD91: n.d. | AE91: n.d. | AF91: n.d. | AG91: n.d. | AH91: n.d. | AI91: n.d. | AJ91: n.d. | AK91: n.d. | AL91: n.d. | AN91: n.d. | AO91: n.d. | AP91: n.d. | AQ91: n.d. | AR91: n.d. | AS91: n.d. | AT91: n.d. | AU91: n.d. | AV91: n.d. | AW91: n.d. | AX91: n.d. | AY91: n.d. | AZ91: n.d. | BA91: n.d. | BB91: n.d. | BC91: n.d. | BD91: n.d. | BE91: n.d. | BF91: n.d. | BG91: n.d. | BH91: n.d. | BI91: n.d. | BJ91: n.d. | BK91: n.a. | BL91: n.d. | BM91: n.d. | BN91: n.a. | BO91: n.d. | BP91: n.a. | BQ91: n.d. | BR91: n.d. | BS91: n.d. | BT91: n.d. | BU91: n.d. | BV91: n.d. | BW91: n.d. | BX91: n.d. | BY91: n.d. | BZ91: n.d. | CA91: n.d. | CB91: n.d. | CC91: n.d. | CD91: n.d. | CE91: n.d. | CF91: n.d. | CG91: n.d. | CH91: n.d. | CI91: n.d. | CJ91: n.d. | CK91: n.d. | CL91: n.d. | CM91: n.d. | CN91: n.d. | CO91: n.d. | CP91: n.d. | CQ91: n.d. | CR91: n.d. | CS91: n.d. | CT91: n.d. | CU91: n.d. | CV91: n.d. | CW91: n.d. | CX91: n.d. | CY91: n.d. | CZ91: n.d. | DA91: n.d. | DB91: n.d. | DC91: n.d. | DD91: n.d. | DE91: n.d. | DF91: n.d. | DG91: n.d. | DH91: n.d.
A92: 1997 | B92: junio | C92: 1997-junio | D92: 9.783092535 | E92: 9.845405022 | F92: 8.927290414 | G92: 9.100759905 | H92: n.d. | I92: n.d. | J92: n.d. | K92: n.d. | L92: n.d. | N92: n.d. | P92: n.d. | Q92: n.d. | R92: n.d. | S92: n.d. | T92: n.d. | U92: n.d. | V92: n.d. | W92: n.d. | X92: n.d. | Y92: n.d. | Z92: n.d. | AA92: n.d. | AC92: n.d. | AD92: n.d. | AE92: n.d. | AF92: n.d. | AG92: n.d. | AH92: n.d. | AI92: n.d. | AJ92: n.d. | AK92: n.d. | AL92: n.d. | AN92: n.d. | AO92: n.d. | AP92: n.d. | AQ92: n.d. | AR92: n.d. | AS92: n.d. | AT92: n.d. | AU92: n.d. | AV92: n.d. | AW92: n.d. | AX92: n.d. | AY92: n.d. | AZ92: n.d. | BA92: n.d. | BB92: n.d. | BC92: n.d. | BD92: n.d. | BE92: n.d. | BF92: n.d. | BG92: n.d. | BH92: n.d. | BI92: n.d. | BJ92: n.d. | BK92: n.a. | BL92: n.d. | BM92: n.d. | BN92: n.a. | BO92: n.d. | BP92: n.a. | BQ92: n.d. | BR92: n.d. | BS92: n.d. | BT92: n.d. | BU92: n.d. | BV92: n.d. | BW92: n.d. | BX92: n.d. | BY92: n.d. | BZ92: n.d. | CA92: n.d. | CB92: n.d. | CC92: n.d. | CD92: n.d. | CE92: n.d. | CF92: n.d. | CG92: n.d. | CH92: n.d. | CI92: n.d. | CJ92: n.d. | CK92: n.d. | CL92: n.d. | CM92: n.d. | CN92: n.d. | CO92: n.d. | CP92: n.d. | CQ92: n.d. | CR92: n.d. | CS92: n.d. | CT92: n.d. | CU92: n.d. | CV92: n.d. | CW92: n.d. | CX92: n.d. | CY92: n.d. | CZ92: n.d. | DA92: n.d. | DB92: n.d. | DC92: n.d. | DD92: n.d. | DE92: n.d. | DF92: n.d. | DG92: n.d. | DH92: n.d.
A93: 1997 | B93: julio | C93: 1997-julio | D93: 10.03522243 | E93: 9.690634054 | F93: 9.141752932 | G93: 8.959024357 | H93: n.d. | I93: n.d. | J93: n.d. | K93: n.d. | L93: n.d. | N93: n.d. | P93: n.d. | Q93: n.d. | R93: n.d. | S93: n.d. | T93: n.d. | U93: n.d. | V93: n.d. | W93: n.d. | X93: n.d. | Y93: n.d. | Z93: n.d. | AA93: n.d. | AC93: n.d. | AD93: n.d. | AE93: n.d. | AF93: n.d. | AG93: n.d. | AH93: n.d. | AI93: n.d. | AJ93: n.d. | AK93: n.d. | AL93: n.d. | AN93: n.d. | AO93: n.d. | AP93: n.d. | AQ93: n.d. | AR93: n.d. | AS93: n.d. | AT93: n.d. | AU93: n.d. | AV93: n.d. | AW93: n.d. | AX93: n.d. | AY93: n.d. | AZ93: n.d. | BA93: n.d. | BB93: n.d. | BC93: n.d. | BD93: n.d. | BE93: n.d. | BF93: n.d. | BG93: n.d. | BH93: n.d. | BI93: n.d. | BJ93: n.d. | BK93: n.a. | BL93: n.d. | BM93: n.d. | BN93: n.a. | BO93: n.d. | BP93: n.a. | BQ93: n.d. | BR93: n.d. | BS93: n.d. | BT93: n.d. | BU93: n.d. | BV93: n.d. | BW93: n.d. | BX93: n.d. | BY93: n.d. | BZ93: n.d. | CA93: n.d. | CB93: n.d. | CC93: n.d. | CD93: n.d. | CE93: n.d. | CF93: n.d. | CG93: n.d. | CH93: n.d. | CI93: n.d. | CJ93: n.d. | CK93: n.d. | CL93: n.d. | CM93: n.d. | CN93: n.d. | CO93: n.d. | CP93: n.d. | CQ93: n.d. | CR93: n.d. | CS93: n.d. | CT93: n.d. | CU93: n.d. | CV93: n.d. | CW93: n.d. | CX93: n.d. | CY93: n.d. | CZ93: n.d. | DA93: n.d. | DB93: n.d. | DC93: n.d. | DD93: n.d. | DE93: n.d. | DF93: n.d. | DG93: n.d. | DH93: n.d.
A94: 1997 | B94: agosto | C94: 1997-agosto | D94: 9.467280342 | E94: 9.536878612 | F94: 8.614884677 | G94: 8.819176732 | H94: n.d. | I94: n.d. | J94: n.d. | K94: n.d. | L94: n.d. | N94: n.d. | P94: n.d. | Q94: n.d. | R94: n.d. | S94: n.d. | T94: n.d. | U94: n.d. | V94: n.d. | W94: n.d. | X94: n.d. | Y94: n.d. | Z94: n.d. | AA94: n.d. | AC94: n.d. | AD94: n.d. | AE94: n.d. | AF94: n.d. | AG94: n.d. | AH94: n.d. | AI94: n.d. | AJ94: n.d. | AK94: n.d. | AL94: n.d. | AN94: n.d. | AO94: n.d. | AP94: n.d. | AQ94: n.d. | AR94: n.d. | AS94: n.d. | AT94: n.d. | AU94: n.d. | AV94: n.d. | AW94: n.d. | AX94: n.d. | AY94: n.d. | AZ94: n.d. | BA94: n.d. | BB94: n.d. | BC94: n.d. | BD94: n.d. | BE94: n.d. | BF94: n.d. | BG94: n.d. | BH94: n.d. | BI94: n.d. | BJ94: n.d. | BK94: n.a. | BL94: n.d. | BM94: n.d. | BN94: n.a. | BO94: n.d. | BP94: n.a. | BQ94: n.d. | BR94: n.d. | BS94: n.d. | BT94: n.d. | BU94: n.d. | BV94: n.d. | BW94: n.d. | BX94: n.d. | BY94: n.d. | BZ94: n.d. | CA94: n.d. | CB94: n.d. | CC94: n.d. | CD94: n.d. | CE94: n.d. | CF94: n.d. | CG94: n.d. | CH94: n.d. | CI94: n.d. | CJ94: n.d. | CK94: n.d. | CL94: n.d. | CM94: n.d. | CN94: n.d. | CO94: n.d. | CP94: n.d. | CQ94: n.d. | CR94: n.d. | CS94: n.d. | CT94: n.d. | CU94: n.d. | CV94: n.d. | CW94: n.d. | CX94: n.d. | CY94: n.d. | CZ94: n.d. | DA94: n.d. | DB94: n.d. | DC94: n.d. | DD94: n.d. | DE94: n.d. | DF94: n.d. | DG94: n.d. | DH94: n.d.
A95: 1997 | B95: septiembre | C95: 1997-septiembre | D95: 9.121626694 | E95: 9.384805042 | F95: 8.286272846 | G95: 8.681709359 | H95: n.d. | I95: n.d. | J95: n.d. | K95: n.d. | L95: n.d. | N95: n.d. | P95: n.d. | Q95: n.d. | R95: n.d. | S95: n.d. | T95: n.d. | U95: n.d. | V95: n.d. | W95: n.d. | X95: n.d. | Y95: n.d. | Z95: n.d. | AA95: n.d. | AC95: n.d. | AD95: n.d. | AE95: n.d. | AF95: n.d. | AG95: n.d. | AH95: n.d. | AI95: n.d. | AJ95: n.d. | AK95: n.d. | AL95: n.d. | AN95: n.d. | AO95: n.d. | AP95: n.d. | AQ95: n.d. | AR95: n.d. | AS95: n.d. | AT95: n.d. | AU95: n.d. | AV95: n.d. | AW95: n.d. | AX95: n.d. | AY95: n.d. | AZ95: n.d. | BA95: n.d. | BB95: n.d. | BC95: n.d. | BD95: n.d. | BE95: n.d. | BF95: n.d. | BG95: n.d. | BH95: n.d. | BI95: n.d. | BJ95: n.d. | BK95: n.a. | BL95: n.d. | BM95: n.d. | BN95: n.a. | BO95: n.d. | BP95: n.a. | BQ95: n.d. | BR95: n.d. | BS95: n.d. | BT95: n.d. | BU95: n.d. | BV95: n.d. | BW95: n.d. | BX95: n.d. | BY95: n.d. | BZ95: n.d. | CA95: n.d. | CB95: n.d. | CC95: n.d. | CD95: n.d. | CE95: n.d. | CF95: n.d. | CG95: n.d. | CH95: n.d. | CI95: n.d. | CJ95: n.d. | CK95: n.d. | CL95: n.d. | CM95: n.d. | CN95: n.d. | CO95: n.d. | CP95: n.d. | CQ95: n.d. | CR95: n.d. | CS95: n.d. | CT95: n.d. | CU95: n.d. | CV95: n.d. | CW95: n.d. | CX95: n.d. | CY95: n.d. | CZ95: n.d. | DA95: n.d. | DB95: n.d. | DC95: n.d. | DD95: n.d. | DE95: n.d. | DF95: n.d. | DG95: n.d. | DH95: n.d.
A96: 1997 | B96: octubre | C96: 1997-octubre | D96: 8.627618004 | E96: 9.235090841 | F96: 7.74647049 | G96: 8.547137132 | H96: n.d. | I96: n.d. | J96: n.d. | K96: n.d. | L96: n.d. | N96: n.d. | P96: n.d. | Q96: n.d. | R96: n.d. | S96: n.d. | T96: n.d. | U96: n.d. | V96: n.d. | W96: n.d. | X96: n.d. | Y96: n.d. | Z96: n.d. | AA96: n.d. | AC96: n.d. | AD96: n.d. | AE96: n.d. | AF96: n.d. | AG96: n.d. | AH96: n.d. | AI96: n.d. | AJ96: n.d. | AK96: n.d. | AL96: n.d. | AN96: n.d. | AO96: n.d. | AP96: n.d. | AQ96: n.d. | AR96: n.d. | AS96: n.d. | AT96: n.d. | AU96: n.d. | AV96: n.d. | AW96: n.d. | AX96: n.d. | AY96: n.d. | AZ96: n.d. | BA96: n.d. | BB96: n.d. | BC96: n.d. | BD96: n.d. | BE96: n.d. | BF96: n.d. | BG96: n.d. | BH96: n.d. | BI96: n.d. | BJ96: n.d. | BK96: n.a. | BL96: n.d. | BM96: n.d. | BN96: n.a. | BO96: n.d. | BP96: n.a. | BQ96: n.d. | BR96: n.d. | BS96: n.d. | BT96: n.d. | BU96: n.d. | BV96: n.d. | BW96: n.d. | BX96: n.d. | BY96: n.d. | BZ96: n.d. | CA96: n.d. | CB96: n.d. | CC96: n.d. | CD96: n.d. | CE96: n.d. | CF96: n.d. | CG96: n.d. | CH96: n.d. | CI96: n.d. | CJ96: n.d. | CK96: n.d. | CL96: n.d. | CM96: n.d. | CN96: n.d. | CO96: n.d. | CP96: n.d. | CQ96: n.d. | CR96: n.d. | CS96: n.d. | CT96: n.d. | CU96: n.d. | CV96: n.d. | CW96: n.d. | CX96: n.d. | CY96: n.d. | CZ96: n.d. | DA96: n.d. | DB96: n.d. | DC96: n.d. | DD96: n.d. | DE96: n.d. | DF96: n.d. | DG96: n.d. | DH96: n.d.
A97: 1997 | B97: noviembre | C97: 1997-noviembre | D97: 8.410584012 | E97: 9.088401186 | F97: 7.533135461 | G97: 8.415974056 | H97: n.d. | I97: n.d. | J97: n.d. | K97: n.d. | L97: n.d. | N97: n.d. | P97: n.d. | Q97: n.d. | R97: n.d. | S97: n.d. | T97: n.d. | U97: n.d. | V97: n.d. | W97: n.d. | X97: n.d. | Y97: n.d. | Z97: n.d. | AA97: n.d. | AC97: n.d. | AD97: n.d. | AE97: n.d. | AF97: n.d. | AG97: n.d. | AH97: n.d. | AI97: n.d. | AJ97: n.d. | AK97: n.d. | AL97: n.d. | AN97: n.d. | AO97: n.d. | AP97: n.d. | AQ97: n.d. | AR97: n.d. | AS97: n.d. | AT97: n.d. | AU97: n.d. | AV97: n.d. | AW97: n.d. | AX97: n.d. | AY97: n.d. | AZ97: n.d. | BA97: n.d. | BB97: n.d. | BC97: n.d. | BD97: n.d. | BE97: n.d. | BF97: n.d. | BG97: n.d. | BH97: n.d. | BI97: n.d. | BJ97: n.d. | BK97: n.a. | BL97: n.d. | BM97: n.d. | BN97: n.a. | BO97: n.d. | BP97: n.a. | BQ97: n.d. | BR97: n.d. | BS97: n.d. | BT97: n.d. | BU97: n.d. | BV97: n.d. | BW97: n.d. | BX97: n.d. | BY97: n.d. | BZ97: n.d. | CA97: n.d. | CB97: n.d. | CC97: n.d. | CD97: n.d. | CE97: n.d. | CF97: n.d. | CG97: n.d. | CH97: n.d. | CI97: n.d. | CJ97: n.d. | CK97: n.d. | CL97: n.d. | CM97: n.d. | CN97: n.d. | CO97: n.d. | CP97: n.d. | CQ97: n.d. | CR97: n.d. | CS97: n.d. | CT97: n.d. | CU97: n.d. | CV97: n.d. | CW97: n.d. | CX97: n.d. | CY97: n.d. | CZ97: n.d. | DA97: n.d. | DB97: n.d. | DC97: n.d. | DD97: n.d. | DE97: n.d. | DF97: n.d. | DG97: n.d. | DH97: n.d.
A98: 1997 | B98: diciembre | C98: 1997-diciembre | D98: 7.727581163 | E98: 8.945372889 | F98: 6.84554434 | G98: 8.288715053 | H98: n.d. | I98: n.d. | J98: n.d. | K98: n.d. | L98: n.d. | M98: n.d. | N98: n.d. | O98: n.d. | P98: n.d. | Q98: n.d. | R98: n.d. | S98: n.d. | T98: n.d. | U98: n.d. | V98: n.d. | W98: n.d. | X98: n.d. | Y98: n.d. | Z98: n.d. | AA98: n.d. | AC98: n.d. | AD98: n.d. | AE98: n.d. | AF98: n.d. | AG98: n.d. | AH98: n.d. | AI98: n.d. | AJ98: n.d. | AK98: n.d. | AL98: n.d. | AN98: n.d. | AO98: n.d. | AP98: n.d. | AQ98: n.d. | AR98: n.d. | AS98: n.d. | AT98: n.d. | AU98: n.d. | AV98: n.d. | AW98: n.d. | AX98: n.d. | AY98: n.d. | AZ98: n.d. | BA98: n.d. | BB98: n.d. | BC98: n.d. | BD98: n.d. | BE98: n.d. | BF98: n.d. | BG98: n.d. | BH98: n.d. | BI98: n.d. | BJ98: n.d. | BK98: n.a. | BL98: n.d. | BM98: n.d. | BN98: n.a. | BO98: n.d. | BP98: n.a. | BQ98: n.d. | BR98: n.d. | BS98: n.d. | BT98: n.d. | BU98: n.d. | BV98: n.d. | BW98: n.d. | BX98: n.d. | BY98: n.d. | BZ98: n.d. | CA98: n.d. | CB98: n.d. | CC98: n.d. | CD98: n.d. | CE98: n.d. | CF98: n.d. | CG98: n.d. | CH98: n.d. | CI98: n.d. | CJ98: n.d. | CK98: n.d. | CL98: n.d. | CM98: n.d. | CN98: n.d. | CO98: n.d. | CP98: n.d. | CQ98: n.d. | CR98: n.d. | CS98: n.d. | CT98: n.d. | CU98: n.d. | CV98: n.d. | CW98: n.d. | CX98: n.d. | CY98: n.d. | CZ98: n.d. | DA98: n.d. | DB98: n.d. | DC98: n.d. | DD98: n.d. | DE98: n.d. | DF98: n.d. | DG98: n.d. | DH98: n.d.
A99: 1998 | B99: enero | C99: 1998-enero | D99: 6.985039883 | E99: 8.80660427 | F99: 6.2406962 | G99: 8.165822567 | H99: n.d. | I99: n.d. | J99: n.d. | K99: n.d. | L99: n.d. | N99: n.d. | P99: n.d. | Q99: n.d. | R99: n.d. | S99: n.d. | T99: n.d. | U99: n.d. | V99: n.d. | W99: n.d. | X99: n.d. | Y99: n.d. | Z99: n.d. | AA99: n.d. | AC99: n.d. | AD99: n.d. | AE99: n.d. | AF99: n.d. | AG99: n.d. | AH99: n.d. | AI99: n.d. | AJ99: n.d. | AK99: n.d. | AL99: n.d. | AN99: n.d. | AO99: n.d. | AP99: n.d. | AQ99: n.d. | AR99: n.d. | AS99: n.d. | AT99: n.d. | AU99: n.d. | AV99: n.d. | AW99: n.d. | AX99: n.d. | AY99: n.d. | AZ99: n.d. | BA99: n.d. | BB99: n.d. | BC99: n.d. | BD99: n.d. | BE99: n.d. | BF99: n.d. | BG99: n.d. | BH99: n.d. | BI99: n.d. | BJ99: n.d. | BK99: n.a. | BL99: n.d. | BM99: n.d. | BN99: n.a. | BO99: n.d. | BP99: n.a. | BQ99: n.d. | BR99: n.d. | BS99: n.d. | BT99: n.d. | BU99: n.d. | BV99: n.d. | BW99: n.d. | BX99: n.d. | BY99: n.d. | BZ99: n.d. | CA99: n.d. | CB99: n.d. | CC99: n.d. | CD99: n.d. | CE99: n.d. | CF99: n.d. | CG99: n.d. | CH99: n.d. | CI99: n.d. | CJ99: n.d. | CK99: n.d. | CL99: n.d. | CM99: n.d. | CN99: n.d. | CO99: n.d. | CP99: n.d. | CQ99: n.d. | CR99: n.d. | CS99: n.d. | CT99: n.d. | CU99: n.d. | CV99: n.d. | CW99: n.d. | CX99: n.d. | CY99: n.d. | CZ99: n.d. | DA99: n.d. | DB99: n.d. | DC99: n.d. | DD99: n.d. | DE99: n.d. | DF99: n.d. | DG99: n.d. | DH99: n.d.
A100: 1998 | B100: febrero | C100: 1998-febrero | D100: 6.468176552 | E100: 8.67262948 | F100: 5.75062312 | G100: 8.047698828 | H100: n.d. | I100: n.d. | J100: n.d. | K100: n.d. | L100: n.d. | N100: n.d. | P100: n.d. | Q100: n.d. | R100: n.d. | S100: n.d. | T100: n.d. | U100: n.d. | V100: n.d. | W100: n.d. | X100: n.d. | Y100: n.d. | Z100: n.d. | AA100: n.d. | AC100: n.d. | AD100: n.d. | AE100: n.d. | AF100: n.d. | AG100: n.d. | AH100: n.d. | AI100: n.d. | AJ100: n.d. | AK100: n.d. | AL100: n.d. | AN100: n.d. | AO100: n.d. | AP100: n.d. | AQ100: n.d. | AR100: n.d. | AS100: n.d. | AT100: n.d. | AU100: n.d. | AV100: n.d. | AW100: n.d. | AX100: n.d. | AY100: n.d. | AZ100: n.d. | BA100: n.d. | BB100: n.d. | BC100: n.d. | BD100: n.d. | BE100: n.d. | BF100: n.d. | BG100: n.d. | BH100: n.d. | BI100: n.d. | BJ100: n.d. | BK100: n.a. | BL100: n.d. | BM100: n.d. | BN100: n.a. | BO100: n.d. | BP100: n.a. | BQ100: n.d. | BR100: n.d. | BS100: n.d. | BT100: n.d. | BU100: n.d. | BV100: n.d. | BW100: n.d. | BX100: n.d. | BY100: n.d. | BZ100: n.d. | CA100: n.d. | CB100: n.d. | CC100: n.d. | CD100: n.d. | CE100: n.d. | CF100: n.d. | CG100: n.d. | CH100: n.d. | CI100: n.d. | CJ100: n.d. | CK100: n.d. | CL100: n.d. | CM100: n.d. | CN100: n.d. | CO100: n.d. | CP100: n.d. | CQ100: n.d. | CR100: n.d. | CS100: n.d. | CT100: n.d. | CU100: n.d. | CV100: n.d. | CW100: n.d. | CX100: n.d. | CY100: n.d. | CZ100: n.d. | DA100: n.d. | DB100: n.d. | DC100: n.d. | DD100: n.d. | DE100: n.d. | DF100: n.d. | DG100: n.d. | DH100: n.d.
A101: 1998 | B101: marzo | C101: 1998-marzo | D101: 6.780875178 | E101: 8.543877851 | F101: 6.058885628 | G101: 7.934647488 | H101: n.d. | I101: n.d. | J101: n.d. | K101: n.d. | L101: n.d. | N101: n.d. | P101: n.d. | Q101: n.d. | R101: n.d. | S101: n.d. | T101: n.d. | U101: n.d. | V101: n.d. | W101: n.d. | X101: n.d. | Y101: n.d. | Z101: n.d. | AA101: n.d. | AC101: n.d. | AD101: n.d. | AE101: n.d. | AF101: n.d. | AG101: n.d. | AH101: n.d. | AI101: n.d. | AJ101: n.d. | AK101: n.d. | AL101: n.d. | AN101: n.d. | AO101: n.d. | AP101: n.d. | AQ101: n.d. | AR101: n.d. | AS101: n.d. | AT101: n.d. | AU101: n.d. | AV101: n.d. | AW101: n.d. | AX101: n.d. | AY101: n.d. | AZ101: n.d. | BA101: n.d. | BB101: n.d. | BC101: n.d. | BD101: n.d. | BE101: n.d. | BF101: n.d. | BG101: n.d. | BH101: n.d. | BI101: n.d. | BJ101: n.d. | BK101: n.a. | BL101: n.d. | BM101: n.d. | BN101: n.a. | BO101: n.d. | BP101: n.a. | BQ101: n.d. | BR101: n.d. | BS101: n.d. | BT101: n.d. | BU101: n.d. | BV101: n.d. | BW101: n.d. | BX101: n.d. | BY101: n.d. | BZ101: n.d. | CA101: n.d. | CB101: n.d. | CC101: n.d. | CD101: n.d. | CE101: n.d. | CF101: n.d. | CG101: n.d. | CH101: n.d. | CI101: n.d. | CJ101: n.d. | CK101: n.d. | CL101: n.d. | CM101: n.d. | CN101: n.d. | CO101: n.d. | CP101: n.d. | CQ101: n.d. | CR101: n.d. | CS101: n.d. | CT101: n.d. | CU101: n.d. | CV101: n.d. | CW101: n.d. | CX101: n.d. | CY101: n.d. | CZ101: n.d. | DA101: n.d. | DB101: n.d. | DC101: n.d. | DD101: n.d. | DE101: n.d. | DF101: n.d. | DG101: n.d. | DH101: n.d.
A102: 1998 | B102: abril | C102: 1998-abril | D102: 7.094731764 | E102: 8.420662418 | F102: 6.35836918 | G102: 7.826861716 | H102: n.d. | I102: n.d. | J102: n.d. | K102: n.d. | L102: n.d. | N102: n.d. | P102: n.d. | Q102: n.d. | R102: n.d. | S102: n.d. | T102: n.d. | U102: n.d. | V102: n.d. | W102: n.d. | X102: n.d. | Y102: n.d. | Z102: n.d. | AA102: n.d. | AC102: n.d. | AD102: n.d. | AE102: n.d. | AF102: n.d. | AG102: n.d. | AH102: n.d. | AI102: n.d. | AJ102: n.d. | AK102: n.d. | AL102: n.d. | AN102: n.d. | AO102: n.d. | AP102: n.d. | AQ102: n.d. | AR102: n.d. | AS102: n.d. | AT102: n.d. | AU102: n.d. | AV102: n.d. | AW102: n.d. | AX102: n.d. | AY102: n.d. | AZ102: n.d. | BA102: n.d. | BB102: n.d. | BC102: n.d. | BD102: n.d. | BE102: n.d. | BF102: n.d. | BG102: n.d. | BH102: n.d. | BI102: n.d. | BJ102: n.d. | BK102: n.a. | BL102: n.d. | BM102: n.d. | BN102: n.a. | BO102: n.d. | BP102: n.a. | BQ102: n.d. | BR102: n.d. | BS102: n.d. | BT102: n.d. | BU102: n.d. | BV102: n.d. | BW102: n.d. | BX102: n.d. | BY102: n.d. | BZ102: n.d. | CA102: n.d. | CB102: n.d. | CC102: n.d. | CD102: n.d. | CE102: n.d. | CF102: n.d. | CG102: n.d. | CH102: n.d. | CI102: n.d. | CJ102: n.d. | CK102: n.d. | CL102: n.d. | CM102: n.d. | CN102: n.d. | CO102: n.d. | CP102: n.d. | CQ102: n.d. | CR102: n.d. | CS102: n.d. | CT102: n.d. | CU102: n.d. | CV102: n.d. | CW102: n.d. | CX102: n.d. | CY102: n.d. | CZ102: n.d. | DA102: n.d. | DB102: n.d. | DC102: n.d. | DD102: n.d. | DE102: n.d. | DF102: n.d. | DG102: n.d. | DH102: n.d.
A103: 1998 | B103: mayo | C103: 1998-mayo | D103: 7.516009495 | E103: 8.303206627 | F103: 6.723522034 | G103: 7.724447745 | H103: n.d. | I103: n.d. | J103: n.d. | K103: n.d. | L103: n.d. | N103: n.d. | P103: n.d. | Q103: n.d. | R103: n.d. | S103: n.d. | T103: n.d. | U103: n.d. | V103: n.d. | W103: n.d. | X103: n.d. | Y103: n.d. | Z103: n.d. | AA103: n.d. | AC103: n.d. | AD103: n.d. | AE103: n.d. | AF103: n.d. | AG103: n.d. | AH103: n.d. | AI103: n.d. | AJ103: n.d. | AK103: n.d. | AL103: n.d. | AN103: n.d. | AO103: n.d. | AP103: n.d. | AQ103: n.d. | AR103: n.d. | AS103: n.d. | AT103: n.d. | AU103: n.d. | AV103: n.d. | AW103: n.d. | AX103: n.d. | AY103: n.d. | AZ103: n.d. | BA103: n.d. | BB103: n.d. | BC103: n.d. | BD103: n.d. | BE103: n.d. | BF103: n.d. | BG103: n.d. | BH103: n.d. | BI103: n.d. | BJ103: n.d. | BK103: n.a. | BL103: n.d. | BM103: n.d. | BN103: n.a. | BO103: n.d. | BP103: n.a. | BQ103: n.d. | BR103: n.d. | BS103: n.d. | BT103: n.d. | BU103: n.d. | BV103: n.d. | BW103: n.d. | BX103: n.d. | BY103: n.d. | BZ103: n.d. | CA103: n.d. | CB103: n.d. | CC103: n.d. | CD103: n.d. | CE103: n.d. | CF103: n.d. | CG103: n.d. | CH103: n.d. | CI103: n.d. | CJ103: n.d. | CK103: n.d. | CL103: n.d. | CM103: n.d. | CN103: n.d. | CO103: n.d. | CP103: n.d. | CQ103: n.d. | CR103: n.d. | CS103: n.d. | CT103: n.d. | CU103: n.d. | CV103: n.d. | CW103: n.d. | CX103: n.d. | CY103: n.d. | CZ103: n.d. | DA103: n.d. | DB103: n.d. | DC103: n.d. | DD103: n.d. | DE103: n.d. | DF103: n.d. | DG103: n.d. | DH103: n.d.
A104: 1998 | B104: junio | C104: 1998-junio | D104: 7.565869672 | E104: 8.191678951 | F104: 6.787737645 | G104: 7.627458459 | H104: n.d. | I104: n.d. | J104: n.d. | K104: n.d. | L104: n.d. | N104: n.d. | P104: n.d. | Q104: n.d. | R104: n.d. | S104: n.d. | T104: n.d. | U104: n.d. | V104: n.d. | W104: n.d. | X104: n.d. | Y104: n.d. | Z104: n.d. | AA104: n.d. | AC104: n.d. | AD104: n.d. | AE104: n.d. | AF104: n.d. | AG104: n.d. | AH104: n.d. | AI104: n.d. | AJ104: n.d. | AK104: n.d. | AL104: n.d. | AN104: n.d. | AO104: n.d. | AP104: n.d. | AQ104: n.d. | AR104: n.d. | AS104: n.d. | AT104: n.d. | AU104: n.d. | AV104: n.d. | AW104: n.d. | AX104: n.d. | AY104: n.d. | AZ104: n.d. | BA104: n.d. | BB104: n.d. | BC104: n.d. | BD104: n.d. | BE104: n.d. | BF104: n.d. | BG104: n.d. | BH104: n.d. | BI104: n.d. | BJ104: n.d. | BK104: n.a. | BL104: n.d. | BM104: n.d. | BN104: n.a. | BO104: n.d. | BP104: n.a. | BQ104: n.d. | BR104: n.d. | BS104: n.d. | BT104: n.d. | BU104: n.d. | BV104: n.d. | BW104: n.d. | BX104: n.d. | BY104: n.d. | BZ104: n.d. | CA104: n.d. | CB104: n.d. | CC104: n.d. | CD104: n.d. | CE104: n.d. | CF104: n.d. | CG104: n.d. | CH104: n.d. | CI104: n.d. | CJ104: n.d. | CK104: n.d. | CL104: n.d. | CM104: n.d. | CN104: n.d. | CO104: n.d. | CP104: n.d. | CQ104: n.d. | CR104: n.d. | CS104: n.d. | CT104: n.d. | CU104: n.d. | CV104: n.d. | CW104: n.d. | CX104: n.d. | CY104: n.d. | CZ104: n.d. | DA104: n.d. | DB104: n.d. | DC104: n.d. | DD104: n.d. | DE104: n.d. | DF104: n.d. | DG104: n.d. | DH104: n.d.
A105: 1998 | B105: julio | C105: 1998-julio | D105: 7.130015195 | E105: 8.086223556 | F105: 6.389576304 | G105: 7.53592113 | H105: n.d. | I105: n.d. | J105: n.d. | K105: n.d. | L105: n.d. | N105: n.d. | P105: n.d. | Q105: n.d. | R105: n.d. | S105: n.d. | T105: n.d. | U105: n.d. | V105: n.d. | W105: n.d. | X105: n.d. | Y105: n.d. | Z105: n.d. | AA105: n.d. | AC105: n.d. | AD105: n.d. | AE105: n.d. | AF105: n.d. | AG105: n.d. | AH105: n.d. | AI105: n.d. | AJ105: n.d. | AK105: n.d. | AL105: n.d. | AN105: n.d. | AO105: n.d. | AP105: n.d. | AQ105: n.d. | AR105: n.d. | AS105: n.d. | AT105: n.d. | AU105: n.d. | AV105: n.d. | AW105: n.d. | AX105: n.d. | AY105: n.d. | AZ105: n.d. | BA105: n.d. | BB105: n.d. | BC105: n.d. | BD105: n.d. | BE105: n.d. | BF105: n.d. | BG105: n.d. | BH105: n.d. | BI105: n.d. | BJ105: n.d. | BK105: n.a. | BL105: n.d. | BM105: n.d. | BN105: n.a. | BO105: n.d. | BP105: n.a. | BQ105: n.d. | BR105: n.d. | BS105: n.d. | BT105: n.d. | BU105: n.d. | BV105: n.d. | BW105: n.d. | BX105: n.d. | BY105: n.d. | BZ105: n.d. | CA105: n.d. | CB105: n.d. | CC105: n.d. | CD105: n.d. | CE105: n.d. | CF105: n.d. | CG105: n.d. | CH105: n.d. | CI105: n.d. | CJ105: n.d. | CK105: n.d. | CL105: n.d. | CM105: n.d. | CN105: n.d. | CO105: n.d. | CP105: n.d. | CQ105: n.d. | CR105: n.d. | CS105: n.d. | CT105: n.d. | CU105: n.d. | CV105: n.d. | CW105: n.d. | CX105: n.d. | CY105: n.d. | CZ105: n.d. | DA105: n.d. | DB105: n.d. | DC105: n.d. | DD105: n.d. | DE105: n.d. | DF105: n.d. | DG105: n.d. | DH105: n.d.
A106: 1998 | B106: agosto | C106: 1998-agosto | D106: 6.702475498 | E106: 7.986972704 | F106: 6.008810526 | G106: 7.449848587 | H106: n.d. | I106: n.d. | J106: n.d. | K106: n.d. | L106: n.d. | N106: n.d. | P106: n.d. | Q106: n.d. | R106: n.d. | S106: n.d. | T106: n.d. | U106: n.d. | V106: n.d. | W106: n.d. | X106: n.d. | Y106: n.d. | Z106: n.d. | AA106: n.d. | AC106: n.d. | AD106: n.d. | AE106: n.d. | AF106: n.d. | AG106: n.d. | AH106: n.d. | AI106: n.d. | AJ106: n.d. | AK106: n.d. | AL106: n.d. | AN106: n.d. | AO106: n.d. | AP106: n.d. | AQ106: n.d. | AR106: n.d. | AS106: n.d. | AT106: n.d. | AU106: n.d. | AV106: n.d. | AW106: n.d. | AX106: n.d. | AY106: n.d. | AZ106: n.d. | BA106: n.d. | BB106: n.d. | BC106: n.d. | BD106: n.d. | BE106: n.d. | BF106: n.d. | BG106: n.d. | BH106: n.d. | BI106: n.d. | BJ106: n.d. | BK106: n.a. | BL106: n.d. | BM106: n.d. | BN106: n.a. | BO106: n.d. | BP106: n.a. | BQ106: n.d. | BR106: n.d. | BS106: n.d. | BT106: n.d. | BU106: n.d. | BV106: n.d. | BW106: n.d. | BX106: n.d. | BY106: n.d. | BZ106: n.d. | CA106: n.d. | CB106: n.d. | CC106: n.d. | CD106: n.d. | CE106: n.d. | CF106: n.d. | CG106: n.d. | CH106: n.d. | CI106: n.d. | CJ106: n.d. | CK106: n.d. | CL106: n.d. | CM106: n.d. | CN106: n.d. | CO106: n.d. | CP106: n.d. | CQ106: n.d. | CR106: n.d. | CS106: n.d. | CT106: n.d. | CU106: n.d. | CV106: n.d. | CW106: n.d. | CX106: n.d. | CY106: n.d. | CZ106: n.d. | DA106: n.d. | DB106: n.d. | DC106: n.d. | DD106: n.d. | DE106: n.d. | DF106: n.d. | DG106: n.d. | DH106: n.d.
A107: 1998 | B107: septiembre | C107: 1998-septiembre | D107: 6.446470089 | E107: 7.894036586 | F107: 5.830235588 | G107: 7.369228922 | H107: n.d. | I107: n.d. | J107: n.d. | K107: n.d. | L107: n.d. | N107: n.d. | P107: n.d. | Q107: n.d. | R107: n.d. | S107: n.d. | T107: n.d. | U107: n.d. | V107: n.d. | W107: n.d. | X107: n.d. | Y107: n.d. | Z107: n.d. | AA107: n.d. | AC107: n.d. | AD107: n.d. | AE107: n.d. | AF107: n.d. | AG107: n.d. | AH107: n.d. | AI107: n.d. | AJ107: n.d. | AK107: n.d. | AL107: n.d. | AN107: n.d. | AO107: n.d. | AP107: n.d. | AQ107: n.d. | AR107: n.d. | AS107: n.d. | AT107: n.d. | AU107: n.d. | AV107: n.d. | AW107: n.d. | AX107: n.d. | AY107: n.d. | AZ107: n.d. | BA107: n.d. | BB107: n.d. | BC107: n.d. | BD107: n.d. | BE107: n.d. | BF107: n.d. | BG107: n.d. | BH107: n.d. | BI107: n.d. | BJ107: n.d. | BK107: n.a. | BL107: n.d. | BM107: n.d. | BN107: n.a. | BO107: n.d. | BP107: n.a. | BQ107: n.d. | BR107: n.d. | BS107: n.d. | BT107: n.d. | BU107: n.d. | BV107: n.d. | BW107: n.d. | BX107: n.d. | BY107: n.d. | BZ107: n.d. | CA107: n.d. | CB107: n.d. | CC107: n.d. | CD107: n.d. | CE107: n.d. | CF107: n.d. | CG107: n.d. | CH107: n.d. | CI107: n.d. | CJ107: n.d. | CK107: n.d. | CL107: n.d. | CM107: n.d. | CN107: n.d. | CO107: n.d. | CP107: n.d. | CQ107: n.d. | CR107: n.d. | CS107: n.d. | CT107: n.d. | CU107: n.d. | CV107: n.d. | CW107: n.d. | CX107: n.d. | CY107: n.d. | CZ107: n.d. | DA107: n.d. | DB107: n.d. | DC107: n.d. | DD107: n.d. | DE107: n.d. | DF107: n.d. | DG107: n.d. | DH107: n.d.
A108: 1998 | B108: octubre | C108: 1998-octubre | D108: 7.097419067 | E108: 7.807483002 | F108: 6.479929954 | G108: 7.294007847 | H108: n.d. | I108: n.d. | J108: n.d. | K108: n.d. | L108: n.d. | N108: n.d. | P108: n.d. | Q108: n.d. | R108: n.d. | S108: n.d. | T108: n.d. | U108: n.d. | V108: n.d. | W108: n.d. | X108: n.d. | Y108: n.d. | Z108: n.d. | AA108: n.d. | AC108: n.d. | AD108: n.d. | AE108: n.d. | AF108: n.d. | AG108: n.d. | AH108: n.d. | AI108: n.d. | AJ108: n.d. | AK108: n.d. | AL108: n.d. | AN108: n.d. | AO108: n.d. | AP108: n.d. | AQ108: n.d. | AR108: n.d. | AS108: n.d. | AT108: n.d. | AU108: n.d. | AV108: n.d. | AW108: n.d. | AX108: n.d. | AY108: n.d. | AZ108: n.d. | BA108: n.d. | BB108: n.d. | BC108: n.d. | BD108: n.d. | BE108: n.d. | BF108: n.d. | BG108: n.d. | BH108: n.d. | BI108: n.d. | BJ108: n.d. | BK108: n.a. | BL108: n.d. | BM108: n.d. | BN108: n.a. | BO108: n.d. | BP108: n.a. | BQ108: n.d. | BR108: n.d. | BS108: n.d. | BT108: n.d. | BU108: n.d. | BV108: n.d. | BW108: n.d. | BX108: n.d. | BY108: n.d. | BZ108: n.d. | CA108: n.d. | CB108: n.d. | CC108: n.d. | CD108: n.d. | CE108: n.d. | CF108: n.d. | CG108: n.d. | CH108: n.d. | CI108: n.d. | CJ108: n.d. | CK108: n.d. | CL108: n.d. | CM108: n.d. | CN108: n.d. | CO108: n.d. | CP108: n.d. | CQ108: n.d. | CR108: n.d. | CS108: n.d. | CT108: n.d. | CU108: n.d. | CV108: n.d. | CW108: n.d. | CX108: n.d. | CY108: n.d. | CZ108: n.d. | DA108: n.d. | DB108: n.d. | DC108: n.d. | DD108: n.d. | DE108: n.d. | DF108: n.d. | DG108: n.d. | DH108: n.d.
A109: 1998 | B109: noviembre | C109: 1998-noviembre | D109: 8.810008761 | E109: 7.727339988 | F109: 8.015248241 | G109: 7.224093302 | H109: n.d. | I109: n.d. | J109: n.d. | K109: n.d. | L109: n.d. | N109: n.d. | P109: n.d. | Q109: n.d. | R109: n.d. | S109: n.d. | T109: n.d. | U109: n.d. | V109: n.d. | W109: n.d. | X109: n.d. | Y109: n.d. | Z109: n.d. | AA109: n.d. | AC109: n.d. | AD109: n.d. | AE109: n.d. | AF109: n.d. | AG109: n.d. | AH109: n.d. | AI109: n.d. | AJ109: n.d. | AK109: n.d. | AL109: n.d. | AN109: n.d. | AO109: n.d. | AP109: n.d. | AQ109: n.d. | AR109: n.d. | AS109: n.d. | AT109: n.d. | AU109: n.d. | AV109: n.d. | AW109: n.d. | AX109: n.d. | AY109: n.d. | AZ109: n.d. | BA109: n.d. | BB109: n.d. | BC109: n.d. | BD109: n.d. | BE109: n.d. | BF109: n.d. | BG109: n.d. | BH109: n.d. | BI109: n.d. | BJ109: n.d. | BK109: n.a. | BL109: n.d. | BM109: n.d. | BN109: n.a. | BO109: n.d. | BP109: n.a. | BQ109: n.d. | BR109: n.d. | BS109: n.d. | BT109: n.d. | BU109: n.d. | BV109: n.d. | BW109: n.d. | BX109: n.d. | BY109: n.d. | BZ109: n.d. | CA109: n.d. | CB109: n.d. | CC109: n.d. | CD109: n.d. | CE109: n.d. | CF109: n.d. | CG109: n.d. | CH109: n.d. | CI109: n.d. | CJ109: n.d. | CK109: n.d. | CL109: n.d. | CM109: n.d. | CN109: n.d. | CO109: n.d. | CP109: n.d. | CQ109: n.d. | CR109: n.d. | CS109: n.d. | CT109: n.d. | CU109: n.d. | CV109: n.d. | CW109: n.d. | CX109: n.d. | CY109: n.d. | CZ109: n.d. | DA109: n.d. | DB109: n.d. | DC109: n.d. | DD109: n.d. | DE109: n.d. | DF109: n.d. | DG109: n.d. | DH109: n.d.
A110: 1998 | B110: diciembre | C110: 1998-diciembre | D110: 9.225912199 | E110: 7.653626392 | F110: 8.365623929 | G110: 7.159383429 | H110: n.d. | I110: n.d. | J110: n.d. | K110: n.d. | L110: n.d. | M110: n.d. | N110: n.d. | O110: n.d. | P110: n.d. | Q110: n.d. | R110: n.d. | S110: n.d. | T110: n.d. | U110: n.d. | V110: n.d. | W110: n.d. | X110: n.d. | Y110: n.d. | Z110: n.d. | AA110: n.d. | AC110: n.d. | AD110: n.d. | AE110: n.d. | AF110: n.d. | AG110: n.d. | AH110: n.d. | AI110: n.d. | AJ110: n.d. | AK110: n.d. | AL110: n.d. | AN110: n.d. | AO110: n.d. | AP110: n.d. | AQ110: n.d. | AR110: n.d. | AS110: n.d. | AT110: n.d. | AU110: n.d. | AV110: n.d. | AW110: n.d. | AX110: n.d. | AY110: n.d. | AZ110: n.d. | BA110: n.d. | BB110: n.d. | BC110: n.d. | BD110: n.d. | BE110: n.d. | BF110: n.d. | BG110: n.d. | BH110: n.d. | BI110: n.d. | BJ110: n.d. | BK110: n.a. | BL110: n.d. | BM110: n.d. | BN110: n.a. | BO110: n.d. | BP110: n.a. | BQ110: n.d. | BR110: n.d. | BS110: n.d. | BT110: n.d. | BU110: n.d. | BV110: n.d. | BW110: n.d. | BX110: n.d. | BY110: n.d. | BZ110: n.d. | CA110: n.d. | CB110: n.d. | CC110: n.d. | CD110: n.d. | CE110: n.d. | CF110: n.d. | CG110: n.d. | CH110: n.d. | CI110: n.d. | CJ110: n.d. | CK110: n.d. | CL110: n.d. | CM110: n.d. | CN110: n.d. | CO110: n.d. | CP110: n.d. | CQ110: n.d. | CR110: n.d. | CS110: n.d. | CT110: n.d. | CU110: n.d. | CV110: n.d. | CW110: n.d. | CX110: n.d. | CY110: n.d. | CZ110: n.d. | DA110: n.d. | DB110: n.d. | DC110: n.d. | DD110: n.d. | DE110: n.d. | DF110: n.d. | DG110: n.d. | DH110: n.d.
A111: 1999 | B111: enero | C111: 1999-enero | D111: 8.557464969 | E111: 7.586389562 | F111: 7.749532787 | G111: 7.099876259 | H111: n.d. | I111: n.d. | J111: n.d. | K111: n.d. | L111: n.d. | N111: n.d. | P111: n.d. | Q111: n.d. | R111: n.d. | S111: n.d. | T111: n.d. | U111: n.d. | V111: n.d. | W111: n.d. | X111: n.d. | Y111: n.d. | Z111: n.d. | AA111: n.d. | AC111: n.d. | AD111: n.d. | AE111: n.d. | AF111: n.d. | AG111: n.d. | AH111: n.d. | AI111: n.d. | AJ111: n.d. | AK111: n.d. | AL111: n.d. | AN111: n.d. | AO111: n.d. | AP111: n.d. | AQ111: n.d. | AR111: n.d. | AS111: n.d. | AT111: n.d. | AU111: n.d. | AV111: n.d. | AW111: n.d. | AX111: n.d. | AY111: n.d. | AZ111: n.d. | BA111: n.d. | BB111: n.d. | BC111: n.d. | BD111: n.d. | BE111: n.d. | BF111: n.d. | BG111: n.d. | BH111: n.d. | BI111: n.d. | BJ111: n.d. | BK111: n.a. | BL111: n.d. | BM111: n.d. | BN111: n.a. | BO111: n.d. | BP111: n.a. | BQ111: n.d. | BR111: n.d. | BS111: n.d. | BT111: n.d. | BU111: n.d. | BV111: n.d. | BW111: n.d. | BX111: n.d. | BY111: n.d. | BZ111: n.d. | CA111: n.d. | CB111: n.d. | CC111: n.d. | CD111: n.d. | CE111: n.d. | CF111: n.d. | CG111: n.d. | CH111: n.d. | CI111: n.d. | CJ111: n.d. | CK111: n.d. | CL111: n.d. | CM111: n.d. | CN111: n.d. | CO111: n.d. | CP111: n.d. | CQ111: n.d. | CR111: n.d. | CS111: n.d. | CT111: n.d. | CU111: n.d. | CV111: n.d. | CW111: n.d. | CX111: n.d. | CY111: n.d. | CZ111: n.d. | DA111: n.d. | DB111: n.d. | DC111: n.d. | DD111: n.d. | DE111: n.d. | DF111: n.d. | DG111: n.d. | DH111: n.d.
A112: 1999 | B112: febrero | C112: 1999-febrero | D112: 7.755409648 | E112: 7.525736648 | F112: 7.06396559 | G112: 7.045674567 | H112: n.d. | I112: n.d. | J112: n.d. | K112: n.d. | L112: n.d. | N112: n.d. | P112: n.d. | Q112: n.d. | R112: n.d. | S112: n.d. | T112: n.d. | U112: n.d. | V112: n.d. | W112: n.d. | X112: n.d. | Y112: n.d. | Z112: n.d. | AA112: n.d. | AC112: n.d. | AD112: n.d. | AE112: n.d. | AF112: n.d. | AG112: n.d. | AH112: n.d. | AI112: n.d. | AJ112: n.d. | AK112: n.d. | AL112: n.d. | AN112: n.d. | AO112: n.d. | AP112: n.d. | AQ112: n.d. | AR112: n.d. | AS112: n.d. | AT112: n.d. | AU112: n.d. | AV112: n.d. | AW112: n.d. | AX112: n.d. | AY112: n.d. | AZ112: n.d. | BA112: n.d. | BB112: n.d. | BC112: n.d. | BD112: n.d. | BE112: n.d. | BF112: n.d. | BG112: n.d. | BH112: n.d. | BI112: n.d. | BJ112: n.d. | BK112: n.a. | BL112: n.d. | BM112: n.d. | BN112: n.a. | BO112: n.d. | BP112: n.a. | BQ112: n.d. | BR112: n.d. | BS112: n.d. | BT112: n.d. | BU112: n.d. | BV112: n.d. | BW112: n.d. | BX112: n.d. | BY112: n.d. | BZ112: n.d. | CA112: n.d. | CB112: n.d. | CC112: n.d. | CD112: n.d. | CE112: n.d. | CF112: n.d. | CG112: n.d. | CH112: n.d. | CI112: n.d. | CJ112: n.d. | CK112: n.d. | CL112: n.d. | CM112: n.d. | CN112: n.d. | CO112: n.d. | CP112: n.d. | CQ112: n.d. | CR112: n.d. | CS112: n.d. | CT112: n.d. | CU112: n.d. | CV112: n.d. | CW112: n.d. | CX112: n.d. | CY112: n.d. | CZ112: n.d. | DA112: n.d. | DB112: n.d. | DC112: n.d. | DD112: n.d. | DE112: n.d. | DF112: n.d. | DG112: n.d. | DH112: n.d.
A113: 1999 | B113: marzo | C113: 1999-marzo | D113: 6.92419549 | E113: 7.471814807 | F113: 6.322368391 | G113: 6.996955755 | H113: n.d. | I113: n.d. | J113: n.d. | K113: n.d. | L113: n.d. | N113: n.d. | P113: n.d. | Q113: n.d. | R113: n.d. | S113: n.d. | T113: n.d. | U113: n.d. | V113: n.d. | W113: n.d. | X113: n.d. | Y113: n.d. | Z113: n.d. | AA113: n.d. | AC113: n.d. | AD113: n.d. | AE113: n.d. | AF113: n.d. | AG113: n.d. | AH113: n.d. | AI113: n.d. | AJ113: n.d. | AK113: n.d. | AL113: n.d. | AN113: n.d. | AO113: n.d. | AP113: n.d. | AQ113: n.d. | AR113: n.d. | AS113: n.d. | AT113: n.d. | AU113: n.d. | AV113: n.d. | AW113: n.d. | AX113: n.d. | AY113: n.d. | AZ113: n.d. | BA113: n.d. | BB113: n.d. | BC113: n.d. | BD113: n.d. | BE113: n.d. | BF113: n.d. | BG113: n.d. | BH113: n.d. | BI113: n.d. | BJ113: n.d. | BK113: n.a. | BL113: n.d. | BM113: n.d. | BN113: n.a. | BO113: n.d. | BP113: n.a. | BQ113: n.d. | BR113: n.d. | BS113: n.d. | BT113: n.d. | BU113: n.d. | BV113: n.d. | BW113: n.d. | BX113: n.d. | BY113: n.d. | BZ113: n.d. | CA113: n.d. | CB113: n.d. | CC113: n.d. | CD113: n.d. | CE113: n.d. | CF113: n.d. | CG113: n.d. | CH113: n.d. | CI113: n.d. | CJ113: n.d. | CK113: n.d. | CL113: n.d. | CM113: n.d. | CN113: n.d. | CO113: n.d. | CP113: n.d. | CQ113: n.d. | CR113: n.d. | CS113: n.d. | CT113: n.d. | CU113: n.d. | CV113: n.d. | CW113: n.d. | CX113: n.d. | CY113: n.d. | CZ113: n.d. | DA113: n.d. | DB113: n.d. | DC113: n.d. | DD113: n.d. | DE113: n.d. | DF113: n.d. | DG113: n.d. | DH113: n.d.
A114: 1999 | B114: abril | C114: 1999-abril | D114: 6.242619594 | E114: 7.424767885 | F114: 5.734235617 | G114: 6.953922767 | H114: n.d. | I114: n.d. | J114: n.d. | K114: n.d. | L114: n.d. | N114: n.d. | P114: n.d. | Q114: n.d. | R114: n.d. | S114: n.d. | T114: n.d. | U114: n.d. | V114: n.d. | W114: n.d. | X114: n.d. | Y114: n.d. | Z114: n.d. | AA114: n.d. | AC114: n.d. | AD114: n.d. | AE114: n.d. | AF114: n.d. | AG114: n.d. | AH114: n.d. | AI114: n.d. | AJ114: n.d. | AK114: n.d. | AL114: n.d. | AN114: n.d. | AO114: n.d. | AP114: n.d. | AQ114: n.d. | AR114: n.d. | AS114: n.d. | AT114: n.d. | AU114: n.d. | AV114: n.d. | AW114: n.d. | AX114: n.d. | AY114: n.d. | AZ114: n.d. | BA114: n.d. | BB114: n.d. | BC114: n.d. | BD114: n.d. | BE114: n.d. | BF114: n.d. | BG114: n.d. | BH114: n.d. | BI114: n.d. | BJ114: n.d. | BK114: n.a. | BL114: n.d. | BM114: n.d. | BN114: n.a. | BO114: n.d. | BP114: n.a. | BQ114: n.d. | BR114: n.d. | BS114: n.d. | BT114: n.d. | BU114: n.d. | BV114: n.d. | BW114: n.d. | BX114: n.d. | BY114: n.d. | BZ114: n.d. | CA114: n.d. | CB114: n.d. | CC114: n.d. | CD114: n.d. | CE114: n.d. | CF114: n.d. | CG114: n.d. | CH114: n.d. | CI114: n.d. | CJ114: n.d. | CK114: n.d. | CL114: n.d. | CM114: n.d. | CN114: n.d. | CO114: n.d. | CP114: n.d. | CQ114: n.d. | CR114: n.d. | CS114: n.d. | CT114: n.d. | CU114: n.d. | CV114: n.d. | CW114: n.d. | CX114: n.d. | CY114: n.d. | CZ114: n.d. | DA114: n.d. | DB114: n.d. | DC114: n.d. | DD114: n.d. | DE114: n.d. | DF114: n.d. | DG114: n.d. | DH114: n.d.
A115: 1999 | B115: mayo | C115: 1999-mayo | D115: 5.915598466 | E115: 7.384696799 | F115: 5.422703366 | G115: 6.916757684 | H115: n.d. | I115: n.d. | J115: n.d. | K115: n.d. | L115: n.d. | N115: n.d. | P115: n.d. | Q115: n.d. | R115: n.d. | S115: n.d. | T115: n.d. | U115: n.d. | V115: n.d. | W115: n.d. | X115: n.d. | Y115: n.d. | Z115: n.d. | AA115: n.d. | AC115: n.d. | AD115: n.d. | AE115: n.d. | AF115: n.d. | AG115: n.d. | AH115: n.d. | AI115: n.d. | AJ115: n.d. | AK115: n.d. | AL115: n.d. | AN115: n.d. | AO115: n.d. | AP115: n.d. | AQ115: n.d. | AR115: n.d. | AS115: n.d. | AT115: n.d. | AU115: n.d. | AV115: n.d. | AW115: n.d. | AX115: n.d. | AY115: n.d. | AZ115: n.d. | BA115: n.d. | BB115: n.d. | BC115: n.d. | BD115: n.d. | BE115: n.d. | BF115: n.d. | BG115: n.d. | BH115: n.d. | BI115: n.d. | BJ115: n.d. | BK115: n.a. | BL115: n.d. | BM115: n.d. | BN115: n.a. | BO115: n.d. | BP115: n.a. | BQ115: n.d. | BR115: n.d. | BS115: n.d. | BT115: n.d. | BU115: n.d. | BV115: n.d. | BW115: n.d. | BX115: n.d. | BY115: n.d. | BZ115: n.d. | CA115: n.d. | CB115: n.d. | CC115: n.d. | CD115: n.d. | CE115: n.d. | CF115: n.d. | CG115: n.d. | CH115: n.d. | CI115: n.d. | CJ115: n.d. | CK115: n.d. | CL115: n.d. | CM115: n.d. | CN115: n.d. | CO115: n.d. | CP115: n.d. | CQ115: n.d. | CR115: n.d. | CS115: n.d. | CT115: n.d. | CU115: n.d. | CV115: n.d. | CW115: n.d. | CX115: n.d. | CY115: n.d. | CZ115: n.d. | DA115: n.d. | DB115: n.d. | DC115: n.d. | DD115: n.d. | DE115: n.d. | DF115: n.d. | DG115: n.d. | DH115: n.d.
A116: 1999 | B116: junio | C116: 1999-junio | D116: 5.681012209 | E116: 7.351625056 | F116: 5.203327217 | G116: 6.885586654 | H116: n.d. | I116: n.d. | J116: n.d. | K116: n.d. | L116: n.d. | N116: n.d. | P116: n.d. | Q116: n.d. | R116: n.d. | S116: n.d. | T116: n.d. | U116: n.d. | V116: n.d. | W116: n.d. | X116: n.d. | Y116: n.d. | Z116: n.d. | AA116: n.d. | AC116: n.d. | AD116: n.d. | AE116: n.d. | AF116: n.d. | AG116: n.d. | AH116: n.d. | AI116: n.d. | AJ116: n.d. | AK116: n.d. | AL116: n.d. | AN116: n.d. | AO116: n.d. | AP116: n.d. | AQ116: n.d. | AR116: n.d. | AS116: n.d. | AT116: n.d. | AU116: n.d. | AV116: n.d. | AW116: n.d. | AX116: n.d. | AY116: n.d. | AZ116: n.d. | BA116: n.d. | BB116: n.d. | BC116: n.d. | BD116: n.d. | BE116: n.d. | BF116: n.d. | BG116: n.d. | BH116: n.d. | BI116: n.d. | BJ116: n.d. | BK116: n.a. | BL116: n.d. | BM116: n.d. | BN116: n.a. | BO116: n.d. | BP116: n.a. | BQ116: n.d. | BR116: n.d. | BS116: n.d. | BT116: n.d. | BU116: n.d. | BV116: n.d. | BW116: n.d. | BX116: n.d. | BY116: n.d. | BZ116: n.d. | CA116: n.d. | CB116: n.d. | CC116: n.d. | CD116: n.d. | CE116: n.d. | CF116: n.d. | CG116: n.d. | CH116: n.d. | CI116: n.d. | CJ116: n.d. | CK116: n.d. | CL116: n.d. | CM116: n.d. | CN116: n.d. | CO116: n.d. | CP116: n.d. | CQ116: n.d. | CR116: n.d. | CS116: n.d. | CT116: n.d. | CU116: n.d. | CV116: n.d. | CW116: n.d. | CX116: n.d. | CY116: n.d. | CZ116: n.d. | DA116: n.d. | DB116: n.d. | DC116: n.d. | DD116: n.d. | DE116: n.d. | DF116: n.d. | DG116: n.d. | DH116: n.d.
A117: 1999 | B117: julio | C117: 1999-julio | D117: 5.536677123 | E117: 7.325488313 | F117: 5.084227353 | G117: 6.860463761 | H117: n.d. | I117: n.d. | J117: n.d. | K117: n.d. | L117: n.d. | N117: n.d. | P117: n.d. | Q117: n.d. | R117: n.d. | S117: n.d. | T117: n.d. | U117: n.d. | V117: n.d. | W117: n.d. | X117: n.d. | Y117: n.d. | Z117: n.d. | AA117: n.d. | AC117: n.d. | AD117: n.d. | AE117: n.d. | AF117: n.d. | AG117: n.d. | AH117: n.d. | AI117: n.d. | AJ117: n.d. | AK117: n.d. | AL117: n.d. | AN117: n.d. | AO117: n.d. | AP117: n.d. | AQ117: n.d. | AR117: n.d. | AS117: n.d. | AT117: n.d. | AU117: n.d. | AV117: n.d. | AW117: n.d. | AX117: n.d. | AY117: n.d. | AZ117: n.d. | BA117: n.d. | BB117: n.d. | BC117: n.d. | BD117: n.d. | BE117: n.d. | BF117: n.d. | BG117: n.d. | BH117: n.d. | BI117: n.d. | BJ117: n.d. | BK117: n.a. | BL117: n.d. | BM117: n.d. | BN117: n.a. | BO117: n.d. | BP117: n.a. | BQ117: n.d. | BR117: n.d. | BS117: n.d. | BT117: n.d. | BU117: n.d. | BV117: n.d. | BW117: n.d. | BX117: n.d. | BY117: n.d. | BZ117: n.d. | CA117: n.d. | CB117: n.d. | CC117: n.d. | CD117: n.d. | CE117: n.d. | CF117: n.d. | CG117: n.d. | CH117: n.d. | CI117: n.d. | CJ117: n.d. | CK117: n.d. | CL117: n.d. | CM117: n.d. | CN117: n.d. | CO117: n.d. | CP117: n.d. | CQ117: n.d. | CR117: n.d. | CS117: n.d. | CT117: n.d. | CU117: n.d. | CV117: n.d. | CW117: n.d. | CX117: n.d. | CY117: n.d. | CZ117: n.d. | DA117: n.d. | DB117: n.d. | DC117: n.d. | DD117: n.d. | DE117: n.d. | DF117: n.d. | DG117: n.d. | DH117: n.d.
A118: 1999 | B118: agosto | C118: 1999-agosto | D118: 5.982781734 | E118: 7.306126261 | F118: 5.491843005 | G118: 6.84136039 | H118: n.d. | I118: n.d. | J118: n.d. | K118: n.d. | L118: n.d. | N118: n.d. | P118: n.d. | Q118: n.d. | R118: n.d. | S118: n.d. | T118: n.d. | U118: n.d. | V118: n.d. | W118: n.d. | X118: n.d. | Y118: n.d. | Z118: n.d. | AA118: n.d. | AC118: n.d. | AD118: n.d. | AE118: n.d. | AF118: n.d. | AG118: n.d. | AH118: n.d. | AI118: n.d. | AJ118: n.d. | AK118: n.d. | AL118: n.d. | AN118: n.d. | AO118: n.d. | AP118: n.d. | AQ118: n.d. | AR118: n.d. | AS118: n.d. | AT118: n.d. | AU118: n.d. | AV118: n.d. | AW118: n.d. | AX118: n.d. | AY118: n.d. | AZ118: n.d. | BA118: n.d. | BB118: n.d. | BC118: n.d. | BD118: n.d. | BE118: n.d. | BF118: n.d. | BG118: n.d. | BH118: n.d. | BI118: n.d. | BJ118: n.d. | BK118: n.a. | BL118: n.d. | BM118: n.d. | BN118: n.a. | BO118: n.d. | BP118: n.a. | BQ118: n.d. | BR118: n.d. | BS118: n.d. | BT118: n.d. | BU118: n.d. | BV118: n.d. | BW118: n.d. | BX118: n.d. | BY118: n.d. | BZ118: n.d. | CA118: n.d. | CB118: n.d. | CC118: n.d. | CD118: n.d. | CE118: n.d. | CF118: n.d. | CG118: n.d. | CH118: n.d. | CI118: n.d. | CJ118: n.d. | CK118: n.d. | CL118: n.d. | CM118: n.d. | CN118: n.d. | CO118: n.d. | CP118: n.d. | CQ118: n.d. | CR118: n.d. | CS118: n.d. | CT118: n.d. | CU118: n.d. | CV118: n.d. | CW118: n.d. | CX118: n.d. | CY118: n.d. | CZ118: n.d. | DA118: n.d. | DB118: n.d. | DC118: n.d. | DD118: n.d. | DE118: n.d. | DF118: n.d. | DG118: n.d. | DH118: n.d.
A119: 1999 | B119: septiembre | C119: 1999-septiembre | D119: 6.608183483 | E119: 7.293278073 | F119: 5.990587805 | G119: 6.828161072 | H119: n.d. | I119: n.d. | J119: n.d. | K119: n.d. | L119: n.d. | N119: n.d. | P119: n.d. | Q119: n.d. | R119: n.d. | S119: n.d. | T119: n.d. | U119: n.d. | V119: n.d. | W119: n.d. | X119: n.d. | Y119: n.d. | Z119: n.d. | AA119: n.d. | AC119: n.d. | AD119: n.d. | AE119: n.d. | AF119: n.d. | AG119: n.d. | AH119: n.d. | AI119: n.d. | AJ119: n.d. | AK119: n.d. | AL119: n.d. | AN119: n.d. | AO119: n.d. | AP119: n.d. | AQ119: n.d. | AR119: n.d. | AS119: n.d. | AT119: n.d. | AU119: n.d. | AV119: n.d. | AW119: n.d. | AX119: n.d. | AY119: n.d. | AZ119: n.d. | BA119: n.d. | BB119: n.d. | BC119: n.d. | BD119: n.d. | BE119: n.d. | BF119: n.d. | BG119: n.d. | BH119: n.d. | BI119: n.d. | BJ119: n.d. | BK119: n.a. | BL119: n.d. | BM119: n.d. | BN119: n.a. | BO119: n.d. | BP119: n.a. | BQ119: n.d. | BR119: n.d. | BS119: n.d. | BT119: n.d. | BU119: n.d. | BV119: n.d. | BW119: n.d. | BX119: n.d. | BY119: n.d. | BZ119: n.d. | CA119: n.d. | CB119: n.d. | CC119: n.d. | CD119: n.d. | CE119: n.d. | CF119: n.d. | CG119: n.d. | CH119: n.d. | CI119: n.d. | CJ119: n.d. | CK119: n.d. | CL119: n.d. | CM119: n.d. | CN119: n.d. | CO119: n.d. | CP119: n.d. | CQ119: n.d. | CR119: n.d. | CS119: n.d. | CT119: n.d. | CU119: n.d. | CV119: n.d. | CW119: n.d. | CX119: n.d. | CY119: n.d. | CZ119: n.d. | DA119: n.d. | DB119: n.d. | DC119: n.d. | DD119: n.d. | DE119: n.d. | DF119: n.d. | DG119: n.d. | DH119: n.d.
A120: 1999 | B120: octubre | C120: 1999-octubre | D120: 7.433340145 | E120: 7.286604684 | F120: 6.71666137 | G120: 6.820682592 | H120: n.d. | I120: n.d. | J120: n.d. | K120: n.d. | L120: n.d. | N120: n.d. | P120: n.d. | Q120: n.d. | R120: n.d. | S120: n.d. | T120: n.d. | U120: n.d. | V120: n.d. | W120: n.d. | X120: n.d. | Y120: n.d. | Z120: n.d. | AA120: n.d. | AC120: n.d. | AD120: n.d. | AE120: n.d. | AF120: n.d. | AG120: n.d. | AH120: n.d. | AI120: n.d. | AJ120: n.d. | AK120: n.d. | AL120: n.d. | AN120: n.d. | AO120: n.d. | AP120: n.d. | AQ120: n.d. | AR120: n.d. | AS120: n.d. | AT120: n.d. | AU120: n.d. | AV120: n.d. | AW120: n.d. | AX120: n.d. | AY120: n.d. | AZ120: n.d. | BA120: n.d. | BB120: n.d. | BC120: n.d. | BD120: n.d. | BE120: n.d. | BF120: n.d. | BG120: n.d. | BH120: n.d. | BI120: n.d. | BJ120: n.d. | BK120: n.a. | BL120: n.d. | BM120: n.d. | BN120: n.a. | BO120: n.d. | BP120: n.a. | BQ120: n.d. | BR120: n.d. | BS120: n.d. | BT120: n.d. | BU120: n.d. | BV120: n.d. | BW120: n.d. | BX120: n.d. | BY120: n.d. | BZ120: n.d. | CA120: n.d. | CB120: n.d. | CC120: n.d. | CD120: n.d. | CE120: n.d. | CF120: n.d. | CG120: n.d. | CH120: n.d. | CI120: n.d. | CJ120: n.d. | CK120: n.d. | CL120: n.d. | CM120: n.d. | CN120: n.d. | CO120: n.d. | CP120: n.d. | CQ120: n.d. | CR120: n.d. | CS120: n.d. | CT120: n.d. | CU120: n.d. | CV120: n.d. | CW120: n.d. | CX120: n.d. | CY120: n.d. | CZ120: n.d. | DA120: n.d. | DB120: n.d. | DC120: n.d. | DD120: n.d. | DE120: n.d. | DF120: n.d. | DG120: n.d. | DH120: n.d.
A121: 1999 | B121: noviembre | C121: 1999-noviembre | D121: 5.780958892 | E121: 7.285735158 | F121: 5.262322631 | G121: 6.818714652 | H121: n.d. | I121: n.d. | J121: n.d. | K121: n.d. | L121: n.d. | N121: n.d. | P121: n.d. | Q121: n.d. | R121: n.d. | S121: n.d. | T121: n.d. | U121: n.d. | V121: n.d. | W121: n.d. | X121: n.d. | Y121: n.d. | Z121: n.d. | AA121: n.d. | AC121: n.d. | AD121: n.d. | AE121: n.d. | AF121: n.d. | AG121: n.d. | AH121: n.d. | AI121: n.d. | AJ121: n.d. | AK121: n.d. | AL121: n.d. | AN121: n.d. | AO121: n.d. | AP121: n.d. | AQ121: n.d. | AR121: n.d. | AS121: n.d. | AT121: n.d. | AU121: n.d. | AV121: n.d. | AW121: n.d. | AX121: n.d. | AY121: n.d. | AZ121: n.d. | BA121: n.d. | BB121: n.d. | BC121: n.d. | BD121: n.d. | BE121: n.d. | BF121: n.d. | BG121: n.d. | BH121: n.d. | BI121: n.d. | BJ121: n.d. | BK121: n.a. | BL121: n.d. | BM121: n.d. | BN121: n.a. | BO121: n.d. | BP121: n.a. | BQ121: n.d. | BR121: n.d. | BS121: n.d. | BT121: n.d. | BU121: n.d. | BV121: n.d. | BW121: n.d. | BX121: n.d. | BY121: n.d. | BZ121: n.d. | CA121: n.d. | CB121: n.d. | CC121: n.d. | CD121: n.d. | CE121: n.d. | CF121: n.d. | CG121: n.d. | CH121: n.d. | CI121: n.d. | CJ121: n.d. | CK121: n.d. | CL121: n.d. | CM121: n.d. | CN121: n.d. | CO121: n.d. | CP121: n.d. | CQ121: n.d. | CR121: n.d. | CS121: n.d. | CT121: n.d. | CU121: n.d. | CV121: n.d. | CW121: n.d. | CX121: n.d. | CY121: n.d. | CZ121: n.d. | DA121: n.d. | DB121: n.d. | DC121: n.d. | DD121: n.d. | DE121: n.d. | DF121: n.d. | DG121: n.d. | DH121: n.d.
A122: 1999 | B122: diciembre | C122: 1999-diciembre | D122: 5.453218285 | E122: 7.290310671 | F122: 5.028255048 | G122: 6.822057124 | H122: n.d. | I122: n.d. | J122: n.d. | K122: n.d. | L122: n.d. | M122: n.d. | N122: n.d. | O122: n.d. | P122: n.d. | Q122: n.d. | R122: n.d. | S122: n.d. | T122: n.d. | U122: n.d. | V122: n.d. | W122: n.d. | X122: n.d. | Y122: n.d. | Z122: n.d. | AA122: n.d. | AC122: n.d. | AD122: n.d. | AE122: n.d. | AF122: n.d. | AG122: n.d. | AH122: n.d. | AI122: n.d. | AJ122: n.d. | AK122: n.d. | AL122: n.d. | AN122: n.d. | AO122: n.d. | AP122: n.d. | AQ122: n.d. | AR122: n.d. | AS122: n.d. | AT122: n.d. | AU122: n.d. | AV122: n.d. | AW122: n.d. | AX122: n.d. | AY122: n.d. | AZ122: n.d. | BA122: n.d. | BB122: n.d. | BC122: n.d. | BD122: n.d. | BE122: n.d. | BF122: n.d. | BG122: n.d. | BH122: n.d. | BI122: n.d. | BJ122: n.d. | BK122: n.a. | BL122: n.d. | BM122: n.d. | BN122: n.a. | BO122: n.d. | BP122: n.a. | BQ122: n.d. | BR122: n.d. | BS122: n.d. | BT122: n.d. | BU122: n.d. | BV122: n.d. | BW122: n.d. | BX122: n.d. | BY122: n.d. | BZ122: n.d. | CA122: n.d. | CB122: n.d. | CC122: n.d. | CD122: n.d. | CE122: n.d. | CF122: n.d. | CG122: n.d. | CH122: n.d. | CI122: n.d. | CJ122: n.d. | CK122: n.d. | CL122: n.d. | CM122: n.d. | CN122: n.d. | CO122: n.d. | CP122: n.d. | CQ122: n.d. | CR122: n.d. | CS122: n.d. | CT122: n.d. | CU122: n.d. | CV122: n.d. | CW122: n.d. | CX122: n.d. | CY122: n.d. | CZ122: n.d. | DA122: n.d. | DB122: n.d. | DC122: n.d. | DD122: n.d. | DE122: n.d. | DF122: n.d. | DG122: n.d. | DH122: n.d.
